Workbook

Sheet Contents
C2: Contents
F3: Colour Codes | K3: File Name: | M3: =IFERROR(File_name(),"") -> 
C4: Assumptions | G4: Inputs | I4: 1234567890
D5: Econmomical Assumptions | G5: Section Titles | I5: TITLE ROW | K5: Last Save Date | M5: =IFERROR(lastsaved(),"") -> 
D6: AIBD's Revenues Assumptions | G6: Sum Column | I6: 1000000000
D7: Operating Expenses | G7: True or 1 | I7: =1=1 -> TRUE | K7: Last Save By | M7: =IFERROR(last_save_by(),"") -> 
D8: G.2. Cars Maintenance & Insurance expenses | G8: False or 0 | I8: =1=2 -> FALSE
D9: AIBD Operational Capex | G9: Other Sheet Links | I9: |||||||||||||||||||
D10: Capex of the project
D11: B.Capex summary table used for depreciation purpose
D12: Maintenance and Renewal Program
D13: Working Capital
C15: Financials
D16: INCOME STATEMENTS
D17: WORKING CAPITAL
D18: CASH FLOW STATEMENTS
C20: Depreciation AIBD
C22: General Assumptions
D23: PARAMETERS FOR THE FINANCIAL MODEL
D24: 1.
D25: 2.
D26: TRAFFIC PROJECTIONS FOR AIBD
D27: 3.
D28: B. Aeronautical fee structure
D29: C. Assumptions on aeronautical fees
D30: 4.
D31: 5.
D32: 6.
D33: 7.
D34: 8.
C36: Assumptions RDIA
D37: ASSUMPTIONS
D38: Traffic and RDIA parameters
D39: OUTPUT
C41: Financing Profiles
C43: Project Costs
C45: Debt
D46: Tranche 1: BOAD
D47: Tranche 1: IDC
D48: Tranche 3: AFDB
D49: Tranche 4: AFD
D50: Tranche 5: IsDB
D51: Tranche 6: SFD
D52: Tranche 7: OPEC Fund
C54: Cash sweep
C56: DSCR Chart
C58: Charts
C60: Output
C62: Output SemiAnnual
C64: Rates
C66: Drawdown Schedule
C68: Bridge Loan
C70: Traffic Scenarios
C72: RDIA inflows
C74: Economic Value of Money
D75: ECONOMIC ANALYSIS
D76: 1.
D77: 2.
D78: 3.
C80: Cash Flow
D81: CASH FLOW STATEMENTS-AILSS-EUR, NOMINAL
D82: 1.
D83: 2.
D84: 3.
D85: 4.
C87: Value of Time Savings
D88: Road supply traffic by air traffic segment (vehicle per year)
D89: Vehicle operating costs savings ( in EUR)
D90: Time savings (in EUR)
C92: Assumptions DAPORT
D93: I
C95: Traffic Scen
D96: Passengers
D97: PAX (international tourists)
D98: % of total
D99: PAX (international Business travellers)
D100: % of total
D101: PAX (international private)
D102: % of total
D103: PAX (domestic)
D104: % of total
D105: PAX (transit)
D106: % of total
D107: PAX (strong growth)
D108: Check pax shares
D109: Check total pax
D110: Air Traffic Movements
D111: Movements Commercial Freight
D112: % of total
D113: growth rate
D114: Movements Commercial PAX
D115: % of total
D116: Total Commercial ATM 1
D117: % of total
D118: Movements Non-Commercial
D119: % of total
D120: Total ATM
D121: Growth
D122: Check ATM shares
D123: Check ATM = 0
D124: Cargo (in tons)
D125: Mail
D126: Letters
D127: Parcels
D128: Total
D129: Freight (in Tons)
D130: Import
D131: % of total
D132: Export Fish
D133: % of total
D134: Export Plants
D135: % of total
D136: Export Others
D137: % of total
D138: Total Scenario 1
D139: Growth
D140: Total Cargo
D141: Growth
D142: Check Freight shares
D143: Pax / Pax ATM
D144: Passengers
D145: PAX (international tourists)
D146: % of total
D147: PAX (international Business travellers)
D148: % of total
D149: PAX (international private)
D150: % of total
D151: PAX (domestic)
D152: % of total
D153: PAX (transit)
D154: % of total
D155: PAX (moderate growth)
D156: Check pax shares
D157: Check total pax
D158: Air Traffic Movements
D159: Movements Commercial Freight
D160: % of total
D161: Movements Commercial PAX
D162: % of total
D163: Total Commercial ATM 2
D164: % of total
D165: Movements Non-Commercial
D166: % of total
D167: Total ATM
D168: Growth
D169: % of com freight atm
D170: % of com pax atm
D171: Cargo (in tons)
D172: Mail
D173: Letters
D174: Parcels
D175: Total
D176: Freight (in Tons)
D177: Import
D178: % of total
D179: Export Fish
D180: % of total
D181: Export Plants
D182: % of total
D183: Export Others
D184: % of total
D185: Total Freight
D186: Growth
D187: Total Cargo
D188: Growth
D189: Check Freight shares
D190: pax/pax atm
D191: cargo/cargo atm
D192: Passengers
D193: PAX (international tourists)
D194: % of total
D195: PAX (international Business travellers)
D196: % of total
D197: PAX (international private)
D198: % of total
D199: PAX (domestic)
D200: % of total
D201: PAX (transit)
D202: % of total
D203: PAX (slow growth)
D204: Check pax shares
D205: Check total pax
D206: Air Traffic Movements
D207: Movements Commercial Freight
D208: % of total
D209: Movements Commercial PAX
D210: % of total
D211: Total Commercial ATM 3
D212: % of total
D213: Movements Non-Commercial
D214: % of total
D215: Total ATM
D216: Growth
D217: % of com freight atm
D218: % of com pax atm
D219: Cargo (in tons)
D220: Mail
D221: Letters
D222: Parcels
D223: Total
... 273 more rows

Sheet Assumptions
D1: Assumption Sheet
E4: Timeline of Project | H4: 2006 | I4: 2007 | J4: 2008 | K4: 2009 | L4: 2010-06-29 | M4: 2010-12-31 | N4: 2011-06-30 | O4: 2011-12-31 | P4: 2012-06-30 | Q4: 2012-12-31 | R4: 2013-06-30 | S4: 2013-12-31 | T4: 2014-06-30 | U4: 2014-12-31 | V4: 2015-06-30 | W4: 2015-12-31 | X4: 2016-06-30 | Y4: 2016-12-31 | Z4: 2017-06-30 | AA4: 2017-12-31 | AB4: 2018-06-30 | AC4: 2018-12-31 | AD4: 2019-06-30 | AE4: 2019-12-31 | AF4: 2020-06-30 | AG4: 2020-12-31 | AH4: 2021-06-30 | AI4: 2021-12-31 | AJ4: 2022-06-30 | AK4: 2022-12-31 | AL4: 2023-06-30 | AM4: 2023-12-31 | AN4: 2024-06-30 | AO4: 2024-12-31 | AP4: 2025-06-30 | AQ4: 2025-12-31
D5: Quality of data | H5: Actual | I5: Actual | J5: Actual | K5: Actual | L5: Forecast | M5: Forecast | N5: Forecast | O5: Forecast | P5: Forecast | Q5: Forecast | R5: Forecast | S5: Forecast | T5: Forecast | U5: Forecast | V5: Forecast | W5: Forecast | X5: Forecast | Y5: Forecast | Z5: Forecast | AA5: Forecast | AB5: Forecast | AC5: Forecast | AD5: Forecast | AE5: Forecast | AF5: Forecast | AG5: Forecast | AH5: Forecast | AI5: Forecast | AJ5: Forecast | AK5: Forecast | AL5: Forecast | AM5: Forecast | AN5: Forecast | AO5: Forecast | AP5: Forecast | AQ5: Forecast
D6: Years of operating Blaise Diagne Int' Airport | H6: =I6-1 -> -5 | I6: =J6-1 -> -4 | J6: =K6-1 -> -3 | K6: =M6-1 -> -2 | M6: =+O6-1 -> -1 | O6: 0 | Q6: =O6+1 -> 1 | S6: =Q6+1 -> 2 | U6: =S6+1 -> 3 | W6: =U6+1 -> 4 | Y6: =W6+1 -> 5 | AA6: =Y6+1 -> 6 | AC6: =AA6+1 -> 7 | AE6: =AC6+1 -> 8 | AG6: =AE6+1 -> 9 | AI6: =AG6+1 -> 10 | AK6: =AI6+1 -> 11 | AM6: =AK6+1 -> 12 | AO6: =AM6+1 -> 13 | AQ6: =AO6+1 -> 14
D8: manual input
B9: Econmomical Assumptions
D11: Exchange rate of 1 FCFA | F11: =1/655.957 -> 0.001524490172
D12: Exchange rate of 1 Euro | F12: =1/F11 -> 655.957
J13: =J4 -> 2008 | K13: =K4 -> 2009 | L13: =L4 -> 2010-06-29 | M13: =M4 -> 2010-12-31 | N13: =N4 -> 2011-06-30 | O13: =O4 -> 2011-12-31 | P13: =P4 -> 2012-06-30 | Q13: =Q4 -> 2012-12-31 | R13: =R4 -> 2013-06-30 | S13: =S4 -> 2013-12-31 | T13: =T4 -> 2014-06-30 | U13: =U4 -> 2014-12-31 | V13: =V4 -> 2015-06-30 | W13: =W4 -> 2015-12-31 | X13: =X4 -> 2016-06-30 | Y13: =Y4 -> 2016-12-31 | Z13: =Z4 -> 2017-06-30 | AA13: =AA4 -> 2017-12-31 | AB13: =AB4 -> 2018-06-30 | AC13: =AC4 -> 2018-12-31 | AD13: =AD4 -> 2019-06-30 | AE13: =AE4 -> 2019-12-31 | AF13: =AF4 -> 2020-06-30 | AG13: =AG4 -> 2020-12-31 | AH13: =AH4 -> 2021-06-30 | AI13: =AI4 -> 2021-12-31 | AJ13: =AJ4 -> 2022-06-30 | AK13: =AK4 -> 2022-12-31 | AL13: =AL4 -> 2023-06-30 | AM13: =AM4 -> 2023-12-31 | AN13: =AN4 -> 2024-06-30 | AO13: =AO4 -> 2024-12-31 | AP13: =AP4 -> 2025-06-30 | AQ13: =AQ4 -> 2025-12-31
J14: =J5 -> Actual | K14: =K5 -> Actual | L14: =L5 -> Forecast | M14: =M5 -> Forecast | N14: =N5 -> Forecast | O14: =O5 -> Forecast | P14: =P5 -> Forecast | Q14: =Q5 -> Forecast | R14: =R5 -> Forecast | S14: =S5 -> Forecast | T14: =T5 -> Forecast | U14: =U5 -> Forecast | V14: =V5 -> Forecast | W14: =W5 -> Forecast | X14: =X5 -> Forecast | Y14: =Y5 -> Forecast | Z14: =Z5 -> Forecast | AA14: =AA5 -> Forecast | AB14: =AB5 -> Forecast | AC14: =AC5 -> Forecast | AD14: =AD5 -> Forecast | AE14: =AE5 -> Forecast | AF14: =AF5 -> Forecast | AG14: =AG5 -> Forecast | AH14: =AH5 -> Forecast | AI14: =AI5 -> Forecast | AJ14: =AJ5 -> Forecast | AK14: =AK5 -> Forecast | AL14: =AL5 -> Forecast | AM14: =AM5 -> Forecast | AN14: =AN5 -> Forecast | AO14: =AO5 -> Forecast | AP14: =AP5 -> Forecast | AQ14: =AQ5 -> Forecast
D15: Inflation
D16: Inflation index (annual basis) | F16: 0.03 | N16: =$F$16 -> 0.03 | O16: 0.03 | P16: 0.03 | Q16: 0.03 | R16: 0.03 | S16: 0.03 | T16: 0.03 | U16: 0.03 | V16: 0.03 | W16: 0.03 | X16: 0.03 | Y16: 0.03 | Z16: 0.03 | AA16: 0.03 | AB16: 0.03 | AC16: 0.03 | AD16: 0.03 | AE16: 0.03 | AF16: 0.03 | AG16: 0.03 | AH16: 0.03 | AI16: 0.03 | AJ16: 0.03 | AK16: 0.03 | AL16: 0.03 | AM16: 0.03 | AN16: 0.03 | AO16: 0.03 | AP16: 0.03 | AQ16: 0.03
D17: Inflation index (end of period) | M17: 100 | N17: =M17*(1+N16)^(1/2) -> 101.4889157 | O17: 103 | P17: 104.5335831 | Q17: 106.09 | R17: 107.6695906 | S17: 109.2727 | T17: 110.8996783 | U17: 112.550881 | V17: 114.2266687 | W17: 115.9274074 | X17: 117.6534687 | Y17: 119.4052297 | Z17: 121.1830728 | AA17: 122.9873865 | AB17: 124.818565 | AC17: 126.6770081 | AD17: 128.5631219 | AE17: 130.4773184 | AF17: 132.4200156 | AG17: 134.3916379 | AH17: 136.3926161 | AI17: 138.4233871 | AJ17: 140.4843945 | AK17: 142.5760887 | AL17: 144.6989264 | AM17: 146.8533713 | AN17: 149.0398942 | AO17: 151.2589725 | AP17: 153.511091 | AQ17: 155.7967417
D18: Inflation index (mid - period) | M18: 100 | N18: =(M17+N17)/2 -> 100.7444578 | O18: 102.2444578 | P18: 103.7667916 | Q18: 105.3117916 | R18: 106.8797953 | S18: 108.4711453 | T18: 110.0861892 | U18: 111.7252797 | V18: 113.3887748 | W18: 115.0770381 | X18: 116.7904381 | Y18: 118.5293492 | Z18: 120.2941512 | AA18: 122.0852297 | AB18: 123.9029758 | AC18: 125.7477866 | AD18: 127.620065 | AE18: 129.5202202 | AF18: 131.448667 | AG18: 133.4058268 | AH18: 135.392127 | AI18: 137.4080016 | AJ18: 139.4538908 | AK18: 141.5302416 | AL18: 143.6375075 | AM18: 145.7761489 | AN18: 147.9466328 | AO18: 150.1494333 | AP18: 152.3850317 | AQ18: 154.6539163
D19: % inflation index | M19: =+M18/$M$18 -> 1 | N19: 1.007444578 | O19: 1.022444578 | P19: 1.037667916 | Q19: 1.053117916 | R19: 1.068797953 | S19: 1.084711453 | T19: 1.100861892 | U19: 1.117252797 | V19: 1.133887748 | W19: 1.150770381 | X19: 1.167904381 | Y19: 1.185293492 | Z19: 1.202941512 | AA19: 1.220852297 | AB19: 1.239029758 | AC19: 1.257477866 | AD19: 1.27620065 | AE19: 1.295202202 | AF19: 1.31448667 | AG19: 1.334058268 | AH19: 1.35392127 | AI19: 1.374080016 | AJ19: 1.394538908 | AK19: 1.415302416 | AL19: 1.436375075 | AM19: 1.457761489 | AN19: 1.479466328 | AO19: 1.501494333 | AP19: 1.523850317 | AQ19: 1.546539163
D21: Utility prices
D22: Utility prices index (annual basis) | F22: 0.05 | N22: =$F$22 -> 0.05 | O22: 0.05 | P22: 0.05 | Q22: 0.05 | R22: 0.05 | S22: 0.05 | T22: 0.05 | U22: 0.05 | V22: 0.05 | W22: 0.05 | X22: 0.05 | Y22: 0.05 | Z22: 0.05 | AA22: 0.05 | AB22: 0.05 | AC22: 0.05 | AD22: 0.05 | AE22: 0.05 | AF22: 0.05 | AG22: 0.05 | AH22: 0.05 | AI22: 0.05 | AJ22: 0.05 | AK22: 0.05 | AL22: 0.05 | AM22: 0.05 | AN22: 0.05 | AO22: 0.05 | AP22: 0.05 | AQ22: 0.05
D23: Utility prices index (end of period) | M23: 100 | N23: =M23*(1+N22)^(1/2) -> 102.4695077 | O23: 105 | P23: 107.592983 | Q23: 110.25 | R23: 112.9726322 | S23: 115.7625 | T23: 118.6212638 | U23: 121.550625 | V23: 124.552327 | W23: 127.6281563 | X23: 130.7799433 | Y23: 134.0095641 | Z23: 137.3189405 | AA23: 140.7100423 | AB23: 144.1848875 | AC23: 147.7455444 | AD23: 151.3941319 | AE23: 155.1328216 | AF23: 158.9638385 | AG23: 162.8894627 | AH23: 166.9120304 | AI23: 171.0339358 | AJ23: 175.257632 | AK23: 179.5856326 | AL23: 184.0205136 | AM23: 188.5649142 | AN23: 193.2215392 | AO23: 197.9931599 | AP23: 202.8826162 | AQ23: 207.8928179
D24: Utilities prices index (mid - period) | M24: 100 | N24: =(M23+N23)/2 -> 101.2347538 | O24: 103.7347538 | P24: 106.2964915 | Q24: 108.9214915 | R24: 111.6113161 | S24: 114.3675661 | T24: 117.1918819 | U24: 120.0859444 | V24: 123.051476 | W24: 126.0902416 | X24: 129.2040498 | Y24: 132.3947537 | Z24: 135.6642523 | AA24: 139.0144914 | AB24: 142.4474649 | AC24: 145.965216 | AD24: 149.5698381 | AE24: 153.2634768 | AF24: 157.0483301 | AG24: 160.9266506 | AH24: 164.9007466 | AI24: 168.9729831 | AJ24: 173.1457839 | AK24: 177.4216323 | AL24: 181.8030731 | AM24: 186.2927139 | AN24: 190.8932267 | AO24: 195.6073496 | AP24: 200.4378881 | AQ24: 205.3877171
D25: % utilities prices index | M25: =+M24/$M$24 -> 1 | N25: 1.012347538 | O25: 1.037347538 | P25: 1.062964915 | Q25: 1.089214915 | R25: 1.116113161 | S25: 1.143675661 | T25: 1.171918819 | U25: 1.200859444 | V25: 1.23051476 | W25: 1.260902416 | X25: 1.292040498 | Y25: 1.323947537 | Z25: 1.356642523 | AA25: 1.390144914 | AB25: 1.424474649 | AC25: 1.45965216 | AD25: 1.495698381 | AE25: 1.532634768 | AF25: 1.570483301 | AG25: 1.609266506 | AH25: 1.649007466 | AI25: 1.689729831 | AJ25: 1.731457839 | AK25: 1.774216323 | AL25: 1.818030731 | AM25: 1.862927139 | AN25: 1.908932267 | AO25: 1.956073496 | AP25: 2.004378881 | AQ25: 2.053877171
D27: Salary
D28: Salary index (annual basis) | F28: 0.04 | N28: =$F$28 -> 0.04 | O28: 0.04 | P28: 0.04 | Q28: 0.04 | R28: 0.04 | S28: 0.04 | T28: 0.04 | U28: 0.04 | V28: 0.04 | W28: 0.04 | X28: 0.04 | Y28: 0.04 | Z28: 0.04 | AA28: 0.04 | AB28: 0.04 | AC28: 0.04 | AD28: 0.04 | AE28: 0.04 | AF28: 0.04 | AG28: 0.04 | AH28: 0.04 | AI28: 0.04 | AJ28: 0.04 | AK28: 0.04 | AL28: 0.04 | AM28: 0.04 | AN28: 0.04 | AO28: 0.04 | AP28: 0.04 | AQ28: 0.04
D29: Salary index (end of period) | M29: 100 | N29: =M29*(1+N28)^(1/2) -> 101.9803903 | O29: 104 | P29: 106.0596059 | Q29: 108.16 | R29: 110.3019901 | S29: 112.4864 | T29: 114.7140697 | U29: 116.985856 | V29: 119.3026325 | W29: 121.6652902 | X29: 124.0747378 | Y29: 126.5319018 | Z29: 129.0377273 | AA29: 131.5931779 | AB29: 134.1992364 | AC29: 136.856905 | AD29: 139.5672059 | AE29: 142.3311812 | AF29: 145.1498941 | AG29: 148.0244285 | AH29: 150.9558899 | AI29: 153.9454056 | AJ29: 156.9941255 | AK29: 160.1032219 | AL29: 163.2738905 | AM29: 166.5073507 | AN29: 169.8048461 | AO29: 173.1676448 | AP29: 176.59704 | AQ29: 180.0943506
D30: Salary index (mid - period) | M30: 100 | N30: =(M29+N29)/2 -> 100.9901951 | O30: 102.9901951 | P30: 105.0298029 | Q30: 107.1098029 | R30: 109.2309951 | S30: 111.3941951 | T30: 113.6002349 | U30: 115.8499629 | V30: 118.1442443 | W30: 120.4839614 | X30: 122.870014 | Y30: 125.3033198 | Z30: 127.7848146 | AA30: 130.3154526 | AB30: 132.8962072 | AC30: 135.5280707 | AD30: 138.2120555 | AE30: 140.9491936 | AF30: 143.7405377 | AG30: 146.5871613 | AH30: 149.4901592 | AI30: 152.4506478 | AJ30: 155.4697656 | AK30: 158.5486737 | AL30: 161.6885562 | AM30: 164.8906206 | AN30: 168.1560984 | AO30: 171.4862454 | AP30: 174.8823424 | AQ30: 178.3456953
D31: % salary index | M31: =+M30/$M$30 -> 1 | N31: 1.009901951 | O31: 1.029901951 | P31: 1.050298029 | Q31: 1.071098029 | R31: 1.092309951 | S31: 1.113941951 | T31: 1.136002349 | U31: 1.158499629 | V31: 1.181442443 | W31: 1.204839614 | X31: 1.22870014 | Y31: 1.253033198 | Z31: 1.277848146 | AA31: 1.303154526 | AB31: 1.328962072 | AC31: 1.355280707 | AD31: 1.382120555 | AE31: 1.409491936 | AF31: 1.437405377 | AG31: 1.465871613 | AH31: 1.494901592 | AI31: 1.524506478 | AJ31: 1.554697656 | AK31: 1.585486737 | AL31: 1.616885562 | AM31: 1.648906206 | AN31: 1.681560984 | AO31: 1.714862454 | AP31: 1.748823424 | AQ31: 1.783456953
D33: Gas prices
D34: Gas prices index (annual basis) | F34: 0.05 | N34: =$F$34 -> 0.05 | O34: 0.05 | P34: 0.05 | Q34: 0.05 | R34: 0.05 | S34: 0.05 | T34: 0.05 | U34: 0.05 | V34: 0.05 | W34: 0.05 | X34: 0.05 | Y34: 0.05 | Z34: 0.05 | AA34: 0.05 | AB34: 0.05 | AC34: 0.05 | AD34: 0.05 | AE34: 0.05 | AF34: 0.05 | AG34: 0.05 | AH34: 0.05 | AI34: 0.05 | AJ34: 0.05 | AK34: 0.05 | AL34: 0.05 | AM34: 0.05 | AN34: 0.05 | AO34: 0.05 | AP34: 0.05 | AQ34: 0.05
D35: Gas prices index (end of period) | M35: 100 | N35: =M35*(1+N34)^(1/2) -> 102.4695077 | O35: 105 | P35: 107.592983 | Q35: 110.25 | R35: 112.9726322 | S35: 115.7625 | T35: 118.6212638 | U35: 121.550625 | V35: 124.552327 | W35: 127.6281563 | X35: 130.7799433 | Y35: 134.0095641 | Z35: 137.3189405 | AA35: 140.7100423 | AB35: 144.1848875 | AC35: 147.7455444 | AD35: 151.3941319 | AE35: 155.1328216 | AF35: 158.9638385 | AG35: 162.8894627 | AH35: 166.9120304 | AI35: 171.0339358 | AJ35: 175.257632 | AK35: 179.5856326 | AL35: 184.0205136 | AM35: 188.5649142 | AN35: 193.2215392 | AO35: 197.9931599 | AP35: 202.8826162 | AQ35: 207.8928179
D36: Gas prices index (mid - period) | M36: 100 | N36: =(M35+N35)/2 -> 101.2347538 | O36: 103.7347538 | P36: 106.2964915 | Q36: 108.9214915 | R36: 111.6113161 | S36: 114.3675661 | T36: 117.1918819 | U36: 120.0859444 | V36: 123.051476 | W36: 126.0902416 | X36: 129.2040498 | Y36: 132.3947537 | Z36: 135.6642523 | AA36: 139.0144914 | AB36: 142.4474649 | AC36: 145.965216 | AD36: 149.5698381 | AE36: 153.2634768 | AF36: 157.0483301 | AG36: 160.9266506 | AH36: 164.9007466 | AI36: 168.9729831 | AJ36: 173.1457839 | AK36: 177.4216323 | AL36: 181.8030731 | AM36: 186.2927139 | AN36: 190.8932267 | AO36: 195.6073496 | AP36: 200.4378881 | AQ36: 205.3877171
D37: % gas prices index | M37: =+M36/$M$18 -> 1 | N37: 1.012347538 | O37: 1.037347538 | P37: 1.062964915 | Q37: 1.089214915 | R37: 1.116113161 | S37: 1.143675661 | T37: 1.171918819 | U37: 1.200859444 | V37: 1.23051476 | W37: 1.260902416 | X37: 1.292040498 | Y37: 1.323947537 | Z37: 1.356642523 | AA37: 1.390144914 | AB37: 1.424474649 | AC37: 1.45965216 | AD37: 1.495698381 | AE37: 1.532634768 | AF37: 1.570483301 | AG37: 1.609266506 | AH37: 1.649007466 | AI37: 1.689729831 | AJ37: 1.731457839 | AK37: 1.774216323 | AL37: 1.818030731 | AM37: 1.862927139 | AN37: 1.908932267 | AO37: 1.956073496 | AP37: 2.004378881 | AQ37: 2.053877171
C39: Daport's Revenues | I39: =+I4 -> 2007 | J39: =+J4 -> 2008 | K39: =+K4 -> 2009 | L39: =+K39+1 -> 2010 | N39: =+L39+1 -> 2011 | P39: =+N39+1 -> 2012 | R39: =+P39+1 -> 2013 | T39: =+R39+1 -> 2014 | V39: =+T39+1 -> 2015 | X39: =+V39+1 -> 2016 | Z39: =+X39+1 -> 2017 | AB39: =+Z39+1 -> 2018 | AD39: =+AB39+1 -> 2019 | AF39: =+AD39+1 -> 2020 | AH39: =+AF39+1 -> 2021 | AJ39: =+AH39+1 -> 2022 | AL39: =+AJ39+1 -> 2023 | AN39: =+AL39+1 -> 2024 | AP39: =+AN39+1 -> 2025
D40: (inflated) | I40: 43454854.51 | J40: 47380002.04 | K40: 51604431.39 | L40: 44045490 | N40: =47198481/2 -> 23599240.5 | O40: =47198481/2 -> 23599240.5 | P40: ='P&L'!R$36/2 -> 25894010.49 | Q40: ='P&L'!R$36/2 -> 25894010.49 | R40: ='P&L'!S$36/2 -> 28541756.47 | S40: ='P&L'!S$36/2 -> 28541756.47 | T40: ='P&L'!T$36/2 -> 31416243.84 | U40: ='P&L'!T$36/2 -> 31416243.84 | V40: ='P&L'!U$36/2 -> 34522569.07 | W40: ='P&L'!U$36/2 -> 34522569.07 | X40: ='P&L'!V$36/2 -> 38019123.83 | Y40: ='P&L'!V$36/2 -> 38019123.83 | Z40: ='P&L'!W$36/2 -> 41805175.96 | AA40: ='P&L'!W$36/2 -> 41805175.96 | AB40: ='P&L'!X$36/2 -> 45677545.84 | AC40: ='P&L'!X$36/2 -> 45677545.84 | AD40: ='P&L'!Y$36/2 -> 49440242.85 | AE40: ='P&L'!Y$36/2 -> 49440242.85 | AF40: ='P&L'!Z$36/2 -> 53548327.78 | AG40: ='P&L'!Z$36/2 -> 53548327.78 | AH40: ='P&L'!AA$36/2 -> 57936214.68 | AI40: ='P&L'!AA$36/2 -> 57936214.68 | AJ40: ='P&L'!AB$36/2 -> 62661678.6 | AK40: ='P&L'!AB$36/2 -> 62661678.6 | AL40: ='P&L'!AC$36/2 -> 67746726.86 | AM40: ='P&L'!AC$36/2 -> 67746726.86 | AN40: ='P&L'!AD$36/2 -> 73217000.48 | AO40: ='P&L'!AD$36/2 -> 73217000.48 | AP40: ='P&L'!AE$36/2 -> 79119609.98 | AQ40: ='P&L'!AE$36/2 -> 79119609.98
H41: Source: | I41: ADS Actual | J41: ADS Actual | K41: ADS Forecast | L41: DAPORT Forecast Model | N41: DAPORT Forecast Model | P41: Daport Forecast Model | R41: Daport Forecast Model | T41: Daport Forecast Model | V41: Daport Forecast Model | X41: Daport Forecast Model | Z41: Daport Forecast Model | AB41: Daport Forecast Model | AD41: Daport Forecast Model | AF41: Daport Forecast Model | AH41: Daport Forecast Model | AJ41: Daport Forecast Model | AL41: Daport Forecast Model | AN41: Daport Forecast Model | AP41: Daport Forecast Model
B42: AIBD's Revenues Assumptions | H42: =H4 -> 2006 | I42: =I4 -> 2007 | J42: =J4 -> 2008 | K42: =K4 -> 2009 | L42: =L4 -> 2010-06-29 | M42: =M4 -> 2010-12-31 | N42: =N4 -> 2011-06-30 | O42: =O4 -> 2011-12-31 | P42: =P4 -> 2012-06-30 | Q42: =Q4 -> 2012-12-31 | R42: =R4 -> 2013-06-30 | S42: =S4 -> 2013-12-31 | T42: =T4 -> 2014-06-30 | U42: =U4 -> 2014-12-31 | V42: =V4 -> 2015-06-30 | W42: =W4 -> 2015-12-31 | X42: =X4 -> 2016-06-30 | Y42: =Y4 -> 2016-12-31 | Z42: =Z4 -> 2017-06-30 | AA42: =AA4 -> 2017-12-31 | AB42: =AB4 -> 2018-06-30 | AC42: =AC4 -> 2018-12-31 | AD42: =AD4 -> 2019-06-30 | AE42: =AE4 -> 2019-12-31 | AF42: =AF4 -> 2020-06-30 | AG42: =AG4 -> 2020-12-31 | AH42: =AH4 -> 2021-06-30 | AI42: =AI4 -> 2021-12-31 | AJ42: =AJ4 -> 2022-06-30 | AK42: =AK4 -> 2022-12-31 | AL42: =AL4 -> 2023-06-30 | AM42: =AM4 -> 2023-12-31 | AN42: =AN4 -> 2024-06-30 | AO42: =AO4 -> 2024-12-31 | AP42: =AP4 -> 2025-06-30 | AQ42: =AQ4 -> 2025-12-31
D44: Fix annual concession fee paid by Daport (in XOF) | H44: 1000000000
D45: Variable Annual concession fee paid by Daport | H45: 2012 | I45: From 2013 to 2015 | J45: From 2016 to 2023 | K45: From 2024
D46: (In % of Daport's annual revenues except a monthly advance payment of Eur 500 000 during first year of operation) | H46: 500000 | I46: 0.17 | J46: 0.2 | K46: 0.23
D48: Fix annual concession fee paid by Daport | M48: =$H$44/$F$12 -> 1524490.172 | N48: =$M$48/2 -> 762245.0862 | O48: 762245.0862 | P48: 762245.0862 | Q48: 762245.0862 | R48: 762245.0862 | S48: 762245.0862 | T48: 762245.0862 | U48: 762245.0862 | V48: 762245.0862 | W48: 762245.0862 | X48: 762245.0862 | Y48: 762245.0862 | Z48: 762245.0862 | AA48: 762245.0862 | AB48: 762245.0862 | AC48: 762245.0862 | AD48: 762245.0862 | AE48: 762245.0862 | AF48: 762245.0862 | AG48: 762245.0862 | AH48: 762245.0862 | AI48: 762245.0862 | AJ48: 762245.0862 | AK48: 762245.0862 | AL48: 762245.0862 | AM48: 762245.0862 | AN48: 762245.0862 | AO48: 762245.0862 | AP48: 762245.0862 | AQ48: 762245.0862
D49: % inflation index | M49: =M19 -> 1 | N49: =N19 -> 1.007444578 | O49: =O19 -> 1.022444578 | P49: =P19 -> 1.037667916 | Q49: =Q19 -> 1.053117916 | R49: =R19 -> 1.068797953 | S49: =S19 -> 1.084711453 | T49: =T19 -> 1.100861892 | U49: =U19 -> 1.117252797 | V49: =V19 -> 1.133887748 | W49: =W19 -> 1.150770381 | X49: =X19 -> 1.167904381 | Y49: =Y19 -> 1.185293492 | Z49: =Z19 -> 1.202941512 | AA49: =AA19 -> 1.220852297 | AB49: =AB19 -> 1.239029758 | AC49: =AC19 -> 1.257477866 | AD49: =AD19 -> 1.27620065 | AE49: =AE19 -> 1.295202202 | AF49: =AF19 -> 1.31448667 | AG49: =AG19 -> 1.334058268 | AH49: =AH19 -> 1.35392127 | AI49: =AI19 -> 1.374080016 | AJ49: =AJ19 -> 1.394538908 | AK49: =AK19 -> 1.415302416 | AL49: =AL19 -> 1.436375075 | AM49: =AM19 -> 1.457761489 | AN49: =AN19 -> 1.479466328 | AO49: =AO19 -> 1.501494333 | AP49: =AP19 -> 1.523850317 | AQ49: =AQ19 -> 1.546539163
D50: Fix annual concession fee paid by Daport inflated | P50: =P48*P49 -> 790957.2698 | Q50: 802733.9563 | R50: 814685.9879 | S50: 826815.975 | T50: 839126.5675 | U50: 851620.4543 | V50: 864300.3645 | W50: 877169.0679 | X50: 890229.3755 | Y50: 903484.14 | Z50: 916936.2567 | AA50: 930588.6641 | AB50: 944444.3444 | AC50: 958506.3241 | AD50: 972777.6747 | AE50: 987261.5138 | AF50: 1001961.005 | AG50: 1016879.359 | AH50: 1032019.835 | AI50: 1047385.74 | AJ50: 1062980.43 | AK50: 1078807.312 | AL50: 1094869.843 | AM50: 1111171.532 | AN50: 1127715.938 | AO50: 1144506.677 | AP50: 1161547.417 | AQ50: 1178841.878
D52: Variable Annual concession fee paid by Daport in % | R52: =$I$46 -> 0.17 | S52: =$I$46 -> 0.17 | T52: =$I$46 -> 0.17 | U52: =$I$46 -> 0.17 | V52: =$J$46 -> 0.2 | W52: 0.2 | X52: 0.2 | Y52: 0.2 | Z52: 0.2 | AA52: 0.2 | AB52: 0.2 | AC52: 0.2 | AD52: 0.2 | AE52: 0.2 | AF52: 0.2 | AG52: 0.2 | AH52: 0.2 | AI52: 0.2 | AJ52: 0.2 | AK52: 0.2 | AL52: =$K$46 -> 0.23 | AM52: 0.23 | AN52: 0.23 | AO52: 0.23 | AP52: 0.23 | AQ52: 0.23
D53: Amount of Variable Annual concession fee paid by Daport | P53: =+$H$46*6 -> 3000000 | Q53: =+$H$46*6 -> 3000000 | R53: =+(R52*(P40+Q40))-SUM(P53:Q53)+(R52*R40) -> 7656062.165 | S53: =S52*S40 -> 4852098.599 | T53: =T52*T40 -> 5340761.453 | U53: =U52*U40 -> 5340761.453 | V53: =V52*V40 -> 6904513.814 | W53: =W52*W40 -> 6904513.814 | X53: =X52*X40 -> 7603824.766 | Y53: =Y52*Y40 -> 7603824.766 | Z53: =Z52*Z40 -> 8361035.193 | AA53: =AA52*AA40 -> 8361035.193 | AB53: =AB52*AB40 -> 9135509.168 | AC53: =AC52*AC40 -> 9135509.168 | AD53: =AD52*AD40 -> 9888048.57 | AE53: =AE52*AE40 -> 9888048.57 | AF53: =AF52*AF40 -> 10709665.56 | AG53: =AG52*AG40 -> 10709665.56 | AH53: =AH52*AH40 -> 11587242.94 | AI53: =AI52*AI40 -> 11587242.94 | AJ53: =AJ52*AJ40 -> 12532335.72 | AK53: =AK52*AK40 -> 12532335.72 | AL53: =AL52*AL40 -> 15581747.18 | AM53: =AM52*AM40 -> 15581747.18 | AN53: =AN52*AN40 -> 16839910.11 | AO53: =AO52*AO40 -> 16839910.11 | AP53: =AP52*AP40 -> 18197510.3 | AQ53: =AQ52*AQ40 -> 18197510.3
D54: % inflation index | M54: =M19 -> 1 | N54: =N19 -> 1.007444578 | O54: =O19 -> 1.022444578 | P54: =P19 -> 1.037667916 | Q54: =Q19 -> 1.053117916
D55: Variable Annual concession fee paid by Daport inflated | P55: =P53*P54 -> 3113003.747 | Q55: =Q53*Q54 -> 3159353.747 | R55: =+R53 -> 7656062.165 | S55: 4852098.599 | T55: 5340761.453 | U55: 5340761.453 | V55: 6904513.814 | W55: 6904513.814 | X55: 7603824.766 | Y55: 7603824.766 | Z55: 8361035.193 | AA55: 8361035.193 | AB55: 9135509.168 | AC55: 9135509.168 | AD55: 9888048.57 | AE55: 9888048.57 | AF55: 10709665.56 | AG55: 10709665.56 | AH55: 11587242.94 | AI55: 11587242.94 | AJ55: 12532335.72 | AK55: 12532335.72 | AL55: 15581747.18 | AM55: 15581747.18 | AN55: 16839910.11 | AO55: 16839910.11 | AP55: 18197510.3 | AQ55: 18197510.3
D57: Income Tax on AIBD's Revenues | F57: 0.15
B59: Operating Expenses
D61: A. Personnel expenses
D62: Gross Salary base AIBD (2010) | E62: 2010 | F62: =(556.67*1000000)/F12 -> 848637.9443
D63: % Gross Salary Growth Rate (annual basis) | F63: 0.03 | N63: =$F$63 -> 0.03 | O63: 0.03 | P63: 0.03 | Q63: 0.03 | R63: 0.03 | S63: 0.03 | T63: 0.03 | U63: 0.03 | V63: 0.03 | W63: 0.03 | X63: 0.03 | Y63: 0.03 | Z63: 0.03 | AA63: 0.03 | AB63: 0.03 | AC63: 0.03 | AD63: 0.03 | AE63: 0.03 | AF63: 0.03 | AG63: 0.03 | AH63: 0.03 | AI63: 0.03 | AJ63: 0.03 | AK63: 0.03 | AL63: 0.03 | AM63: 0.03 | AN63: 0.03 | AO63: 0.03 | AP63: 0.03 | AQ63: 0.03
D64: Gross Salary Growth Rate index (end of period) | E64: 2011 | F64: =(580.64*1000000)/$F$12 -> 885179.9737 | M64: 100 | N64: =M64*(1+N63)^(1/2) -> 101.4889157 | O64: 103 | P64: 104.5335831 | Q64: 106.09 | R64: 107.6695906 | S64: 109.2727 | T64: 110.8996783 | U64: 112.550881 | V64: 114.2266687 | W64: 115.9274074 | X64: 117.6534687 | Y64: 119.4052297 | Z64: 121.1830728 | AA64: 122.9873865 | AB64: 124.818565 | AC64: 126.6770081 | AD64: 128.5631219 | AE64: 130.4773184 | AF64: 132.4200156 | AG64: 134.3916379 | AH64: 136.3926161 | AI64: 138.4233871 | AJ64: 140.4843945 | AK64: 142.5760887 | AL64: 144.6989264 | AM64: 146.8533713 | AN64: 149.0398942 | AO64: 151.2589725 | AP64: 153.511091 | AQ64: 155.7967417
D65: Gross Salary Growth Rate index (mid - period) | E65: 2012 | F65: =(610.73*1000000)/$F$12 -> 931051.883 | M65: 100 | N65: =(M64+N64)/2 -> 100.7444578 | O65: 102.2444578 | P65: 103.7667916 | Q65: 105.3117916 | R65: 106.8797953 | S65: 108.4711453 | T65: 110.0861892 | U65: 111.7252797 | V65: 113.3887748 | W65: 115.0770381 | X65: 116.7904381 | Y65: 118.5293492 | Z65: 120.2941512 | AA65: 122.0852297 | AB65: 123.9029758 | AC65: 125.7477866 | AD65: 127.620065 | AE65: 129.5202202 | AF65: 131.448667 | AG65: 133.4058268 | AH65: 135.392127 | AI65: 137.4080016 | AJ65: 139.4538908 | AK65: 141.5302416 | AL65: 143.6375075 | AM65: 145.7761489 | AN65: 147.9466328 | AO65: 150.1494333 | AP65: 152.3850317 | AQ65: 154.6539163
D66: % Gross Salary Growth Rate index | E66: 2013 | F66: =(637.1*1000000)/$F$12 -> 971252.6888 | M66: =+M65/$M$65 -> 1 | N66: 1.007444578 | O66: 1.022444578 | P66: 1.037667916 | Q66: 1.053117916 | R66: 1.068797953 | S66: 1.084711453 | T66: 1.100861892 | U66: 1.117252797 | V66: 1.133887748 | W66: 1.150770381 | X66: 1.167904381 | Y66: 1.185293492 | Z66: 1.202941512 | AA66: 1.220852297 | AB66: 1.239029758 | AC66: 1.257477866 | AD66: 1.27620065 | AE66: 1.295202202 | AF66: 1.31448667 | AG66: 1.334058268 | AH66: 1.35392127 | AI66: 1.374080016 | AJ66: 1.394538908 | AK66: 1.415302416 | AL66: 1.436375075 | AM66: 1.457761489 | AN66: 1.479466328 | AO66: 1.501494333 | AP66: 1.523850317 | AQ66: 1.546539163
E67: 2014 | F67: =(670.2*1000000)/$F$12 -> 1021713.314
D68: Gross Salary base AIBD (2010) | M68: =+F62 -> 848637.9443 | N68: =+$F$64/2 -> 442589.9868 | O68: =+$F$64/2 -> 442589.9868 | P68: =+$F$65/2 -> 465525.9415 | Q68: =+$F$65/2 -> 465525.9415 | R68: =+$F$66/2 -> 485626.3444 | S68: =+$F$66/2 -> 485626.3444 | T68: =+$F$67/2 -> 510856.6568 | U68: =+$F$67/2 -> 510856.6568 | V68: =+$F$67/2 -> 510856.6568 | W68: =+$F$67/2 -> 510856.6568 | X68: =+$F$67/2 -> 510856.6568 | Y68: 510856.6568 | Z68: 510856.6568 | AA68: 510856.6568 | AB68: 510856.6568 | AC68: 510856.6568 | AD68: 510856.6568 | AE68: 510856.6568 | AF68: 510856.6568 | AG68: 510856.6568 | AH68: 510856.6568 | AI68: 510856.6568 | AJ68: 510856.6568 | AK68: 510856.6568 | AL68: 510856.6568 | AM68: 510856.6568 | AN68: 510856.6568 | AO68: 510856.6568 | AP68: 510856.6568 | AQ68: 510856.6568
D69: % Gross Salary Growth Rate index | M69: =+M66 -> 1 | N69: 1.007444578 | O69: 1.022444578 | P69: 1.037667916 | Q69: 1.053117916 | R69: 1.068797953 | S69: 1.084711453 | T69: 1.100861892 | U69: 1.117252797 | V69: 1.133887748 | W69: 1.150770381 | X69: 1.167904381 | Y69: 1.185293492 | Z69: 1.202941512 | AA69: 1.220852297 | AB69: 1.239029758 | AC69: 1.257477866 | AD69: 1.27620065 | AE69: 1.295202202 | AF69: 1.31448667 | AG69: 1.334058268 | AH69: 1.35392127 | AI69: 1.374080016 | AJ69: 1.394538908 | AK69: 1.415302416 | AL69: 1.436375075 | AM69: 1.457761489 | AN69: 1.479466328 | AO69: 1.501494333 | AP69: 1.523850317 | AQ69: 1.546539163
D70: Gross Salary Sub Total | M70: =M68*M69 -> 848637.9443 | N70: 445884.8826 | O70: 452523.7324 | P70: 483061.3334 | Q70: 490253.7092 | R70: 519036.4429 | S70: 526764.4577 | T70: 562382.6255 | U70: 570756.0285 | V70: 579254.1043 | W70: 587878.7093 | X70: 596631.7274 | Y70: 605515.0706 | Z70: 614530.6792 | AA70: 623680.5227 | AB70: 632966.5996 | AC70: 642390.9384 | AD70: 651955.5976 | AE70: 661662.6665 | AF70: 671514.2655 | AG70: 681512.5465 | AH70: 691659.6935 | AI70: 701957.9229 | AJ70: 712409.4843 | AK70: 723016.6606 | AL70: 733781.7688 | AM70: 744707.1604 | AN70: 755795.2219 | AO70: 767048.3753 | AP70: 778469.0786 | AQ70: 790059.8265
D72: % salary index | M72: =M31 -> 1 | N72: =N31 -> 1.009901951 | O72: =O31 -> 1.029901951 | P72: =P31 -> 1.050298029 | Q72: =Q31 -> 1.071098029 | R72: =R31 -> 1.092309951 | S72: =S31 -> 1.113941951 | T72: =T31 -> 1.136002349 | U72: =U31 -> 1.158499629 | V72: =V31 -> 1.181442443 | W72: =W31 -> 1.204839614 | X72: =X31 -> 1.22870014 | Y72: =Y31 -> 1.253033198 | Z72: =Z31 -> 1.277848146 | AA72: =AA31 -> 1.303154526 | AB72: =AB31 -> 1.328962072 | AC72: =AC31 -> 1.355280707 | AD72: =AD31 -> 1.382120555 | AE72: =AE31 -> 1.409491936 | AF72: =AF31 -> 1.437405377 | AG72: =AG31 -> 1.465871613 | AH72: =AH31 -> 1.494901592 | AI72: =AI31 -> 1.524506478 | AJ72: =AJ31 -> 1.554697656 | AK72: =AK31 -> 1.585486737 | AL72: =AL31 -> 1.616885562 | AM72: =AM31 -> 1.648906206 | AN72: =AN31 -> 1.681560984 | AO72: =AO31 -> 1.714862454 | AP72: =AP31 -> 1.748823424 | AQ72: =AQ31 -> 1.783456953
D73: Gross Salary Total | H73: =69808653/F12 -> 106422.6054 | I73: =150301195/F12 -> 229132.6947 | J73: =237399766/F12 -> 361913.6102 | K73: =350700000/F12 -> 534638.7035 | M73: =M70*M72 -> 848637.9443 | N73: 450300.0131 | O73: 466055.0751 | P73: 507358.3665 | Q73: 525109.7818 | R73: 566948.6713 | S73: 586785.0275 | T73: 638867.9834 | U73: 661220.647 | V73: 684355.3838 | W73: 708299.5571 | X73: 733081.4872 | Y73: 758730.4855 | Z73: 785276.8891 | AA73: 812752.0961 | AB73: 841188.6036 | AC73: 870620.0453 | AD73: 901081.2321 | AE73: 932608.1926 | AF73: 965238.2159 | AG73: 999009.8959 | AH73: 1033963.177 | AI73: 1070139.4 | AJ73: 1107581.355 | AK73: 1146333.326 | AL73: 1186441.148 | AM73: 1227952.259 | AN73: 1270915.757 | AO73: 1315382.459 | AP73: 1361404.959 | AQ73: 1409037.69
D75: B. Utilities
D76: Utilities Budget base AIBD (2010) | E76: 2010 | F76: =(20*1000000)/F12 -> 30489.80345
D77: % Utilities consumption Growth Rate (annual basis) | F77: 0.01 | N77: =$F$77 -> 0.01 | O77: 0.01 | P77: 0.01 | Q77: 0.01 | R77: 0.01 | S77: 0.01 | T77: 0.01 | U77: 0.01 | V77: 0.01 | W77: 0.01 | X77: 0.01 | Y77: 0.01 | Z77: 0.01 | AA77: 0.01 | AB77: 0.01 | AC77: 0.01 | AD77: 0.01 | AE77: 0.01 | AF77: 0.01 | AG77: 0.01 | AH77: 0.01 | AI77: 0.01 | AJ77: 0.01 | AK77: 0.01 | AL77: 0.01 | AM77: 0.01 | AN77: 0.01 | AO77: 0.01 | AP77: 0.01 | AQ77: 0.01
D78: Utilities consumption Growth Rate index (end of period) | E78: 2011 | F78: =(22*1000000)/$F$12 -> 33538.78379 | M78: 100 | N78: =M78*(1+N77)^(1/2) -> 100.4987562 | O78: 101 | P78: 101.5037438 | Q78: 102.01 | R78: 102.5187812 | S78: 103.0301 | T78: 103.543969 | U78: 104.060401 | V78: 104.5794087 | W78: 105.101005 | X78: 105.6252028 | Y78: 106.1520151 | Z78: 106.6814548 | AA78: 107.2135352 | AB78: 107.7482694 | AC78: 108.2856706 | AD78: 108.8257521 | AE78: 109.3685273 | AF78: 109.9140096 | AG78: 110.4622125 | AH78: 111.0131497 | AI78: 111.5668347 | AJ78: 112.1232812 | AK78: 112.682503 | AL78: 113.244514 | AM78: 113.809328 | AN78: 114.3769591 | AO78: 114.9474213 | AP78: 115.5207287 | AQ78: 116.0968955
D79: Utilities consumption Growth Rate index (mid - period) | E79: 2012 | F79: =(22*1000000)/$F$12 -> 33538.78379 | M79: 100 | N79: =(M78+N78)/2 -> 100.2493781 | O79: 100.7493781 | P79: 101.2518719 | Q79: 101.7568719 | R79: 102.2643906 | S79: 102.7744406 | T79: 103.2870345 | U79: 103.802185 | V79: 104.3199049 | W79: 104.8402069 | X79: 105.3631039 | Y79: 105.8886089 | Z79: 106.4167349 | AA79: 106.947495 | AB79: 107.4809023 | AC79: 108.01697 | AD79: 108.5557113 | AE79: 109.0971397 | AF79: 109.6412684 | AG79: 110.1881111 | AH79: 110.7376811 | AI79: 111.2899922 | AJ79: 111.8450579 | AK79: 112.4028921 | AL79: 112.9635085 | AM79: 113.526921 | AN79: 114.0931436 | AO79: 114.6621902 | AP79: 115.234075 | AQ79: 115.8088121
D80: % utilities consumption index | E80: 2013 | F80: =(24*1000000)/$F$12 -> 36587.76414 | M80: =+M79/$M$79 -> 1 | N80: 1.002493781 | O80: 1.007493781 | P80: 1.012518719 | Q80: 1.017568719 | R80: 1.022643906 | S80: 1.027744406 | T80: 1.032870345 | U80: 1.03802185 | V80: 1.043199049 | W80: 1.048402069 | X80: 1.053631039 | Y80: 1.058886089 | Z80: 1.064167349 | AA80: 1.06947495 | AB80: 1.074809023 | AC80: 1.0801697 | AD80: 1.085557113 | AE80: 1.090971397 | AF80: 1.096412684 | AG80: 1.101881111 | AH80: 1.107376811 | AI80: 1.112899922 | AJ80: 1.118450579 | AK80: 1.124028921 | AL80: 1.129635085 | AM80: 1.13526921 | AN80: 1.140931436 | AO80: 1.146621902 | AP80: 1.15234075 | AQ80: 1.158088121
E81: 2014 | F81: =(24*1000000)/$F$12 -> 36587.76414
D82: Utilities Budget base AIBD (2010) | M82: =+$F$76 -> 30489.80345 | N82: =+$F$78/2 -> 16769.3919 | O82: =+$F$78/2 -> 16769.3919 | P82: =+$F$79/2 -> 16769.3919 | Q82: =+$F$79/2 -> 16769.3919 | R82: =+$F$80/2 -> 18293.88207 | S82: =+$F$80/2 -> 18293.88207 | T82: =+$F$81/2 -> 18293.88207 | U82: =+$F$81/2 -> 18293.88207 | V82: =+$F$81/2 -> 18293.88207 | W82: =+$F$81/2 -> 18293.88207 | X82: =+$F$81/2 -> 18293.88207 | Y82: 18293.88207 | Z82: 18293.88207 | AA82: 18293.88207 | AB82: 18293.88207 | AC82: 18293.88207 | AD82: 18293.88207 | AE82: 18293.88207 | AF82: 18293.88207 | AG82: 18293.88207 | AH82: 18293.88207 | AI82: 18293.88207 | AJ82: 18293.88207 | AK82: 18293.88207 | AL82: 18293.88207 | AM82: 18293.88207 | AN82: 18293.88207 | AO82: 18293.88207 | AP82: 18293.88207 | AQ82: 18293.88207
D83: % utilities consumption index | M83: =M80 -> 1 | N83: 1.002493781 | O83: 1.007493781 | P83: 1.012518719 | Q83: 1.017568719 | R83: 1.022643906 | S83: 1.027744406 | T83: 1.032870345 | U83: 1.03802185 | V83: 1.043199049 | W83: 1.048402069 | X83: 1.053631039 | Y83: 1.058886089 | Z83: 1.064167349 | AA83: 1.06947495 | AB83: 1.074809023 | AC83: 1.0801697 | AD83: 1.085557113 | AE83: 1.090971397 | AF83: 1.096412684 | AG83: 1.101881111 | AH83: 1.107376811 | AI83: 1.112899922 | AJ83: 1.118450579 | AK83: 1.124028921 | AL83: 1.129635085 | AM83: 1.13526921 | AN83: 1.140931436 | AO83: 1.146621902 | AP83: 1.15234075 | AQ83: 1.158088121
D84: Utilities costs Sub Total | M84: =M82*M83 -> 30489.80345 | N84: 16811.21109 | O84: 16895.05805 | P84: 16979.3232 | Q84: 17064.00863 | R84: 18708.12702 | S84: 18801.43496 | T84: 18895.20829 | U84: 18989.44931 | V84: 19084.16037 | W84: 19179.3438 | X84: 19275.00197 | Y84: 19371.13724 | Z84: 19467.75199 | AA84: 19564.84861 | AB84: 19662.42951 | AC84: 19760.4971 | AD84: 19859.05381 | AE84: 19958.10207 | AF84: 20057.64434 | AG84: 20157.68309 | AH84: 20258.22079 | AI84: 20359.25992 | AJ84: 20460.803 | AK84: 20562.85252 | AL84: 20665.41103 | AM84: 20768.48105 | AN84: 20872.06514 | AO84: 20976.16586 | AP84: 21080.78579 | AQ84: 21185.92752
D86: % utilities prices index | M86: =M25 -> 1 | N86: =N25 -> 1.012347538 | O86: =O25 -> 1.037347538 | P86: =P25 -> 1.062964915 | Q86: =Q25 -> 1.089214915 | R86: =R25 -> 1.116113161 | S86: =S25 -> 1.143675661 | T86: =T25 -> 1.171918819 | U86: =U25 -> 1.200859444 | V86: =V25 -> 1.23051476 | W86: =W25 -> 1.260902416 | X86: =X25 -> 1.292040498 | Y86: =Y25 -> 1.323947537 | Z86: =Z25 -> 1.356642523 | AA86: =AA25 -> 1.390144914 | AB86: =AB25 -> 1.424474649 | AC86: =AC25 -> 1.45965216 | AD86: =AD25 -> 1.495698381 | AE86: =AE25 -> 1.532634768 | AF86: =AF25 -> 1.570483301 | AG86: =AG25 -> 1.609266506 | AH86: =AH25 -> 1.649007466 | AI86: =AI25 -> 1.689729831 | AJ86: =AJ25 -> 1.731457839 | AK86: =AK25 -> 1.774216323 | AL86: =AL25 -> 1.818030731 | AM86: =AM25 -> 1.862927139 | AN86: =AN25 -> 1.908932267 | AO86: =AO25 -> 1.956073496 | AP86: =AP25 -> 2.004378881 | AQ86: =AQ25 -> 2.053877171
D87: Utilities costsTotal | H87: =22439/$F$12 -> 34.20803498 | I87: =(7235418)/$F$12 -> 11030.32363 | J87: =13080322/$F$12 -> 19940.82234 | K87: =10500000/$F$12 -> 16007.14681 | M87: =M84*M86 -> 30489.80345 | N87: 17018.78816 | O87: 17526.04687 | P87: 18048.42484 | Q87: 18586.37271 | R87: 20880.38678 | S87: 21502.74356 | T87: 22143.65018 | U87: 22803.65954 | V87: 23483.34102 | W87: 24183.28094 | X87: 24904.08315 | Y87: 25646.36944 | Z87: 26410.78018 | AA87: 27197.97479 | AB87: 28008.63238 | AC87: 28843.45227 | AD87: 29703.15464 | AE87: 30588.48113 | AF87: 31500.19549 | AG87: 32439.08424 | AH87: 33405.95732 | AI87: 34401.64883 | AJ87: 35427.01774 | AK87: 36482.94859 | AL87: 37570.35231 | AM87: 38690.16698 | AN87: 39843.35862 | AO87: 41030.92208 | AP87: 42253.88182 | AQ87: 43513.29287
D90: C. Telecommunication Expenses (Phone, Internet, IT…)
D91: Communication Budget base AIBD (2010) | E91: 2010 | F91: =30000000/F12 -> 45734.70517
D92: % Communication exp Growth Rate (annual basis) | F92: 0 | N92: =$F$92 -> 0 | O92: 0 | P92: 0 | Q92: 0 | R92: 0 | S92: 0 | T92: 0 | U92: 0 | V92: 0 | W92: 0 | X92: 0 | Y92: 0 | Z92: 0 | AA92: 0 | AB92: 0 | AC92: 0 | AD92: 0 | AE92: 0 | AF92: 0 | AG92: 0 | AH92: 0 | AI92: 0 | AJ92: 0 | AK92: 0 | AL92: 0 | AM92: 0 | AN92: 0 | AO92: 0 | AP92: 0 | AQ92: 0
D93: Communication exp Growth Rate index (end of period) | E93: 2011 | F93: =(25*1000000)/$F$12 -> 38112.25431 | M93: 100 | N93: =M93*(1+N92)^(1/2) -> 100 | O93: 100 | P93: 100 | Q93: 100 | R93: 100 | S93: 100 | T93: 100 | U93: 100 | V93: 100 | W93: 100 | X93: 100 | Y93: 100 | Z93: 100 | AA93: 100 | AB93: 100 | AC93: 100 | AD93: 100 | AE93: 100 | AF93: 100 | AG93: 100 | AH93: 100 | AI93: 100 | AJ93: 100 | AK93: 100 | AL93: 100 | AM93: 100 | AN93: 100 | AO93: 100 | AP93: 100 | AQ93: 100
D94: Communication exp Growth Rate index (mid - period) | E94: 2012 | F94: =(25*1000000)/$F$12 -> 38112.25431 | M94: 100 | N94: =(M93+N93)/2 -> 100 | O94: 100 | P94: 100 | Q94: 100 | R94: 100 | S94: 100 | T94: 100 | U94: 100 | V94: 100 | W94: 100 | X94: 100 | Y94: 100 | Z94: 100 | AA94: 100 | AB94: 100 | AC94: 100 | AD94: 100 | AE94: 100 | AF94: 100 | AG94: 100 | AH94: 100 | AI94: 100 | AJ94: 100 | AK94: 100 | AL94: 100 | AM94: 100 | AN94: 100 | AO94: 100 | AP94: 100 | AQ94: 100
D95: % Communication exp index | E95: 2013 | F95: =(26.25*1000000)/$F$12 -> 40017.86702 | M95: =+M94/$M$94 -> 1 | N95: 1 | O95: 1 | P95: 1 | Q95: 1 | R95: 1 | S95: 1 | T95: 1 | U95: 1 | V95: 1 | W95: 1 | X95: 1 | Y95: 1 | Z95: 1 | AA95: 1 | AB95: 1 | AC95: 1 | AD95: 1 | AE95: 1 | AF95: 1 | AG95: 1 | AH95: 1 | AI95: 1 | AJ95: 1 | AK95: 1 | AL95: 1 | AM95: 1 | AN95: 1 | AO95: 1 | AP95: 1 | AQ95: 1
E96: 2014 | F96: =(26.25*1000000)/$F$12 -> 40017.86702
D97: Communication Budget base AIBD (2010) | M97: =+$F$91 -> 45734.70517 | N97: =+$F$93/2 -> 19056.12715 | O97: =+$F$93/2 -> 19056.12715 | P97: =+$F$94/2 -> 19056.12715 | Q97: =+$F$94/2 -> 19056.12715 | R97: =+$F$95/2 -> 20008.93351 | S97: =+$F$95/2 -> 20008.93351 | T97: =+$F$96/2 -> 20008.93351 | U97: =+$F$96/2 -> 20008.93351 | V97: =+$F$96/2 -> 20008.93351 | W97: =+$F$96/2 -> 20008.93351 | X97: 20008.93351 | Y97: 20008.93351 | Z97: 20008.93351 | AA97: 20008.93351 | AB97: 20008.93351 | AC97: 20008.93351 | AD97: 20008.93351 | AE97: 20008.93351 | AF97: 20008.93351 | AG97: 20008.93351 | AH97: 20008.93351 | AI97: 20008.93351 | AJ97: 20008.93351 | AK97: 20008.93351 | AL97: 20008.93351 | AM97: 20008.93351 | AN97: 20008.93351 | AO97: 20008.93351 | AP97: 20008.93351 | AQ97: 20008.93351
D98: % Communication exp index | M98: =M95 -> 1 | N98: 1 | O98: 1 | P98: 1 | Q98: 1 | R98: 1 | S98: 1 | T98: 1 | U98: 1 | V98: 1 | W98: 1 | X98: 1 | Y98: 1 | Z98: 1 | AA98: 1 | AB98: 1 | AC98: 1 | AD98: 1 | AE98: 1 | AF98: 1 | AG98: 1 | AH98: 1 | AI98: 1 | AJ98: 1 | AK98: 1 | AL98: 1 | AM98: 1 | AN98: 1 | AO98: 1 | AP98: 1 | AQ98: 1
D99: Communication exp Sub Total | M99: =M97*M98 -> 45734.70517 | N99: 19056.12715 | O99: 19056.12715 | P99: 19056.12715 | Q99: 19056.12715 | R99: 20008.93351 | S99: 20008.93351 | T99: 20008.93351 | U99: 20008.93351 | V99: 20008.93351 | W99: 20008.93351 | X99: 20008.93351 | Y99: 20008.93351 | Z99: 20008.93351 | AA99: 20008.93351 | AB99: 20008.93351 | AC99: 20008.93351 | AD99: 20008.93351 | AE99: 20008.93351 | AF99: 20008.93351 | AG99: 20008.93351 | AH99: 20008.93351 | AI99: 20008.93351 | AJ99: 20008.93351 | AK99: 20008.93351 | AL99: 20008.93351 | AM99: 20008.93351 | AN99: 20008.93351 | AO99: 20008.93351 | AP99: 20008.93351 | AQ99: 20008.93351
D101: % inflation index | M101: =+M19 -> 1 | N101: =+N19 -> 1.007444578 | O101: =+O19 -> 1.022444578 | P101: =+P19 -> 1.037667916 | Q101: =+Q19 -> 1.053117916 | R101: =+R19 -> 1.068797953 | S101: =+S19 -> 1.084711453 | T101: =+T19 -> 1.100861892 | U101: =+U19 -> 1.117252797 | V101: =+V19 -> 1.133887748 | W101: =+W19 -> 1.150770381 | X101: =+X19 -> 1.167904381 | Y101: =+Y19 -> 1.185293492 | Z101: =+Z19 -> 1.202941512 | AA101: =+AA19 -> 1.220852297 | AB101: =+AB19 -> 1.239029758 | AC101: =+AC19 -> 1.257477866 | AD101: =+AD19 -> 1.27620065 | AE101: =+AE19 -> 1.295202202 | AF101: =+AF19 -> 1.31448667 | AG101: =+AG19 -> 1.334058268 | AH101: =+AH19 -> 1.35392127 | AI101: =+AI19 -> 1.374080016 | AJ101: =+AJ19 -> 1.394538908 | AK101: =+AK19 -> 1.415302416 | AL101: =+AL19 -> 1.436375075 | AM101: =+AM19 -> 1.457761489 | AN101: =+AN19 -> 1.479466328 | AO101: =+AO19 -> 1.501494333 | AP101: =+AP19 -> 1.523850317 | AQ101: =+AQ19 -> 1.546539163
D102: Communication exp Total | H102: =4064375/$F$12 -> 6196.099744 | I102: =23361918/$F$12 -> 35615.0144 | J102: =24439903/$F$12 -> 37258.39194 | K102: =22880000/$F$12 -> 34880.33514 | M102: =M99*M101 -> 45734.70517 | N102: 19197.99198 | O102: 19483.83389 | P102: 19773.93174 | Q102: 20068.34891 | R102: 21385.50718 | S102: 21703.91934 | T102: 22027.0724 | U102: 22355.03692 | V102: 22687.88457 | W102: 23025.68803 | X102: 23368.52111 | Y102: 23716.45867 | Z102: 24069.57674 | AA102: 24427.95243 | AB102: 24791.66404 | AC102: 25160.79101 | AD102: 25535.41396 | AE102: 25915.61474 | AF102: 26301.47638 | AG102: 26693.08318 | AH102: 27090.52067 | AI102: 27493.87567 | AJ102: 27903.23629 | AK102: 28318.69194 | AL102: 28740.33338 | AM102: 29168.2527 | AN102: 29602.54338 | AO102: 30043.30028 | AP102: 30490.61968 | AQ102: 30944.59929
D105: D. Office Rent (until 30/06/2012)
D106: % inflation index | I106: 70561120 | M106: =+M19 -> 1 | N106: =+N19 -> 1.007444578 | O106: =+O19 -> 1.022444578 | P106: =+P19 -> 1.037667916
D107: Office Rent Total | H107: =(37406120-3065080)/$F$12 -> 52352.57799 | I107: =80804710/F12 -> 123185.9863 | J107: =92083430/F12 -> 140380.2841 | K107: =90800000/F12 -> 138423.7077 | M107: =117200000/F12 -> 178670.2482 | N107: =+$M$107/2*N106 -> 90000.18642 | O107: =+$M$107/2*O106 -> 91340.21328 | P107: =+$M$107/2*P106 -> 92700.19202
D110: E. Land Rental
D111: Land Rental Per Year (2010 base) | F111: =12000000/F12 -> 18293.88207
D112: % inflation index | M112: =+M19 -> 1 | N112: =+N19 -> 1.007444578 | O112: =+O19 -> 1.022444578 | P112: =+P19 -> 1.037667916 | Q112: =+Q19 -> 1.053117916 | R112: =+R19 -> 1.068797953 | S112: =+S19 -> 1.084711453 | T112: =+T19 -> 1.100861892 | U112: =+U19 -> 1.117252797 | V112: =+V19 -> 1.133887748 | W112: =+W19 -> 1.150770381 | X112: =+X19 -> 1.167904381 | Y112: =+Y19 -> 1.185293492 | Z112: =+Z19 -> 1.202941512 | AA112: =+AA19 -> 1.220852297 | AB112: =+AB19 -> 1.239029758 | AC112: =+AC19 -> 1.257477866 | AD112: =+AD19 -> 1.27620065 | AE112: =+AE19 -> 1.295202202 | AF112: =+AF19 -> 1.31448667 | AG112: =+AG19 -> 1.334058268 | AH112: =+AH19 -> 1.35392127 | AI112: =+AI19 -> 1.374080016 | AJ112: =+AJ19 -> 1.394538908 | AK112: =+AK19 -> 1.415302416 | AL112: =+AL19 -> 1.436375075 | AM112: =+AM19 -> 1.457761489 | AN112: =+AN19 -> 1.479466328 | AO112: =+AO19 -> 1.501494333 | AP112: =+AP19 -> 1.523850317 | AQ112: =+AQ19 -> 1.546539163
D113: Land Rental Total | H113: 0 | I113: =12000000/F12 -> 18293.88207 | J113: 0 | K113: =24000000/F12 -> 36587.76414 | M113: =+$F$111 -> 18293.88207 | N113: =+$F$111/2*N112 -> 9215.036153 | O113: 9352.240268 | P113: 9491.487237 | Q113: 9632.807476 | R113: 9776.231854 | S113: 9921.7917 | T113: 10069.51881 | U113: 10219.44545 | V113: 10371.60437 | W113: 10526.02881 | X113: 10682.75251 | Y113: 10841.80968 | Z113: 11003.23508 | AA113: 11167.06397 | AB113: 11333.33213 | AC113: 11502.07589 | AD113: 11673.3321 | AE113: 11847.13817 | AF113: 12023.53206 | AG113: 12202.55231 | AH113: 12384.23802 | AI113: 12568.62888 | AJ113: 12755.76516 | AK113: 12945.68775 | AL113: 13138.43812 | AM113: 13334.05838 | AN113: 13532.59126 | AO113: 13734.08013 | AP113: 13938.569 | AQ113: 14146.10253
D116: F. Marketing Expenses
D117: Marketing Expenses Per Year (2010 base) | F117: =50000000/F12 -> 76224.50862 | H117: Budget of EUR 760 000 expected in 2011 for Margeting the inauguration of the Airport
D118: % inflation index | M118: =+M19 -> 1 | N118: =+N19 -> 1.007444578 | O118: =+O19 -> 1.022444578 | P118: =+P19 -> 1.037667916 | Q118: =+Q19 -> 1.053117916 | R118: =+R19 -> 1.068797953 | S118: =+S19 -> 1.084711453 | T118: =+T19 -> 1.100861892 | U118: =+U19 -> 1.117252797 | V118: =+V19 -> 1.133887748 | W118: =+W19 -> 1.150770381 | X118: =+X19 -> 1.167904381 | Y118: =+Y19 -> 1.185293492 | Z118: =+Z19 -> 1.202941512 | AA118: =+AA19 -> 1.220852297 | AB118: =+AB19 -> 1.239029758 | AC118: =+AC19 -> 1.257477866 | AD118: =+AD19 -> 1.27620065 | AE118: =+AE19 -> 1.295202202 | AF118: =+AF19 -> 1.31448667 | AG118: =+AG19 -> 1.334058268 | AH118: =+AH19 -> 1.35392127 | AI118: =+AI19 -> 1.374080016 | AJ118: =+AJ19 -> 1.394538908 | AK118: =+AK19 -> 1.415302416 | AL118: =+AL19 -> 1.436375075 | AM118: =+AM19 -> 1.457761489 | AN118: =+AN19 -> 1.479466328 | AO118: =+AO19 -> 1.501494333 | AP118: =+AP19 -> 1.523850317 | AQ118: =+AQ19 -> 1.546539163
D119: Marketing Expenses Total | H119: =27987406/F12 -> 42666.5254 | I119: =296600404/$F$12 -> 452164.401 | J119: =50381717/$F$12 -> 76806.43243 | K119: =57000000/$F$12 -> 86895.93983 | M119: =100000000/F12 -> 152449.0172 | N119: =500000000/$F$12 -> 762245.0862 | O119: =+$F$117/2*O118 -> 38967.66778 | P119: 39547.86349 | Q119: 40136.69782 | R119: 40734.29939 | S119: 41340.79875 | T119: 41956.32837 | U119: 42581.02271 | V119: 43215.01823 | W119: 43858.4534 | X119: 44511.46877 | Y119: 45174.207 | Z119: 45846.81284 | AA119: 46529.43321 | AB119: 47222.21722 | AC119: 47925.3162 | AD119: 48638.88374 | AE119: 49363.07569 | AF119: 50098.05025 | AG119: 50843.96796 | AH119: 51600.99176 | AI119: 52369.287 | AJ119: 53149.02151 | AK119: 53940.36561 | AL119: 54743.49215 | AM119: 55558.57658 | AN119: 56385.79692 | AO119: 57225.33387 | AP119: 58077.37083 | AQ119: 58942.09389
D122: G. Vehicles Gas consumption & maintenance
D123: G.1. Gas
D124: Gas Budget base AIBD (2010) | E124: 2010 | F124: =26160000/F12 -> 39880.66291 | P124: Growth rate due to moving to the New Airport
D125: % Gas consumption Growth Rate (annual basis) | F125: 0.05 | N125: =$F$125 -> 0.05 | O125: =$F$125 -> 0.05 | P125: 1 | Q125: 0 | R125: =$F$125 -> 0.05 | S125: 0.05 | T125: 0.05 | U125: 0.05 | V125: 0.05 | W125: 0.05 | X125: 0.05 | Y125: 0.05 | Z125: 0.05 | AA125: 0.05 | AB125: 0.05 | AC125: 0.05 | AD125: 0.05 | AE125: 0.05 | AF125: 0.05 | AG125: 0.05 | AH125: 0.05 | AI125: 0.05 | AJ125: 0.05 | AK125: 0.05 | AL125: 0.05 | AM125: 0.05 | AN125: 0.05 | AO125: 0.05 | AP125: 0.05 | AQ125: 0.05
D126: Gas consumption Growth Rate index (end of period) | E126: 2011 | F126: =(25*1000000)/$F$12 -> 38112.25431 | M126: 100 | N126: =M126*(1+N125)^(1/2) -> 102.4695077 | O126: 105 | P126: 148.492424 | Q126: 148.492424 | R126: 152.1594558 | S126: 155.9170453 | T126: 159.7674286 | U126: 163.7128975 | V126: 167.7558001 | W126: 171.8985424 | X126: 176.1435901 | Y126: 180.4934695 | Z126: 184.9507696 | AA126: 189.518143 | AB126: 194.198308 | AC126: 198.9940501 | AD126: 203.9082234 | AE126: 208.9437526 | AF126: 214.1036346 | AG126: 219.3909403 | AH126: 224.8088163 | AI126: 230.3604873 | AJ126: 236.0492572 | AK126: 241.8785117 | AL126: 247.85172 | AM126: 253.9724372 | AN126: 260.244306 | AO126: 266.6710591 | AP126: 273.2565213 | AQ126: 280.004612
D127: Gas consumption Growth Rate index (mid - period) | E127: 2012 | F127: =(25*1000000)/$F$12 -> 38112.25431 | M127: 100 | N127: =(M126+N126)/2 -> 101.2347538 | O127: 103.7347538 | P127: 126.746212 | Q127: 148.492424 | R127: 150.3259399 | S127: 154.0382505 | T127: 157.8422369 | U127: 161.7401631 | V127: 165.7343488 | W127: 169.8271712 | X127: 174.0210662 | Y127: 178.3185298 | Z127: 182.7221195 | AA127: 187.2344563 | AB127: 191.8582255 | AC127: 196.5961791 | AD127: 201.4511368 | AE127: 206.425988 | AF127: 211.5236936 | AG127: 216.7472874 | AH127: 222.0998783 | AI127: 227.5846518 | AJ127: 233.2048722 | AK127: 238.9638844 | AL127: 244.8651158 | AM127: 250.9120786 | AN127: 257.1083716 | AO127: 263.4576826 | AP127: 269.9637902 | AQ127: 276.6305667
D128: % gas consumption index | E128: 2013 | F128: =(26.25*1000000)/$F$12 -> 40017.86702 | M128: =+M127/$M$127 -> 1 | N128: 1.012347538 | O128: 1.037347538 | P128: 1.26746212 | Q128: 1.48492424 | R128: 1.503259399 | S128: 1.540382505 | T128: 1.578422369 | U128: 1.617401631 | V128: 1.657343488 | W128: 1.698271712 | X128: 1.740210662 | Y128: 1.783185298 | Z128: 1.827221195 | AA128: 1.872344563 | AB128: 1.918582255 | AC128: 1.965961791 | AD128: 2.014511368 | AE128: 2.06425988 | AF128: 2.115236936 | AG128: 2.167472874 | AH128: 2.220998783 | AI128: 2.275846518 | AJ128: 2.332048722 | AK128: 2.389638844 | AL128: 2.448651158 | AM128: 2.509120786 | AN128: 2.571083716 | AO128: 2.634576826 | AP128: 2.699637902 | AQ128: 2.766305667
E129: 2014 | F129: =(26.25*1000000)/$F$12 -> 40017.86702
D130: Gas Budget base AIBD (2010) | M130: =+$F$124 -> 39880.66291 | N130: =$F$126/2 -> 19056.12715 | O130: =$F$126/2 -> 19056.12715 | P130: =$F$127/2 -> 19056.12715 | Q130: =$F$127/2 -> 19056.12715 | R130: =$F$128/2 -> 20008.93351 | S130: =$F$128/2 -> 20008.93351 | T130: =$F$129/2 -> 20008.93351 | U130: =$F$129/2 -> 20008.93351 | V130: =$F$129/2 -> 20008.93351 | W130: =$F$129/2 -> 20008.93351 | X130: 20008.93351 | Y130: 20008.93351 | Z130: 20008.93351 | AA130: 20008.93351 | AB130: 20008.93351 | AC130: 20008.93351 | AD130: 20008.93351 | AE130: 20008.93351 | AF130: 20008.93351 | AG130: 20008.93351 | AH130: 20008.93351 | AI130: 20008.93351 | AJ130: 20008.93351 | AK130: 20008.93351 | AL130: 20008.93351 | AM130: 20008.93351 | AN130: 20008.93351 | AO130: 20008.93351 | AP130: 20008.93351 | AQ130: 20008.93351
D131: % gas consumption index | M131: =M128 -> 1 | N131: 1.012347538 | O131: 1.037347538 | P131: 1.26746212 | Q131: 1.48492424 | R131: 1.503259399 | S131: 1.540382505 | T131: 1.578422369 | U131: 1.617401631 | V131: 1.657343488 | W131: 1.698271712 | X131: 1.740210662 | Y131: 1.783185298 | Z131: 1.827221195 | AA131: 1.872344563 | AB131: 1.918582255 | AC131: 1.965961791 | AD131: 2.014511368 | AE131: 2.06425988 | AF131: 2.115236936 | AG131: 2.167472874 | AH131: 2.220998783 | AI131: 2.275846518 | AJ131: 2.332048722 | AK131: 2.389638844 | AL131: 2.448651158 | AM131: 2.509120786 | AN131: 2.571083716 | AO131: 2.634576826 | AP131: 2.699637902 | AQ131: 2.766305667
D132: Gas costs Sub Total | M132: =M130*M131 -> 39880.66291 | N132: 19291.42341 | O132: 19767.82659 | P132: 24152.91933 | Q132: 28296.90514 | R132: 30078.61737 | S132: 30821.41113 | T132: 31582.54824 | U132: 32362.48169 | V132: 33161.67566 | W132: 33980.60578 | X132: 34819.75944 | Y132: 35679.63607 | Z132: 36560.74741 | AA132: 37463.61787 | AB132: 38388.78478 | AC132: 39336.79876 | AD132: 40308.22402 | AE132: 41303.6387 | AF132: 42323.63522 | AG132: 43368.82063 | AH132: 44439.81698 | AI132: 45537.26167 | AJ132: 46661.80783 | AK132: 47814.12475 | AL132: 48994.89822 | AM132: 50204.83099 | AN132: 51444.64313 | AO132: 52715.07254 | AP132: 54016.87529 | AQ132: 55350.82616
D134: % gas prices index | M134: =+M37 -> 1 | N134: =+N37 -> 1.012347538 | O134: =+O37 -> 1.037347538 | P134: =+P37 -> 1.062964915 | Q134: =+Q37 -> 1.089214915 | R134: =+R37 -> 1.116113161 | S134: =+S37 -> 1.143675661 | T134: =+T37 -> 1.171918819 | U134: =+U37 -> 1.200859444 | V134: =+V37 -> 1.23051476 | W134: =+W37 -> 1.260902416 | X134: =+X37 -> 1.292040498 | Y134: =+Y37 -> 1.323947537 | Z134: =+Z37 -> 1.356642523 | AA134: =+AA37 -> 1.390144914 | AB134: =+AB37 -> 1.424474649 | AC134: =+AC37 -> 1.45965216 | AD134: =+AD37 -> 1.495698381 | AE134: =+AE37 -> 1.532634768 | AF134: =+AF37 -> 1.570483301 | AG134: =+AG37 -> 1.609266506 | AH134: =+AH37 -> 1.649007466 | AI134: =+AI37 -> 1.689729831 | AJ134: =+AJ37 -> 1.731457839 | AK134: =+AK37 -> 1.774216323 | AL134: =+AL37 -> 1.818030731 | AM134: =+AM37 -> 1.862927139 | AN134: =+AN37 -> 1.908932267 | AO134: =+AO37 -> 1.956073496 | AP134: =+AP37 -> 2.004378881 | AQ134: =+AQ37 -> 2.053877171
D135: Gas costsTotal | H135: =2661720/$F$12 -> 4057.765982 | I135: =7819731/$F$12 -> 11921.10306 | J135: =24181845/$F$12 -> 36864.98505 | K135: =19400000/$F$12 -> 29575.10934 | M135: =M132*M134 -> 39880.66291 | N135: 19529.625 | O135: 20506.10625 | P135: 25673.70584 | Q135: 30821.41113 | R135: 33571.14072 | S135: 35249.69775 | T135: 37012.18264 | U135: 38862.79177 | V135: 40805.93136 | W135: 42846.22793 | X135: 44988.53932 | Y135: 47237.96629 | Z135: 49599.86461 | AA135: 52079.85784 | AB135: 54683.85073 | AC135: 57418.04326 | AD135: 60288.94543 | AE135: 63303.3927 | AF135: 66468.56233 | AG135: 69791.99045 | AH135: 73281.58997 | AI135: 76945.66947 | AJ135: 80792.95294 | AK135: 84832.60059 | AL135: 89074.23062 | AM135: 93527.94215 | AN135: 98204.33926 | AO135: 103114.5562 | AP135: 108270.284 | AQ135: 113683.7982
B137: G.2. Cars Maintenance & Insurance expenses
E138: 2010 | F138: =13000000/F12 -> 19818.37224 | G138: (2010 base)
D139: % inflation index | E139: 2011 | F139: =(14.24*1000000)/$F$12 -> 21708.74005 | M139: =M19 -> 1 | N139: =N19 -> 1.007444578 | O139: =O19 -> 1.022444578 | P139: =P19 -> 1.037667916 | Q139: =Q19 -> 1.053117916 | R139: =R19 -> 1.068797953 | S139: =S19 -> 1.084711453 | T139: =T19 -> 1.100861892 | U139: =U19 -> 1.117252797 | V139: =V19 -> 1.133887748 | W139: =W19 -> 1.150770381 | X139: =X19 -> 1.167904381 | Y139: =Y19 -> 1.185293492 | Z139: =Z19 -> 1.202941512 | AA139: =AA19 -> 1.220852297 | AB139: =AB19 -> 1.239029758 | AC139: =AC19 -> 1.257477866 | AD139: =AD19 -> 1.27620065 | AE139: =AE19 -> 1.295202202 | AF139: =AF19 -> 1.31448667 | AG139: =AG19 -> 1.334058268 | AH139: =AH19 -> 1.35392127 | AI139: =AI19 -> 1.374080016 | AJ139: =AJ19 -> 1.394538908 | AK139: =AK19 -> 1.415302416 | AL139: =AL19 -> 1.436375075 | AM139: =AM19 -> 1.457761489 | AN139: =AN19 -> 1.479466328 | AO139: =AO19 -> 1.501494333 | AP139: =AP19 -> 1.523850317 | AQ139: =AQ19 -> 1.546539163
E140: 2012 | F140: =(15.66*1000000)/$F$12 -> 23873.5161
E141: 2013 | F141: =(17.3*1000000)/$F$12 -> 26373.67998
E142: 2014 | F142: =(19.21*1000000)/$F$12 -> 29285.45621
D144: Cars Maintenance & Insurance expenses Total | H144: =(1288219+30230)/$F$12 -> 2009.962543 | I144: =(1313967+1508221)/$F$12 -> 4302.397871 | J144: =7478673/$F$12 -> 11401.16349 | K144: =7000000/$F$12 -> 10671.43121 | M144: =+$F$138 -> 19818.37224 | N144: =+$F$139/2*N139 -> 10935.17623 | O144: =+$F$139/2*O139 -> 11097.99178 | P144: =+$F$140/2*P139 -> 12386.39084 | Q144: =+$F$140/2*Q139 -> 12570.81376 | R144: =+$F$141/2*R139 -> 14094.06759 | S144: =+$F$141/2*S139 -> 14303.91637 | T144: =+$F$142/2*T139 -> 16119.62136 | U144: =+$F$142/2*U139 -> 16359.62893 | V144: =+$F$142/2*V139 -> 16603.21 | W144: 16850.41779 | X144: 17101.3063 | Y144: 17355.93033 | Z144: 17614.34549 | AA144: 17876.60824 | AB144: 18142.77586 | AC144: 18412.90649 | AD144: 18687.05913 | AE144: 18965.29368 | AF144: 19247.67091 | AG144: 19534.25249 | AH144: 19825.10103 | AI144: 20120.28007 | AJ144: 20419.85406 | AK144: 20723.88847 | AL144: 21032.44969 | AM144: 21345.60512 | AN144: 21663.42318 | AO144: 21985.97327 | AP144: 22313.32587 | AQ144: 22645.55247
D146: G.3. Vehical Rental | E146: 2010 | F146: =(1*1000000)/F12 -> 1524.490172 | G146: (2010 base)
D147: % inflation index | E147: 2011 | F147: =(11*1000000)/$F$12 -> 16769.3919 | M147: =M19 -> 1 | N147: =N19 -> 1.007444578 | O147: =O19 -> 1.022444578 | P147: =P19 -> 1.037667916 | Q147: =Q19 -> 1.053117916 | R147: =R19 -> 1.068797953 | S147: =S19 -> 1.084711453 | T147: =T19 -> 1.100861892 | U147: =U19 -> 1.117252797 | V147: =V19 -> 1.133887748 | W147: =W19 -> 1.150770381 | X147: =X19 -> 1.167904381 | Y147: =Y19 -> 1.185293492 | Z147: =Z19 -> 1.202941512 | AA147: =AA19 -> 1.220852297 | AB147: =AB19 -> 1.239029758 | AC147: =AC19 -> 1.257477866 | AD147: =AD19 -> 1.27620065 | AE147: =AE19 -> 1.295202202 | AF147: =AF19 -> 1.31448667 | AG147: =AG19 -> 1.334058268 | AH147: =AH19 -> 1.35392127 | AI147: =AI19 -> 1.374080016 | AJ147: =AJ19 -> 1.394538908 | AK147: =AK19 -> 1.415302416 | AL147: =AL19 -> 1.436375075 | AM147: =AM19 -> 1.457761489 | AN147: =AN19 -> 1.479466328 | AO147: =AO19 -> 1.501494333 | AP147: =AP19 -> 1.523850317 | AQ147: =AQ19 -> 1.546539163
E148: 2012 | F148: =(1*1000000)/$F$12 -> 1524.490172
E149: 2013 | F149: =(1*1000000)/$F$12 -> 1524.490172
E150: 2014 | F150: =(1*1000000)/$F$12 -> 1524.490172
D152: Vehical Rental | H152: =3065080/$F$12 -> 4672.684338 | I152: =430410/$F$12 -> 656.1558151 | J152: =0 -> 0 | K152: =0/F12 -> 0 | M152: =+$F$146 -> 1524.490172 | N152: =+$F$147/2*N147 -> 8447.116473 | O152: =+$F$147/2*O147 -> 8572.886912 | P152: =+$F$148/2*P147 -> 790.9572698 | Q152: =+$F$148/2*Q147 -> 802.7339563 | R152: =+$F$149/2*R147 -> 814.6859879 | S152: =+$F$149/2*S147 -> 826.815975 | T152: =+$F$150/2*T147 -> 839.1265675 | U152: =+$F$150/2*U147 -> 851.6204543 | V152: =+$F$150/2*V147 -> 864.3003645 | W152: 877.1690679 | X152: 890.2293755 | Y152: 903.48414 | Z152: 916.9362567 | AA152: 930.5886641 | AB152: 944.4443444 | AC152: 958.5063241 | AD152: 972.7776747 | AE152: 987.2615138 | AF152: 1001.961005 | AG152: 1016.879359 | AH152: 1032.019835 | AI152: 1047.38574 | AJ152: 1062.98043 | AK152: 1078.807312 | AL152: 1094.869843 | AM152: 1111.171532 | AN152: 1127.715938 | AO152: 1144.506677 | AP152: 1161.547417 | AQ152: 1178.841878
D155: H. Conference Training
D156: Conference & Training Budget AIBD (2010) | E156: 2010 | F156: =50000000/F12 -> 76224.50862
D157: % Growth Rate (annual basis) | F157: 0.01 | N157: =$F$157 -> 0.01 | O157: 0.01 | P157: 0.01 | Q157: 0.01 | R157: 0.01 | S157: 0.01 | T157: 0.01 | U157: 0.01 | V157: 0.01 | W157: 0.01 | X157: 0.01 | Y157: 0.01 | Z157: 0.01 | AA157: 0.01 | AB157: 0.01 | AC157: 0.01 | AD157: 0.01 | AE157: 0.01 | AF157: 0.01 | AG157: 0.01 | AH157: 0.01 | AI157: 0.01 | AJ157: 0.01 | AK157: 0.01 | AL157: 0.01 | AM157: 0.01 | AN157: 0.01 | AO157: 0.01 | AP157: 0.01 | AQ157: 0.01
D158: Growth Rate index (end of period) | E158: 2011 | F158: =(54.75*1000000)/$F$12 -> 83465.83694 | M158: 100 | N158: =M158*(1+N157)^(1/2) -> 100.4987562 | O158: 101 | P158: 101.5037438 | Q158: 102.01 | R158: 102.5187812 | S158: 103.0301 | T158: 103.543969 | U158: 104.060401 | V158: 104.5794087 | W158: 105.101005 | X158: 105.6252028 | Y158: 106.1520151 | Z158: 106.6814548 | AA158: 107.2135352 | AB158: 107.7482694 | AC158: 108.2856706 | AD158: 108.8257521 | AE158: 109.3685273 | AF158: 109.9140096 | AG158: 110.4622125 | AH158: 111.0131497 | AI158: 111.5668347 | AJ158: 112.1232812 | AK158: 112.682503 | AL158: 113.244514 | AM158: 113.809328 | AN158: 114.3769591 | AO158: 114.9474213 | AP158: 115.5207287 | AQ158: 116.0968955
D159: Growth Rate index (mid - period) | E159: 2012 | F159: =(60.23*1000000)/$F$12 -> 91820.04308 | M159: 100 | N159: =(M158+N158)/2 -> 100.2493781 | O159: 100.7493781 | P159: 101.2518719 | Q159: 101.7568719 | R159: 102.2643906 | S159: 102.7744406 | T159: 103.2870345 | U159: 103.802185 | V159: 104.3199049 | W159: 104.8402069 | X159: 105.3631039 | Y159: 105.8886089 | Z159: 106.4167349 | AA159: 106.947495 | AB159: 107.4809023 | AC159: 108.01697 | AD159: 108.5557113 | AE159: 109.0971397 | AF159: 109.6412684 | AG159: 110.1881111 | AH159: 110.7376811 | AI159: 111.2899922 | AJ159: 111.8450579 | AK159: 112.4028921 | AL159: 112.9635085 | AM159: 113.526921 | AN159: 114.0931436 | AO159: 114.6621902 | AP159: 115.234075 | AQ159: 115.8088121
D160: % conference & training budget index | E160: 2013 | F160: =(66.55*1000000)/$F$12 -> 101454.821 | M160: =+M159/$M$159 -> 1 | N160: 1.002493781 | O160: 1.007493781 | P160: 1.012518719 | Q160: 1.017568719 | R160: 1.022643906 | S160: 1.027744406 | T160: 1.032870345 | U160: 1.03802185 | V160: 1.043199049 | W160: 1.048402069 | X160: 1.053631039 | Y160: 1.058886089 | Z160: 1.064167349 | AA160: 1.06947495 | AB160: 1.074809023 | AC160: 1.0801697 | AD160: 1.085557113 | AE160: 1.090971397 | AF160: 1.096412684 | AG160: 1.101881111 | AH160: 1.107376811 | AI160: 1.112899922 | AJ160: 1.118450579 | AK160: 1.124028921 | AL160: 1.129635085 | AM160: 1.13526921 | AN160: 1.140931436 | AO160: 1.146621902 | AP160: 1.15234075 | AQ160: 1.158088121
E161: 2014 | F161: =(73.87*1000000)/$F$12 -> 112614.089
D162: Conference & Training Budget base AIBD (2010) | M162: =+$F$156 -> 76224.50862 | N162: =+$F$158/2 -> 41732.91847 | O162: =+$F$158/2 -> 41732.91847 | P162: =+$F$159/2 -> 45910.02154 | Q162: =+$F$159/2 -> 45910.02154 | R162: =+$F$160/2 -> 50727.41049 | S162: =+$F$160/2 -> 50727.41049 | T162: =+$F$161/2 -> 56307.04452 | U162: =+$F$161/2 -> 56307.04452 | V162: =+$F$161/2 -> 56307.04452 | W162: 56307.04452 | X162: 56307.04452 | Y162: 56307.04452 | Z162: 56307.04452 | AA162: 56307.04452 | AB162: 56307.04452 | AC162: 56307.04452 | AD162: 56307.04452 | AE162: 56307.04452 | AF162: 56307.04452 | AG162: 56307.04452 | AH162: 56307.04452 | AI162: 56307.04452 | AJ162: 56307.04452 | AK162: 56307.04452 | AL162: 56307.04452 | AM162: 56307.04452 | AN162: 56307.04452 | AO162: 56307.04452 | AP162: 56307.04452 | AQ162: 56307.04452
D163: % conference & training budget index | M163: =+M160 -> 1 | N163: 1.002493781 | O163: 1.007493781 | P163: 1.012518719 | Q163: 1.017568719 | R163: 1.022643906 | S163: 1.027744406 | T163: 1.032870345 | U163: 1.03802185 | V163: 1.043199049 | W163: 1.048402069 | X163: 1.053631039 | Y163: 1.058886089 | Z163: 1.064167349 | AA163: 1.06947495 | AB163: 1.074809023 | AC163: 1.0801697 | AD163: 1.085557113 | AE163: 1.090971397 | AF163: 1.096412684 | AG163: 1.101881111 | AH163: 1.107376811 | AI163: 1.112899922 | AJ163: 1.118450579 | AK163: 1.124028921 | AL163: 1.129635085 | AM163: 1.13526921 | AN163: 1.140931436 | AO163: 1.146621902 | AP163: 1.15234075 | AQ163: 1.158088121
D164: Sub Total | M164: =M162*M163 -> 76224.50862 | N164: 41836.99123 | O164: 42045.65582 | P164: 46484.75619 | Q164: 46716.6018 | R164: 51876.0772 | S164: 52134.81236 | T164: 58157.8765 | U164: 58447.94252 | V164: 58739.45527 | W164: 59032.42195 | X164: 59326.84982 | Y164: 59622.74617 | Z164: 59920.11832 | AA164: 60218.97363 | AB164: 60519.3195 | AC164: 60821.16337 | AD164: 61124.5127 | AE164: 61429.375 | AF164: 61735.75782 | AG164: 62043.66875 | AH164: 62353.1154 | AI164: 62664.10544 | AJ164: 62976.64656 | AK164: 63290.74649 | AL164: 63606.41302 | AM164: 63923.65396 | AN164: 64242.47715 | AO164: 64562.8905 | AP164: 64884.90192 | AQ164: 65208.5194
D166: % inflation index | M166: =+M19 -> 1 | N166: =+N19 -> 1.007444578 | O166: =+O19 -> 1.022444578 | P166: =+P19 -> 1.037667916 | Q166: =+Q19 -> 1.053117916 | R166: =+R19 -> 1.068797953 | S166: =+S19 -> 1.084711453 | T166: =+T19 -> 1.100861892 | U166: =+U19 -> 1.117252797 | V166: =+V19 -> 1.133887748 | W166: =+W19 -> 1.150770381 | X166: =+X19 -> 1.167904381 | Y166: =+Y19 -> 1.185293492 | Z166: =+Z19 -> 1.202941512 | AA166: =+AA19 -> 1.220852297 | AB166: =+AB19 -> 1.239029758 | AC166: =+AC19 -> 1.257477866 | AD166: =+AD19 -> 1.27620065 | AE166: =+AE19 -> 1.295202202 | AF166: =+AF19 -> 1.31448667 | AG166: =+AG19 -> 1.334058268 | AH166: =+AH19 -> 1.35392127 | AI166: =+AI19 -> 1.374080016 | AJ166: =+AJ19 -> 1.394538908 | AK166: =+AK19 -> 1.415302416 | AL166: =+AL19 -> 1.436375075 | AM166: =+AM19 -> 1.457761489 | AN166: =+AN19 -> 1.479466328 | AO166: =+AO19 -> 1.501494333 | AP166: =+AP19 -> 1.523850317 | AQ166: =+AQ19 -> 1.546539163
D167: Total conference & training costs | H167: 0 | I167: =400000/$F$12 -> 609.7960689 | J167: =771500/$F$12 -> 1176.144168 | K167: =3530000/$F$12 -> 5381.450308 | M167: =M164*M166 -> 76224.50862 | N167: 42148.44999 | O167: 42989.35283 | P167: 48235.74007 | Q167: 49198.09031 | R167: 55445.04513 | S167: 56551.22807 | T167: 64023.78994 | U167: 65301.12724 | V167: 66603.94868 | W167: 67932.76267 | X167: 69288.08781 | Y167: 70670.45301 | Z167: 72080.39775 | AA167: 73518.47226 | AB167: 74985.23778 | AC167: 76481.2667 | AD167: 78007.14286 | AE167: 79563.46174 | AF167: 81150.83072 | AG167: 82769.86925 | AH167: 84421.20919 | AI167: 86105.49498 | AJ167: 87823.38392 | AK167: 89575.54643 | AL167: 91362.6663 | AM167: 93185.44095 | AN167: 95044.58175 | AO167: 96940.81422 | AP167: 98874.87839 | AQ167: 100847.529
D170: I. Board Meeting
D171: Board Meeting Budget Per Year (2010 base) | F171: =30000000/F12 -> 45734.70517
D172: % inflation index | M172: =M19 -> 1 | N172: =N19 -> 1.007444578 | O172: =O19 -> 1.022444578 | P172: =P19 -> 1.037667916 | Q172: =Q19 -> 1.053117916 | R172: =R19 -> 1.068797953 | S172: =S19 -> 1.084711453 | T172: =T19 -> 1.100861892 | U172: =U19 -> 1.117252797 | V172: =V19 -> 1.133887748 | W172: =W19 -> 1.150770381 | X172: =X19 -> 1.167904381 | Y172: =Y19 -> 1.185293492 | Z172: =Z19 -> 1.202941512 | AA172: =AA19 -> 1.220852297 | AB172: =AB19 -> 1.239029758 | AC172: =AC19 -> 1.257477866 | AD172: =AD19 -> 1.27620065 | AE172: =AE19 -> 1.295202202 | AF172: =AF19 -> 1.31448667 | AG172: =AG19 -> 1.334058268 | AH172: =AH19 -> 1.35392127 | AI172: =AI19 -> 1.374080016 | AJ172: =AJ19 -> 1.394538908 | AK172: =AK19 -> 1.415302416 | AL172: =AL19 -> 1.436375075 | AM172: =AM19 -> 1.457761489 | AN172: =AN19 -> 1.479466328 | AO172: =AO19 -> 1.501494333 | AP172: =AP19 -> 1.523850317 | AQ172: =AQ19 -> 1.546539163
D173: Board Meeting Total | H173: =(20767034-400000-167034)/$F$12 -> 30794.70148 | I173: =52000000/$F$12 -> 79273.48896 | J173: =14500000/$F$12 -> 22105.1075 | K173: =24500000/$F$12 -> 37350.00922 | M173: =+$F$171 -> 45734.70517 | N173: =+$F$171/2*N172 -> 23037.59038 | O173: 23380.60067 | P173: 23728.71809 | Q173: 24082.01869 | R173: 24440.57964 | S173: 24804.47925 | T173: 25173.79702 | U173: 25548.61363 | V173: 25929.01094 | W173: 26315.07204 | X173: 26706.88126 | Y173: 27104.5242 | Z173: 27508.0877 | AA173: 27917.65992 | AB173: 28333.33033 | AC173: 28755.18972 | AD173: 29183.33024 | AE173: 29617.84541 | AF173: 30058.83015 | AG173: 30506.38078 | AH173: 30960.59505 | AI173: 31421.5722 | AJ173: 31889.41291 | AK173: 32364.21937 | AL173: 32846.09529 | AM173: 33335.14595 | AN173: 33831.47815 | AO173: 34335.20032 | AP173: 34846.4225 | AQ173: 35365.25633
D176: J. Travel Expenses
D177: Travel expenses Budget (2010 base) | E177: 2010 | F177: =163000000/F12 -> 248491.8981
D178: % inflation index | E178: 2011 | F178: =(120*1000000)/$F$12 -> 182938.8207 | M178: =+M19 -> 1 | N178: =+N19 -> 1.007444578 | O178: =+O19 -> 1.022444578 | P178: =+P19 -> 1.037667916 | Q178: =+Q19 -> 1.053117916 | R178: =+R19 -> 1.068797953 | S178: =+S19 -> 1.084711453 | T178: =+T19 -> 1.100861892 | U178: =+U19 -> 1.117252797 | V178: =+V19 -> 1.133887748 | W178: =+W19 -> 1.150770381 | X178: =+X19 -> 1.167904381 | Y178: =+Y19 -> 1.185293492 | Z178: =+Z19 -> 1.202941512 | AA178: =+AA19 -> 1.220852297 | AB178: =+AB19 -> 1.239029758 | AC178: =+AC19 -> 1.257477866 | AD178: =+AD19 -> 1.27620065 | AE178: =+AE19 -> 1.295202202 | AF178: =+AF19 -> 1.31448667 | AG178: =+AG19 -> 1.334058268 | AH178: =+AH19 -> 1.35392127 | AI178: =+AI19 -> 1.374080016 | AJ178: =+AJ19 -> 1.394538908 | AK178: =+AK19 -> 1.415302416 | AL178: =+AL19 -> 1.436375075 | AM178: =+AM19 -> 1.457761489 | AN178: =+AN19 -> 1.479466328 | AO178: =+AO19 -> 1.501494333 | AP178: =+AP19 -> 1.523850317 | AQ178: =+AQ19 -> 1.546539163
E179: 2012 | F179: =(100*1000000)/$F$12 -> 152449.0172
E180: 2013 | F180: =(100*1000000)/$F$12 -> 152449.0172
E181: 2014 | F181: =(100*1000000)/$F$12 -> 152449.0172
D183: Travel Expenses Total | H183: =45115275/$F$12 -> 68777.79336 | I183: =(55726398+487605)/$F$12 -> 85697.69512 | J183: =150241380/$F$12 -> 229041.5073 | K183: =94760000/$F$12 -> 144460.6887 | M183: =F177 -> 248491.8981 | N183: =$F$178/2*N178 -> 92150.36153 | O183: =$F$178/2*O178 -> 93522.40268 | P183: =$F$179/2*P178 -> 79095.72698 | Q183: =$F$179/2*Q178 -> 80273.39563 | R183: =$F$180/2*R178 -> 81468.59879 | S183: =$F$180/2*S178 -> 82681.5975 | T183: =$F$181/2*T178 -> 83912.65675 | U183: =$F$181/2*U178 -> 85162.04543 | V183: =$F$181/2*V178 -> 86430.03645 | W183: 87716.90679 | X183: 89022.93755 | Y183: 90348.414 | Z183: 91693.62567 | AA183: 93058.86641 | AB183: 94444.43444 | AC183: 95850.63241 | AD183: 97277.76747 | AE183: 98726.15138 | AF183: 100196.1005 | AG183: 101687.9359 | AH183: 103201.9835 | AI183: 104738.574 | AJ183: 106298.043 | AK183: 107880.7312 | AL183: 109486.9843 | AM183: 111117.1532 | AN183: 112771.5938 | AO183: 114450.6677 | AP183: 116154.7417 | AQ183: 117884.1878
D186: K. Office supplies & software
D187: Office supplies & software Budget (2010 base) | E187: 2010 | F187: =((20+15)*1000000)/$F$12 -> 53357.15603
D188: % inflation index | E188: 2011 | F188: =((22+14)*1000000)/$F$12 -> 54881.64621 | M188: =M19 -> 1 | N188: =N19 -> 1.007444578 | O188: =O19 -> 1.022444578 | P188: =P19 -> 1.037667916 | Q188: =Q19 -> 1.053117916 | R188: =R19 -> 1.068797953 | S188: =S19 -> 1.084711453 | T188: =T19 -> 1.100861892 | U188: =U19 -> 1.117252797 | V188: =V19 -> 1.133887748 | W188: =W19 -> 1.150770381 | X188: =X19 -> 1.167904381 | Y188: =Y19 -> 1.185293492 | Z188: =Z19 -> 1.202941512 | AA188: =AA19 -> 1.220852297 | AB188: =AB19 -> 1.239029758 | AC188: =AC19 -> 1.257477866 | AD188: =AD19 -> 1.27620065 | AE188: =AE19 -> 1.295202202 | AF188: =AF19 -> 1.31448667 | AG188: =AG19 -> 1.334058268 | AH188: =AH19 -> 1.35392127 | AI188: =AI19 -> 1.374080016 | AJ188: =AJ19 -> 1.394538908 | AK188: =AK19 -> 1.415302416 | AL188: =AL19 -> 1.436375075 | AM188: =AM19 -> 1.457761489 | AN188: =AN19 -> 1.479466328 | AO188: =AO19 -> 1.501494333 | AP188: =AP19 -> 1.523850317 | AQ188: =AQ19 -> 1.546539163
E189: 2012 | F189: =((24+13)*1000000)/$F$12 -> 56406.13638
E190: 2013 | F190: =((26+12)*1000000)/$F$12 -> 57930.62655
E191: 2014 | F191: =((28+11)*1000000)/$F$12 -> 59455.11672
D193: Office supplies & software Total | H193: =(5388384-2661720)/$F$12 -> 4156.772471 | I193: =9241565/$F$12 -> 14088.67502 | J193: =27746893/$F$12 -> 42299.86569 | K193: =10930000/$F$12 -> 16662.67758 | M193: =F187 -> 53357.15603 | N193: =+$F$188/2*N188 -> 27645.10846 | O193: =+$F$188/2*O188 -> 28056.7208 | P193: =+$F$189/2*P188 -> 29265.41898 | Q193: =+$F$189/2*Q188 -> 29701.15638 | R193: =+$F$190/2*R188 -> 30958.06754 | S193: =+$F$190/2*S188 -> 31419.00705 | T193: =+$F$191/2*T188 -> 32725.93613 | U193: =+$F$191/2*U188 -> 33213.19772 | V193: 33707.71422 | W193: 34209.59365 | X193: 34718.94564 | Y193: 35235.88146 | Z193: 35760.51401 | AA193: 36292.9579 | AB193: 36833.32943 | AC193: 37381.74664 | AD193: 37938.32932 | AE193: 38503.19904 | AF193: 39076.47919 | AG193: 39658.29501 | AH193: 40248.77357 | AI193: 40848.04386 | AJ193: 41456.23678 | AK193: 42073.48518 | AL193: 42699.92388 | AM193: 43335.68973 | AN193: 43980.9216 | AO193: 44635.76042 | AP193: 45300.34925 | AQ193: 45974.83324
D196: L. Representation Fees
D197: Representation Fees Budget (2010 base) | E197: 2010 | F197: =25000000/F12 -> 38112.25431
D198: % inflation index | E198: 2011 | F198: =(27.38*1000000)/$F$12 -> 41740.54092 | M198: =+M19 -> 1 | N198: =+N19 -> 1.007444578 | O198: =+O19 -> 1.022444578 | P198: =+P19 -> 1.037667916 | Q198: =+Q19 -> 1.053117916 | R198: =+R19 -> 1.068797953 | S198: =+S19 -> 1.084711453 | T198: =+T19 -> 1.100861892 | U198: =+U19 -> 1.117252797 | V198: =+V19 -> 1.133887748 | W198: =+W19 -> 1.150770381 | X198: =+X19 -> 1.167904381 | Y198: =+Y19 -> 1.185293492 | Z198: =+Z19 -> 1.202941512 | AA198: =+AA19 -> 1.220852297 | AB198: =+AB19 -> 1.239029758 | AC198: =+AC19 -> 1.257477866 | AD198: =+AD19 -> 1.27620065 | AE198: =+AE19 -> 1.295202202 | AF198: =+AF19 -> 1.31448667 | AG198: =+AG19 -> 1.334058268 | AH198: =+AH19 -> 1.35392127 | AI198: =+AI19 -> 1.374080016 | AJ198: =+AJ19 -> 1.394538908 | AK198: =+AK19 -> 1.415302416 | AL198: =+AL19 -> 1.436375075 | AM198: =+AM19 -> 1.457761489 | AN198: =+AN19 -> 1.479466328 | AO198: =+AO19 -> 1.501494333 | AP198: =+AP19 -> 1.523850317 | AQ198: =+AQ19 -> 1.546539163
E199: 2012 | F199: =(30.11*1000000)/$F$12 -> 45902.39909
E200: 2013 | F200: =(33.27*1000000)/$F$12 -> 50719.78803
E201: 2014 | F201: =(36.93*1000000)/$F$12 -> 56299.42207
D203: Representation fees Total | H203: =7869251/$F$12 -> 11996.59581 | I203: =18130429/$F$12 -> 27639.66083 | J203: =11917983/$F$12 -> 18168.84796 | K203: =17650000/$F$12 -> 26907.25154 | M203: =F197 -> 38112.25431 | N203: =+$F$198/2*N198 -> 21025.64082 | O203: =+$F$198/2*O198 -> 21338.69488 | P203: =+$F$199/2*P198 -> 23815.72339 | Q203: =+$F$199/2*Q198 -> 24170.31943 | R203: =+$F$200/2*R198 -> 27104.60282 | S203: =+$F$200/2*S198 -> 27508.16749 | T203: =+$F$201/2*T198 -> 30988.94414 | U203: =+$F$201/2*U198 -> 31450.34338 | V203: 31918.61246 | W203: 32393.85368 | X203: 32876.17084 | Y203: 33365.66929 | Z203: 33862.45596 | AA203: 34366.63937 | AB203: 34878.32964 | AC203: 35397.63855 | AD203: 35924.67953 | AE203: 36459.5677 | AF203: 37002.41991 | AG203: 37553.35474 | AH203: 38112.49251 | AI203: 38679.95538 | AJ203: 39255.86729 | AK203: 39840.35404 | AL203: 40433.54331 | AM203: 41035.56466 | AN203: 41646.5496 | AO203: 42266.6316 | AP203: 42895.94609 | AQ203: 43534.63055
D205: M. Consultants /Others/Honoraires (CAC, autres)
D206: Consultant/others Fees Budget (2010 base) | E206: 2010 | F206: =((35+29)*1000000)/F12 -> 97567.37103
D207: % inflation index | E207: 2011 | F207: =((45+31.76)*1000000)/$F$12 -> 117019.8656 | M207: =M19 -> 1 | N207: =N19 -> 1.007444578 | O207: =O19 -> 1.022444578 | P207: =P19 -> 1.037667916 | Q207: =Q19 -> 1.053117916 | R207: =R19 -> 1.068797953 | S207: =S19 -> 1.084711453 | T207: =T19 -> 1.100861892 | U207: =U19 -> 1.117252797 | V207: =V19 -> 1.133887748 | W207: =W19 -> 1.150770381 | X207: =X19 -> 1.167904381 | Y207: =Y19 -> 1.185293492 | Z207: =Z19 -> 1.202941512 | AA207: =AA19 -> 1.220852297 | AB207: =AB19 -> 1.239029758 | AC207: =AC19 -> 1.257477866 | AD207: =AD19 -> 1.27620065 | AE207: =AE19 -> 1.295202202 | AF207: =AF19 -> 1.31448667 | AG207: =AG19 -> 1.334058268 | AH207: =AH19 -> 1.35392127 | AI207: =AI19 -> 1.374080016 | AJ207: =AJ19 -> 1.394538908 | AK207: =AK19 -> 1.415302416 | AL207: =AL19 -> 1.436375075 | AM207: =AM19 -> 1.457761489 | AN207: =AN19 -> 1.479466328 | AO207: =AO19 -> 1.501494333 | AP207: =AP19 -> 1.523850317 | AQ207: =AQ19 -> 1.546539163
E208: 2012 | F208: =((15+34.93)*1000000)/$F$12 -> 76117.79431
E209: 2013 | F209: =((15+38.6)*1000000)/$F$12 -> 81712.67324
E210: 2014 | F210: =((15+42.84)*1000000)/$F$12 -> 88176.51157
D212: Consultant / others Total | H212: =13459393/$F$12 -> 20518.71235 | I212: =(44637126+24454323)/$F$12 -> 105329.235 | J212: =47475645/$F$12 -> 72376.15423 | K212: =30580000/$F$12 -> 46618.90947 | M212: =F206 -> 97567.37103 | N212: =$F$207/2*N207 -> 58945.51459 | O212: =$F$207/2*O207 -> 59823.16358 | P212: =$F$208/2*P207 -> 39492.49648 | Q212: =$F$208/2*Q207 -> 40080.50644 | R212: =$F$209/2*R207 -> 43667.16895 | S212: =$F$209/2*S207 -> 44317.33626 | T212: =$F$210/2*T207 -> 48535.08066 | U212: =$F$210/2*U207 -> 49257.72708 | V212: =$F$210/2*V207 -> 49991.13308 | W212: 50735.45889 | X212: 51490.86708 | Y212: 52257.52265 | Z212: 53035.59309 | AA212: 53825.24833 | AB212: 54626.66088 | AC212: 55440.00578 | AD212: 56265.46071 | AE212: 57103.20596 | AF212: 57953.42453 | AG212: 58816.30214 | AH212: 59692.02726 | AI212: 60580.7912 | AJ212: 61482.78808 | AK212: 62398.21494 | AL212: 63327.27172 | AM212: 64270.16138 | AN212: 65227.08988 | AO212: 66198.26623 | AP212: 67183.90257 | AQ212: 68184.21421
D215: N. Office Maintenance
D216: Office Maintenance Budget (2010 base) | E216: 2010 | F216: =10000000/F12 -> 15244.90172
D217: % inflation index | E217: 2011 | F217: =(12*1000000)/$F$12 -> 18293.88207 | M217: =M19 -> 1 | N217: =N19 -> 1.007444578 | O217: =O19 -> 1.022444578 | P217: =P19 -> 1.037667916 | Q217: =Q19 -> 1.053117916 | R217: =R19 -> 1.068797953 | S217: =S19 -> 1.084711453 | T217: =T19 -> 1.100861892 | U217: =U19 -> 1.117252797 | V217: =V19 -> 1.133887748 | W217: =W19 -> 1.150770381 | X217: =X19 -> 1.167904381 | Y217: =Y19 -> 1.185293492 | Z217: =Z19 -> 1.202941512 | AA217: =AA19 -> 1.220852297 | AB217: =AB19 -> 1.239029758 | AC217: =AC19 -> 1.257477866 | AD217: =AD19 -> 1.27620065 | AE217: =AE19 -> 1.295202202 | AF217: =AF19 -> 1.31448667 | AG217: =AG19 -> 1.334058268 | AH217: =AH19 -> 1.35392127 | AI217: =AI19 -> 1.374080016 | AJ217: =AJ19 -> 1.394538908 | AK217: =AK19 -> 1.415302416 | AL217: =AL19 -> 1.436375075 | AM217: =AM19 -> 1.457761489 | AN217: =AN19 -> 1.479466328 | AO217: =AO19 -> 1.501494333 | AP217: =AP19 -> 1.523850317 | AQ217: =AQ19 -> 1.546539163
E218: 2012 | F218: =(13*1000000)/$F$12 -> 19818.37224
E219: 2013 | F219: =(15*1000000)/$F$12 -> 22867.35259
E220: 2014 | F220: =(16*1000000)/$F$12 -> 24391.84276
D222: Office Maintenance costs Total | H222: =100300/F12 -> 152.9063643 | I222: =(74100+2906000+2150900)/F12 -> 7822.159074 | J222: =(13448841)/$F$12 -> 20502.62593 | K222: =9340000/F12 -> 14238.73821 | M222: =F216 -> 15244.90172 | N222: =$F$217/2*N217 -> 9215.036153 | O222: =$F$217/2*O217 -> 9352.240268 | P222: =$F$218/2*P217 -> 10282.44451 | Q222: =$F$218/2*Q217 -> 10435.54143 | R222: =$F$219/2*R217 -> 12220.28982 | S222: =$F$219/2*S217 -> 12402.23963 | T222: =$F$220/2*T217 -> 13426.02508 | U222: =$F$220/2*U217 -> 13625.92727 | V222: 13828.80583 | W222: 14034.70509 | X222: 14243.67001 | Y222: 14455.74624 | Z222: 14670.98011 | AA222: 14889.41863 | AB222: 15111.10951 | AC222: 15336.10119 | AD222: 15564.4428 | AE222: 15796.18422 | AF222: 16031.37608 | AG222: 16270.06975 | AH222: 16512.31736 | AI222: 16758.17184 | AJ222: 17007.68688 | AK222: 17260.91699 | AL222: 17517.91749 | AM222: 17778.7445 | AN222: 18043.45501 | AO222: 18312.10684 | AP222: 18584.75866 | AQ222: 18861.47005
D225: O. Taxes
D226: Taxex Budget (2010 base) | E226: 2010 | F226: =(200*1000000)/$F$12 -> 304898.0345
D227: % inflation index | E227: 2011 | F227: =(7*1000000)/$F$12 -> 10671.43121 | M227: =M19 -> 1 | N227: =N19 -> 1.007444578 | O227: =O19 -> 1.022444578 | P227: =P19 -> 1.037667916 | Q227: =Q19 -> 1.053117916 | R227: =R19 -> 1.068797953 | S227: =S19 -> 1.084711453 | T227: =T19 -> 1.100861892 | U227: =U19 -> 1.117252797 | V227: =V19 -> 1.133887748 | W227: =W19 -> 1.150770381 | X227: =X19 -> 1.167904381 | Y227: =Y19 -> 1.185293492 | Z227: =Z19 -> 1.202941512 | AA227: =AA19 -> 1.220852297 | AB227: =AB19 -> 1.239029758 | AC227: =AC19 -> 1.257477866 | AD227: =AD19 -> 1.27620065 | AE227: =AE19 -> 1.295202202 | AF227: =AF19 -> 1.31448667 | AG227: =AG19 -> 1.334058268 | AH227: =AH19 -> 1.35392127 | AI227: =AI19 -> 1.374080016 | AJ227: =AJ19 -> 1.394538908 | AK227: =AK19 -> 1.415302416 | AL227: =AL19 -> 1.436375075 | AM227: =AM19 -> 1.457761489 | AN227: =AN19 -> 1.479466328 | AO227: =AO19 -> 1.501494333 | AP227: =AP19 -> 1.523850317 | AQ227: =AQ19 -> 1.546539163
E228: 2012 | F228: =(7*1000000)/$F$12 -> 10671.43121
E229: 2013 | F229: =(7.7*1000000)/$F$12 -> 11738.57433
E230: 2014 | F230: =(7.7*1000000)/$F$12 -> 11738.57433
D231: Total budget for taxes | H231: =12821022/F12 -> 19545.52204 | I231: =29987048/F12 -> 45714.95997 | J231: =10788295/$F$12 -> 16446.6497 | K231: =5600000/$F$12 -> 8537.144965 | M231: =F226 -> 304898.0345 | N231: =$F$227/2*N227 -> 5375.437756 | O231: =$F$227/2*O227 -> 5455.47349 | P231: =$F$228/2*P227 -> 5536.700888 | Q231: =$F$228/2*Q227 -> 5619.137694 | R231: =$F$229/2*R227 -> 6273.082106 | S231: =$F$229/2*S227 -> 6366.483008 | T231: =$F$230/2*T227 -> 6461.27457 | U231: =$F$230/2*U227 -> 6557.477498 | V231: =$F$230/2*V227 -> 6655.112807 | W231: =$F$230/2*W227 -> 6754.201823 | X231: =$F$230/2*X227 -> 6854.766191 | Y231: =$F$230/2*Y227 -> 6956.827878 | Z231: =$F$230/2*Z227 -> 7060.409177 | AA231: =$F$230/2*AA227 -> 7165.532714 | AB231: =$F$230/2*AB227 -> 7272.221452 | AC231: =$F$230/2*AC227 -> 7380.498695 | AD231: =$F$230/2*AD227 -> 7490.388096 | AE231: =$F$230/2*AE227 -> 7601.913656 | AF231: =$F$230/2*AF227 -> 7715.099738 | AG231: =$F$230/2*AG227 -> 7829.971066 | AH231: =$F$230/2*AH227 -> 7946.552731 | AI231: =$F$230/2*AI227 -> 8064.870198 | AJ231: =$F$230/2*AJ227 -> 8184.949312 | AK231: =$F$230/2*AK227 -> 8306.816304 | AL231: =$F$230/2*AL227 -> 8430.497792 | AM231: =$F$230/2*AM227 -> 8556.020793 | AN231: =$F$230/2*AN227 -> 8683.412726 | AO231: =$F$230/2*AO227 -> 8812.701417 | AP231: =$F$230/2*AP227 -> 8943.915107 | AQ231: =$F$230/2*AQ227 -> 9077.082459
D233: P. Banking Fees
D234: Banking fees Budget (2010 base) | F234: =5000000/F12 -> 7622.450862
D235: % inflation index | M235: =+M19 -> 1 | N235: =+N19 -> 1.007444578 | O235: =+O19 -> 1.022444578 | P235: =+P19 -> 1.037667916 | Q235: =+Q19 -> 1.053117916 | R235: =+R19 -> 1.068797953 | S235: =+S19 -> 1.084711453 | T235: =+T19 -> 1.100861892 | U235: =+U19 -> 1.117252797 | V235: =+V19 -> 1.133887748 | W235: =+W19 -> 1.150770381 | X235: =+X19 -> 1.167904381 | Y235: =+Y19 -> 1.185293492 | Z235: =+Z19 -> 1.202941512 | AA235: =+AA19 -> 1.220852297 | AB235: =+AB19 -> 1.239029758 | AC235: =+AC19 -> 1.257477866 | AD235: =+AD19 -> 1.27620065 | AE235: =+AE19 -> 1.295202202 | AF235: =+AF19 -> 1.31448667 | AG235: =+AG19 -> 1.334058268 | AH235: =+AH19 -> 1.35392127 | AI235: =+AI19 -> 1.374080016 | AJ235: =+AJ19 -> 1.394538908 | AK235: =+AK19 -> 1.415302416 | AL235: =+AL19 -> 1.436375075 | AM235: =+AM19 -> 1.457761489 | AN235: =+AN19 -> 1.479466328 | AO235: =+AO19 -> 1.501494333 | AP235: =+AP19 -> 1.523850317 | AQ235: =+AQ19 -> 1.546539163
D236: Total banking fees | H236: =(9282001+749568)/F12 -> 15293.02835 | I236: =86829318/F12 -> 132370.442 | J236: =4423554/$F$12 -> 6743.6646 | K236: =6680000/$F$12 -> 10183.59435 | M236: =+F234 -> 7622.450862 | N236: =$F$234/2*N235 -> 3839.598397 | O236: 3896.766778 | P236: 3954.786349 | Q236: 4013.669782 | R236: 4073.429939 | S236: 4134.079875 | T236: 4195.632837 | U236: 4258.102271 | V236: 4321.501823 | W236: 4385.84534 | X236: 4451.146877 | Y236: 4517.4207 | Z236: 4584.681284 | AA236: 4652.943321 | AB236: 4722.221722 | AC236: 4792.53162 | AD236: 4863.888374 | AE236: 4936.307569 | AF236: 5009.805025 | AG236: 5084.396796 | AH236: 5160.099176 | AI236: 5236.9287 | AJ236: 5314.902151 | AK236: 5394.036561 | AL236: 5474.349215 | AM236: 5555.857658 | AN236: 5638.579692 | AO236: 5722.533387 | AP236: 5807.737083 | AQ236: 5894.209389
D238: Q. Budget line for Senegalese airport industry
D239: Budget (2010 base) | F239: 0 | P239: =+$F$239/4 -> 0 | Q239: =+$F$239/4 -> 0 | R239: =$F$239/2 -> 0 | S239: 0 | T239: 0 | U239: 0 | V239: 0 | W239: 0 | X239: 0 | Y239: 0 | Z239: 0 | AA239: 0 | AB239: 0 | AC239: 0 | AD239: 0 | AE239: 0 | AF239: 0 | AG239: 0 | AH239: 0 | AI239: 0 | AJ239: 0 | AK239: 0 | AL239: 0 | AM239: 0 | AN239: 0 | AO239: 0 | AP239: 0 | AQ239: 0
D240: % inflation index | M240: =+M19 -> 1 | N240: =+N19 -> 1.007444578 | O240: =+O19 -> 1.022444578 | P240: =+P19 -> 1.037667916 | Q240: =+Q19 -> 1.053117916 | R240: =+R19 -> 1.068797953 | S240: =+S19 -> 1.084711453 | T240: =+T19 -> 1.100861892 | U240: =+U19 -> 1.117252797 | V240: =+V19 -> 1.133887748 | W240: =+W19 -> 1.150770381 | X240: =+X19 -> 1.167904381 | Y240: =+Y19 -> 1.185293492 | Z240: =+Z19 -> 1.202941512 | AA240: =+AA19 -> 1.220852297 | AB240: =+AB19 -> 1.239029758 | AC240: =+AC19 -> 1.257477866 | AD240: =+AD19 -> 1.27620065 | AE240: =+AE19 -> 1.295202202 | AF240: =+AF19 -> 1.31448667 | AG240: =+AG19 -> 1.334058268 | AH240: =+AH19 -> 1.35392127 | AI240: =+AI19 -> 1.374080016 | AJ240: =+AJ19 -> 1.394538908 | AK240: =+AK19 -> 1.415302416 | AL240: =+AL19 -> 1.436375075 | AM240: =+AM19 -> 1.457761489 | AN240: =+AN19 -> 1.479466328 | AO240: =+AO19 -> 1.501494333 | AP240: =+AP19 -> 1.523850317 | AQ240: =+AQ19 -> 1.546539163
D241: Total budget | H241: 0 | I241: 0 | J241: 0 | K241: 0 | L241: 0 | P241: =+P239*P240 -> 0 | Q241: 0 | R241: 0 | S241: 0 | T241: 0 | U241: 0 | V241: 0 | W241: 0 | X241: 0 | Y241: 0 | Z241: 0 | AA241: 0 | AB241: 0 | AC241: 0 | AD241: 0 | AE241: 0 | AF241: 0 | AG241: 0 | AH241: 0 | AI241: 0 | AJ241: 0 | AK241: 0 | AL241: 0 | AM241: 0 | AN241: 0 | AO241: 0 | AP241: 0 | AQ241: 0
D243: R. Contingencies/other operating costs
E244: in % of operating costs | F244: 0.03
D245: Total budget | H245: =90380354/F12 -> 137783.9614 | I245: =+(293663+744200+745573+849940+897375+14640150+534698+2241751+54379000+695580)/F12 -> 115894.6852 | J245: =(136542509)/F12 -> 208157.7131 | K245: =11490000/F12 -> 17516.39208 | L245: 0 | M245: =$F$244*SUM(M73+M87+M102+M107+M113+M119+M135+M144+M152+M167+M173+M183+M193+M203+M212+M222+M231+M236+M241) -> 66682.57218 | N245: =$F$244*SUM(N73+N87+N102+N107+N113+N119+N135+N144+N152+N167+N173+N183+N193+N203+N212+N222+N231+N236+N241) -> 50108.15273 | O245: =$F$244*SUM(O73+O87+O102+O107+O113+O119+O135+O144+O152+O167+O173+O183+O193+O203+O212+O222+O231+O236+O241) -> 29121.52434 | P245: =$F$244*SUM(P73+P87+P102+P107+P113+P119+P135+P144+P152+P167+P173+P183+P193+P203+P212+P222+P231+P236+P241) -> 29675.37227 | Q245: =$F$244*SUM(Q73+Q87+Q102+Q107+Q113+Q119+Q135+Q144+Q152+Q167+Q173+Q183+Q193+Q203+Q212+Q222+Q231+Q236+Q241) -> 27759.0841 | R245: =$F$244*SUM(R73+R87+R102+R107+R113+R119+R135+R144+R152+R167+R173+R183+R193+R203+R212+R222+R231+R236+R241) -> 29815.67566 | S245: =$F$244*SUM(S73+S87+S102+S107+S113+S119+S135+S144+S152+S167+S173+S183+S193+S203+S212+S222+S231+S236+S241) -> 30654.57987 | T245: =$F$244*SUM(T73+T87+T102+T107+T113+T119+T135+T144+T152+T167+T173+T183+T193+T203+T212+T222+T231+T236+T241) -> 32954.35863 | U245: =$F$244*SUM(U73+U87+U102+U107+U113+U119+U135+U144+U152+U167+U173+U183+U193+U203+U212+U222+U231+U236+U241) -> 33888.85243 | V245: =$F$244*SUM(V73+V87+V102+V107+V113+V119+V135+V144+V152+V167+V173+V183+V193+V203+V212+V222+V231+V236+V241) -> 34853.1765 | W245: =$F$244*SUM(W73+W87+W102+W107+W113+W119+W135+W144+W152+W167+W173+W183+W193+W203+W212+W222+W231+W236+W241) -> 35848.35669 | X245: =$F$244*SUM(X73+X87+X102+X107+X113+X119+X135+X144+X152+X167+X173+X183+X193+X203+X212+X222+X231+X236+X241) -> 36875.45583 | Y245: =$F$244*SUM(Y73+Y87+Y102+Y107+Y113+Y119+Y135+Y144+Y152+Y167+Y173+Y183+Y193+Y203+Y212+Y222+Y231+Y236+Y241) -> 37935.57512 | Z245: =$F$244*SUM(Z73+Z87+Z102+Z107+Z113+Z119+Z135+Z144+Z152+Z167+Z173+Z183+Z193+Z203+Z212+Z222+Z231+Z236+Z241) -> 39029.85555 | AA245: =$F$244*SUM(AA73+AA87+AA102+AA107+AA113+AA119+AA135+AA144+AA152+AA167+AA173+AA183+AA193+AA203+AA212+AA222+AA231+AA236+AA241) -> 40159.47942 | AB245: =$F$244*SUM(AB73+AB87+AB102+AB107+AB113+AB119+AB135+AB144+AB152+AB167+AB173+AB183+AB193+AB203+AB212+AB222+AB231+AB236+AB241) -> 41325.67186 | AC245: =$F$244*SUM(AC73+AC87+AC102+AC107+AC113+AC119+AC135+AC144+AC152+AC167+AC173+AC183+AC193+AC203+AC212+AC222+AC231+AC236+AC241) -> 42529.70244 | AD245: =$F$244*SUM(AD73+AD87+AD102+AD107+AD113+AD119+AD135+AD144+AD152+AD167+AD173+AD183+AD193+AD203+AD212+AD222+AD231+AD236+AD241) -> 43772.88685 | AE245: =$F$244*SUM(AE73+AE87+AE102+AE107+AE113+AE119+AE135+AE144+AE152+AE167+AE173+AE183+AE193+AE203+AE212+AE222+AE231+AE236+AE241) -> 45056.58861 | AF245: =$F$244*SUM(AF73+AF87+AF102+AF107+AF113+AF119+AF135+AF144+AF152+AF167+AF173+AF183+AF193+AF203+AF212+AF222+AF231+AF236+AF241) -> 46382.2209 | AG245: =$F$244*SUM(AG73+AG87+AG102+AG107+AG113+AG119+AG135+AG144+AG152+AG167+AG173+AG183+AG193+AG203+AG212+AG222+AG231+AG236+AG241) -> 47751.24844 | AH245: =$F$244*SUM(AH73+AH87+AH102+AH107+AH113+AH119+AH135+AH144+AH152+AH167+AH173+AH183+AH193+AH203+AH212+AH222+AH231+AH236+AH241) -> 49165.18937 | AI245: =$F$244*SUM(AI73+AI87+AI102+AI107+AI113+AI119+AI135+AI144+AI152+AI167+AI173+AI183+AI193+AI203+AI212+AI222+AI231+AI236+AI241) -> 50625.61735 | AJ245: =$F$244*SUM(AJ73+AJ87+AJ102+AJ107+AJ113+AJ119+AJ135+AJ144+AJ152+AJ167+AJ173+AJ183+AJ193+AJ203+AJ212+AJ222+AJ231+AJ236+AJ241) -> 52134.16361 | AK245: =$F$244*SUM(AK73+AK87+AK102+AK107+AK113+AK119+AK135+AK144+AK152+AK167+AK173+AK183+AK193+AK203+AK212+AK222+AK231+AK236+AK241) -> 53692.51911 | AL245: =$F$244*SUM(AL73+AL87+AL102+AL107+AL113+AL119+AL135+AL144+AL152+AL167+AL173+AL183+AL193+AL203+AL212+AL222+AL231+AL236+AL241) -> 55302.43689 | AM245: =$F$244*SUM(AM73+AM87+AM102+AM107+AM113+AM119+AM135+AM144+AM152+AM167+AM173+AM183+AM193+AM203+AM212+AM222+AM231+AM236+AM241) -> 56965.73432 | AN245: =$F$244*SUM(AN73+AN87+AN102+AN107+AN113+AN119+AN135+AN144+AN152+AN167+AN173+AN183+AN193+AN203+AN212+AN222+AN231+AN236+AN241) -> 58684.29564 | AO245: =$F$244*SUM(AO73+AO87+AO102+AO107+AO113+AO119+AO135+AO144+AO152+AO167+AO173+AO183+AO193+AO203+AO212+AO222+AO231+AO236+AO241) -> 60460.07442 | AP245: =$F$244*SUM(AP73+AP87+AP102+AP107+AP113+AP119+AP135+AP144+AP152+AP167+AP173+AP183+AP193+AP203+AP212+AP222+AP231+AP236+AP241) -> 62295.09627 | AQ245: =$F$244*SUM(AQ73+AQ87+AQ102+AQ107+AQ113+AQ119+AQ135+AQ144+AQ152+AQ167+AQ173+AQ183+AQ193+AQ203+AQ212+AQ222+AQ231+AQ236+AQ241) -> 64191.46154
D246: S. Insurance
E247: % inflation index | P247: 1 | Q247: =Q19 -> 1.053117916 | R247: =R19 -> 1.068797953 | S247: =S19 -> 1.084711453 | T247: =T19 -> 1.100861892 | U247: =U19 -> 1.117252797 | V247: =V19 -> 1.133887748 | W247: =W19 -> 1.150770381 | X247: =X19 -> 1.167904381 | Y247: =Y19 -> 1.185293492 | Z247: =Z19 -> 1.202941512 | AA247: =AA19 -> 1.220852297 | AB247: =AB19 -> 1.239029758 | AC247: =AC19 -> 1.257477866 | AD247: =AD19 -> 1.27620065 | AE247: =AE19 -> 1.295202202 | AF247: =AF19 -> 1.31448667 | AG247: =AG19 -> 1.334058268 | AH247: =AH19 -> 1.35392127 | AI247: =AI19 -> 1.374080016 | AJ247: =AJ19 -> 1.394538908 | AK247: =AK19 -> 1.415302416 | AL247: =AL19 -> 1.436375075 | AM247: =AM19 -> 1.457761489 | AN247: =AN19 -> 1.479466328 | AO247: =AO19 -> 1.501494333 | AP247: =AP19 -> 1.523850317 | AQ247: =AQ19 -> 1.546539163
D248: Total budget | P248: =(8482000/655.057)*P247 -> 12948.49151 | Q248: =(8482000/655.057)*Q247 -> 13636.28838 | R248: =(8482000/655.057)*R247 -> 13839.32122 | S248: 14045.37704 | T248: 14254.50085 | U248: 14466.73835 | V248: 14682.13588 | W248: 14900.7405 | X248: 15122.59995 | Y248: 15347.76271 | Z248: 15576.27795 | AA248: 15808.19559 | AB248: 16043.56629 | AC248: 16282.44146 | AD248: 16524.87328 | AE248: 16770.91471 | AF248: 17020.61948 | AG248: 17274.04215 | AH248: 17531.23806 | AI248: 17792.26341 | AJ248: 18057.17521 | AK248: 18326.03131 | AL248: 18598.89046 | AM248: 18875.81225 | AN248: 19156.85718 | AO248: 19442.08662 | AP248: 19731.56289 | AQ248: 20025.34922
D249: TOTAL OPERATING COSTS | H249: =+H73+H87+H102+H107+H113+H119+H135+H144+H152+H167+H173+H183+H193+H203+H212+H222+H231+H236+H241+H245+H248 -> 527432.4232 | I249: =+I73+I87+I102+I107+I113+I119+I135+I144+I152+I167+I173+I183+I193+I203+I212+I222+I231+I236+I241+I245+I248 -> 1500742.756 | J249: =+J73+J87+J102+J107+J113+J119+J135+J144+J152+J167+J173+J183+J193+J203+J212+J222+J231+J236+J241+J245+J248 -> 1321583.97 | K249: =+K73+K87+K102+K107+K113+K119+K135+K144+K152+K167+K173+K183+K193+K203+K212+K222+K231+K236+K241+K245+K248 -> 1215536.994 | L249: =+L73+L87+L102+L107+L113+L119+L135+L144+L152+L167+L173+L183+L193+L203+L212+L222+L231+L236+L241+L245+L248 -> 0 | M249: =+M73+M87+M102+M107+M113+M119+M135+M144+M152+M167+M173+M183+M193+M203+M212+M222+M231+M236+M241+M245+M248 -> 2289434.978 | N249: =+N73+N87+N102+N107+N113+N119+N135+N144+N152+N167+N173+N183+N193+N203+N212+N222+N231+N236+N241+N245+N248 -> 1720379.91 | O249: =+O73+O87+O102+O107+O113+O119+O135+O144+O152+O167+O173+O183+O193+O203+O212+O222+O231+O236+O241+O245+O248 -> 999839.0025 | P249: =+P73+P87+P102+P107+P113+P119+P135+P144+P152+P167+P173+P183+P193+P203+P212+P222+P231+P236+P241+P245+P248 -> 1031802.939 | Q249: =+Q73+Q87+Q102+Q107+Q113+Q119+Q135+Q144+Q152+Q167+Q173+Q183+Q193+Q203+Q212+Q222+Q231+Q236+Q241+Q245+Q248 -> 966698.1758 | R249: =+R73+R87+R102+R107+R113+R119+R135+R144+R152+R167+R173+R183+R193+R203+R212+R222+R231+R236+R241+R245+R248 -> 1037510.852 | S249: =+S73+S87+S102+S107+S113+S119+S135+S144+S152+S167+S173+S183+S193+S203+S212+S222+S231+S236+S241+S245+S248 -> 1066519.286 | T249: =+T73+T87+T102+T107+T113+T119+T135+T144+T152+T167+T173+T183+T193+T203+T212+T222+T231+T236+T241+T245+T248 -> 1145687.48 | U249: =+U73+U87+U102+U107+U113+U119+U135+U144+U152+U167+U173+U183+U193+U203+U212+U222+U231+U236+U241+U245+U248 -> 1177984.005 | V249: =+V73+V87+V102+V107+V113+V119+V135+V144+V152+V167+V173+V183+V193+V203+V212+V222+V231+V236+V241+V245+V248 -> 1211307.862 | W249: =+W73+W87+W102+W107+W113+W119+W135+W144+W152+W167+W173+W183+W193+W203+W212+W222+W231+W236+W241+W245+W248 -> 1245694.32 | X249: =+X73+X87+X102+X107+X113+X119+X135+X144+X152+X167+X173+X183+X193+X203+X212+X222+X231+X236+X241+X245+X248 -> 1281179.917 | Y249: =+Y73+Y87+Y102+Y107+Y113+Y119+Y135+Y144+Y152+Y167+Y173+Y183+Y193+Y203+Y212+Y222+Y231+Y236+Y241+Y245+Y248 -> 1317802.508 | Z249: =+Z73+Z87+Z102+Z107+Z113+Z119+Z135+Z144+Z152+Z167+Z173+Z183+Z193+Z203+Z212+Z222+Z231+Z236+Z241+Z245+Z248 -> 1355601.318 | AA249: =+AA73+AA87+AA102+AA107+AA113+AA119+AA135+AA144+AA152+AA167+AA173+AA183+AA193+AA203+AA212+AA222+AA231+AA236+AA241+AA245+AA248 -> 1394616.989 | AB249: =+AB73+AB87+AB102+AB107+AB113+AB119+AB135+AB144+AB152+AB167+AB173+AB183+AB193+AB203+AB212+AB222+AB231+AB236+AB241+AB245+AB248 -> 1434891.634 | AC249: =+AC73+AC87+AC102+AC107+AC113+AC119+AC135+AC144+AC152+AC167+AC173+AC183+AC193+AC203+AC212+AC222+AC231+AC236+AC241+AC245+AC248 -> 1476468.892 | AD249: =+AD73+AD87+AD102+AD107+AD113+AD119+AD135+AD144+AD152+AD167+AD173+AD183+AD193+AD203+AD212+AD222+AD231+AD236+AD241+AD245+AD248 -> 1519393.988 | AE249: =+AE73+AE87+AE102+AE107+AE113+AE119+AE135+AE144+AE152+AE167+AE173+AE183+AE193+AE203+AE212+AE222+AE231+AE236+AE241+AE245+AE248 -> 1563713.79 | AF249: =+AF73+AF87+AF102+AF107+AF113+AF119+AF135+AF144+AF152+AF167+AF173+AF183+AF193+AF203+AF212+AF222+AF231+AF236+AF241+AF245+AF248 -> 1609476.871 | AG249: =+AG73+AG87+AG102+AG107+AG113+AG119+AG135+AG144+AG152+AG167+AG173+AG183+AG193+AG203+AG212+AG222+AG231+AG236+AG241+AG245+AG248 -> 1656733.572 | AH249: =+AH73+AH87+AH102+AH107+AH113+AH119+AH135+AH144+AH152+AH167+AH173+AH183+AH193+AH203+AH212+AH222+AH231+AH236+AH241+AH245+AH248 -> 1705536.073 | AI249: =+AI73+AI87+AI102+AI107+AI113+AI119+AI135+AI144+AI152+AI167+AI173+AI183+AI193+AI203+AI212+AI222+AI231+AI236+AI241+AI245+AI248 -> 1755938.459 | AJ249: =+AJ73+AJ87+AJ102+AJ107+AJ113+AJ119+AJ135+AJ144+AJ152+AJ167+AJ173+AJ183+AJ193+AJ203+AJ212+AJ222+AJ231+AJ236+AJ241+AJ245+AJ248 -> 1807996.792 | AK249: =+AK73+AK87+AK102+AK107+AK113+AK119+AK135+AK144+AK152+AK167+AK173+AK183+AK193+AK203+AK212+AK222+AK231+AK236+AK241+AK245+AK248 -> 1861769.187 | AL249: =+AL73+AL87+AL102+AL107+AL113+AL119+AL135+AL144+AL152+AL167+AL173+AL183+AL193+AL203+AL212+AL222+AL231+AL236+AL241+AL245+AL248 -> 1917315.89 | AM249: =+AM73+AM87+AM102+AM107+AM113+AM119+AM135+AM144+AM152+AM167+AM173+AM183+AM193+AM203+AM212+AM222+AM231+AM236+AM241+AM245+AM248 -> 1974699.357 | AN249: =+AN73+AN87+AN102+AN107+AN113+AN119+AN135+AN144+AN152+AN167+AN173+AN183+AN193+AN203+AN212+AN222+AN231+AN236+AN241+AN245+AN248 -> 2033984.341 | AO249: =+AO73+AO87+AO102+AO107+AO113+AO119+AO135+AO144+AO152+AO167+AO173+AO183+AO193+AO203+AO212+AO222+AO231+AO236+AO241+AO245+AO248 -> 2095237.975 | AP249: =+AP73+AP87+AP102+AP107+AP113+AP119+AP135+AP144+AP152+AP167+AP173+AP183+AP193+AP203+AP212+AP222+AP231+AP236+AP241+AP245+AP248 -> 2158529.868 | AQ249: =+AQ73+AQ87+AQ102+AQ107+AQ113+AQ119+AQ135+AQ144+AQ152+AQ167+AQ173+AQ183+AQ193+AQ203+AQ212+AQ222+AQ231+AQ236+AQ241+AQ245+AQ248 -> 2223932.195
H251: =H249*655.957 -> 345972990
B253: AIBD Operational Capex
E254: 2006-12-31 | F254: 2007-06-30 | G254: 2007-12-31 | H254: 2008-06-30 | I254: 2008-12-31 | J254: 2009-06-30 | K254: 2009-12-31 | L254: 2010-06-30 | M254: 2010-12-31 | N254: 2011-06-30 | O254: 2011-12-31 | P254: 2012-06-30 | Q254: 2012-12-31 | R254: 2013-06-30 | S254: 2013-12-31 | T254: 2014-06-30 | U254: 2014-12-31 | V254: 2015-06-30 | W254: 2015-12-31 | X254: 2016-06-30 | Y254: 2016-12-31 | Z254: 2017-06-30 | AA254: 2017-12-31 | AB254: 2018-06-30 | AC254: 2018-12-31 | AD254: 2019-06-30 | AE254: 2019-12-31 | AF254: 2020-06-30 | AG254: 2020-12-31 | AH254: 2021-06-30 | AI254: 2021-12-31 | AJ254: 2022-06-30 | AK254: 2022-12-31 | AL254: 2023-06-30 | AM254: 2023-12-31 | AN254: 2024-06-30 | AO254: 2024-12-31 | AP254: 2025-06-30 | AQ254: 2025-12-31
D255: Equipement IT Hardware | E255: =(14191189+694300)/$F$12 -> 22692.78169 | F255: =19734876/$F$12 -> 30085.62452 | H255: =(11196540-154238)/$F$12 -> 16833.88088 | J255: 0 | L255: =15800000/$F$12 -> 24086.94472 | N255: =18200000/$F$12 -> 27745.72114 | P255: =10900000/$F$12 -> 16616.94288 | R255: =9300000/$F$12 -> 14177.7586 | T255: =17540000/$F$12 -> 26739.55762 | X255: =20000000/$F$12 -> 30489.80345 | AB255: =20000000/$F$12 -> 30489.80345 | AF255: =20000000/$F$12 -> 30489.80345 | AJ255: =20000000/$F$12 -> 30489.80345 | AN255: =20000000/$F$12 -> 30489.80345
D256: Vehicles | E256: =46839843/$F$12 -> 71406.88033 | F256: =33975232/$F$12 -> 51794.90729 | H256: =36980000/$F$12 -> 56375.64657 | J256: =28358146/655.957 -> 43231.71488 | L256: =40000000/$F$12 -> 60979.60689 | N256: =60230000/$F$12 -> 91820.04308 | R256: =88400000/$F$12 -> 134764.9312 | V256: =60230000/$F$12 -> 91820.04308 | Z256: =60230000/$F$12 -> 91820.04308 | AB256: =44600000/$F$12 -> 67992.26169 | AF256: =44600000/$F$12 -> 67992.26169 | AJ256: =44600000/$F$12 -> 67992.26169 | AN256: =44600000/$F$12 -> 67992.26169
D257: Equipement IT Software | E257: =2455826/F12 -> 3743.882602 | F257: =7016025/F12 -> 10695.86116 | H257: =7932364/$F$12 -> 12092.81096 | J257: =3229353/F12 -> 4923.116912 | L257: =31500000/$F$12 -> 48021.44043 | N257: =9500000/$F$12 -> 14482.65664 | P257: =31500000/$F$12 -> 48021.44043 | R257: =4900000/$F$12 -> 7470.001845 | T257: =29500000/$F$12 -> 44972.46009 | V257: =10590000/$F$12 -> 16144.35093 | X257: =10590000/$F$12 -> 16144.35093 | Z257: =10590000/$F$12 -> 16144.35093 | AB257: =10590000/$F$12 -> 16144.35093 | AD257: =10590000/$F$12 -> 16144.35093 | AF257: =10590000/$F$12 -> 16144.35093 | AH257: =10590000/$F$12 -> 16144.35093 | AJ257: =10590000/$F$12 -> 16144.35093 | AL257: =10590000/$F$12 -> 16144.35093 | AN257: =10590000/$F$12 -> 16144.35093 | AP257: =10590000/$F$12 -> 16144.35093
D258: Office Material | E258: =17459397/$F$12 -> 26616.67914 | F258: =19415150/$F$12 -> 29598.20537 | H258: =1625800/$F$12 -> 2478.516122 | J258: =(77987767*90%)/$F$12 -> 107002.4259 | L258: =14500000/$F$12 -> 22105.1075 | N258: =3600000/$F$12 -> 5488.164621 | P258: =500000/$F$12 -> 762.2450862 | R258: =900000/$F$12 -> 1372.041155 | T258: =16100000/$F$12 -> 24544.29178 | V258: =4000000/$F$12 -> 6097.960689 | X258: =4000000/$F$12 -> 6097.960689 | Z258: =4000000/$F$12 -> 6097.960689 | AB258: =4000000/$F$12 -> 6097.960689 | AD258: =4000000/$F$12 -> 6097.960689 | AF258: =4000000/$F$12 -> 6097.960689 | AH258: =4000000/$F$12 -> 6097.960689 | AJ258: =4000000/$F$12 -> 6097.960689 | AL258: =4000000/$F$12 -> 6097.960689 | AN258: =4000000/$F$12 -> 6097.960689 | AP258: =4000000/$F$12 -> 6097.960689
D259: Office Furniture | E259: =21015830/$F$12 -> 32038.4263 | F259: =23668460/$F$12 -> 36082.33467 | H259: =(3688700)/$F$12 -> 5623.386899 | J259: =(77987767*10%)/$F$12 -> 11889.15844 | L259: =6800000/$F$12 -> 10366.53317 | N259: =10000000/$F$12 -> 15244.90172 | T259: =0/$F$12 -> 0 | X259: =10000000/$F$12 -> 15244.90172 | AH259: =10000000/$F$12 -> 15244.90172
... 162 more rows

Sheet Financials
E2: 1905-06-28 | F2: 1905-06-29 | G2: 1905-06-30 | H2: 1905-07-01 | I2: =Assumptions!M4 -> 2010-12-31 | J2: =Assumptions!N4 -> 2011-06-30 | K2: =Assumptions!O4 -> 2011-12-31 | L2: =Assumptions!P4 -> 2012-06-30 | M2: =Assumptions!Q4 -> 2012-12-31 | N2: =Assumptions!R4 -> 2013-06-30 | O2: =Assumptions!S4 -> 2013-12-31 | P2: =Assumptions!T4 -> 2014-06-30 | Q2: =Assumptions!U4 -> 2014-12-31 | R2: =Assumptions!V4 -> 2015-06-30 | S2: =Assumptions!W4 -> 2015-12-31 | T2: =Assumptions!X4 -> 2016-06-30 | U2: =Assumptions!Y4 -> 2016-12-31 | V2: =Assumptions!Z4 -> 2017-06-30 | W2: =Assumptions!AA4 -> 2017-12-31 | X2: =Assumptions!AB4 -> 2018-06-30 | Y2: =Assumptions!AC4 -> 2018-12-31 | Z2: =Assumptions!AD4 -> 2019-06-30 | AA2: =Assumptions!AE4 -> 2019-12-31 | AB2: =Assumptions!AF4 -> 2020-06-30 | AC2: =Assumptions!AG4 -> 2020-12-31 | AD2: =Assumptions!AH4 -> 2021-06-30 | AE2: =Assumptions!AI4 -> 2021-12-31 | AF2: =Assumptions!AJ4 -> 2022-06-30 | AG2: =Assumptions!AK4 -> 2022-12-31 | AH2: =Assumptions!AL4 -> 2023-06-30 | AI2: =Assumptions!AM4 -> 2023-12-31 | AJ2: =Assumptions!AN4 -> 2024-06-30 | AK2: =Assumptions!AO4 -> 2024-12-31 | AL2: =Assumptions!AP4 -> 2025-06-30 | AM2: =Assumptions!AQ4 -> 2025-12-31
E3: Actual | F3: Actual | G3: Actual | H3: Actual | I3: Forecast | J3: Forecast | K3: Forecast | L3: Forecast | M3: Forecast | N3: Forecast | O3: Forecast | P3: Forecast | Q3: Forecast | R3: Forecast | S3: Forecast | T3: Forecast | U3: Forecast | V3: Forecast | W3: Forecast | X3: Forecast
B5: INCOME STATEMENTS
D7: REVENUES
D9: =Assumptions!D50 -> Fix annual concession fee paid by Daport inflated | L9: =Assumptions!P50 -> 790957.2698 | M9: =Assumptions!Q50 -> 802733.9563 | N9: =Assumptions!R50 -> 814685.9879 | O9: =Assumptions!S50 -> 826815.975 | P9: =Assumptions!T50 -> 839126.5675 | Q9: =Assumptions!U50 -> 851620.4543 | R9: =Assumptions!V50 -> 864300.3645 | S9: =Assumptions!W50 -> 877169.0679 | T9: =Assumptions!X50 -> 890229.3755 | U9: =Assumptions!Y50 -> 903484.14 | V9: =Assumptions!Z50 -> 916936.2567 | W9: =Assumptions!AA50 -> 930588.6641 | X9: =Assumptions!AB50 -> 944444.3444 | Y9: =Assumptions!AC50 -> 958506.3241 | Z9: =Assumptions!AD50 -> 972777.6747 | AA9: =Assumptions!AE50 -> 987261.5138 | AB9: =Assumptions!AF50 -> 1001961.005 | AC9: =Assumptions!AG50 -> 1016879.359 | AD9: =Assumptions!AH50 -> 1032019.835 | AE9: =Assumptions!AI50 -> 1047385.74 | AF9: =Assumptions!AJ50 -> 1062980.43 | AG9: =Assumptions!AK50 -> 1078807.312 | AH9: =Assumptions!AL50 -> 1094869.843 | AI9: =Assumptions!AM50 -> 1111171.532 | AJ9: =Assumptions!AN50 -> 1127715.938 | AK9: =Assumptions!AO50 -> 1144506.677 | AL9: =Assumptions!AP50 -> 1161547.417 | AM9: =Assumptions!AQ50 -> 1178841.878 | AN9: =SUM(L9:AM9) -> 27230324.9
D10: =Assumptions!D55 -> Variable Annual concession fee paid by Daport inflated | L10: =Assumptions!P55 -> 3113003.747 | M10: =Assumptions!Q55 -> 3159353.747 | N10: =Assumptions!R55 -> 7656062.165 | O10: =Assumptions!S55 -> 4852098.599 | P10: =Assumptions!T55 -> 5340761.453 | Q10: =Assumptions!U55 -> 5340761.453 | R10: =Assumptions!V55 -> 6904513.814 | S10: =Assumptions!W55 -> 6904513.814 | T10: =Assumptions!X55 -> 7603824.766 | U10: =Assumptions!Y55 -> 7603824.766 | V10: =Assumptions!Z55 -> 8361035.193 | W10: =Assumptions!AA55 -> 8361035.193 | X10: =Assumptions!AB55 -> 9135509.168 | Y10: =Assumptions!AC55 -> 9135509.168 | Z10: =Assumptions!AD55 -> 9888048.57 | AA10: =Assumptions!AE55 -> 9888048.57 | AB10: =Assumptions!AF55 -> 10709665.56 | AC10: =Assumptions!AG55 -> 10709665.56 | AD10: =Assumptions!AH55 -> 11587242.94 | AE10: =Assumptions!AI55 -> 11587242.94 | AF10: =Assumptions!AJ55 -> 12532335.72 | AG10: =Assumptions!AK55 -> 12532335.72 | AH10: =Assumptions!AL55 -> 15581747.18 | AI10: =Assumptions!AM55 -> 15581747.18 | AJ10: =Assumptions!AN55 -> 16839910.11 | AK10: =Assumptions!AO55 -> 16839910.11 | AL10: =Assumptions!AP55 -> 18197510.3 | AM10: =Assumptions!AQ55 -> 18197510.3
D11: Revenues from concession fee | L11: =SUM(L9:L10) -> 3903961.017 | M11: 3962087.703 | N11: 8470748.153 | O11: 5678914.574 | P11: 6179888.02 | Q11: 6192381.907 | R11: 7768814.178 | S11: 7781682.882 | T11: 8494054.142 | U11: 8507308.906 | V11: 9277971.449 | W11: 9291623.857 | X11: 10079953.51 | Y11: 10094015.49 | Z11: 10860826.24 | AA11: 10875310.08 | AB11: 11711626.56 | AC11: 11726544.92 | AD11: 12619262.77 | AE11: 12634628.68 | AF11: 13595316.15 | AG11: 13611143.03 | AH11: 16676617.02 | AI11: 16692918.71 | AJ11: 17967626.05 | AK11: 17984416.79 | AL11: 19359057.71 | AM11: 19376352.17
D12: Depreciation Subsidy | L12: =+'Depreciation AIBD'!P125 -> 12722233.42 | M12: =+'Depreciation AIBD'!Q125 -> 12722233.42 | N12: =+'Depreciation AIBD'!R125 -> 12736971.43 | O12: =+'Depreciation AIBD'!S125 -> 12736971.43 | P12: =+'Depreciation AIBD'!T125 -> 12745451.4 | Q12: =+'Depreciation AIBD'!U125 -> 12745451.4 | R12: =+'Depreciation AIBD'!V125 -> 12755210.68 | S12: =+'Depreciation AIBD'!W125 -> 12755210.68 | T12: =+'Depreciation AIBD'!X125 -> 12761129.52 | U12: =+'Depreciation AIBD'!Y125 -> 12761129.52 | V12: =+'Depreciation AIBD'!Z125 -> 12901692.14 | W12: =+'Depreciation AIBD'!AA125 -> 13034443.04 | X12: =+'Depreciation AIBD'!AB125 -> 7070281.811 | Y12: =+'Depreciation AIBD'!AC125 -> 7070281.811 | Z12: =+'Depreciation AIBD'!AD125 -> 7057651.41 | AA12: =+'Depreciation AIBD'!AE125 -> 7057651.41 | AB12: =+'Depreciation AIBD'!AF125 -> 7059485.88 | AC12: =+'Depreciation AIBD'!AG125 -> 7059485.88 | AD12: =+'Depreciation AIBD'!AH125 -> 7053104.618 | AE12: =+'Depreciation AIBD'!AI125 -> 7053104.618 | AF12: =+'Depreciation AIBD'!AJ125 -> 7633440.733 | AG12: =+'Depreciation AIBD'!AK125 -> 8217956.503 | AH12: =+'Depreciation AIBD'!AL125 -> 8210304.833 | AI12: =+'Depreciation AIBD'!AM125 -> 8210304.833 | AJ12: =+'Depreciation AIBD'!AN125 -> 8210304.833 | AK12: =+'Depreciation AIBD'!AO125 -> 8210304.833 | AL12: =+'Depreciation AIBD'!AP125 -> 8210304.833 | AM12: =+'Depreciation AIBD'!AQ125 -> 8210304.833
D14: TOTAL REVENUES | H14: =H9+H10 -> 0 | I14: =I9+I10 -> 0 | J14: =J9+J10 -> 0 | K14: =K9+K10 -> 0 | L14: =L11+L12 -> 16626194.44 | M14: 16684321.12 | N14: 21207719.58 | O14: 18415886 | P14: 18925339.43 | Q14: 18937833.31 | R14: 20524024.86 | S14: 20536893.56 | T14: 21255183.66 | U14: 21268438.42 | V14: 22179663.59 | W14: 22326066.9 | X14: 17150235.32 | Y14: 17164297.3 | Z14: 17918477.65 | AA14: 17932961.49 | AB14: 18771112.44 | AC14: 18786030.8 | AD14: 19672367.39 | AE14: 19687733.29 | AF14: 21228756.88 | AG14: 21829099.54 | AH14: 24886921.85 | AI14: 24903223.54 | AJ14: 26177930.88 | AK14: 26194721.62 | AL14: 27569362.55 | AM14: 27586657.01
D16: OPERATING EXPENSES
D18: =Assumptions!D61 -> A. Personnel expenses | E18: =+Assumptions!H73 -> 106422.6054 | F18: =+Assumptions!I73 -> 229132.6947 | G18: =+Assumptions!J73 -> 361913.6102 | H18: =+Assumptions!K73 -> 534638.7035 | I18: =+Assumptions!M73 -> 848637.9443 | J18: =+Assumptions!N73 -> 450300.0131 | K18: =+Assumptions!O73 -> 466055.0751 | L18: =+Assumptions!P73 -> 507358.3665 | M18: =+Assumptions!Q73 -> 525109.7818 | N18: =+Assumptions!R73 -> 566948.6713 | O18: =+Assumptions!S73 -> 586785.0275 | P18: =+Assumptions!T73 -> 638867.9834 | Q18: =+Assumptions!U73 -> 661220.647 | R18: =+Assumptions!V73 -> 684355.3838 | S18: =+Assumptions!W73 -> 708299.5571 | T18: =+Assumptions!X73 -> 733081.4872 | U18: =+Assumptions!Y73 -> 758730.4855 | V18: =+Assumptions!Z73 -> 785276.8891 | W18: =+Assumptions!AA73 -> 812752.0961 | X18: =+Assumptions!AB73 -> 841188.6036 | Y18: =+Assumptions!AC73 -> 870620.0453 | Z18: =+Assumptions!AD73 -> 901081.2321 | AA18: =+Assumptions!AE73 -> 932608.1926 | AB18: =+Assumptions!AF73 -> 965238.2159 | AC18: =+Assumptions!AG73 -> 999009.8959 | AD18: =+Assumptions!AH73 -> 1033963.177 | AE18: =+Assumptions!AI73 -> 1070139.4 | AF18: =+Assumptions!AJ73 -> 1107581.355 | AG18: =+Assumptions!AK73 -> 1146333.326 | AH18: =+Assumptions!AL73 -> 1186441.148 | AI18: =+Assumptions!AM73 -> 1227952.259 | AJ18: =+Assumptions!AN73 -> 1270915.757 | AK18: =+Assumptions!AO73 -> 1315382.459 | AL18: =+Assumptions!AP73 -> 1361404.959 | AM18: =+Assumptions!AQ73 -> 1409037.69
D19: =Assumptions!D75 -> B. Utilities | E19: =+Assumptions!H87 -> 34.20803498 | F19: =+Assumptions!I87 -> 11030.32363 | G19: =+Assumptions!J87 -> 19940.82234 | H19: =+Assumptions!K87 -> 16007.14681 | I19: =+Assumptions!M87 -> 30489.80345 | J19: =+Assumptions!N87 -> 17018.78816 | K19: =+Assumptions!O87 -> 17526.04687 | L19: =+Assumptions!P87 -> 18048.42484 | M19: =+Assumptions!Q87 -> 18586.37271 | N19: =+Assumptions!R87 -> 20880.38678 | O19: =+Assumptions!S87 -> 21502.74356 | P19: =+Assumptions!T87 -> 22143.65018 | Q19: =+Assumptions!U87 -> 22803.65954 | R19: =+Assumptions!V87 -> 23483.34102 | S19: =+Assumptions!W87 -> 24183.28094 | T19: =+Assumptions!X87 -> 24904.08315 | U19: =+Assumptions!Y87 -> 25646.36944 | V19: =+Assumptions!Z87 -> 26410.78018 | W19: =+Assumptions!AA87 -> 27197.97479 | X19: =+Assumptions!AB87 -> 28008.63238 | Y19: =+Assumptions!AC87 -> 28843.45227 | Z19: =+Assumptions!AD87 -> 29703.15464 | AA19: =+Assumptions!AE87 -> 30588.48113 | AB19: =+Assumptions!AF87 -> 31500.19549 | AC19: =+Assumptions!AG87 -> 32439.08424 | AD19: =+Assumptions!AH87 -> 33405.95732 | AE19: =+Assumptions!AI87 -> 34401.64883 | AF19: =+Assumptions!AJ87 -> 35427.01774 | AG19: =+Assumptions!AK87 -> 36482.94859 | AH19: =+Assumptions!AL87 -> 37570.35231 | AI19: =+Assumptions!AM87 -> 38690.16698 | AJ19: =+Assumptions!AN87 -> 39843.35862 | AK19: =+Assumptions!AO87 -> 41030.92208 | AL19: =+Assumptions!AP87 -> 42253.88182 | AM19: =+Assumptions!AQ87 -> 43513.29287
D20: =Assumptions!D90 -> C. Telecommunication Expenses (Phone, Internet, IT…) | E20: =+Assumptions!H102 -> 6196.099744 | F20: =+Assumptions!I102 -> 35615.0144 | G20: =+Assumptions!J102 -> 37258.39194 | H20: =+Assumptions!K102 -> 34880.33514 | I20: =+Assumptions!M102 -> 45734.70517 | J20: =+Assumptions!N102 -> 19197.99198 | K20: =+Assumptions!O102 -> 19483.83389 | L20: =+Assumptions!P102 -> 19773.93174 | M20: =+Assumptions!Q102 -> 20068.34891 | N20: =+Assumptions!R102 -> 21385.50718 | O20: =+Assumptions!S102 -> 21703.91934 | P20: =+Assumptions!T102 -> 22027.0724 | Q20: =+Assumptions!U102 -> 22355.03692 | R20: =+Assumptions!V102 -> 22687.88457 | S20: =+Assumptions!W102 -> 23025.68803 | T20: =+Assumptions!X102 -> 23368.52111 | U20: =+Assumptions!Y102 -> 23716.45867 | V20: =+Assumptions!Z102 -> 24069.57674 | W20: =+Assumptions!AA102 -> 24427.95243 | X20: =+Assumptions!AB102 -> 24791.66404 | Y20: =+Assumptions!AC102 -> 25160.79101 | Z20: =+Assumptions!AD102 -> 25535.41396 | AA20: =+Assumptions!AE102 -> 25915.61474 | AB20: =+Assumptions!AF102 -> 26301.47638 | AC20: =+Assumptions!AG102 -> 26693.08318 | AD20: =+Assumptions!AH102 -> 27090.52067 | AE20: =+Assumptions!AI102 -> 27493.87567 | AF20: =+Assumptions!AJ102 -> 27903.23629 | AG20: =+Assumptions!AK102 -> 28318.69194 | AH20: =+Assumptions!AL102 -> 28740.33338 | AI20: =+Assumptions!AM102 -> 29168.2527 | AJ20: =+Assumptions!AN102 -> 29602.54338 | AK20: =+Assumptions!AO102 -> 30043.30028 | AL20: =+Assumptions!AP102 -> 30490.61968 | AM20: =+Assumptions!AQ102 -> 30944.59929
D21: =Assumptions!D105 -> D. Office Rent (until 30/06/2012) | E21: =+Assumptions!H107 -> 52352.57799 | F21: =+Assumptions!I107 -> 123185.9863 | G21: =+Assumptions!J107 -> 140380.2841 | H21: =+Assumptions!K107 -> 138423.7077 | I21: =+Assumptions!M107 -> 178670.2482 | J21: =+Assumptions!N107 -> 90000.18642 | K21: =+Assumptions!O107 -> 91340.21328 | L21: =+Assumptions!P107 -> 92700.19202 | M21: =+Assumptions!Q107 -> 0 | N21: =+Assumptions!R107 -> 0 | O21: =+Assumptions!S107 -> 0 | P21: =+Assumptions!T107 -> 0 | Q21: =+Assumptions!U107 -> 0 | R21: =+Assumptions!V107 -> 0 | S21: =+Assumptions!W107 -> 0 | T21: =+Assumptions!X107 -> 0 | U21: =+Assumptions!Y107 -> 0 | V21: =+Assumptions!Z107 -> 0 | W21: =+Assumptions!AA107 -> 0 | X21: =+Assumptions!AB107 -> 0 | Y21: =+Assumptions!AC107 -> 0 | Z21: =+Assumptions!AD107 -> 0 | AA21: =+Assumptions!AE107 -> 0 | AB21: =+Assumptions!AF107 -> 0 | AC21: =+Assumptions!AG107 -> 0 | AD21: =+Assumptions!AH107 -> 0 | AE21: =+Assumptions!AI107 -> 0 | AF21: =+Assumptions!AJ107 -> 0 | AG21: =+Assumptions!AK107 -> 0 | AH21: =+Assumptions!AL107 -> 0 | AI21: =+Assumptions!AM107 -> 0 | AJ21: =+Assumptions!AN107 -> 0 | AK21: =+Assumptions!AO107 -> 0 | AL21: =+Assumptions!AP107 -> 0 | AM21: =+Assumptions!AQ107 -> 0
D22: =Assumptions!D110 -> E. Land Rental | E22: =+Assumptions!H113 -> 0 | F22: =+Assumptions!I113 -> 18293.88207 | G22: =+Assumptions!J113 -> 0 | H22: =+Assumptions!K113 -> 36587.76414 | I22: =+Assumptions!M113 -> 18293.88207 | J22: =+Assumptions!N113 -> 9215.036153 | K22: =+Assumptions!O113 -> 9352.240268 | L22: =+Assumptions!P113 -> 9491.487237 | M22: =+Assumptions!Q113 -> 9632.807476 | N22: =+Assumptions!R113 -> 9776.231854 | O22: =+Assumptions!S113 -> 9921.7917 | P22: =+Assumptions!T113 -> 10069.51881 | Q22: =+Assumptions!U113 -> 10219.44545 | R22: =+Assumptions!V113 -> 10371.60437 | S22: =+Assumptions!W113 -> 10526.02881 | T22: =+Assumptions!X113 -> 10682.75251 | U22: =+Assumptions!Y113 -> 10841.80968 | V22: =+Assumptions!Z113 -> 11003.23508 | W22: =+Assumptions!AA113 -> 11167.06397 | X22: =+Assumptions!AB113 -> 11333.33213 | Y22: =+Assumptions!AC113 -> 11502.07589 | Z22: =+Assumptions!AD113 -> 11673.3321 | AA22: =+Assumptions!AE113 -> 11847.13817 | AB22: =+Assumptions!AF113 -> 12023.53206 | AC22: =+Assumptions!AG113 -> 12202.55231 | AD22: =+Assumptions!AH113 -> 12384.23802 | AE22: =+Assumptions!AI113 -> 12568.62888 | AF22: =+Assumptions!AJ113 -> 12755.76516 | AG22: =+Assumptions!AK113 -> 12945.68775 | AH22: =+Assumptions!AL113 -> 13138.43812 | AI22: =+Assumptions!AM113 -> 13334.05838 | AJ22: =+Assumptions!AN113 -> 13532.59126 | AK22: =+Assumptions!AO113 -> 13734.08013 | AL22: =+Assumptions!AP113 -> 13938.569 | AM22: =+Assumptions!AQ113 -> 14146.10253
D23: =Assumptions!D116 -> F. Marketing Expenses | E23: =+Assumptions!H119 -> 42666.5254 | F23: =+Assumptions!I119 -> 452164.401 | G23: =+Assumptions!J119 -> 76806.43243 | H23: =+Assumptions!K119 -> 86895.93983 | I23: =+Assumptions!M119 -> 152449.0172 | J23: =+Assumptions!N119 -> 762245.0862 | K23: =+Assumptions!O119 -> 38967.66778 | L23: =+Assumptions!P119 -> 39547.86349 | M23: =+Assumptions!Q119 -> 40136.69782 | N23: =+Assumptions!R119 -> 40734.29939 | O23: =+Assumptions!S119 -> 41340.79875 | P23: =+Assumptions!T119 -> 41956.32837 | Q23: =+Assumptions!U119 -> 42581.02271 | R23: =+Assumptions!V119 -> 43215.01823 | S23: =+Assumptions!W119 -> 43858.4534 | T23: =+Assumptions!X119 -> 44511.46877 | U23: =+Assumptions!Y119 -> 45174.207 | V23: =+Assumptions!Z119 -> 45846.81284 | W23: =+Assumptions!AA119 -> 46529.43321 | X23: =+Assumptions!AB119 -> 47222.21722 | Y23: =+Assumptions!AC119 -> 47925.3162 | Z23: =+Assumptions!AD119 -> 48638.88374 | AA23: =+Assumptions!AE119 -> 49363.07569 | AB23: =+Assumptions!AF119 -> 50098.05025 | AC23: =+Assumptions!AG119 -> 50843.96796 | AD23: =+Assumptions!AH119 -> 51600.99176 | AE23: =+Assumptions!AI119 -> 52369.287 | AF23: =+Assumptions!AJ119 -> 53149.02151 | AG23: =+Assumptions!AK119 -> 53940.36561 | AH23: =+Assumptions!AL119 -> 54743.49215 | AI23: =+Assumptions!AM119 -> 55558.57658 | AJ23: =+Assumptions!AN119 -> 56385.79692 | AK23: =+Assumptions!AO119 -> 57225.33387 | AL23: =+Assumptions!AP119 -> 58077.37083 | AM23: =+Assumptions!AQ119 -> 58942.09389
D24: =Assumptions!D122 -> G. Vehicles Gas consumption & maintenance | E24: =+Assumptions!H135+Assumptions!H144+Assumptions!H152 -> 10740.41286 | F24: =+Assumptions!I135+Assumptions!I144+Assumptions!I152 -> 16879.65675 | G24: =+Assumptions!J135+Assumptions!J144+Assumptions!J152 -> 48266.14854 | H24: =+Assumptions!K135+Assumptions!K144+Assumptions!K152 -> 40246.54055 | I24: =+Assumptions!M135+Assumptions!M144+Assumptions!M152 -> 61223.52532 | J24: =+Assumptions!N135+Assumptions!N144+Assumptions!N152 -> 38911.91771 | K24: =+Assumptions!O135+Assumptions!O144+Assumptions!O152 -> 40176.98495 | L24: =+Assumptions!P135+Assumptions!P144+Assumptions!P152 -> 38851.05396 | M24: =+Assumptions!Q135+Assumptions!Q144+Assumptions!Q152 -> 44194.95885 | N24: =+Assumptions!R135+Assumptions!R144+Assumptions!R152 -> 48479.89429 | O24: =+Assumptions!S135+Assumptions!S144+Assumptions!S152 -> 50380.43009 | P24: =+Assumptions!T135+Assumptions!T144+Assumptions!T152 -> 53970.93057 | Q24: =+Assumptions!U135+Assumptions!U144+Assumptions!U152 -> 56074.04115 | R24: =+Assumptions!V135+Assumptions!V144+Assumptions!V152 -> 58273.44173 | S24: =+Assumptions!W135+Assumptions!W144+Assumptions!W152 -> 60573.81479 | T24: =+Assumptions!X135+Assumptions!X144+Assumptions!X152 -> 62980.075 | U24: =+Assumptions!Y135+Assumptions!Y144+Assumptions!Y152 -> 65497.38076 | V24: =+Assumptions!Z135+Assumptions!Z144+Assumptions!Z152 -> 68131.14635 | W24: =+Assumptions!AA135+Assumptions!AA144+Assumptions!AA152 -> 70887.05474 | X24: =+Assumptions!AB135+Assumptions!AB144+Assumptions!AB152 -> 73771.07093 | Y24: =+Assumptions!AC135+Assumptions!AC144+Assumptions!AC152 -> 76789.45607 | Z24: =+Assumptions!AD135+Assumptions!AD144+Assumptions!AD152 -> 79948.78223 | AA24: =+Assumptions!AE135+Assumptions!AE144+Assumptions!AE152 -> 83255.94789 | AB24: =+Assumptions!AF135+Assumptions!AF144+Assumptions!AF152 -> 86718.19424 | AC24: =+Assumptions!AG135+Assumptions!AG144+Assumptions!AG152 -> 90343.1223 | AD24: =+Assumptions!AH135+Assumptions!AH144+Assumptions!AH152 -> 94138.71084 | AE24: =+Assumptions!AI135+Assumptions!AI144+Assumptions!AI152 -> 98113.33528 | AF24: =+Assumptions!AJ135+Assumptions!AJ144+Assumptions!AJ152 -> 102275.7874 | AG24: =+Assumptions!AK135+Assumptions!AK144+Assumptions!AK152 -> 106635.2964 | AH24: =+Assumptions!AL135+Assumptions!AL144+Assumptions!AL152 -> 111201.5501 | AI24: =+Assumptions!AM135+Assumptions!AM144+Assumptions!AM152 -> 115984.7188 | AJ24: =+Assumptions!AN135+Assumptions!AN144+Assumptions!AN152 -> 120995.4784 | AK24: =+Assumptions!AO135+Assumptions!AO144+Assumptions!AO152 -> 126245.0362 | AL24: =+Assumptions!AP135+Assumptions!AP144+Assumptions!AP152 -> 131745.1573 | AM24: =+Assumptions!AQ135+Assumptions!AQ144+Assumptions!AQ152 -> 137508.1926
D25: =Assumptions!D155 -> H. Conference Training | E25: =+Assumptions!H167 -> 0 | F25: =+Assumptions!I167 -> 609.7960689 | G25: =+Assumptions!J167 -> 1176.144168 | H25: =+Assumptions!K167 -> 5381.450308 | I25: =+Assumptions!M167 -> 76224.50862 | J25: =+Assumptions!N167 -> 42148.44999 | K25: =+Assumptions!O167 -> 42989.35283 | L25: =+Assumptions!P167 -> 48235.74007 | M25: =+Assumptions!Q167 -> 49198.09031 | N25: =+Assumptions!R167 -> 55445.04513 | O25: =+Assumptions!S167 -> 56551.22807 | P25: =+Assumptions!T167 -> 64023.78994 | Q25: =+Assumptions!U167 -> 65301.12724 | R25: =+Assumptions!V167 -> 66603.94868 | S25: =+Assumptions!W167 -> 67932.76267 | T25: =+Assumptions!X167 -> 69288.08781 | U25: =+Assumptions!Y167 -> 70670.45301 | V25: =+Assumptions!Z167 -> 72080.39775 | W25: =+Assumptions!AA167 -> 73518.47226 | X25: =+Assumptions!AB167 -> 74985.23778 | Y25: =+Assumptions!AC167 -> 76481.2667 | Z25: =+Assumptions!AD167 -> 78007.14286 | AA25: =+Assumptions!AE167 -> 79563.46174 | AB25: =+Assumptions!AF167 -> 81150.83072 | AC25: =+Assumptions!AG167 -> 82769.86925 | AD25: =+Assumptions!AH167 -> 84421.20919 | AE25: =+Assumptions!AI167 -> 86105.49498 | AF25: =+Assumptions!AJ167 -> 87823.38392 | AG25: =+Assumptions!AK167 -> 89575.54643 | AH25: =+Assumptions!AL167 -> 91362.6663 | AI25: =+Assumptions!AM167 -> 93185.44095 | AJ25: =+Assumptions!AN167 -> 95044.58175 | AK25: =+Assumptions!AO167 -> 96940.81422 | AL25: =+Assumptions!AP167 -> 98874.87839 | AM25: =+Assumptions!AQ167 -> 100847.529
D26: =Assumptions!D170 -> I. Board Meeting | E26: =+Assumptions!H173 -> 30794.70148 | F26: =+Assumptions!I173 -> 79273.48896 | G26: =+Assumptions!J173 -> 22105.1075 | H26: =+Assumptions!K173 -> 37350.00922 | I26: =+Assumptions!M173 -> 45734.70517 | J26: =+Assumptions!N173 -> 23037.59038 | K26: =+Assumptions!O173 -> 23380.60067 | L26: =+Assumptions!P173 -> 23728.71809 | M26: =+Assumptions!Q173 -> 24082.01869 | N26: =+Assumptions!R173 -> 24440.57964 | O26: =+Assumptions!S173 -> 24804.47925 | P26: =+Assumptions!T173 -> 25173.79702 | Q26: =+Assumptions!U173 -> 25548.61363 | R26: =+Assumptions!V173 -> 25929.01094 | S26: =+Assumptions!W173 -> 26315.07204 | T26: =+Assumptions!X173 -> 26706.88126 | U26: =+Assumptions!Y173 -> 27104.5242 | V26: =+Assumptions!Z173 -> 27508.0877 | W26: =+Assumptions!AA173 -> 27917.65992 | X26: =+Assumptions!AB173 -> 28333.33033 | Y26: =+Assumptions!AC173 -> 28755.18972 | Z26: =+Assumptions!AD173 -> 29183.33024 | AA26: =+Assumptions!AE173 -> 29617.84541 | AB26: =+Assumptions!AF173 -> 30058.83015 | AC26: =+Assumptions!AG173 -> 30506.38078 | AD26: =+Assumptions!AH173 -> 30960.59505 | AE26: =+Assumptions!AI173 -> 31421.5722 | AF26: =+Assumptions!AJ173 -> 31889.41291 | AG26: =+Assumptions!AK173 -> 32364.21937 | AH26: =+Assumptions!AL173 -> 32846.09529 | AI26: =+Assumptions!AM173 -> 33335.14595 | AJ26: =+Assumptions!AN173 -> 33831.47815 | AK26: =+Assumptions!AO173 -> 34335.20032 | AL26: =+Assumptions!AP173 -> 34846.4225 | AM26: =+Assumptions!AQ173 -> 35365.25633
D27: =Assumptions!D176 -> J. Travel Expenses | E27: =+Assumptions!H183 -> 68777.79336 | F27: =+Assumptions!I183 -> 85697.69512 | G27: =+Assumptions!J183 -> 229041.5073 | H27: =+Assumptions!K183 -> 144460.6887 | I27: =+Assumptions!M183 -> 248491.8981 | J27: =+Assumptions!N183 -> 92150.36153 | K27: =+Assumptions!O183 -> 93522.40268 | L27: =+Assumptions!P183 -> 79095.72698 | M27: =+Assumptions!Q183 -> 80273.39563 | N27: =+Assumptions!R183 -> 81468.59879 | O27: =+Assumptions!S183 -> 82681.5975 | P27: =+Assumptions!T183 -> 83912.65675 | Q27: =+Assumptions!U183 -> 85162.04543 | R27: =+Assumptions!V183 -> 86430.03645 | S27: =+Assumptions!W183 -> 87716.90679 | T27: =+Assumptions!X183 -> 89022.93755 | U27: =+Assumptions!Y183 -> 90348.414 | V27: =+Assumptions!Z183 -> 91693.62567 | W27: =+Assumptions!AA183 -> 93058.86641 | X27: =+Assumptions!AB183 -> 94444.43444 | Y27: =+Assumptions!AC183 -> 95850.63241 | Z27: =+Assumptions!AD183 -> 97277.76747 | AA27: =+Assumptions!AE183 -> 98726.15138 | AB27: =+Assumptions!AF183 -> 100196.1005 | AC27: =+Assumptions!AG183 -> 101687.9359 | AD27: =+Assumptions!AH183 -> 103201.9835 | AE27: =+Assumptions!AI183 -> 104738.574 | AF27: =+Assumptions!AJ183 -> 106298.043 | AG27: =+Assumptions!AK183 -> 107880.7312 | AH27: =+Assumptions!AL183 -> 109486.9843 | AI27: =+Assumptions!AM183 -> 111117.1532 | AJ27: =+Assumptions!AN183 -> 112771.5938 | AK27: =+Assumptions!AO183 -> 114450.6677 | AL27: =+Assumptions!AP183 -> 116154.7417 | AM27: =+Assumptions!AQ183 -> 117884.1878
D28: =Assumptions!D186 -> K. Office supplies & software | E28: =+Assumptions!H193 -> 4156.772471 | F28: =+Assumptions!I193 -> 14088.67502 | G28: =+Assumptions!J193 -> 42299.86569 | H28: =+Assumptions!K193 -> 16662.67758 | I28: =+Assumptions!M193 -> 53357.15603 | J28: =+Assumptions!N193 -> 27645.10846 | K28: =+Assumptions!O193 -> 28056.7208 | L28: =+Assumptions!P193 -> 29265.41898 | M28: =+Assumptions!Q193 -> 29701.15638 | N28: =+Assumptions!R193 -> 30958.06754 | O28: =+Assumptions!S193 -> 31419.00705 | P28: =+Assumptions!T193 -> 32725.93613 | Q28: =+Assumptions!U193 -> 33213.19772 | R28: =+Assumptions!V193 -> 33707.71422 | S28: =+Assumptions!W193 -> 34209.59365 | T28: =+Assumptions!X193 -> 34718.94564 | U28: =+Assumptions!Y193 -> 35235.88146 | V28: =+Assumptions!Z193 -> 35760.51401 | W28: =+Assumptions!AA193 -> 36292.9579 | X28: =+Assumptions!AB193 -> 36833.32943 | Y28: =+Assumptions!AC193 -> 37381.74664 | Z28: =+Assumptions!AD193 -> 37938.32932 | AA28: =+Assumptions!AE193 -> 38503.19904 | AB28: =+Assumptions!AF193 -> 39076.47919 | AC28: =+Assumptions!AG193 -> 39658.29501 | AD28: =+Assumptions!AH193 -> 40248.77357 | AE28: =+Assumptions!AI193 -> 40848.04386 | AF28: =+Assumptions!AJ193 -> 41456.23678 | AG28: =+Assumptions!AK193 -> 42073.48518 | AH28: =+Assumptions!AL193 -> 42699.92388 | AI28: =+Assumptions!AM193 -> 43335.68973 | AJ28: =+Assumptions!AN193 -> 43980.9216 | AK28: =+Assumptions!AO193 -> 44635.76042 | AL28: =+Assumptions!AP193 -> 45300.34925 | AM28: =+Assumptions!AQ193 -> 45974.83324
D29: =Assumptions!D196 -> L. Representation Fees | E29: =+Assumptions!H203 -> 11996.59581 | F29: =+Assumptions!I203 -> 27639.66083 | G29: =+Assumptions!J203 -> 18168.84796 | H29: =+Assumptions!K203 -> 26907.25154 | I29: =+Assumptions!M203 -> 38112.25431 | J29: =+Assumptions!N203 -> 21025.64082 | K29: =+Assumptions!O203 -> 21338.69488 | L29: =+Assumptions!P203 -> 23815.72339 | M29: =+Assumptions!Q203 -> 24170.31943 | N29: =+Assumptions!R203 -> 27104.60282 | O29: =+Assumptions!S203 -> 27508.16749 | P29: =+Assumptions!T203 -> 30988.94414 | Q29: =+Assumptions!U203 -> 31450.34338 | R29: =+Assumptions!V203 -> 31918.61246 | S29: =+Assumptions!W203 -> 32393.85368 | T29: =+Assumptions!X203 -> 32876.17084 | U29: =+Assumptions!Y203 -> 33365.66929 | V29: =+Assumptions!Z203 -> 33862.45596 | W29: =+Assumptions!AA203 -> 34366.63937 | X29: =+Assumptions!AB203 -> 34878.32964 | Y29: =+Assumptions!AC203 -> 35397.63855 | Z29: =+Assumptions!AD203 -> 35924.67953 | AA29: =+Assumptions!AE203 -> 36459.5677 | AB29: =+Assumptions!AF203 -> 37002.41991 | AC29: =+Assumptions!AG203 -> 37553.35474 | AD29: =+Assumptions!AH203 -> 38112.49251 | AE29: =+Assumptions!AI203 -> 38679.95538 | AF29: =+Assumptions!AJ203 -> 39255.86729 | AG29: =+Assumptions!AK203 -> 39840.35404 | AH29: =+Assumptions!AL203 -> 40433.54331 | AI29: =+Assumptions!AM203 -> 41035.56466 | AJ29: =+Assumptions!AN203 -> 41646.5496 | AK29: =+Assumptions!AO203 -> 42266.6316 | AL29: =+Assumptions!AP203 -> 42895.94609 | AM29: =+Assumptions!AQ203 -> 43534.63055
D30: =Assumptions!D205 -> M. Consultants /Others/Honoraires (CAC, autres) | E30: =+Assumptions!H212 -> 20518.71235 | F30: =+Assumptions!I212 -> 105329.235 | G30: =+Assumptions!J212 -> 72376.15423 | H30: =+Assumptions!K212 -> 46618.90947 | I30: =+Assumptions!M212 -> 97567.37103 | J30: =+Assumptions!N212 -> 58945.51459 | K30: =+Assumptions!O212 -> 59823.16358 | L30: =+Assumptions!P212 -> 39492.49648 | M30: =+Assumptions!Q212 -> 40080.50644 | N30: =+Assumptions!R212 -> 43667.16895 | O30: =+Assumptions!S212 -> 44317.33626 | P30: =+Assumptions!T212 -> 48535.08066 | Q30: =+Assumptions!U212 -> 49257.72708 | R30: =+Assumptions!V212 -> 49991.13308 | S30: =+Assumptions!W212 -> 50735.45889 | T30: =+Assumptions!X212 -> 51490.86708 | U30: =+Assumptions!Y212 -> 52257.52265 | V30: =+Assumptions!Z212 -> 53035.59309 | W30: =+Assumptions!AA212 -> 53825.24833 | X30: =+Assumptions!AB212 -> 54626.66088 | Y30: =+Assumptions!AC212 -> 55440.00578 | Z30: =+Assumptions!AD212 -> 56265.46071 | AA30: =+Assumptions!AE212 -> 57103.20596 | AB30: =+Assumptions!AF212 -> 57953.42453 | AC30: =+Assumptions!AG212 -> 58816.30214 | AD30: =+Assumptions!AH212 -> 59692.02726 | AE30: =+Assumptions!AI212 -> 60580.7912 | AF30: =+Assumptions!AJ212 -> 61482.78808 | AG30: =+Assumptions!AK212 -> 62398.21494 | AH30: =+Assumptions!AL212 -> 63327.27172 | AI30: =+Assumptions!AM212 -> 64270.16138 | AJ30: =+Assumptions!AN212 -> 65227.08988 | AK30: =+Assumptions!AO212 -> 66198.26623 | AL30: =+Assumptions!AP212 -> 67183.90257 | AM30: =+Assumptions!AQ212 -> 68184.21421
D31: =Assumptions!D215 -> N. Office Maintenance | E31: =+Assumptions!H222 -> 152.9063643 | F31: =+Assumptions!I222 -> 7822.159074 | G31: =+Assumptions!J222 -> 20502.62593 | H31: =+Assumptions!K222 -> 14238.73821 | I31: =+Assumptions!M222 -> 15244.90172 | J31: =+Assumptions!N222 -> 9215.036153 | K31: =+Assumptions!O222 -> 9352.240268 | L31: =+Assumptions!P222 -> 10282.44451 | M31: =+Assumptions!Q222 -> 10435.54143 | N31: =+Assumptions!R222 -> 12220.28982 | O31: =+Assumptions!S222 -> 12402.23963 | P31: =+Assumptions!T222 -> 13426.02508 | Q31: =+Assumptions!U222 -> 13625.92727 | R31: =+Assumptions!V222 -> 13828.80583 | S31: =+Assumptions!W222 -> 14034.70509 | T31: =+Assumptions!X222 -> 14243.67001 | U31: =+Assumptions!Y222 -> 14455.74624 | V31: =+Assumptions!Z222 -> 14670.98011 | W31: =+Assumptions!AA222 -> 14889.41863 | X31: =+Assumptions!AB222 -> 15111.10951 | Y31: =+Assumptions!AC222 -> 15336.10119 | Z31: =+Assumptions!AD222 -> 15564.4428 | AA31: =+Assumptions!AE222 -> 15796.18422 | AB31: =+Assumptions!AF222 -> 16031.37608 | AC31: =+Assumptions!AG222 -> 16270.06975 | AD31: =+Assumptions!AH222 -> 16512.31736 | AE31: =+Assumptions!AI222 -> 16758.17184 | AF31: =+Assumptions!AJ222 -> 17007.68688 | AG31: =+Assumptions!AK222 -> 17260.91699 | AH31: =+Assumptions!AL222 -> 17517.91749 | AI31: =+Assumptions!AM222 -> 17778.7445 | AJ31: =+Assumptions!AN222 -> 18043.45501 | AK31: =+Assumptions!AO222 -> 18312.10684 | AL31: =+Assumptions!AP222 -> 18584.75866 | AM31: =+Assumptions!AQ222 -> 18861.47005
D32: =Assumptions!D225 -> O. Taxes | E32: =+Assumptions!H231 -> 19545.52204 | F32: =+Assumptions!I231 -> 45714.95997 | G32: =+Assumptions!J231 -> 16446.6497 | H32: =+Assumptions!K231 -> 8537.144965 | I32: =+Assumptions!M231 -> 304898.0345 | J32: =+Assumptions!N231 -> 5375.437756 | K32: =+Assumptions!O231 -> 5455.47349 | L32: =+Assumptions!P231 -> 5536.700888 | M32: =+Assumptions!Q231 -> 5619.137694 | N32: =+Assumptions!R231 -> 6273.082106 | O32: =+Assumptions!S231 -> 6366.483008 | P32: =+Assumptions!T231 -> 6461.27457 | Q32: =+Assumptions!U231 -> 6557.477498 | R32: =+Assumptions!V231 -> 6655.112807 | S32: =+Assumptions!W231 -> 6754.201823 | T32: =+Assumptions!X231 -> 6854.766191 | U32: =+Assumptions!Y231 -> 6956.827878 | V32: =+Assumptions!Z231 -> 7060.409177 | W32: =+Assumptions!AA231 -> 7165.532714 | X32: =+Assumptions!AB231 -> 7272.221452 | Y32: =+Assumptions!AC231 -> 7380.498695 | Z32: =+Assumptions!AD231 -> 7490.388096 | AA32: =+Assumptions!AE231 -> 7601.913656 | AB32: =+Assumptions!AF231 -> 7715.099738 | AC32: =+Assumptions!AG231 -> 7829.971066 | AD32: =+Assumptions!AH231 -> 7946.552731 | AE32: =+Assumptions!AI231 -> 8064.870198 | AF32: =+Assumptions!AJ231 -> 8184.949312 | AG32: =+Assumptions!AK231 -> 8306.816304 | AH32: =+Assumptions!AL231 -> 8430.497792 | AI32: =+Assumptions!AM231 -> 8556.020793 | AJ32: =+Assumptions!AN231 -> 8683.412726 | AK32: =+Assumptions!AO231 -> 8812.701417 | AL32: =+Assumptions!AP231 -> 8943.915107 | AM32: =+Assumptions!AQ231 -> 9077.082459
D33: =Assumptions!D233 -> P. Banking Fees | E33: =+Assumptions!H236 -> 15293.02835 | F33: =+Assumptions!I236 -> 132370.442 | G33: =+Assumptions!J236 -> 6743.6646 | H33: =+Assumptions!K236 -> 10183.59435 | I33: =+Assumptions!M236 -> 7622.450862 | J33: =+Assumptions!N236 -> 3839.598397 | K33: =+Assumptions!O236 -> 3896.766778 | L33: =+Assumptions!P236 -> 3954.786349 | M33: =+Assumptions!Q236 -> 4013.669782 | N33: =+Assumptions!R236 -> 4073.429939 | O33: =+Assumptions!S236 -> 4134.079875 | P33: =+Assumptions!T236 -> 4195.632837 | Q33: =+Assumptions!U236 -> 4258.102271 | R33: =+Assumptions!V236 -> 4321.501823 | S33: =+Assumptions!W236 -> 4385.84534 | T33: =+Assumptions!X236 -> 4451.146877 | U33: =+Assumptions!Y236 -> 4517.4207 | V33: =+Assumptions!Z236 -> 4584.681284 | W33: =+Assumptions!AA236 -> 4652.943321 | X33: =+Assumptions!AB236 -> 4722.221722 | Y33: =+Assumptions!AC236 -> 4792.53162 | Z33: =+Assumptions!AD236 -> 4863.888374 | AA33: =+Assumptions!AE236 -> 4936.307569 | AB33: =+Assumptions!AF236 -> 5009.805025 | AC33: =+Assumptions!AG236 -> 5084.396796 | AD33: =+Assumptions!AH236 -> 5160.099176 | AE33: =+Assumptions!AI236 -> 5236.9287 | AF33: =+Assumptions!AJ236 -> 5314.902151 | AG33: =+Assumptions!AK236 -> 5394.036561 | AH33: =+Assumptions!AL236 -> 5474.349215 | AI33: =+Assumptions!AM236 -> 5555.857658 | AJ33: =+Assumptions!AN236 -> 5638.579692 | AK33: =+Assumptions!AO236 -> 5722.533387 | AL33: =+Assumptions!AP236 -> 5807.737083 | AM33: =+Assumptions!AQ236 -> 5894.209389
D34: =Assumptions!D238 -> Q. Budget line for Senegalese airport industry | E34: =Assumptions!H241 -> 0 | F34: =Assumptions!I241 -> 0 | G34: =Assumptions!J241 -> 0 | H34: =Assumptions!K241 -> 0 | I34: =Assumptions!M241 -> 0 | J34: =Assumptions!N241 -> 0 | K34: =Assumptions!O241 -> 0 | L34: =Assumptions!P241 -> 0 | M34: =Assumptions!Q241 -> 0 | N34: =Assumptions!R241 -> 0 | O34: =Assumptions!S241 -> 0 | P34: =Assumptions!T241 -> 0 | Q34: =Assumptions!U241 -> 0 | R34: =Assumptions!V241 -> 0 | S34: =Assumptions!W241 -> 0 | T34: =Assumptions!X241 -> 0 | U34: =Assumptions!Y241 -> 0 | V34: =Assumptions!Z241 -> 0 | W34: =Assumptions!AA241 -> 0 | X34: =Assumptions!AB241 -> 0 | Y34: =Assumptions!AC241 -> 0 | Z34: =Assumptions!AD241 -> 0 | AA34: =Assumptions!AE241 -> 0 | AB34: =Assumptions!AF241 -> 0 | AC34: =Assumptions!AG241 -> 0 | AD34: =Assumptions!AH241 -> 0 | AE34: =Assumptions!AI241 -> 0 | AF34: =Assumptions!AJ241 -> 0 | AG34: =Assumptions!AK241 -> 0 | AH34: =Assumptions!AL241 -> 0 | AI34: =Assumptions!AM241 -> 0 | AJ34: =Assumptions!AN241 -> 0 | AK34: =Assumptions!AO241 -> 0 | AL34: =Assumptions!AP241 -> 0 | AM34: =Assumptions!AQ241 -> 0
D35: =+Assumptions!D243 -> R. Contingencies/other operating costs | E35: =+Assumptions!H245 -> 137783.9614 | F35: =+Assumptions!I245 -> 115894.6852 | G35: =+Assumptions!J245 -> 208157.7131 | H35: =+Assumptions!K245 -> 17516.39208 | I35: =Assumptions!M245 -> 66682.57218 | J35: =Assumptions!N245 -> 50108.15273 | K35: =Assumptions!O245 -> 29121.52434 | L35: =Assumptions!P245 -> 29675.37227 | M35: =Assumptions!Q245 -> 27759.0841 | N35: =Assumptions!R245 -> 29815.67566 | O35: =Assumptions!S245 -> 30654.57987 | P35: =Assumptions!T245 -> 32954.35863 | Q35: =Assumptions!U245 -> 33888.85243 | R35: =Assumptions!V245 -> 34853.1765 | S35: =Assumptions!W245 -> 35848.35669 | T35: =Assumptions!X245 -> 36875.45583 | U35: =Assumptions!Y245 -> 37935.57512 | V35: =Assumptions!Z245 -> 39029.85555 | W35: =Assumptions!AA245 -> 40159.47942 | X35: =Assumptions!AB245 -> 41325.67186 | Y35: =Assumptions!AC245 -> 42529.70244 | Z35: =Assumptions!AD245 -> 43772.88685 | AA35: =Assumptions!AE245 -> 45056.58861 | AB35: =Assumptions!AF245 -> 46382.2209 | AC35: =Assumptions!AG245 -> 47751.24844 | AD35: =Assumptions!AH245 -> 49165.18937 | AE35: =Assumptions!AI245 -> 50625.61735 | AF35: =Assumptions!AJ245 -> 52134.16361 | AG35: =Assumptions!AK245 -> 53692.51911 | AH35: =Assumptions!AL245 -> 55302.43689 | AI35: =Assumptions!AM245 -> 56965.73432 | AJ35: =Assumptions!AN245 -> 58684.29564 | AK35: =Assumptions!AO245 -> 60460.07442 | AL35: =Assumptions!AP245 -> 62295.09627 | AM35: =Assumptions!AQ245 -> 64191.46154
D36: =+Assumptions!D246 -> S. Insurance | E36: =+Assumptions!H248 -> 0 | F36: =+Assumptions!I248 -> 0 | G36: =+Assumptions!J248 -> 0 | H36: =+Assumptions!K248 -> 0 | I36: =+Assumptions!L248 -> 0 | J36: =+Assumptions!M248 -> 0 | K36: =+Assumptions!N248 -> 0 | L36: =+Assumptions!P248 -> 12948.49151 | M36: =+Assumptions!Q248 -> 13636.28838 | N36: =+Assumptions!R248 -> 13839.32122 | O36: =+Assumptions!S248 -> 14045.37704 | P36: =+Assumptions!T248 -> 14254.50085 | Q36: =+Assumptions!U248 -> 14466.73835 | R36: =+Assumptions!V248 -> 14682.13588 | S36: =+Assumptions!W248 -> 14900.7405 | T36: =+Assumptions!X248 -> 15122.59995 | U36: =+Assumptions!Y248 -> 15347.76271 | V36: =+Assumptions!Z248 -> 15576.27795 | W36: =+Assumptions!AA248 -> 15808.19559 | X36: =+Assumptions!AB248 -> 16043.56629 | Y36: =+Assumptions!AC248 -> 16282.44146 | Z36: =+Assumptions!AD248 -> 16524.87328 | AA36: =+Assumptions!AE248 -> 16770.91471 | AB36: =+Assumptions!AF248 -> 17020.61948 | AC36: =+Assumptions!AG248 -> 17274.04215 | AD36: =+Assumptions!AH248 -> 17531.23806 | AE36: =+Assumptions!AI248 -> 17792.26341 | AF36: =+Assumptions!AJ248 -> 18057.17521 | AG36: =+Assumptions!AK248 -> 18326.03131 | AH36: =+Assumptions!AL248 -> 18598.89046 | AI36: =+Assumptions!AM248 -> 18875.81225 | AJ36: =+Assumptions!AN248 -> 19156.85718 | AK36: =+Assumptions!AO248 -> 19442.08662 | AL36: =+Assumptions!AP248 -> 19731.56289 | AM36: =+Assumptions!AQ248 -> 20025.34922
D38: TOTAL OPERATING COSTS | E38: =SUM(E18:E36) -> 527432.4232 | F38: =SUM(F18:F36) -> 1500742.756 | G38: 1321583.97 | H38: 1215536.994 | I38: 2289434.978 | J38: 1720379.91 | K38: 999839.0025 | L38: 1031802.939 | M38: 966698.1758 | N38: 1037510.852 | O38: 1066519.286 | P38: 1145687.48 | Q38: 1177984.005 | R38: 1211307.862 | S38: 1245694.32 | T38: 1281179.917 | U38: 1317802.508 | V38: 1355601.318 | W38: 1394616.989 | X38: 1434891.634 | Y38: 1476468.892 | Z38: 1519393.988 | AA38: 1563713.79 | AB38: 1609476.871 | AC38: 1656733.572 | AD38: 1705536.073 | AE38: 1755938.459 | AF38: 1807996.792 | AG38: 1861769.187 | AH38: 1917315.89 | AI38: 1974699.357 | AJ38: 2033984.341 | AK38: 2095237.975 | AL38: 2158529.868 | AM38: 2223932.195
D41: EBITDA | E41: =+E14-E38 -> -527432.4232 | F41: -1500742.756 | G41: -1321583.97 | H41: -1215536.994 | I41: -2289434.978 | J41: -1720379.91 | K41: -999839.0025 | L41: 15594391.5 | M41: 15717622.95 | N41: 20170208.73 | O41: 17349366.72 | P41: 17779651.94 | Q41: 17759849.31 | R41: 19312717 | S41: 19291199.24 | T41: 19974003.74 | U41: 19950635.91 | V41: 20824062.27 | W41: 20931449.91 | X41: 15715343.69 | Y41: 15687828.41 | Z41: 16399083.67 | AA41: 16369247.7 | AB41: 17161635.57 | AC41: 17129297.22 | AD41: 17966831.32 | AE41: 17931794.83 | AF41: 19420760.09 | AG41: 19967330.35 | AH41: 22969605.96 | AI41: 22928524.18 | AJ41: 24143946.54 | AK41: 24099483.65 | AL41: 25410832.68 | AM41: 25362724.81
D43: Depreciation of the Operational Capex of AIBD-SA | E43: =+'Depreciation AIBD'!E61 -> 23781.64003 | F43: =SUM('Depreciation AIBD'!F61:G61) -> 86621.1365 | G43: =SUM('Depreciation AIBD'!H61:I61) -> 105625.32 | H43: =SUM('Depreciation AIBD'!J61:K61) -> 171610.4038 | I43: =SUM('Depreciation AIBD'!L61:M61) -> 199485.7066 | J43: =+'Depreciation AIBD'!N61 -> 112796.3004 | K43: =+'Depreciation AIBD'!O61 -> 112796.3004 | L43: =+'Depreciation AIBD'!P61 -> 112796.3004 | M43: =+'Depreciation AIBD'!Q61 -> 89014.66039 | N43: =+'Depreciation AIBD'!R61 -> 69485.73217 | O43: =+'Depreciation AIBD'!S61 -> 69485.73217 | P43: =+'Depreciation AIBD'!T61 -> 59983.64044 | Q43: =+'Depreciation AIBD'!U61 -> 59983.64044 | R43: =+'Depreciation AIBD'!V61 -> 26991.0985 | S43: =+'Depreciation AIBD'!W61 -> 26991.0985 | T43: =+'Depreciation AIBD'!X61 -> 13053.4471 | U43: =+'Depreciation AIBD'!Y61 -> 13053.4471 | V43: =+'Depreciation AIBD'!Z61 -> 0 | W43: =+'Depreciation AIBD'!AA61 -> 0 | X43: =+'Depreciation AIBD'!AB61 -> 0 | Y43: =+'Depreciation AIBD'!AC61 -> 0 | Z43: =+'Depreciation AIBD'!AD61 -> 0 | AA43: =+'Depreciation AIBD'!AE61 -> 0 | AB43: =+'Depreciation AIBD'!AF61 -> 0 | AC43: =+'Depreciation AIBD'!AG61 -> 0 | AD43: =+'Depreciation AIBD'!AH61 -> 0 | AE43: =+'Depreciation AIBD'!AI61 -> 0 | AF43: =+'Depreciation AIBD'!AJ61 -> 0 | AG43: =+'Depreciation AIBD'!AK61 -> 0 | AH43: =+'Depreciation AIBD'!AL61 -> 0 | AI43: =+'Depreciation AIBD'!AM61 -> 0 | AJ43: =+'Depreciation AIBD'!AN61 -> 0 | AK43: =+'Depreciation AIBD'!AO61 -> 0 | AL43: =+'Depreciation AIBD'!AP61 -> 0 | AM43: =+'Depreciation AIBD'!AQ61 -> 0
D44: Depreciation of the Operational Capex of AIBD-SA from Start of Operation | E44: =+'Depreciation AIBD'!E63 -> 0 | F44: =SUM('Depreciation AIBD'!F63:G63) -> 0 | G44: =SUM('Depreciation AIBD'!H63:I63) -> 0 | H44: =SUM('Depreciation AIBD'!J63:K63) -> 0 | I44: =SUM('Depreciation AIBD'!L63:M63) -> 0 | J44: =+'Depreciation AIBD'!N63 -> 0 | K44: =+'Depreciation AIBD'!O63 -> 0 | L44: =+'Depreciation AIBD'!P63 -> 5760.032035 | M44: =+'Depreciation AIBD'!Q63 -> 5760.032035 | N44: =+'Depreciation AIBD'!R63 -> 20498.04078 | O44: =+'Depreciation AIBD'!S63 -> 20498.04078 | P44: =+'Depreciation AIBD'!T63 -> 28978.01736 | Q44: =+'Depreciation AIBD'!U63 -> 28978.01736 | R44: =+'Depreciation AIBD'!V63 -> 38737.29528 | S44: =+'Depreciation AIBD'!W63 -> 38737.29528 | T44: =+'Depreciation AIBD'!X63 -> 44656.12837 | U44: =+'Depreciation AIBD'!Y63 -> 44656.12837 | V44: =+'Depreciation AIBD'!Z63 -> 54415.40629 | W44: =+'Depreciation AIBD'!AA63 -> 54415.40629 | X44: =+'Depreciation AIBD'!AB63 -> 58969.82068 | Y44: =+'Depreciation AIBD'!AC63 -> 58969.82068 | Z44: =+'Depreciation AIBD'!AD63 -> 46339.41961 | AA44: =+'Depreciation AIBD'!AE63 -> 46339.41961 | AB44: =+'Depreciation AIBD'!AF63 -> 48173.88945 | AC44: =+'Depreciation AIBD'!AG63 -> 48173.88945 | AD44: =+'Depreciation AIBD'!AH63 -> 41792.62767 | AE44: =+'Depreciation AIBD'!AI63 -> 41792.62767 | AF44: =+'Depreciation AIBD'!AJ63 -> 46188.241 | AG44: =+'Depreciation AIBD'!AK63 -> 46188.241 | AH44: =+'Depreciation AIBD'!AL63 -> 38536.57074 | AI44: =+'Depreciation AIBD'!AM63 -> 38536.57074 | AJ44: =+'Depreciation AIBD'!AN63 -> 38536.57074 | AK44: =+'Depreciation AIBD'!AO63 -> 38536.57074 | AL44: =+'Depreciation AIBD'!AP63 -> 38536.57074 | AM44: =+'Depreciation AIBD'!AQ63 -> 38536.57074
D45: Depreciation Airport Capex and Renewal & Maintenance | L45: =+'Depreciation AIBD'!P122 -> 12716473.39 | M45: =+'Depreciation AIBD'!Q122 -> 12716473.39 | N45: =+'Depreciation AIBD'!R122 -> 12716473.39 | O45: =+'Depreciation AIBD'!S122 -> 12716473.39 | P45: =+'Depreciation AIBD'!T122 -> 12716473.39 | Q45: =+'Depreciation AIBD'!U122 -> 12716473.39 | R45: =+'Depreciation AIBD'!V122 -> 12716473.39 | S45: =+'Depreciation AIBD'!W122 -> 12716473.39 | T45: =+'Depreciation AIBD'!X122 -> 12716473.39 | U45: =+'Depreciation AIBD'!Y122 -> 12716473.39 | V45: =+'Depreciation AIBD'!Z122 -> 12847276.74 | W45: =+'Depreciation AIBD'!AA122 -> 12980027.64 | X45: =+'Depreciation AIBD'!AB122 -> 7011311.99 | Y45: =+'Depreciation AIBD'!AC122 -> 7011311.99 | Z45: =+'Depreciation AIBD'!AD122 -> 7011311.99 | AA45: =+'Depreciation AIBD'!AE122 -> 7011311.99 | AB45: =+'Depreciation AIBD'!AF122 -> 7011311.99 | AC45: =+'Depreciation AIBD'!AG122 -> 7011311.99 | AD45: =+'Depreciation AIBD'!AH122 -> 7011311.99 | AE45: =+'Depreciation AIBD'!AI122 -> 7011311.99 | AF45: =+'Depreciation AIBD'!AJ122 -> 7587252.492 | AG45: =+'Depreciation AIBD'!AK122 -> 8171768.262 | AH45: =+'Depreciation AIBD'!AL122 -> 8171768.262 | AI45: =+'Depreciation AIBD'!AM122 -> 8171768.262 | AJ45: =+'Depreciation AIBD'!AN122 -> 8171768.262 | AK45: =+'Depreciation AIBD'!AO122 -> 8171768.262 | AL45: =+'Depreciation AIBD'!AP122 -> 8171768.262 | AM45: =+'Depreciation AIBD'!AQ122 -> 8171768.262
D47: Total Depreciation | E47: =SUM(E43:E46) -> 23781.64003 | F47: 86621.1365 | G47: 105625.32 | H47: 171610.4038 | I47: 199485.7066 | J47: 112796.3004 | K47: 112796.3004 | L47: 12835029.72 | M47: 12811248.08 | N47: 12806457.16 | O47: 12806457.16 | P47: 12805435.05 | Q47: 12805435.05 | R47: 12782201.78 | S47: 12782201.78 | T47: 12774182.96 | U47: 12774182.96 | V47: 12901692.14 | W47: 13034443.04 | X47: 7070281.811 | Y47: 7070281.811 | Z47: 7057651.41 | AA47: 7057651.41 | AB47: 7059485.88 | AC47: 7059485.88 | AD47: 7053104.618 | AE47: 7053104.618 | AF47: 7633440.733 | AG47: 8217956.503 | AH47: 8210304.833 | AI47: 8210304.833 | AJ47: 8210304.833 | AK47: 8210304.833 | AL47: 8210304.833 | AM47: 8210304.833
D49: EBIT | E49: =E41-E47 -> -551214.0632 | F49: -1587363.893 | G49: -1427209.29 | H49: -1387147.398 | I49: -2488920.685 | J49: -1833176.211 | K49: -1112635.303 | L49: 2759361.777 | M49: 2906374.867 | N49: 7363751.569 | O49: 4542909.556 | P49: 4974216.9 | Q49: 4954414.262 | R49: 6530515.217 | S49: 6508997.463 | T49: 7199820.778 | U49: 7176452.951 | V49: 7922370.131 | W49: 7897006.868 | X49: 8645061.879 | Y49: 8617546.6 | Z49: 9341432.257 | AA49: 9311596.294 | AB49: 10102149.69 | AC49: 10069811.34 | AD49: 10913726.7 | AE49: 10878690.22 | AF49: 11787319.36 | AG49: 11749373.84 | AH49: 14759301.13 | AI49: 14718219.35 | AJ49: 15933641.71 | AK49: 15889178.81 | AL49: 17200527.84 | AM49: 17152419.98
D51: Interest on corporate loan | E51: =9282001/Assumptions!F12 -> 14150.3193 | F51: =61191385/Assumptions!F12 -> 93285.66507 | G51: =0/Assumptions!F12 -> 0 | H51: =0/Assumptions!F12 -> 0
D53: EBT | E53: =+E49-E51 -> -565364.3825 | F53: -1680649.558 | G53: -1427209.29 | H53: -1387147.398 | I53: -2488920.685 | J53: -1833176.211 | K53: -1112635.303 | L53: 2759361.777 | M53: 2906374.867 | N53: 7363751.569 | O53: 4542909.556 | P53: 4974216.9 | Q53: 4954414.262 | R53: 6530515.217 | S53: 6508997.463 | T53: 7199820.778 | U53: 7176452.951 | V53: 7922370.131 | W53: 7897006.868 | X53: 8645061.879 | Y53: 8617546.6 | Z53: 9341432.257 | AA53: 9311596.294 | AB53: 10102149.69 | AC53: 10069811.34 | AD53: 10913726.7 | AE53: 10878690.22 | AF53: 11787319.36 | AG53: 11749373.84 | AH53: 14759301.13 | AI53: 14718219.35 | AJ53: 15933641.71 | AK53: 15889178.81 | AL53: 17200527.84 | AM53: 17152419.98
D55: Equilibrium Subsidy | E55: =-E53 -> 565364.3825 | F55: =-F53-(2402813/655.957) -> 1676986.493 | G55: =-G53-(4246085/655.957) -> 1420736.175 | H55: =-H53-(47563653/655.957) -> 1314637.076 | I55: 2488920.685 | J55: 1833176.211 | K55: 1112635.303
D57: Income Taxes | L57: =+L71 -> 0 | M57: 849860.4966 | N57: 0 | O57: 1785999.169 | P57: 0 | Q57: 1489294.674 | R57: 0 | S57: 1955926.902 | T57: 0 | U57: 2156441.059 | V57: 0 | W57: 2372906.55 | X57: 0 | Y57: 2589391.272 | Z57: 0 | AA57: 2797954.283 | AB57: 0 | AC57: 3025794.155 | AD57: 0 | AE57: 3268862.537 | AF57: 0 | AG57: 3530503.98 | AH57: 0 | AI57: 4421628.072 | AJ57: 0 | AK57: 4773423.078 | AL57: 0 | AM57: 5152942.174
D59: Net Income | E59: =E53+E55-E57 -> 0 | F59: -3663.064805 | G59: -6473.114854 | H59: -72510.32156 | I59: 0 | J59: 0 | K59: 0 | L59: =L53-L57 -> 2759361.777 | M59: 2056514.37 | N59: 7363751.569 | O59: 2756910.387 | P59: 4974216.9 | Q59: 3465119.587 | R59: 6530515.217 | S59: 4553070.561 | T59: 7199820.778 | U59: 5020011.892 | V59: 7922370.131 | W59: 5524100.318 | X59: 8645061.879 | Y59: 6028155.328 | Z59: 9341432.257 | AA59: 6513642.011 | AB59: 10102149.69 | AC59: 7044017.189 | AD59: 10913726.7 | AE59: 7609827.679 | AF59: 11787319.36 | AG59: 8218869.864 | AH59: 14759301.13 | AI59: 10296591.28 | AJ59: 15933641.71 | AK59: 11115755.73 | AL59: 17200527.84 | AM59: 11999477.81
D62: Income Tax workings | E62: =E2 -> 2006 | F62: 2007 | G62: 2008 | H62: 2009 | I62: 2010-12-31 | J62: 2011-06-30 | K62: 2011-12-31 | L62: 2012-06-30 | M62: 2012-12-31 | N62: 2013-06-30 | O62: 2013-12-31 | P62: 2014-06-30 | Q62: 2014-12-31 | R62: 2015-06-30 | S62: 2015-12-31 | T62: 2016-06-30 | U62: 2016-12-31 | V62: 2017-06-30 | W62: 2017-12-31 | X62: 2018-06-30 | Y62: 2018-12-31 | Z62: 2019-06-30 | AA62: 2019-12-31 | AB62: 2020-06-30 | AC62: 2020-12-31 | AD62: 2021-06-30 | AE62: 2021-12-31 | AF62: 2022-06-30 | AG62: 2022-12-31 | AH62: 2023-06-30 | AI62: 2023-12-31 | AJ62: 2024-06-30 | AK62: 2024-12-31 | AL62: 2025-06-30 | AM62: 2025-12-31
D64: Income Tax to be paid during period (1=yes, 0=no) | L64: =IF(MONTH(L62)=12,1,0) -> 0 | M64: 1 | N64: 0 | O64: 1 | P64: 0 | Q64: 1 | R64: 0 | S64: 1 | T64: 0 | U64: 1 | V64: 0 | W64: 1 | X64: 0 | Y64: 1 | Z64: 0 | AA64: 1 | AB64: 0 | AC64: 1 | AD64: 0 | AE64: 1 | AF64: 0 | AG64: 1 | AH64: 0 | AI64: 1 | AJ64: 0 | AK64: 1 | AL64: 0 | AM64: 1
D66: Semi annual EBT | L66: =L53 -> 2759361.777 | M66: 2906374.867 | N66: 7363751.569 | O66: 4542909.556 | P66: 4974216.9 | Q66: 4954414.262 | R66: 6530515.217 | S66: 6508997.463 | T66: 7199820.778 | U66: 7176452.951 | V66: 7922370.131 | W66: 7897006.868 | X66: 8645061.879 | Y66: 8617546.6 | Z66: 9341432.257 | AA66: 9311596.294 | AB66: 10102149.69 | AC66: 10069811.34 | AD66: 10913726.7 | AE66: 10878690.22 | AF66: 11787319.36 | AG66: 11749373.84 | AH66: 14759301.13 | AI66: 14718219.35 | AJ66: 15933641.71 | AK66: 15889178.81 | AL66: 17200527.84 | AM66: 17152419.98
D67: Annual EBT | L67: =IF(L64>0,K66+L66,0) -> 0 | M67: 5665736.644 | N67: 0 | O67: 11906661.12 | P67: 0 | Q67: 9928631.161 | R67: 0 | S67: 13039512.68 | T67: 0 | U67: 14376273.73 | V67: 0 | W67: 15819377 | X67: 0 | Y67: 17262608.48 | Z67: 0 | AA67: 18653028.55 | AB67: 0 | AC67: 20171961.04 | AD67: 0 | AE67: 21792416.91 | AF67: 0 | AG67: 23536693.2 | AH67: 0 | AI67: 29477520.48 | AJ67: 0 | AK67: 31822820.52 | AL67: 0 | AM67: 34352947.82
D69: Reported Loss | L69: =K72 -> 0 | M69: 0 | N69: 0 | O69: 0 | P69: 0 | Q69: 0 | R69: 0 | S69: 0 | T69: 0 | U69: 0 | V69: 0 | W69: 0 | X69: 0 | Y69: 0 | Z69: 0 | AA69: 0 | AB69: 0 | AC69: 0 | AD69: 0 | AE69: 0 | AF69: 0 | AG69: 0 | AH69: 0 | AI69: 0 | AJ69: 0 | AK69: 0 | AL69: 0 | AM69: 0
D70: Assiette de l'impôt | L70: =L67+L69 -> 0 | M70: 5665736.644 | N70: 0 | O70: 11906661.12 | P70: 0 | Q70: 9928631.161 | R70: 0 | S70: 13039512.68 | T70: 0 | U70: 14376273.73 | V70: 0 | W70: 15819377 | X70: 0 | Y70: 17262608.48 | Z70: 0 | AA70: 18653028.55 | AB70: 0 | AC70: 20171961.04 | AD70: 0 | AE70: 21792416.91 | AF70: 0 | AG70: 23536693.2 | AH70: 0 | AI70: 29477520.48 | AJ70: 0 | AK70: 31822820.52 | AL70: 0 | AM70: 34352947.82
D71: Income Tax | L71: =IF(L70>0,L67*Assumptions!$F$57*L64,0) -> 0 | M71: =IF(M70>0,M67*Assumptions!$F$57*M64,0) -> 849860.4966 | N71: =IF(N70>0,N67*Assumptions!$F$57*N64,0) -> 0 | O71: =IF(O70>0,O67*Assumptions!$F$57*O64,0) -> 1785999.169 | P71: =IF(P70>0,P67*Assumptions!$F$57*P64,0) -> 0 | Q71: =IF(Q70>0,Q67*Assumptions!$F$57*Q64,0) -> 1489294.674 | R71: =IF(R70>0,R67*Assumptions!$F$57*R64,0) -> 0 | S71: =IF(S70>0,S67*Assumptions!$F$57*S64,0) -> 1955926.902 | T71: =IF(T70>0,T67*Assumptions!$F$57*T64,0) -> 0 | U71: =IF(U70>0,U67*Assumptions!$F$57*U64,0) -> 2156441.059 | V71: =IF(V70>0,V67*Assumptions!$F$57*V64,0) -> 0 | W71: =IF(W70>0,W67*Assumptions!$F$57*W64,0) -> 2372906.55 | X71: =IF(X70>0,X67*Assumptions!$F$57*X64,0) -> 0 | Y71: =IF(Y70>0,Y67*Assumptions!$F$57*Y64,0) -> 2589391.272 | Z71: =IF(Z70>0,Z67*Assumptions!$F$57*Z64,0) -> 0 | AA71: =IF(AA70>0,AA67*Assumptions!$F$57*AA64,0) -> 2797954.283 | AB71: =IF(AB70>0,AB67*Assumptions!$F$57*AB64,0) -> 0 | AC71: =IF(AC70>0,AC67*Assumptions!$F$57*AC64,0) -> 3025794.155 | AD71: =IF(AD70>0,AD67*Assumptions!$F$57*AD64,0) -> 0 | AE71: =IF(AE70>0,AE67*Assumptions!$F$57*AE64,0) -> 3268862.537 | AF71: =IF(AF70>0,AF67*Assumptions!$F$57*AF64,0) -> 0 | AG71: =IF(AG70>0,AG67*Assumptions!$F$57*AG64,0) -> 3530503.98 | AH71: =IF(AH70>0,AH67*Assumptions!$F$57*AH64,0) -> 0 | AI71: =IF(AI70>0,AI67*Assumptions!$F$57*AI64,0) -> 4421628.072 | AJ71: =IF(AJ70>0,AJ67*Assumptions!$F$57*AJ64,0) -> 0 | AK71: =IF(AK70>0,AK67*Assumptions!$F$57*AK64,0) -> 4773423.078 | AL71: =IF(AL70>0,AL67*Assumptions!$F$57*AL64,0) -> 0 | AM71: =IF(AM70>0,AM67*Assumptions!$F$57*AM64,0) -> 5152942.174
D72: Loss to be reported | L72: =IF(L70<0,IF(L67<0,L70,L67+L69),0) -> 0 | M72: 0 | N72: 0 | O72: 0 | P72: 0 | Q72: 0 | R72: 0 | S72: 0 | T72: 0 | U72: 0 | V72: 0 | W72: 0 | X72: 0 | Y72: 0 | Z72: 0 | AA72: 0 | AB72: 0 | AC72: 0 | AD72: 0 | AE72: 0 | AF72: 0 | AG72: 0 | AH72: 0 | AI72: 0 | AJ72: 0 | AK72: 0 | AL72: 0 | AM72: 0
D74: Income Tax paid on N + 1 | L74: =K71 -> 0 | M74: 0 | N74: 849860.4966 | O74: 0 | P74: 1785999.169 | Q74: 0 | R74: 1489294.674 | S74: 0 | T74: 1955926.902 | U74: 0 | V74: 2156441.059 | W74: 0 | X74: 2372906.55 | Y74: 0 | Z74: 2589391.272 | AA74: 0 | AB74: 2797954.283 | AC74: 0 | AD74: 3025794.155 | AE74: 0 | AF74: 3268862.537 | AG74: 0 | AH74: 3530503.98 | AI74: 0 | AJ74: 4421628.072 | AK74: 0 | AL74: 4773423.078 | AM74: 0
D75: Income Tax liability on Balance Sheet | L75: =K75+L57-L74 -> 0 | M75: 849860.4966 | N75: 0 | O75: 1785999.169 | P75: 0 | Q75: 1489294.674 | R75: 0 | S75: 1955926.902 | T75: 0 | U75: 2156441.059 | V75: 0 | W75: 2372906.55 | X75: 0 | Y75: 2589391.272 | Z75: 0 | AA75: 2797954.283 | AB75: 0 | AC75: 3025794.155 | AD75: 0 | AE75: 3268862.537 | AF75: 0 | AG75: 3530503.98 | AH75: 0 | AI75: 4421628.072 | AJ75: 0 | AK75: 4773423.078 | AL75: 0 | AM75: 5152942.174
B79: WORKING CAPITAL | C79: 2.
E81: =E2 -> 2006 | F81: 2007 | G81: 2008 | H81: 2009 | I81: 2010-12-31 | J81: 2011-06-30 | K81: 2011-12-31 | L81: 2012-06-30 | M81: 2012-12-31 | N81: 2013-06-30 | O81: 2013-12-31 | P81: 2014-06-30 | Q81: 2014-12-31 | R81: 2015-06-30 | S81: 2015-12-31 | T81: 2016-06-30 | U81: 2016-12-31 | V81: 2017-06-30 | W81: 2017-12-31 | X81: 2018-06-30 | Y81: 2018-12-31 | Z81: 2019-06-30 | AA81: 2019-12-31 | AB81: 2020-06-30 | AC81: 2020-12-31 | AD81: 2021-06-30 | AE81: 2021-12-31 | AF81: 2022-06-30 | AG81: 2022-12-31 | AH81: 2023-06-30 | AI81: 2023-12-31 | AJ81: 2024-06-30 | AK81: 2024-12-31 | AL81: 2025-06-30 | AM81: 2025-12-31
D82: Accounts receivables | E82: =(1752113/655.957) -> 2671.079049 | F82: =Assumptions!$I$472*F12 -> 0 | G82: =Assumptions!$I$472*G12 -> 0 | H82: =Assumptions!$I$472*H12 -> 0 | I82: =Assumptions!$I$472*I12 -> 0 | J82: =Assumptions!$I$472*J12 -> 0 | K82: =Assumptions!$I$472*K12 -> 0 | L82: =Assumptions!$I$472*L12 -> 522831.5104 | M82: =Assumptions!$I$472*M11 -> 162825.522 | N82: =Assumptions!$I$472*N11 -> 348112.9378 | O82: =Assumptions!$I$472*O11 -> 233380.051 | P82: =Assumptions!$I$472*P11 -> 253968.0008 | Q82: =Assumptions!$I$472*Q11 -> 254481.4482 | R82: =Assumptions!$I$472*R11 -> 319266.3361 | S82: =Assumptions!$I$472*S11 -> 319795.1869 | T82: =Assumptions!$I$472*T11 -> 349070.7182 | U82: =Assumptions!$I$472*U11 -> 349615.4345 | V82: =Assumptions!$I$472*V11 -> 381286.4979 | W82: =Assumptions!$I$472*W11 -> 381847.5558 | X82: =Assumptions!$I$472*X11 -> 414244.6649 | Y82: =Assumptions!$I$472*Y11 -> 414822.5545 | Z82: =Assumptions!$I$472*Z11 -> 446335.3251 | AA82: =Assumptions!$I$472*AA11 -> 446930.5514 | AB82: =Assumptions!$I$472*AB11 -> 481299.7217 | AC82: =Assumptions!$I$472*AC11 -> 481912.8048 | AD82: =Assumptions!$I$472*AD11 -> 518599.8399 | AE82: =Assumptions!$I$472*AE11 -> 519231.3154 | AF82: =Assumptions!$I$472*AF11 -> 558711.6226 | AG82: =Assumptions!$I$472*AG11 -> 559362.0424 | AH82: =Assumptions!$I$472*AH11 -> 685340.4255 | AI82: =Assumptions!$I$472*AI11 -> 686010.3579 | AJ82: =Assumptions!$I$472*AJ11 -> 738395.591 | AK82: =Assumptions!$I$472*AK11 -> 739085.6214 | AL82: =Assumptions!$I$472*AL11 -> 795577.7142 | AM82: =Assumptions!$I$472*AM11 -> 796288.4455
D83: Accounts payables | E83: =((3776339+9760895+76043+57090731+1551313)/655.957) -> 110152.5268 | F83: =(491734928+220306382+7697257+5036748)/655.957 -> 1104912.845 | G83: =(3640031996+1198605808+239620115+4508551)/655.957 -> 7748627.532 | H83: =((6221361415+3472519862+228727466+24491998+15000000)/655.957)+69803 -> 15256927.68 | I83: =(I38-I18)*Assumptions!$I$473 -> 118421.674 | J83: =(J38-J18)*Assumptions!$I$473 -> 104390.1286 | K83: =(K38-K18)*Assumptions!$I$473 -> 43872.65157 | L83: =(L38-L18)*Assumptions!$I$473 -> 43105.03338 | M83: =(M38-M18)*Assumptions!$I$473 -> 36294.9365 | N83: =(N38-N18)*Assumptions!$I$473 -> 38676.34365 | O83: =(O38-O18)*Assumptions!$I$473 -> 39430.21303 | P83: =(P38-P18)*Assumptions!$I$473 -> 41656.39701 | Q83: =(Q38-Q18)*Assumptions!$I$473 -> 42473.70066 | R83: =(R38-R18)*Assumptions!$I$473 -> 43311.16262 | S83: =(S38-S18)*Assumptions!$I$473 -> 44169.43259 | T83: =(T38-T18)*Assumptions!$I$473 -> 45049.18599 | U83: =(U38-U18)*Assumptions!$I$473 -> 45951.12516 | V83: =(V38-V18)*Assumptions!$I$473 -> 46875.9805 | W83: =(W38-W18)*Assumptions!$I$473 -> 47824.51176 | X83: =(X38-X18)*Assumptions!$I$473 -> 48797.50932 | Y83: =(Y38-Y18)*Assumptions!$I$473 -> 49795.79561 | Z83: =(Z38-Z18)*Assumptions!$I$473 -> 50820.22654 | AA83: =(AA38-AA18)*Assumptions!$I$473 -> 51871.69295 | AB83: =(AB38-AB18)*Assumptions!$I$473 -> 52951.1223 | AC83: =(AC38-AC18)*Assumptions!$I$473 -> 54059.48022 | AD83: =(AD38-AD18)*Assumptions!$I$473 -> 55197.77231 | AE83: =(AE38-AE18)*Assumptions!$I$473 -> 56367.04593 | AF83: =(AF38-AF18)*Assumptions!$I$473 -> 57568.39211 | AG83: =(AG38-AG18)*Assumptions!$I$473 -> 58802.94754 | AH83: =(AH38-AH18)*Assumptions!$I$473 -> 60071.89667 | AI83: =(AI38-AI18)*Assumptions!$I$473 -> 61376.47387 | AJ83: =(AJ38-AJ18)*Assumptions!$I$473 -> 62717.96578 | AK83: =(AK38-AK18)*Assumptions!$I$473 -> 64097.71363 | AL83: =(AL38-AL18)*Assumptions!$I$473 -> 65517.11582 | AM83: =(AM38-AM18)*Assumptions!$I$473 -> 66977.63055
D84: WCR | E84: =+E82-E83 -> -107481.4477 | F84: -1104912.845 | G84: -7748627.532 | H84: -15256927.68 | I84: -118421.674 | J84: -104390.1286 | K84: =+K82-K83 -> -43872.65157 | L84: 479726.477 | M84: 126530.5856 | N84: 309436.5941 | O84: 193949.838 | P84: 212311.6038 | Q84: 212007.7476 | R84: 275955.1735 | S84: 275625.7543 | T84: 304021.5322 | U84: 303664.3093 | V84: 334410.5174 | W84: 334023.044 | X84: 365447.1556 | Y84: 365026.7589 | Z84: 395515.0986 | AA84: 395058.8584 | AB84: 428348.5994 | AC84: 427853.3246 | AD84: 463402.0676 | AE84: 462864.2695 | AF84: 501143.2305 | AG84: 500559.0949 | AH84: 625268.5288 | AI84: 624633.884 | AJ84: 675677.6253 | AK84: 674987.9078 | AL84: 730060.5984 | AM84: 729310.815
D86: Change in WCR | E86: =E84 -> -107481.4477 | F86: =F84-E84 -> -997431.3972 | G86: =G84-F84 -> -6643714.687 | H86: =H84-G84 -> -7508300.144 | I86: =I84-H84 -> 15138506 | J86: 14031.54547 | K86: 60517.47699 | L86: 523599.1286 | M86: -353195.8915 | N86: 182906.0086 | O86: -115486.7562 | P86: 18361.76586 | Q86: -303.8562516 | R86: 63947.42589 | S86: -329.4191387 | T86: 28395.77784 | U86: -357.2228207 | V86: 30746.20807 | W86: -387.4734141 | X86: 31424.11158 | Y86: -420.3967208 | Z86: 30488.33973 | AA86: -456.2401562 | AB86: 33289.74098 | AC86: -495.2748698 | AD86: 35548.74302 | AE86: -537.798077 | AF86: 38278.96101 | AG86: -584.1356237 | AH86: 124709.4339 | AI86: -634.6448061 | AJ86: 51043.74125 | AK86: -689.7174738 | AL86: 55072.69062 | AM86: -749.7834417
B90: CASH FLOW STATEMENTS | C90: 3.
E92: =E2 -> 2006 | F92: 2007 | G92: 2008 | H92: 2009 | I92: 2010-12-31 | J92: 2011-06-30 | K92: 2011-12-31 | L92: 2012-06-30 | M92: 2012-12-31 | N92: 2013-06-30 | O92: 2013-12-31 | P92: 2014-06-30 | Q92: 2014-12-31 | R92: 2015-06-30 | S92: 2015-12-31 | T92: 2016-06-30 | U92: 2016-12-31 | V92: 2017-06-30 | W92: 2017-12-31 | X92: 2018-06-30 | Y92: 2018-12-31 | Z92: 2019-06-30 | AA92: 2019-12-31 | AB92: 2020-06-30 | AC92: 2020-12-31 | AD92: 2021-06-30 | AE92: 2021-12-31 | AF92: 2022-06-30 | AG92: 2022-12-31 | AH92: 2023-06-30 | AI92: 2023-12-31 | AJ92: 2024-06-30 | AK92: 2024-12-31 | AL92: 2025-06-30 | AM92: 2025-12-31
D95: +Operational Cash Flows before adjustments | E95: =E11-E38-E51 -> -541582.7425 | F95: -1594028.421 | G95: -1321583.97 | H95: -1215536.994 | I95: -2289434.978 | J95: -1720379.91 | K95: -999839.0025 | L95: 2872158.077 | M95: 2995389.527 | N95: 7433237.301 | O95: 4612395.288 | P95: 5034200.54 | Q95: 5014397.902 | R95: 6557506.316 | S95: 6535988.561 | T95: 7212874.225 | U95: 7189506.398 | V95: 7922370.131 | W95: 7897006.868 | X95: 8645061.879 | Y95: 8617546.6 | Z95: 9341432.257 | AA95: 9311596.294 | AB95: 10102149.69 | AC95: 10069811.34 | AD95: 10913726.7 | AE95: 10878690.22 | AF95: 11787319.36 | AG95: 11749373.84 | AH95: 14759301.13 | AI95: 14718219.35 | AJ95: 15933641.71 | AK95: 15889178.81 | AL95: 17200527.84 | AM95: 17152419.98
D96: -Change in WCR | E96: =+E86 -> -107481.4477 | F96: -997431.3972 | G96: -6643714.687 | H96: -7508300.144 | I96: 15138506 | J96: 14031.54547 | K96: 60517.47699 | L96: 523599.1286 | M96: -353195.8915 | N96: 182906.0086 | O96: -115486.7562 | P96: 18361.76586 | Q96: -303.8562516 | R96: 63947.42589 | S96: -329.4191387 | T96: 28395.77784 | U96: -357.2228207 | V96: 30746.20807 | W96: -387.4734141 | X96: 31424.11158 | Y96: -420.3967208 | Z96: 30488.33973 | AA96: -456.2401562 | AB96: 33289.74098 | AC96: -495.2748698 | AD96: 35548.74302 | AE96: -537.798077 | AF96: 38278.96101 | AG96: -584.1356237 | AH96: 124709.4339 | AI96: -634.6448061 | AJ96: 51043.74125 | AK96: -689.7174738 | AL96: 55072.69062 | AM96: -749.7834417
D97: -Income Tax paid on N+1 | E97: =+E74 -> 0 | F97: 0 | G97: 0 | H97: 0 | I97: 0 | J97: 0 | K97: 0 | L97: 0 | M97: 0 | N97: 849860.4966 | O97: 0 | P97: 1785999.169 | Q97: 0 | R97: 1489294.674 | S97: 0 | T97: 1955926.902 | U97: 0 | V97: 2156441.059 | W97: 0 | X97: 2372906.55 | Y97: 0 | Z97: 2589391.272 | AA97: 0 | AB97: 2797954.283 | AC97: 0 | AD97: 3025794.155 | AE97: 0 | AF97: 3268862.537 | AG97: 0 | AH97: 3530503.98 | AI97: 0 | AJ97: 4421628.072 | AK97: 0 | AL97: 4773423.078 | AM97: 0
D99: Operational Cash Flows | E99: =E95-E96-E97 -> -434101.2947 | F99: -596597.0239 | G99: 5322130.717 | H99: 6292763.15 | I99: -17427940.98 | J99: -1734411.456 | K99: -1060356.479 | L99: 2348558.949 | M99: 3348585.419 | N99: 6400470.796 | O99: 4727882.044 | P99: 3229839.605 | Q99: 5014701.758 | R99: 5004264.216 | S99: 6536317.98 | T99: 5228551.545 | U99: 7189863.621 | V99: 5735182.864 | W99: 7897394.341 | X99: 6240731.218 | Y99: 8617966.997 | Z99: 6721552.645 | AA99: 9312052.534 | AB99: 7270905.668 | AC99: 10070306.62 | AD99: 7852383.799 | AE99: 10879228.01 | AF99: 8480177.86 | AG99: 11749957.98 | AH99: 11104087.72 | AI99: 14718854 | AJ99: 11460969.89 | AK99: 15889868.53 | AL99: 12372032.08 | AM99: 17153169.76
D101: =Assumptions!D255 -> Equipement IT Hardware | E101: =Assumptions!E255 -> 22692.78169 | F101: =Assumptions!F255 -> 30085.62452 | G101: =Assumptions!H255 -> 16833.88088 | H101: =Assumptions!J255 -> 0 | I101: =Assumptions!L255 -> 24086.94472 | J101: =Assumptions!N255 -> 27745.72114 | K101: =Assumptions!K255 -> 0 | L101: =Assumptions!L255 -> 24086.94472 | M101: =Assumptions!M255 -> 0 | N101: =Assumptions!N255 -> 27745.72114 | O101: =Assumptions!O255 -> 0 | P101: =Assumptions!P255 -> 16616.94288 | Q101: =Assumptions!Q255 -> 0 | R101: =Assumptions!R255 -> 14177.7586 | S101: =Assumptions!S255 -> 0 | T101: =Assumptions!T255 -> 26739.55762 | U101: =Assumptions!U255 -> 0 | V101: =Assumptions!V255 -> 0 | W101: =Assumptions!W255 -> 0 | X101: =Assumptions!X255 -> 30489.80345 | Y101: =Assumptions!Y255 -> 0 | Z101: =Assumptions!Z255 -> 0 | AA101: =Assumptions!AA255 -> 0 | AB101: =Assumptions!AB255 -> 30489.80345 | AC101: =Assumptions!AC255 -> 0 | AD101: =Assumptions!AD255 -> 0 | AE101: =Assumptions!AE255 -> 0 | AF101: =Assumptions!AF255 -> 30489.80345 | AG101: =Assumptions!AG255 -> 0 | AH101: =Assumptions!AH255 -> 0 | AI101: =Assumptions!AI255 -> 0 | AJ101: =Assumptions!AJ255 -> 30489.80345 | AK101: =Assumptions!AK255 -> 0 | AL101: =Assumptions!AL255 -> 0 | AM101: =Assumptions!AM255 -> 0
D102: =Assumptions!D256 -> Vehicles | E102: =Assumptions!E256 -> 71406.88033 | F102: =Assumptions!F256 -> 51794.90729 | G102: =Assumptions!H256 -> 56375.64657 | H102: =Assumptions!J256 -> 43231.71488 | I102: =Assumptions!L256 -> 60979.60689 | J102: =Assumptions!N256 -> 91820.04308 | K102: =Assumptions!K256 -> 0 | L102: =Assumptions!L256 -> 60979.60689 | M102: =Assumptions!M256 -> 0 | N102: =Assumptions!N256 -> 91820.04308 | O102: =Assumptions!O256 -> 0 | P102: =Assumptions!P256 -> 0 | Q102: =Assumptions!Q256 -> 0 | R102: =Assumptions!R256 -> 134764.9312 | S102: =Assumptions!S256 -> 0 | T102: =Assumptions!T256 -> 0 | U102: =Assumptions!U256 -> 0 | V102: =Assumptions!V256 -> 91820.04308 | W102: =Assumptions!W256 -> 0 | X102: =Assumptions!X256 -> 0 | Y102: =Assumptions!Y256 -> 0 | Z102: =Assumptions!Z256 -> 91820.04308 | AA102: =Assumptions!AA256 -> 0 | AB102: =Assumptions!AB256 -> 67992.26169 | AC102: =Assumptions!AC256 -> 0 | AD102: =Assumptions!AD256 -> 0 | AE102: =Assumptions!AE256 -> 0 | AF102: =Assumptions!AF256 -> 67992.26169 | AG102: =Assumptions!AG256 -> 0 | AH102: =Assumptions!AH256 -> 0 | AI102: =Assumptions!AI256 -> 0 | AJ102: =Assumptions!AJ256 -> 67992.26169 | AK102: =Assumptions!AK256 -> 0 | AL102: =Assumptions!AL256 -> 0 | AM102: =Assumptions!AM256 -> 0
D103: =Assumptions!D257 -> Equipement IT Software | E103: =Assumptions!E257 -> 3743.882602 | F103: =Assumptions!F257 -> 10695.86116 | G103: =Assumptions!H257 -> 12092.81096 | H103: =Assumptions!J257 -> 4923.116912 | I103: =Assumptions!L257 -> 48021.44043 | J103: =Assumptions!N257 -> 14482.65664 | K103: =Assumptions!K257 -> 0 | L103: =Assumptions!L257 -> 48021.44043 | M103: =Assumptions!M257 -> 0 | N103: =Assumptions!N257 -> 14482.65664 | O103: =Assumptions!O257 -> 0 | P103: =Assumptions!P257 -> 48021.44043 | Q103: =Assumptions!Q257 -> 0 | R103: =Assumptions!R257 -> 7470.001845 | S103: =Assumptions!S257 -> 0 | T103: =Assumptions!T257 -> 44972.46009 | U103: =Assumptions!U257 -> 0 | V103: =Assumptions!V257 -> 16144.35093 | W103: =Assumptions!W257 -> 0 | X103: =Assumptions!X257 -> 16144.35093 | Y103: =Assumptions!Y257 -> 0 | Z103: =Assumptions!Z257 -> 16144.35093 | AA103: =Assumptions!AA257 -> 0 | AB103: =Assumptions!AB257 -> 16144.35093 | AC103: =Assumptions!AC257 -> 0 | AD103: =Assumptions!AD257 -> 16144.35093 | AE103: =Assumptions!AE257 -> 0 | AF103: =Assumptions!AF257 -> 16144.35093 | AG103: =Assumptions!AG257 -> 0 | AH103: =Assumptions!AH257 -> 16144.35093 | AI103: =Assumptions!AI257 -> 0 | AJ103: =Assumptions!AJ257 -> 16144.35093 | AK103: =Assumptions!AK257 -> 0 | AL103: =Assumptions!AL257 -> 16144.35093 | AM103: =Assumptions!AM257 -> 0
D104: =Assumptions!D258 -> Office Material | E104: =Assumptions!E258 -> 26616.67914 | F104: =Assumptions!F258 -> 29598.20537 | G104: =Assumptions!H258 -> 2478.516122 | H104: =Assumptions!J258 -> 107002.4259 | I104: =Assumptions!L258 -> 22105.1075 | J104: =Assumptions!N258 -> 5488.164621 | K104: =Assumptions!K258 -> 0 | L104: =Assumptions!L258 -> 22105.1075 | M104: =Assumptions!M258 -> 0 | N104: =Assumptions!N258 -> 5488.164621 | O104: =Assumptions!O258 -> 0 | P104: =Assumptions!P258 -> 762.2450862 | Q104: =Assumptions!Q258 -> 0 | R104: =Assumptions!R258 -> 1372.041155 | S104: =Assumptions!S258 -> 0 | T104: =Assumptions!T258 -> 24544.29178 | U104: =Assumptions!U258 -> 0 | V104: =Assumptions!V258 -> 6097.960689 | W104: =Assumptions!W258 -> 0 | X104: =Assumptions!X258 -> 6097.960689 | Y104: =Assumptions!Y258 -> 0 | Z104: =Assumptions!Z258 -> 6097.960689 | AA104: =Assumptions!AA258 -> 0 | AB104: =Assumptions!AB258 -> 6097.960689 | AC104: =Assumptions!AC258 -> 0 | AD104: =Assumptions!AD258 -> 6097.960689 | AE104: =Assumptions!AE258 -> 0 | AF104: =Assumptions!AF258 -> 6097.960689 | AG104: =Assumptions!AG258 -> 0 | AH104: =Assumptions!AH258 -> 6097.960689 | AI104: =Assumptions!AI258 -> 0 | AJ104: =Assumptions!AJ258 -> 6097.960689 | AK104: =Assumptions!AK258 -> 0 | AL104: =Assumptions!AL258 -> 6097.960689 | AM104: =Assumptions!AM258 -> 0
D105: =Assumptions!D259 -> Office Furniture | E105: =Assumptions!E259 -> 32038.4263 | F105: =Assumptions!F259 -> 36082.33467 | G105: =Assumptions!H259 -> 5623.386899 | H105: =Assumptions!J259 -> 11889.15844 | I105: =Assumptions!L259 -> 10366.53317 | J105: =Assumptions!N259 -> 15244.90172 | K105: =Assumptions!K259 -> 0 | L105: =Assumptions!L259 -> 10366.53317 | M105: =Assumptions!M259 -> 0 | N105: =Assumptions!N259 -> 15244.90172 | O105: =Assumptions!O259 -> 0 | P105: =Assumptions!P259 -> 0 | Q105: =Assumptions!Q259 -> 0 | R105: =Assumptions!R259 -> 0 | S105: =Assumptions!S259 -> 0 | T105: =Assumptions!T259 -> 0 | U105: =Assumptions!U259 -> 0 | V105: =Assumptions!V259 -> 0 | W105: =Assumptions!W259 -> 0 | X105: =Assumptions!X259 -> 15244.90172 | Y105: =Assumptions!Y259 -> 0 | Z105: =Assumptions!Z259 -> 0 | AA105: =Assumptions!AA259 -> 0 | AB105: =Assumptions!AB259 -> 0 | AC105: =Assumptions!AC259 -> 0 | AD105: =Assumptions!AD259 -> 0 | AE105: =Assumptions!AE259 -> 0 | AF105: =Assumptions!AF259 -> 0 | AG105: =Assumptions!AG259 -> 0 | AH105: =Assumptions!AH259 -> 15244.90172 | AI105: =Assumptions!AI259 -> 0 | AJ105: =Assumptions!AJ259 -> 0 | AK105: =Assumptions!AK259 -> 0 | AL105: =Assumptions!AL259 -> 0 | AM105: =Assumptions!AM259 -> 0
D106: =Assumptions!D260 -> Material and Staff Housing | E106: =Assumptions!E260 -> 15665.42929 | F106: =Assumptions!F260 -> 74654.46516 | G106: =Assumptions!H260 -> 1564.732139 | H106: =Assumptions!J260 -> 0 | I106: =Assumptions!L260 -> 1692.184091 | J106: =Assumptions!N260 -> 1859.87801 | K106: =Assumptions!K260 -> 0 | L106: =Assumptions!L260 -> 1692.184091 | M106: =Assumptions!M260 -> 0 | N106: =Assumptions!N260 -> 1859.87801 | O106: =Assumptions!O260 -> 0 | P106: =Assumptions!P260 -> 3719.756021 | Q106: =Assumptions!Q260 -> 0 | R106: =Assumptions!R260 -> 19071.37206 | S106: =Assumptions!S260 -> 0 | T106: =Assumptions!T260 -> 5503.409522 | U106: =Assumptions!U260 -> 0 | V106: =Assumptions!V260 -> 3048.980345 | W106: =Assumptions!W260 -> 0 | X106: =Assumptions!X260 -> 3048.980345 | Y106: =Assumptions!Y260 -> 0 | Z106: =Assumptions!Z260 -> 3048.980345 | AA106: =Assumptions!AA260 -> 0 | AB106: =Assumptions!AB260 -> 3048.980345 | AC106: =Assumptions!AC260 -> 0 | AD106: =Assumptions!AD260 -> 3048.980345 | AE106: =Assumptions!AE260 -> 0 | AF106: =Assumptions!AF260 -> 3048.980345 | AG106: =Assumptions!AG260 -> 0 | AH106: =Assumptions!AH260 -> 3048.980345 | AI106: =Assumptions!AI260 -> 0 | AJ106: =Assumptions!AJ260 -> 3048.980345 | AK106: =Assumptions!AK260 -> 0 | AL106: =Assumptions!AL260 -> 3048.980345 | AM106: =Assumptions!AM260 -> 0
D107: =Assumptions!D261 -> Moving and Installations | E107: =Assumptions!E261 -> 15352.72129 | F107: =Assumptions!F261 -> 70116.1692 | G107: =Assumptions!H261 -> -80.79797914 | H107: =Assumptions!J261 -> 2149.531143 | I107: =Assumptions!L261 -> 0 | J107: =Assumptions!N261 -> 0 | K107: =Assumptions!K261 -> 0 | L107: =Assumptions!L261 -> 0 | M107: =Assumptions!M261 -> 0 | N107: =Assumptions!N261 -> 0 | O107: =Assumptions!O261 -> 0 | P107: =Assumptions!P261 -> 0 | Q107: =Assumptions!Q261 -> 0 | R107: =Assumptions!R261 -> 0 | S107: =Assumptions!S261 -> 0 | T107: =Assumptions!T261 -> 0 | U107: =Assumptions!U261 -> 0 | V107: =Assumptions!V261 -> 0 | W107: =Assumptions!W261 -> 0 | X107: =Assumptions!X261 -> 0 | Y107: =Assumptions!Y261 -> 0 | Z107: =Assumptions!Z261 -> 0 | AA107: =Assumptions!AA261 -> 0 | AB107: =Assumptions!AB261 -> 0 | AC107: =Assumptions!AC261 -> 0 | AD107: =Assumptions!AD261 -> 0 | AE107: =Assumptions!AE261 -> 0 | AF107: =Assumptions!AF261 -> 0 | AG107: =Assumptions!AG261 -> 0 | AH107: =Assumptions!AH261 -> 0 | AI107: =Assumptions!AI261 -> 0 | AJ107: =Assumptions!AJ261 -> 0 | AK107: =Assumptions!AK261 -> 0 | AL107: =Assumptions!AL261 -> 0 | AM107: =Assumptions!AM261 -> 0
D108: =Assumptions!D262 -> Others including establishment fees | E108: =Assumptions!E262 -> 97862.87973 | F108: =Assumptions!F262 -> 1435.740452 | G108: =Assumptions!H262 -> 19056.12715 | H108: =Assumptions!J262 -> 228864.0871 | I108: =Assumptions!L262 -> 0 | J108: =Assumptions!N262 -> 0 | K108: =Assumptions!K262 -> 0 | L108: =Assumptions!L262 -> 0 | M108: =Assumptions!M262 -> 0 | N108: =Assumptions!N262 -> 0 | O108: =Assumptions!O262 -> 0 | P108: =Assumptions!P262 -> 0 | Q108: =Assumptions!Q262 -> 0 | R108: =Assumptions!R262 -> 0 | S108: =Assumptions!S262 -> 0 | T108: =Assumptions!T262 -> 0 | U108: =Assumptions!U262 -> 0 | V108: =Assumptions!V262 -> 0 | W108: =Assumptions!W262 -> 0 | X108: =Assumptions!X262 -> 0 | Y108: =Assumptions!Y262 -> 0 | Z108: =Assumptions!Z262 -> 0 | AA108: =Assumptions!AA262 -> 0 | AB108: =Assumptions!AB262 -> 0 | AC108: =Assumptions!AC262 -> 0 | AD108: =Assumptions!AD262 -> 0 | AE108: =Assumptions!AE262 -> 0 | AF108: =Assumptions!AF262 -> 0 | AG108: =Assumptions!AG262 -> 0 | AH108: =Assumptions!AH262 -> 0 | AI108: =Assumptions!AI262 -> 0 | AJ108: =Assumptions!AJ262 -> 0 | AK108: =Assumptions!AK262 -> 0 | AL108: =Assumptions!AL262 -> 0 | AM108: =Assumptions!AM262 -> 0
D109: -AIBD-SA Operational Capex | E109: =Assumptions!E266 -> 285379.6804 | F109: =SUM(Assumptions!F266:G266) -> 304463.3078 | G109: =SUM(Assumptions!H266:I266) -> 113944.3028 | H109: =SUM(Assumptions!J266:K266) -> 398060.0344 | I109: =SUM(Assumptions!L266:M266) -> 167251.8168 | J109: =Assumptions!N266 -> 157807.4941 | K109: =Assumptions!O266 -> 0 | L109: =Assumptions!P266 -> 71724.00522 | M109: =Assumptions!Q266 -> 0 | N109: =Assumptions!R266 -> 189023.4429 | O109: =Assumptions!S266 -> 0 | P109: =Assumptions!T266 -> 112023.3968 | Q109: =Assumptions!U266 -> 0 | R109: =Assumptions!V266 -> 132791.108 | S109: =Assumptions!W266 -> 0 | T109: =Assumptions!X266 -> 82951.5732 | U109: =Assumptions!Y266 -> 0 | V109: =Assumptions!Z266 -> 140878.0865 | W109: =Assumptions!AA266 -> 0 | X109: =Assumptions!AB266 -> 153358.8726 | Y109: =Assumptions!AC266 -> 0 | Z109: =Assumptions!AD266 -> 32276.76325 | AA109: =Assumptions!AE266 -> 0 | AB109: =Assumptions!AF266 -> 162698.428 | AC109: =Assumptions!AG266 -> 0 | AD109: =Assumptions!AH266 -> 54882.81483 | AE109: =Assumptions!AI266 -> 0 | AF109: =Assumptions!AJ266 -> 172606.7623 | AG109: =Assumptions!AK266 -> 0 | AH109: =Assumptions!AL266 -> 36327.78139 | AI109: =Assumptions!AM266 -> 0 | AJ109: =Assumptions!AN266 -> 183118.5141 | AK109: =Assumptions!AO266 -> 0 | AL109: =Assumptions!AP266 -> 38540.14328 | AM109: =Assumptions!AQ266 -> 0
D111: - Provision for Maintenance and Renewal | E111: =Assumptions!H461 -> 0 | F111: =Assumptions!I461 -> 0 | G111: =Assumptions!J461 -> 0 | H111: =Assumptions!K461 -> 0 | I111: =Assumptions!M461 -> 0 | J111: =Assumptions!N461 -> 0 | K111: =Assumptions!O461 -> 0 | L111: =Assumptions!P461 -> 0 | M111: =Assumptions!Q461 -> 0 | N111: =Assumptions!R461 -> 2869790.195 | O111: =Assumptions!S461 -> 2912518.95 | P111: =Assumptions!T461 -> 2955883.9 | Q111: =Assumptions!U461 -> 2999894.518 | R111: =Assumptions!V461 -> 3044560.417 | S111: =Assumptions!W461 -> 3089891.354 | T111: =Assumptions!X461 -> 3135897.23 | U111: =Assumptions!Y461 -> 3182588.095 | V111: =Assumptions!Z461 -> 3229974.147 | W111: =Assumptions!AA461 -> 3278065.737 | X111: =Assumptions!AB461 -> 3326873.371 | Y111: =Assumptions!AC461 -> 3376407.71 | Z111: =Assumptions!AD461 -> 3426679.572 | AA111: =Assumptions!AE461 -> 3477699.941 | AB111: =Assumptions!AF461 -> 3529479.96 | AC111: =Assumptions!AG461 -> 3582030.939 | AD111: =Assumptions!AH461 -> 3635364.358 | AE111: =Assumptions!AI461 -> 3689491.867 | AF111: =Assumptions!AJ461 -> 3744425.289 | AG111: =Assumptions!AK461 -> 3800176.623 | AH111: =Assumptions!AL461 -> 3856758.048 | AI111: =Assumptions!AM461 -> 3914181.922 | AJ111: =Assumptions!AN461 -> 3972460.789 | AK111: =Assumptions!AO461 -> 4031607.38 | AL111: =Assumptions!AP461 -> 4091634.613 | AM111: =Assumptions!AQ461 -> 4152555.601
D113: Cash Flows before Airport-linked Capex | E113: =E99-E109-E111 -> -719480.9751 | F113: -901060.3317 | G113: 5208186.415 | H113: 5894703.115 | I113: -17595192.8 | J113: -1892218.95 | K113: -1060356.479 | L113: 2276834.943 | M113: 3348585.419 | N113: 3341657.158 | O113: 1815363.094 | P113: 161932.3084 | Q113: 2014807.24 | R113: 1826912.69 | S113: 3446426.627 | T113: 2009702.742 | U113: 4007275.526 | V113: 2364330.63 | W113: 4619328.604 | X113: 2760498.974 | Y113: 5241559.288 | Z113: 3262596.309 | AA113: 5834352.593 | AB113: 3578727.28 | AC113: 6488275.68 | AD113: 4162136.626 | AE113: 7189736.147 | AF113: 4563145.809 | AG113: 7949781.357 | AH113: 7211001.886 | AI113: 10804672.07 | AJ113: 7305390.591 | AK113: 11858261.15 | AL113: 8241857.32 | AM113: 13000614.16
D115: -Airport Capex | E115: 0 | F115: =SUM('Bridge Loan'!F66:F67)+SUM(E113:F113) -> 78759310.67 | G115: =SUM('Bridge Loan'!F68:F72)+G113 -> 18734833.9 | H115: =SUM('Bridge Loan'!F73:F75)+H113 -> 26894470.2 | I115: =SUM('Bridge Loan'!F76:F84)+I113 -> 65786556.26 | J115: =SUM('Drawdown Schedule'!K37:K41)+SUM('Bridge Loan'!F85:F86)+J113-'Drawdown Schedule'!I37 -> 208817859.9 | K115: =SUM('Drawdown Schedule'!K42:K49)+K113 -> 139871168.8 | L115: 0 | M115: 0 | N115: 0 | O115: 0 | P115: 0 | Q115: 0 | R115: 0 | S115: 0 | T115: 0 | U115: 0 | V115: 0 | W115: 0 | X115: 0 | Y115: 0 | Z115: 0 | AA115: 0 | AB115: 0 | AC115: 0 | AD115: 0 | AE115: 0 | AF115: 0 | AG115: 0 | AH115: 0 | AI115: 0 | AJ115: 0 | AK115: 0 | AL115: 0
D118: - Maintenance and Renewal Capex | E118: =Assumptions!I465 -> 0 | F118: =Assumptions!J465 -> 0 | G118: =Assumptions!K465 -> 0 | H118: =Assumptions!L465 -> 0 | I118: =Assumptions!M465 -> 0 | J118: =Assumptions!N465 -> 0 | K118: =Assumptions!O465 -> 0 | L118: =Assumptions!P465 -> 0 | M118: =Assumptions!Q465 -> 0 | N118: =Assumptions!R465 -> 0 | O118: =Assumptions!S465 -> 0 | P118: =Assumptions!T465 -> 0 | Q118: =Assumptions!U465 -> 0 | R118: =Assumptions!V465 -> 0 | S118: =Assumptions!W465 -> 0 | T118: =Assumptions!X465 -> 0 | U118: =Assumptions!Y465 -> 0 | V118: =Assumptions!Z465 -> 3924100.47 | W118: =Assumptions!AA465 -> 3982527.017 | X118: =Assumptions!AB465 -> 0 | Y118: =Assumptions!AC465 -> 0 | Z118: =Assumptions!AD465 -> 0 | AA118: =Assumptions!AE465 -> 0 | AB118: =Assumptions!AF465 -> 0 | AC118: =Assumptions!AG465 -> 0 | AD118: =Assumptions!AH465 -> 0 | AE118: =Assumptions!AI465 -> 0 | AF118: =Assumptions!AJ465 -> 17278215.05 | AG118: =Assumptions!AK465 -> 17535473.1 | AH118: =Assumptions!AL465 -> 0 | AI118: =Assumptions!AM465 -> 0 | AJ118: =Assumptions!AN465 -> 0 | AK118: =Assumptions!AO465 -> 0 | AL118: =Assumptions!AP465 -> 0 | AM118: =Assumptions!AQ465 -> 0
D120: Cash flows before Financing activities | E120: =E113-E115-E118 -> -719480.9751 | F120: -79660371 | G120: -13526647.49 | H120: -20999767.08 | I120: -83381749.06 | J120: -210710078.8 | K120: -140931525.3 | L120: 2276834.943 | M120: 3348585.419 | N120: 3341657.158 | O120: 1815363.094 | P120: 161932.3084 | Q120: 2014807.24 | R120: 1826912.69 | S120: 3446426.627 | T120: 2009702.742 | U120: 4007275.526 | V120: -1559769.84 | W120: 636801.5873 | X120: 2760498.974 | Y120: 5241559.288 | Z120: 3262596.309 | AA120: 5834352.593 | AB120: 3578727.28 | AC120: 6488275.68 | AD120: 4162136.626 | AE120: 7189736.147 | AF120: -12715069.24 | AG120: -9585691.74 | AH120: 7211001.886 | AI120: 10804672.07 | AJ120: 7305390.591 | AK120: 11858261.15 | AL120: 8241857.32 | AM120: 13000614.16
D122: +Equity | E122: =100000000/Assumptions!F12 -> 152449.0172
D123: +Loans Inflows (Corporate loan + BL actual to date) | E123: =-E122-E120+(325000000/Assumptions!F12) -> 1062491.264
D124: +Loans Inflows (LTF) | F124: =53778323695/655.957 -> 81984525.96 | G124: =33042380856/655.957 -> 50372784.89 | H124: =(22028245968+18242096)/655.957 -> 33609654.39 | I124: =-I120-I123 -> 83381749.06 | J124: =-J120-J122 -> 210710078.8 | K124: =-K120-K122 -> 140931525.3
D125: +RDIA Collected | F125: =41387343869/655.957-F126 -> 62296420.03 | G125: =73758781.3984342+14439267.6207284-F125 -> 25901628.99 | H125: =102516760.208434+20843883.6207284-G125 -> 97459014.84 | I125: =24284582.3+SUMPRODUCT(('Cash sweep'!$D$7:$D$262>(EDATE(I2,-12)))*('Cash sweep'!$D$7:$D$262<I2),'Cash sweep'!$I$7:$I$262) -> 35182472.37 | J125: =SUMPRODUCT(('Cash sweep'!$D$6:$D$262>(EDATE(J2,-6)))*('Cash sweep'!$D$6:$D$262<J2),'Cash sweep'!$I$6:$I$262) -> 20828501.64 | K125: =SUMPRODUCT(('Cash sweep'!$D$6:$D$262>(EDATE(K2,-6)))*('Cash sweep'!$D$6:$D$262<K2),'Cash sweep'!$I$6:$I$262) -> 20180165.52 | L125: =SUMPRODUCT(('Cash sweep'!$D$6:$D$262>(EDATE(L2,-6)))*('Cash sweep'!$D$6:$D$262<L2),'Cash sweep'!$I$6:$I$262) -> 23363378.08 | M125: =SUMPRODUCT(('Cash sweep'!$D$6:$D$262>(EDATE(M2,-6)))*('Cash sweep'!$D$6:$D$262<M2),'Cash sweep'!$I$6:$I$262) -> 21566198.56 | N125: =SUMPRODUCT(('Cash sweep'!$D$6:$D$262>(EDATE(N2,-6)))*('Cash sweep'!$D$6:$D$262<N2),'Cash sweep'!$I$6:$I$262) -> 24980723.46 | O125: =SUMPRODUCT(('Cash sweep'!$D$6:$D$262>(EDATE(O2,-6)))*('Cash sweep'!$D$6:$D$262<O2),'Cash sweep'!$I$6:$I$262) -> 23063974.32 | P125: =SUMPRODUCT(('Cash sweep'!$D$6:$D$262>(EDATE(P2,-6)))*('Cash sweep'!$D$6:$D$262<P2),'Cash sweep'!$I$6:$I$262) -> 26723254.14 | Q125: =SUMPRODUCT(('Cash sweep'!$D$6:$D$262>(EDATE(Q2,-6)))*('Cash sweep'!$D$6:$D$262<Q2),'Cash sweep'!$I$6:$I$262) -> 24675708.39 | R125: =SUMPRODUCT(('Cash sweep'!$D$6:$D$262>(EDATE(R2,-6)))*('Cash sweep'!$D$6:$D$262<R2),'Cash sweep'!$I$6:$I$262) -> 28572124.71 | S125: =SUMPRODUCT(('Cash sweep'!$D$6:$D$262>(EDATE(S2,-6)))*('Cash sweep'!$D$6:$D$262<S2),'Cash sweep'!$I$6:$I$262) -> 26375830.27 | T125: =SUMPRODUCT(('Cash sweep'!$D$6:$D$262>(EDATE(T2,-6)))*('Cash sweep'!$D$6:$D$262<T2),'Cash sweep'!$I$6:$I$262) -> 30617770.19 | U125: =SUMPRODUCT(('Cash sweep'!$D$6:$D$262>(EDATE(U2,-6)))*('Cash sweep'!$D$6:$D$262<U2),'Cash sweep'!$I$6:$I$262) -> 28293650.54 | V125: =SUMPRODUCT(('Cash sweep'!$D$6:$D$262>(EDATE(V2,-6)))*('Cash sweep'!$D$6:$D$262<V2),'Cash sweep'!$I$6:$I$262) -> 32881164.46 | W125: =SUMPRODUCT(('Cash sweep'!$D$6:$D$262>(EDATE(W2,-6)))*('Cash sweep'!$D$6:$D$262<W2),'Cash sweep'!$I$6:$I$262) -> 30399377.74 | X125: =SUMPRODUCT(('Cash sweep'!$D$6:$D$262>(EDATE(X2,-6)))*('Cash sweep'!$D$6:$D$262<X2),'Cash sweep'!$I$6:$I$262) -> 35134470.78 | Y125: =SUMPRODUCT(('Cash sweep'!$D$6:$D$262>(EDATE(Y2,-6)))*('Cash sweep'!$D$6:$D$262<Y2),'Cash sweep'!$I$6:$I$262) -> 32408879.56 | Z125: =SUMPRODUCT(('Cash sweep'!$D$6:$D$262>(EDATE(Z2,-6)))*('Cash sweep'!$D$6:$D$262<Z2),'Cash sweep'!$I$6:$I$262) -> 37148394.08 | AA125: =SUMPRODUCT(('Cash sweep'!$D$6:$D$262>(EDATE(AA2,-6)))*('Cash sweep'!$D$6:$D$262<AA2),'Cash sweep'!$I$6:$I$262) -> 34148548.71 | AB125: =SUMPRODUCT(('Cash sweep'!$D$6:$D$262>(EDATE(AB2,-6)))*('Cash sweep'!$D$6:$D$262<AB2),'Cash sweep'!$I$6:$I$262) -> 39148040.03 | AC125: =SUMPRODUCT(('Cash sweep'!$D$6:$D$262>(EDATE(AC2,-6)))*('Cash sweep'!$D$6:$D$262<AC2),'Cash sweep'!$I$6:$I$262) -> 35988863.46 | AD125: =SUMPRODUCT(('Cash sweep'!$D$6:$D$262>(EDATE(AD2,-6)))*('Cash sweep'!$D$6:$D$262<AD2),'Cash sweep'!$I$6:$I$262) -> 41263597.36 | AE125: =SUMPRODUCT(('Cash sweep'!$D$6:$D$262>(EDATE(AE2,-6)))*('Cash sweep'!$D$6:$D$262<AE2),'Cash sweep'!$I$6:$I$262) -> 37935940.41 | AF125: =SUMPRODUCT(('Cash sweep'!$D$6:$D$262>(EDATE(AF2,-6)))*('Cash sweep'!$D$6:$D$262<AF2),'Cash sweep'!$I$6:$I$262) -> 43502117.85 | AG125: =SUMPRODUCT(('Cash sweep'!$D$6:$D$262>(EDATE(AG2,-6)))*('Cash sweep'!$D$6:$D$262<AG2),'Cash sweep'!$I$6:$I$262) -> 39996277.61 | AH125: =SUMPRODUCT(('Cash sweep'!$D$6:$D$262>(EDATE(AH2,-6)))*('Cash sweep'!$D$6:$D$262<AH2),'Cash sweep'!$I$6:$I$262) -> 45871093.28 | AI125: =SUMPRODUCT(('Cash sweep'!$D$6:$D$262>(EDATE(AI2,-6)))*('Cash sweep'!$D$6:$D$262<AI2),'Cash sweep'!$I$6:$I$262) -> 42176778.61 | AJ125: =SUMPRODUCT(('Cash sweep'!$D$6:$D$262>(EDATE(AJ2,-6)))*('Cash sweep'!$D$6:$D$262<AJ2),'Cash sweep'!$I$6:$I$262) -> 48378483.22 | AK125: =SUMPRODUCT(('Cash sweep'!$D$6:$D$262>(EDATE(AK2,-6)))*('Cash sweep'!$D$6:$D$262<AK2),'Cash sweep'!$I$6:$I$262) -> 44484778.11 | AL125: =SUMPRODUCT(('Cash sweep'!$D$6:$D$262>(EDATE(AL2,-6)))*('Cash sweep'!$D$6:$D$262<AL2),'Cash sweep'!$I$6:$I$262) -> 51032744.6 | AM125: =SUMPRODUCT(('Cash sweep'!$D$6:$D$262>(EDATE(AM2,-6)))*('Cash sweep'!$D$6:$D$262<AM2),'Cash sweep'!$I$6:$I$262) -> 46928069.25
D126: +Interest on Escrow Account | F126: 798178.96 | G126: =2552283.13-F126 -> 1754104.17 | H126: 213763.39 | I126: =SUMPRODUCT(('Cash sweep'!$D$6:$D$262>(EDATE(I2,-6)))*('Cash sweep'!$D$6:$D$262<I2),'Cash sweep'!$M$6:$M$262)+12673.23 -> 61237.53964 | J126: =SUMPRODUCT(('Cash sweep'!$D$6:$D$262>(EDATE(J2,-6)))*('Cash sweep'!$D$6:$D$262<J2),'Cash sweep'!$M$6:$M$262) -> 106578.4837 | K126: =SUMPRODUCT(('Cash sweep'!$D$6:$D$262>(EDATE(K2,-6)))*('Cash sweep'!$D$6:$D$262<K2),'Cash sweep'!$M$6:$M$262) -> 195594.1936 | L126: =SUMPRODUCT(('Cash sweep'!$D$6:$D$262>(EDATE(L2,-6)))*('Cash sweep'!$D$6:$D$262<L2),'Cash sweep'!$M$6:$M$262) -> 232769.49 | M126: =SUMPRODUCT(('Cash sweep'!$D$6:$D$262>(EDATE(M2,-6)))*('Cash sweep'!$D$6:$D$262<M2),'Cash sweep'!$M$6:$M$262) -> 276546.7029 | N126: =SUMPRODUCT(('Cash sweep'!$D$6:$D$262>(EDATE(N2,-6)))*('Cash sweep'!$D$6:$D$262<N2),'Cash sweep'!$M$6:$M$262) -> 310380.415 | O126: =SUMPRODUCT(('Cash sweep'!$D$6:$D$262>(EDATE(O2,-6)))*('Cash sweep'!$D$6:$D$262<O2),'Cash sweep'!$M$6:$M$262) -> 333318.1669 | P126: =SUMPRODUCT(('Cash sweep'!$D$6:$D$262>(EDATE(P2,-6)))*('Cash sweep'!$D$6:$D$262<P2),'Cash sweep'!$M$6:$M$262) -> 207821.9815 | Q126: =SUMPRODUCT(('Cash sweep'!$D$6:$D$262>(EDATE(Q2,-6)))*('Cash sweep'!$D$6:$D$262<Q2),'Cash sweep'!$M$6:$M$262) -> 206564.1246 | R126: =SUMPRODUCT(('Cash sweep'!$D$6:$D$262>(EDATE(R2,-6)))*('Cash sweep'!$D$6:$D$262<R2),'Cash sweep'!$M$6:$M$262) -> 200001.2394 | S126: =SUMPRODUCT(('Cash sweep'!$D$6:$D$262>(EDATE(S2,-6)))*('Cash sweep'!$D$6:$D$262<S2),'Cash sweep'!$M$6:$M$262) -> 207535.957 | T126: =SUMPRODUCT(('Cash sweep'!$D$6:$D$262>(EDATE(T2,-6)))*('Cash sweep'!$D$6:$D$262<T2),'Cash sweep'!$M$6:$M$262) -> 202006.1302 | U126: =SUMPRODUCT(('Cash sweep'!$D$6:$D$262>(EDATE(U2,-6)))*('Cash sweep'!$D$6:$D$262<U2),'Cash sweep'!$M$6:$M$262) -> 208349.1182 | V126: =SUMPRODUCT(('Cash sweep'!$D$6:$D$262>(EDATE(V2,-6)))*('Cash sweep'!$D$6:$D$262<V2),'Cash sweep'!$M$6:$M$262) -> 200880.5092 | W126: =SUMPRODUCT(('Cash sweep'!$D$6:$D$262>(EDATE(W2,-6)))*('Cash sweep'!$D$6:$D$262<W2),'Cash sweep'!$M$6:$M$262) -> 207916.1857 | X126: =SUMPRODUCT(('Cash sweep'!$D$6:$D$262>(EDATE(X2,-6)))*('Cash sweep'!$D$6:$D$262<X2),'Cash sweep'!$M$6:$M$262) -> 199254.0655 | Y126: =SUMPRODUCT(('Cash sweep'!$D$6:$D$262>(EDATE(Y2,-6)))*('Cash sweep'!$D$6:$D$262<Y2),'Cash sweep'!$M$6:$M$262) -> 205290.5842 | Z126: =SUMPRODUCT(('Cash sweep'!$D$6:$D$262>(EDATE(Z2,-6)))*('Cash sweep'!$D$6:$D$262<Z2),'Cash sweep'!$M$6:$M$262) -> 195334.8235 | AA126: =SUMPRODUCT(('Cash sweep'!$D$6:$D$262>(EDATE(AA2,-6)))*('Cash sweep'!$D$6:$D$262<AA2),'Cash sweep'!$M$6:$M$262) -> 200006.4072 | AB126: =SUMPRODUCT(('Cash sweep'!$D$6:$D$262>(EDATE(AB2,-6)))*('Cash sweep'!$D$6:$D$262<AB2),'Cash sweep'!$M$6:$M$262) -> 189997.4702 | AC126: =SUMPRODUCT(('Cash sweep'!$D$6:$D$262>(EDATE(AC2,-6)))*('Cash sweep'!$D$6:$D$262<AC2),'Cash sweep'!$M$6:$M$262) -> 192890.5388 | AD126: =SUMPRODUCT(('Cash sweep'!$D$6:$D$262>(EDATE(AD2,-6)))*('Cash sweep'!$D$6:$D$262<AD2),'Cash sweep'!$M$6:$M$262) -> 205530.2175 | AE126: =SUMPRODUCT(('Cash sweep'!$D$6:$D$262>(EDATE(AE2,-6)))*('Cash sweep'!$D$6:$D$262<AE2),'Cash sweep'!$M$6:$M$262) -> 361818.0545 | AF126: =SUMPRODUCT(('Cash sweep'!$D$6:$D$262>(EDATE(AF2,-6)))*('Cash sweep'!$D$6:$D$262<AF2),'Cash sweep'!$M$6:$M$262) -> 498405.6784 | AG126: =SUMPRODUCT(('Cash sweep'!$D$6:$D$262>(EDATE(AG2,-6)))*('Cash sweep'!$D$6:$D$262<AG2),'Cash sweep'!$M$6:$M$262) -> 664220.476 | AH126: =SUMPRODUCT(('Cash sweep'!$D$6:$D$262>(EDATE(AH2,-6)))*('Cash sweep'!$D$6:$D$262<AH2),'Cash sweep'!$M$6:$M$262) -> 798702.6587 | AI126: =SUMPRODUCT(('Cash sweep'!$D$6:$D$262>(EDATE(AI2,-6)))*('Cash sweep'!$D$6:$D$262<AI2),'Cash sweep'!$M$6:$M$262) -> 973113.3601 | AJ126: =SUMPRODUCT(('Cash sweep'!$D$6:$D$262>(EDATE(AJ2,-6)))*('Cash sweep'!$D$6:$D$262<AJ2),'Cash sweep'!$M$6:$M$262) -> 1111153.227 | AK126: =SUMPRODUCT(('Cash sweep'!$D$6:$D$262>(EDATE(AK2,-6)))*('Cash sweep'!$D$6:$D$262<AK2),'Cash sweep'!$M$6:$M$262) -> 1287946.37 | AL126: =SUMPRODUCT(('Cash sweep'!$D$6:$D$262>(EDATE(AL2,-6)))*('Cash sweep'!$D$6:$D$262<AL2),'Cash sweep'!$M$6:$M$262) -> 1416985.4 | AM126: =SUMPRODUCT(('Cash sweep'!$D$6:$D$262>(EDATE(AM2,-6)))*('Cash sweep'!$D$6:$D$262<AM2),'Cash sweep'!$M$6:$M$262) -> 1607976.886
D127: +Autres dettes | E127: -14994
D128: +Trésorerie-Actif | H128: =-251845/655.957 -> -383.9352275
D129: -Découvert bancaire | E129: =5105846/655.957 -> 7783.812049 | G129: =(127315/655.957) -> 194.0904663 | H129: =95473452/655.957 -> 145548.3393
D130: -Adjustments | F130: =1311248 -> 1311248 | G130: 166974 | H130: -69803
D131: +Credit to the Maintenance and Renewal Account | E131: =E111 -> 0 | F131: 0 | G131: 0 | H131: 0 | I131: 0 | J131: 0 | K131: 0 | L131: 0 | M131: 0 | N131: 2869790.195 | O131: 2912518.95 | P131: 2955883.9 | Q131: 2999894.518 | R131: 3044560.417 | S131: 3089891.354 | T131: 3135897.23 | U131: 3182588.095 | V131: 3229974.147 | W131: 3278065.737 | X131: 3326873.371 | Y131: 3376407.71 | Z131: 3426679.572 | AA131: 3477699.941 | AB131: 3529479.96 | AC131: 3582030.939 | AD131: 3635364.358 | AE131: 3689491.867 | AF131: 3744425.289 | AG131: 3800176.623 | AH131: 3856758.048 | AI131: 3914181.922 | AJ131: 3972460.789 | AK131: 4031607.38 | AL131: 4091634.613 | AM131: 4152555.601
D133: Total Cash flows before debt service | E133: =E120+SUM(E122:E132)-E129 -> 480465.306 | F133: 66730001.95 | G133: 64668844.56 | H133: 110212478.6 | I133: 35243709.91 | J133: 20935080.12 | K133: 20375759.72 | L133: 25872982.52 | M133: 25191330.68 | N133: 31502551.23 | O133: 28125174.53 | P133: 30048892.33 | Q133: 29896974.28 | R133: 33643599.06 | S133: 33119684.21 | T133: 35965376.29 | U133: 35691863.28 | V133: 34752249.27 | W133: 34522161.25 | X133: 41421097.19 | Y133: 41232137.14 | Z133: 44033004.78 | AA133: 43660607.65 | AB133: 46446244.74 | AC133: 46252060.61 | AD133: 49266628.56 | AE133: 49176986.48 | AF133: 35029879.57 | AG133: 34874982.97 | AH133: 57737555.87 | AI133: 57868745.96 | AJ133: 60767487.83 | AK133: 61662593.01 | AL133: 64783221.93 | AM133: 65689215.9
D135: Interests & fees payments | F135: 0 | G135: =SUM('Bridge Loan'!L17:M28) -> 6595337.789 | H135: =SUM('Bridge Loan'!L29:M40) -> 3186272.232 | I135: =SUM('Bridge Loan'!L41:M52) -> 1343565.628 | J135: =SUMPRODUCT((Output!$D$5:$D$261>EDATE(J2,-6))*(Output!$D$5:$D$261<J2),Output!$U$5:$U$261) -> 3096753.018 | K135: =SUMPRODUCT((Output!$D$5:$D$261>EDATE(K2,-6))*(Output!$D$5:$D$261<K2),Output!$U$5:$U$261) -> 12912191.22 | L135: =SUMPRODUCT((Output!$D$5:$D$261>EDATE(L2,-6))*(Output!$D$5:$D$261<L2),Output!$U$5:$U$261) -> 14953685.01 | M135: =SUMPRODUCT((Output!$D$5:$D$261>EDATE(M2,-6))*(Output!$D$5:$D$261<M2),Output!$U$5:$U$261) -> 14953685.01 | N135: =SUMPRODUCT((Output!$D$5:$D$261>EDATE(N2,-6))*(Output!$D$5:$D$261<N2),Output!$U$5:$U$261) -> 14869483.4 | O135: =SUMPRODUCT((Output!$D$5:$D$261>EDATE(O2,-6))*(Output!$D$5:$D$261<O2),Output!$U$5:$U$261) -> 14953685.01 | P135: =SUMPRODUCT((Output!$D$5:$D$261>EDATE(P2,-6))*(Output!$D$5:$D$261<P2),Output!$U$5:$U$261) -> 13363815.13 | Q135: =SUMPRODUCT((Output!$D$5:$D$261>EDATE(Q2,-6))*(Output!$D$5:$D$261<Q2),Output!$U$5:$U$261) -> 12877415.74 | R135: =SUMPRODUCT((Output!$D$5:$D$261>EDATE(R2,-6))*(Output!$D$5:$D$261<R2),Output!$U$5:$U$261) -> 12269814.41 | S135: =SUMPRODUCT((Output!$D$5:$D$261>EDATE(S2,-6))*(Output!$D$5:$D$261<S2),Output!$U$5:$U$261) -> 11747689.34 | T135: =SUMPRODUCT((Output!$D$5:$D$261>EDATE(T2,-6))*(Output!$D$5:$D$261<T2),Output!$U$5:$U$261) -> 11095917.02 | U135: =SUMPRODUCT((Output!$D$5:$D$261>EDATE(U2,-6))*(Output!$D$5:$D$261<U2),Output!$U$5:$U$261) -> 10377849.32 | V135: =SUMPRODUCT((Output!$D$5:$D$261>EDATE(V2,-6))*(Output!$D$5:$D$261<V2),Output!$U$5:$U$261) -> 9532714.324 | W135: =SUMPRODUCT((Output!$D$5:$D$261>EDATE(W2,-6))*(Output!$D$5:$D$261<W2),Output!$U$5:$U$261) -> 8716807.43 | X135: =SUMPRODUCT((Output!$D$5:$D$261>EDATE(X2,-6))*(Output!$D$5:$D$261<X2),Output!$U$5:$U$261) -> 7721646.226 | Y135: =SUMPRODUCT((Output!$D$5:$D$261>EDATE(Y2,-6))*(Output!$D$5:$D$261<Y2),Output!$U$5:$U$261) -> 6731396.582 | Z135: =SUMPRODUCT((Output!$D$5:$D$261>EDATE(Z2,-6))*(Output!$D$5:$D$261<Z2),Output!$U$5:$U$261) -> 5578850.041 | AA135: =SUMPRODUCT((Output!$D$5:$D$261>EDATE(AA2,-6))*(Output!$D$5:$D$261<AA2),Output!$U$5:$U$261) -> 4407011.703 | AB135: =SUMPRODUCT((Output!$D$5:$D$261>EDATE(AB2,-6))*(Output!$D$5:$D$261<AB2),Output!$U$5:$U$261) -> 3114318.568 | AC135: =SUMPRODUCT((Output!$D$5:$D$261>EDATE(AC2,-6))*(Output!$D$5:$D$261<AC2),Output!$U$5:$U$261) -> 1732148.773 | AD135: =SUMPRODUCT((Output!$D$5:$D$261>EDATE(AD2,-6))*(Output!$D$5:$D$261<AD2),Output!$U$5:$U$261) -> 248614.3807 | AE135: =SUMPRODUCT((Output!$D$5:$D$261>EDATE(AE2,-6))*(Output!$D$5:$D$261<AE2),Output!$U$5:$U$261) -> 50000 | AF135: =SUMPRODUCT((Output!$D$5:$D$261>EDATE(AF2,-6))*(Output!$D$5:$D$261<AF2),Output!$U$5:$U$261) -> 50000 | AG135: =SUMPRODUCT((Output!$D$5:$D$261>EDATE(AG2,-6))*(Output!$D$5:$D$261<AG2),Output!$U$5:$U$261) -> 50000 | AH135: =SUMPRODUCT((Output!$D$5:$D$261>EDATE(AH2,-6))*(Output!$D$5:$D$261<AH2),Output!$U$5:$U$261) -> 50000 | AI135: =SUMPRODUCT((Output!$D$5:$D$261>EDATE(AI2,-6))*(Output!$D$5:$D$261<AI2),Output!$U$5:$U$261) -> 50000 | AJ135: =SUMPRODUCT((Output!$D$5:$D$261>EDATE(AJ2,-6))*(Output!$D$5:$D$261<AJ2),Output!$U$5:$U$261) -> 50000 | AK135: =SUMPRODUCT((Output!$D$5:$D$261>EDATE(AK2,-6))*(Output!$D$5:$D$261<AK2),Output!$U$5:$U$261) -> 50000 | AL135: =SUMPRODUCT((Output!$D$5:$D$261>EDATE(AL2,-6))*(Output!$D$5:$D$261<AL2),Output!$U$5:$U$261) -> 50000 | AM135: =SUMPRODUCT((Output!$D$5:$D$261>EDATE(AM2,-6))*(Output!$D$5:$D$261<AM2),Output!$U$5:$U$261) -> 50000
D136: Capital Payments (ex-refinancing) | F136: =SUM('Bridge Loan'!K14:K16) -> 0 | G136: =SUM('Bridge Loan'!K17:K28) -> 26742739.28 | H136: =SUM('Bridge Loan'!K29:K40) -> 54581647.17 | I136: =SUM('Bridge Loan'!K41:K52) -> 55581880.08 | J136: =SUMPRODUCT((Output!$D$5:$D$261>EDATE(J2,-6))*(Output!$D$5:$D$261<J2),Output!$T$5:$T$261) -> -1615889.264 | K136: =SUMPRODUCT((Output!$D$5:$D$261>EDATE(K2,-6))*(Output!$D$5:$D$261<K2),Output!$T$5:$T$261) -> 0 | L136: =SUMPRODUCT((Output!$D$5:$D$261>EDATE(L2,-6))*(Output!$D$5:$D$261<L2),Output!$T$5:$T$261) -> 0 | M136: =SUMPRODUCT((Output!$D$5:$D$261>EDATE(M2,-6))*(Output!$D$5:$D$261<M2),Output!$T$5:$T$261) -> 0 | N136: =SUMPRODUCT((Output!$D$5:$D$261>EDATE(N2,-6))*(Output!$D$5:$D$261<N2),Output!$T$5:$T$261) -> 0 | O136: =SUMPRODUCT((Output!$D$5:$D$261>EDATE(O2,-6))*(Output!$D$5:$D$261<O2),Output!$T$5:$T$261) -> 38497200.11 | P136: =SUMPRODUCT((Output!$D$5:$D$261>EDATE(P2,-6))*(Output!$D$5:$D$261<P2),Output!$T$5:$T$261) -> 14289306.73 | Q136: =SUMPRODUCT((Output!$D$5:$D$261>EDATE(Q2,-6))*(Output!$D$5:$D$261<Q2),Output!$T$5:$T$261) -> 13682302.58 | R136: =SUMPRODUCT((Output!$D$5:$D$261>EDATE(R2,-6))*(Output!$D$5:$D$261<R2),Output!$T$5:$T$261) -> 15039555.18 | S136: =SUMPRODUCT((Output!$D$5:$D$261>EDATE(S2,-6))*(Output!$D$5:$D$261<S2),Output!$T$5:$T$261) -> 16570482.71 | T136: =SUMPRODUCT((Output!$D$5:$D$261>EDATE(T2,-6))*(Output!$D$5:$D$261<T2),Output!$T$5:$T$261) -> 18255958.53 | U136: =SUMPRODUCT((Output!$D$5:$D$261>EDATE(U2,-6))*(Output!$D$5:$D$261<U2),Output!$T$5:$T$261) -> 20116676.26 | V136: =SUMPRODUCT((Output!$D$5:$D$261>EDATE(V2,-6))*(Output!$D$5:$D$261<V2),Output!$T$5:$T$261) -> 22113202.17 | W136: =SUMPRODUCT((Output!$D$5:$D$261>EDATE(W2,-6))*(Output!$D$5:$D$261<W2),Output!$T$5:$T$261) -> 24192516.25 | X136: =SUMPRODUCT((Output!$D$5:$D$261>EDATE(X2,-6))*(Output!$D$5:$D$261<X2),Output!$T$5:$T$261) -> 26284030.74 | Y136: =SUMPRODUCT((Output!$D$5:$D$261>EDATE(Y2,-6))*(Output!$D$5:$D$261<Y2),Output!$T$5:$T$261) -> 28503371.72 | Z136: =SUMPRODUCT((Output!$D$5:$D$261>EDATE(Z2,-6))*(Output!$D$5:$D$261<Z2),Output!$T$5:$T$261) -> 30591159.12 | AA136: =SUMPRODUCT((Output!$D$5:$D$261>EDATE(AA2,-6))*(Output!$D$5:$D$261<AA2),Output!$T$5:$T$261) -> 32865079.71 | AB136: =SUMPRODUCT((Output!$D$5:$D$261>EDATE(AB2,-6))*(Output!$D$5:$D$261<AB2),Output!$T$5:$T$261) -> 35139910.03 | AC136: =SUMPRODUCT((Output!$D$5:$D$261>EDATE(AC2,-6))*(Output!$D$5:$D$261<AC2),Output!$T$5:$T$261) -> 37688285.63 | AD136: =SUMPRODUCT((Output!$D$5:$D$261>EDATE(AD2,-6))*(Output!$D$5:$D$261<AD2),Output!$T$5:$T$261) -> 5078208.597 | AE136: =SUMPRODUCT((Output!$D$5:$D$261>EDATE(AE2,-6))*(Output!$D$5:$D$261<AE2),Output!$T$5:$T$261) -> 0 | AF136: =SUMPRODUCT((Output!$D$5:$D$261>EDATE(AF2,-6))*(Output!$D$5:$D$261<AF2),Output!$T$5:$T$261) -> 0 | AG136: =SUMPRODUCT((Output!$D$5:$D$261>EDATE(AG2,-6))*(Output!$D$5:$D$261<AG2),Output!$T$5:$T$261) -> 0 | AH136: =SUMPRODUCT((Output!$D$5:$D$261>EDATE(AH2,-6))*(Output!$D$5:$D$261<AH2),Output!$T$5:$T$261) -> 0 | AI136: =SUMPRODUCT((Output!$D$5:$D$261>EDATE(AI2,-6))*(Output!$D$5:$D$261<AI2),Output!$T$5:$T$261) -> 0 | AJ136: =SUMPRODUCT((Output!$D$5:$D$261>EDATE(AJ2,-6))*(Output!$D$5:$D$261<AJ2),Output!$T$5:$T$261) -> 0 | AK136: =SUMPRODUCT((Output!$D$5:$D$261>EDATE(AK2,-6))*(Output!$D$5:$D$261<AK2),Output!$T$5:$T$261) -> 0 | AL136: =SUMPRODUCT((Output!$D$5:$D$261>EDATE(AL2,-6))*(Output!$D$5:$D$261<AL2),Output!$T$5:$T$261) -> 0 | AM136: =SUMPRODUCT((Output!$D$5:$D$261>EDATE(AM2,-6))*(Output!$D$5:$D$261<AM2),Output!$T$5:$T$261) -> 0
D137: -Debt service | E137: =SUM(E135:E136) -> 0 | F137: =SUM(F135:F136) -> 0 | G137: 33338077.07 | H137: 57767919.4 | I137: 56925445.71 | J137: 1480863.754 | K137: 12912191.22 | L137: 14953685.01 | M137: 14953685.01 | N137: 14869483.4 | O137: 53450885.12 | P137: 27653121.86 | Q137: 26559718.32 | R137: 27309369.59 | S137: 28318172.04 | T137: 29351875.54 | U137: 30494525.58 | V137: 31645916.5 | W137: 32909323.68 | X137: 34005676.96 | Y137: 35234768.3 | Z137: 36170009.16 | AA137: 37272091.41 | AB137: 38254228.6 | AC137: 39420434.41 | AD137: 5326822.978 | AE137: 50000 | AF137: 50000 | AG137: 50000 | AH137: 50000 | AI137: 50000 | AJ137: 50000 | AK137: 50000 | AL137: 50000 | AM137: 50000
D139: Cash Flows of ending period | E139: =E133-E137 -> 480465.306 | F139: =F133-F137 -> 66730001.95 | G139: 31330767.48 | H139: 52444559.2 | I139: -21681735.8 | J139: 19454216.37 | K139: 7463568.492 | L139: 10919297.51 | M139: 10237645.67 | N139: 16633067.83 | O139: -25325710.59 | P139: 2395770.474 | Q139: 3337255.953 | R139: 6334229.469 | S139: 4801512.168 | T139: 6613500.751 | U139: 5197337.703 | V139: 3106332.777 | W139: 1612837.568 | X139: 7415420.226 | Y139: 5997368.842 | Z139: 7862995.627 | AA139: 6388516.242 | AB139: 8192016.145 | AC139: 6831626.209 | AD139: 43939805.58 | AE139: 49126986.48 | AF139: 34979879.57 | AG139: 34824982.97 | AH139: 57687555.87 | AI139: 57818745.96 | AJ139: 60717487.83 | AK139: 61612593.01 | AL139: 64733221.93 | AM139: 65639215.9
D140: Accumulated Cash Flows | E140: =E139 -> 480465.306 | F140: =E140+F139 -> 67210467.25 | G140: =F140+G139 -> 98541234.74 | H140: 150985793.9 | I140: 129304058.1 | J140: 148758274.5 | K140: 156221843 | L140: 167141140.5 | M140: 177378786.2 | N140: 194011854 | O140: 168686143.4 | P140: 171081913.9 | Q140: 174419169.8 | R140: 180753399.3 | S140: 185554911.5 | T140: 192168412.2 | U140: 197365749.9 | V140: 200472082.7 | W140: 202084920.3 | X140: 209500340.5 | Y140: 215497709.3 | Z140: 223360705 | AA140: 229749221.2 | AB140: 237941237.4 | AC140: 244772863.6 | AD140: 288712669.1 | AE140: 337839655.6 | AF140: 372819535.2 | AG140: 407644518.2 | AH140: 465332074 | AI140: 523150820 | AJ140: 583868307.8 | AK140: 645480900.8 | AL140: 710214122.8 | AM140: 775853338.7
C144: 4. | D144: BALANCE SHEET
D146: Charges immobilisées | E146: =E108+E115 -> 97862.87973 | F146: =F108 -> 1435.740452 | G146: =(2145500292/655.957) -> 3270794.11 | H146: =H108+(3998455702.16/655.957) -> 6324470.51 | I146: =H146+I108 -> 6324470.51 | J146: =I146+J108 -> 6324470.51 | K146: =J146+K108 -> 6324470.51 | L146: =K146+L108+L118 -> 6324470.51 | M146: =L146+M108+M118 -> 6324470.51 | N146: 6324470.51 | O146: 6324470.51 | P146: 6324470.51 | Q146: 6324470.51 | R146: 6324470.51 | S146: 6324470.51 | T146: 6324470.51 | U146: 6324470.51 | V146: 10248570.98 | W146: 14231098 | X146: 14231098 | Y146: 14231098 | Z146: =Y146+Z108+Z118 -> 14231098 | AA146: 14231098 | AB146: 14231098 | AC146: 14231098 | AD146: 14231098 | AE146: 14231098 | AF146: 31509313.05 | AG146: 49044786.14 | AH146: 49044786.14 | AI146: 49044786.14 | AJ146: 49044786.14 | AK146: 49044786.14 | AL146: 49044786.14 | AM146: 49044786.14
D147: Immobilisations incorporelles | E147: =E103 -> 3743.882602 | F147: =F103 -> 10695.86116 | G147: =G103 -> 12092.81096 | H147: =H103 -> 4923.116912 | I147: =H147+I103 -> 52944.55734 | J147: 67427.21398 | K147: 67427.21398 | L147: 115448.6544 | M147: 115448.6544 | N147: 129931.311 | O147: 129931.311 | P147: 177952.7515 | Q147: 177952.7515 | R147: 185422.7533 | S147: 185422.7533 | T147: 230395.2134 | U147: 230395.2134 | V147: 246539.5643 | W147: 246539.5643 | X147: 262683.9153 | Y147: 262683.9153 | Z147: 278828.2662 | AA147: 278828.2662 | AB147: 294972.6171 | AC147: 294972.6171 | AD147: 311116.968 | AE147: 311116.968 | AF147: 327261.319 | AG147: 327261.319 | AH147: 343405.6699 | AI147: 343405.6699 | AJ147: 359550.0208 | AK147: 359550.0208 | AL147: 375694.3717 | AM147: 375694.3717
D148: Immobilisations corporelles et financières | E148: =SUM(E101:E107)-E103 -> 183772.918 | F148: =SUM(F101:F107)-F103+(F115-F149)+26743+((12500000+8385449)/655.957)+1620541 -> 9839529.346 | G148: =((22734219528+100605303+50468007+28174449)/655.957) -> 34931355.69 | H148: =((44491566176+77987767+28358146+177429449)/655.957) -> 68259568.14 | I148: =((32000000*1.25)*25%)+SUM(I101:I107)-I103+H148 -> 78378798.52 | J148: =I148+SUM(J101:J107)-J103 -> 78520957.22 | K148: =J148+SUM(K101:K107)-K103+(J149*25%) -> 158919758.8 | L148: =K149+K148 -> 620386134 | M148: =L149+L148+SUM(M101:M107)-M103 -> 620386134 | N148: 620528292.7 | O148: 620528292.7 | P148: 620549391.6 | Q148: 620549391.6 | R148: 620718777.7 | S148: 620718777.7 | T148: 620775565 | U148: 620775565 | V148: 620876531.9 | W148: 620876531.9 | X148: 620931413.6 | Y148: 620931413.6 | Z148: 621032380.6 | AA148: 621032380.6 | AB148: 621140009.6 | AC148: 621140009.6 | AD148: 621149156.5 | AE148: 621149156.5 | AF148: 621256785.5 | AG148: 621256785.5 | AH148: 621281177.4 | AI148: 621281177.4 | AJ148: 621388806.4 | AK148: 621388806.4 | AL148: 621397953.3 | AM148: 621397953.3
D149: Avances et acomptes versés sur immobilisations | E149: =E115+E118 -> 0 | F149: =(46501602948/655.957) -> 70891236.69 | G149: =42415564050/655.957 -> 64662110.55 | H149: =H115+H118+30096320 -> 56990790.2 | I149: =H149+I115+I118-((32000000*1.25)*25%) -> 112777346.5 | J149: =I149+J115+J118 -> 321595206.3 | K149: =J149+K115+K118 -> 461466375.1 | L149: 0 | M149: 0 | N149: 0 | O149: 0 | P149: 0 | Q149: 0 | R149: 0 | S149: 0 | T149: 0 | U149: 0 | V149: 0 | W149: 0 | X149: 0 | Y149: 0 | Z149: 0 | AA149: 0 | AB149: 0 | AC149: 0 | AD149: 0 | AE149: 0 | AF149: 0 | AG149: 0 | AH149: 0 | AI149: 0 | AJ149: 0 | AK149: 0 | AL149: 0 | AM149: 0
D150: Accumulated depreciation | L150: =L43+L44+L45 -> 12835029.72 | M150: =L150+SUM(M43:M45) -> 25646277.8 | N150: =M150+SUM(N43:N45) -> 38452734.96 | O150: 51259192.12 | P150: 64064627.17 | Q150: 76870062.21 | R150: 89652263.99 | S150: 102434465.8 | T150: 115208648.7 | U150: 127982831.7 | V150: 140884523.8 | W150: 153918966.9 | X150: 160989248.7 | Y150: 168059530.5 | Z150: 175117181.9 | AA150: 182174833.3 | AB150: 189234319.2 | AC150: 196293805.1 | AD150: 203346909.7 | AE150: 210400014.3 | AF150: 218033455.1 | AG150: 226251411.6 | AH150: 234461716.4 | AI150: 242672021.2 | AJ150: 250882326.1 | AK150: 259092630.9 | AL150: 267302935.7 | AM150: 275513240.6
D151: Total Actif Immobilisé | E151: =SUM(E146:E149) -> 285379.6804 | F151: =SUM(F146:F149) -> 80742897.64 | G151: 102876353.2 | H151: 131579752 | I151: 197533560 | J151: 406508061.3 | K151: 626778031.7 | L151: =SUM(L146:L149)-L150 -> 613991023.4 | M151: =SUM(M146:M149)-M150 -> 601179775.3 | N151: 588529959.5 | O151: 575723502.4 | P151: 562987187.7 | Q151: 550181752.7 | R151: 537576407 | S151: 524794205.2 | T151: 512121782 | U151: 499347599 | V151: 490487118.7 | W151: 481435202.6 | X151: 474435946.8 | Y151: 467365665 | Z151: 460425124.9 | AA151: 453367473.5 | AB151: 446431761 | AC151: 439372275.1 | AD151: 432344461.8 | AE151: 425291357.2 | AF151: 435059904.8 | AG151: 444377421.4 | AH151: 436207652.8 | AI151: 427997348 | AJ151: 419910816.5 | AK151: 411700511.7 | AL151: 403515498.1 | AM151: 395305193.3
D153: Créances et emplois assimilés | E153: =E140 -> 480465.306 | F153: =F140-1620541-523571172.193726/655.957 -> 64791747.15 | G153: =G140-(12298212625.7/655.957)-21622597-677513.804112703 -> 57492619.65 | H153: =H140-35592725-2312305.34035757 -> 113080763.6 | I153: =I175-SUM(I151+I157) -> 110082554.1 | J153: =J175-SUM(J151+J157) -> 134366912.8 | K153: 75252505.82 | L153: 114205359 | M153: 150675614.9 | N153: 195708582.1 | O153: 195878154.1 | P153: 226064289.4 | Q153: 253370723.6 | R153: 286082465.2 | S153: 313267254.5 | T153: 345546359.4 | U153: 371563479.7 | V153: 399161168.4 | W153: 419991870.7 | X153: 444535426 | Y153: 461589166.8 | Z153: 484479194.3 | AA153: 499385828.4 | AB153: 520484771.7 | AC153: 532942912.1 | AD153: 587125038.7 | AE153: 639780278.4 | AF153: 685358736.3 | AG153: 724315170.2 | AH153: 793175405.1 | AI153: 853920456.3 | AJ153: 926381830.7 | AK153: 990256767.1 | AL153: 1066740570 | AM153: 1133945400
D154: Total Actif Circulant | E154: =SUM(E153) -> 480465.306 | F154: 64791747.15 | G154: 57492619.65 | H154: 113080763.6 | I154: 110082554.1 | J154: 134366912.8 | K154: 75252505.82 | L154: 114205359 | M154: 150675614.9 | N154: 195708582.1 | O154: =SUM(O153) -> 195878154.1 | P154: 226064289.4 | Q154: 253370723.6 | R154: 286082465.2 | S154: 313267254.5 | T154: 345546359.4 | U154: 371563479.7 | V154: 399161168.4 | W154: 419991870.7 | X154: 444535426 | Y154: 461589166.8 | Z154: 484479194.3 | AA154: 499385828.4 | AB154: 520484771.7 | AC154: 532942912.1 | AD154: 587125038.7 | AE154: 639780278.4 | AF154: 685358736.3 | AG154: 724315170.2 | AH154: 793175405.1 | AI154: 853920456.3 | AJ154: 926381830.7 | AK154: 990256767.1 | AL154: 1066740570 | AM154: 1133945400
D156: Trésorerie-Actif | E156: =E128 -> 0 | F156: =-F128 -> 0 | G156: 0 | H156: 383.9352275 | I156: 0 | J156: 0 | K156: 0 | L156: 0 | M156: 0 | N156: 0 | O156: =-O128 -> 0 | P156: 0 | Q156: 0 | R156: 0 | S156: 0 | T156: 0 | U156: 0 | V156: 0 | W156: 0 | X156: 0 | Y156: 0 | Z156: 0 | AA156: 0 | AB156: 0 | AC156: 0 | AD156: 0 | AE156: 0 | AF156: 0 | AG156: 0 | AH156: 0 | AI156: 0 | AJ156: 0 | AK156: 0 | AL156: 0 | AM156: 0
D157: Total Trésorerie-Actif | E157: =SUM(E156) -> 0 | F157: 0 | G157: 0 | H157: 383.9352275 | I157: 0 | J157: 0 | K157: 0 | L157: 0 | M157: 0 | N157: 0 | O157: =SUM(O156) -> 0 | P157: 0 | Q157: 0 | R157: 0 | S157: 0 | T157: 0 | U157: 0 | V157: 0 | W157: 0 | X157: 0 | Y157: 0 | Z157: 0 | AA157: 0 | AB157: 0 | AC157: 0 | AD157: 0 | AE157: 0 | AF157: 0 | AG157: 0 | AH157: 0 | AI157: 0 | AJ157: 0 | AK157: 0 | AL157: 0 | AM157: 0
D159: TOTAL ACTIF | E159: =E151+E154 -> 765844.9864 | F159: =F151+F157+F154 -> 145534644.8 | G159: 160368972.8 | H159: 244660899.5 | I159: 307616114.2 | J159: 540874974 | K159: 702030537.5 | L159: 728196382.4 | M159: 751855390.3 | N159: 784238541.6 | O159: 771601656.4 | P159: 789051477.1 | Q159: 803552476.2 | R159: 823658872.2 | S159: 838061459.7 | T159: 857668141.4 | U159: 870911078.6 | V159: 889648287 | W159: 901427073.4 | X159: 918971372.8 | Y159: 928954831.8 | Z159: 944904319.2 | AA159: 952753301.9 | AB159: 966916532.7 | AC159: 972315187.2 | AD159: 1019469500 | AE159: 1065071636 | AF159: 1120418641 | AG159: 1168692592 | AH159: 1229383058 | AI159: 1281917804 | AJ159: 1346292647 | AK159: 1401957279 | AL159: 1470256068 | AM159: 1529250593
D160: Fcfa | E160: =E159*655.957 -> 502361379.7 | F160: =F159*655.957 -> 9.546446899e+10 | G160: 1.051951503e+11 | H160: 1.604870296e+11 | I160: 2.017829434e+11 | J160: 3.547907253e+11 | K160: 4.605018453e+11 | L160: 4.776655144e+11 | M160: 4.931848062e+11 | N160: 5.14426761e+11 | O160: =O159*655.957 -> 5.061375078e+11 | P160: 5.175838398e+11 | Q160: 5.270958717e+11 | R160: 5.402848028e+11 | S160: 5.497322809e+11 | T160: 5.62593421e+11 | U160: 5.712802184e+11 | V160: 5.835710214e+11 | W160: 5.912973988e+11 | X160: 6.028057048e+11 | Y160: 6.093544246e+11 | Z160: 6.198166025e+11 | AA160: 6.249651977e+11 | AB160: 6.342556681e+11 | AC160: 6.377969533e+11 | AD160: 6.687281551e+11 | AE160: 6.986411949e+11 | AF160: 7.349464506e+11 | AG160: 7.666120863e+11 | AH160: 8.064224225e+11 | AI160: 8.408829571e+11 | AJ160: 8.83110086e+11 | AK160: 9.196236907e+11 | AL160: 9.644247598e+11 | AM160: 1.003122631e+12
D162: Capital | E162: =$E$122 -> 152449.0172 | F162: 152449.0172 | G162: 152449.0172 | H162: 152449.0172 | I162: 152449.0172 | J162: 152449.0172 | K162: 152449.0172 | L162: 152449.0172 | M162: 152449.0172 | N162: =$E$122 -> 152449.0172 | O162: 152449.0172 | P162: 152449.0172 | Q162: 152449.0172 | R162: 152449.0172 | S162: 152449.0172 | T162: 152449.0172 | U162: 152449.0172 | V162: 152449.0172 | W162: 152449.0172 | X162: 152449.0172 | Y162: 152449.0172 | Z162: 152449.0172 | AA162: 152449.0172 | AB162: 152449.0172 | AC162: 152449.0172 | AD162: 152449.0172 | AE162: 152449.0172 | AF162: 152449.0172 | AG162: 152449.0172 | AH162: 152449.0172 | AI162: 152449.0172 | AJ162: 152449.0172 | AK162: 152449.0172 | AL162: 152449.0172 | AM162: 152449.0172
D163: Report à nouveau/Résultat | E163: =E59 -> 0 | F163: =E163+F59 -> -3663.064805 | G163: -10136.17966 | H163: -82646.50122 | I163: -82646.50122 | J163: -82646.50122 | K163: -82646.50122 | L163: 2676715.276 | M163: 4733229.646 | N163: 12096981.21 | O163: 14853891.6 | P163: 19828108.5 | Q163: 23293228.09 | R163: 29823743.31 | S163: 34376813.87 | T163: 41576634.65 | U163: 46596646.54 | V163: 54519016.67 | W163: 60043116.99 | X163: 68688178.86 | Y163: 74716334.19 | Z163: 84057766.45 | AA163: 90571408.46 | AB163: 100673558.2 | AC163: 107717575.3 | AD163: 118631302 | AE163: 126241129.7 | AF163: 138028449.1 | AG163: 146247318.9 | AH163: 161006620.1 | AI163: 171303211.3 | AJ163: 187236853.1 | AK163: 198352608.8 | AL163: 215553136.6 | AM163: 227552614.4
D164: Subvention d'investissement | E164: =E125 -> 0 | F164: =E164+F125 -> 62296420.03 | G164: =G125+(49986169920.9/655.957) -> 102105053.8 | H164: =H125+(64362469178/655.957) -> 195578966.6 | I164: =H164+I125 -> 230761438.9 | J164: 251589940.6 | K164: 271770106.1 | L164: 295133484.2 | M164: 316699682.7 | N164: 341680406.2 | O164: 364744380.5 | P164: 391467634.7 | Q164: 416143343.1 | R164: 444715467.8 | S164: 471091298.1 | T164: 501709068.2 | U164: 530002718.8 | V164: 562883883.2 | W164: 593283261 | X164: 628417731.8 | Y164: 660826611.3 | Z164: 697975005.4 | AA164: 732123554.1 | AB164: 771271594.1 | AC164: 807260457.6 | AD164: 848524055 | AE164: 886459995.4 | AF164: 929962113.2 | AG164: 969958390.8 | AH164: 1015829484 | AI164: 1058006263 | AJ164: 1106384746 | AK164: 1150869524 | AL164: 1201902269 | AM164: 1248830338
D165: Total Capitaux Propres | E165: =SUM(E162:E164) -> 152449.0172 | F165: =SUM(F162:F164) -> 62445205.98 | G165: =SUM(G162:G164) -> 102247366.6 | H165: =SUM(H162:H164) -> 195648769.1 | I165: =SUM(I162:I164) -> 230831241.5 | J165: 251659743.1 | K165: 271839908.6 | L165: 297962648.5 | M165: 321585361.4 | N165: 353929836.4 | O165: 379750721.2 | P165: 411448192.2 | Q165: 439589020.2 | R165: 474691660.1 | S165: 505620560.9 | T165: 543438151.9 | U165: 576751814.3 | V165: 617555348.9 | W165: 653478827 | X165: 697258359.6 | Y165: 735695394.5 | Z165: 782185220.9 | AA165: 822847411.6 | AB165: 872097601.3 | AC165: 915130482 | AD165: 967307806 | AE165: 1012853574 | AF165: 1068143011 | AG165: 1116358159 | AH165: 1176988553 | AI165: 1229461923 | AJ165: 1293774048 | AK165: 1349374582 | AL165: 1417607854 | AM165: 1476535401
D167: Emprunts | E167: =+SUM(E123:E124)-E137+E122+E120 -> 495459.306 | F167: 81984525.96 | G167: 50372784.89 | H167: 33609654.39 | I167: =H167+SUM(I124)-I136 -> 61409523.37 | J167: =I167+SUM(J124)-J136 -> 273735491.5 | K167: 414667016.7 | L167: 414667016.7 | M167: 414667016.7 | N167: 414667016.7 | O167: 376169816.6 | P167: 361880509.9 | Q167: 348198207.3 | R167: 333158652.1 | S167: 316588169.4 | T167: 298332210.9 | U167: 278215534.6 | V167: 256102332.5 | W167: 231909816.2 | X167: 205625785.5 | Y167: 177122413.8 | Z167: 146531254.7 | AA167: 113666174.9 | AB167: 78526264.92 | AC167: 40837979.28 | AD167: 35759770.69 | AE167: 35759770.69 | AF167: 35759770.69 | AG167: 35759770.69 | AH167: 35759770.69 | AI167: 35759770.69 | AJ167: 35759770.69 | AK167: 35759770.69 | AL167: 35759770.69 | AM167: 35759770.69
D168: Total Dettes financières | E168: =SUM(E167) -> 495459.306 | F168: 81984525.96 | G168: 50372784.89 | H168: 33609654.39 | I168: 61409523.37 | J168: 273735491.5 | K168: 414667016.7 | L168: 414667016.7 | M168: 414667016.7 | N168: =SUM(N167) -> 414667016.7 | O168: 376169816.6 | P168: 361880509.9 | Q168: 348198207.3 | R168: 333158652.1 | S168: 316588169.4 | T168: 298332210.9 | U168: 278215534.6 | V168: 256102332.5 | W168: 231909816.2 | X168: 205625785.5 | Y168: 177122413.8 | Z168: 146531254.7 | AA168: 113666174.9 | AB168: 78526264.92 | AC168: 40837979.28 | AD168: 35759770.69 | AE168: 35759770.69 | AF168: 35759770.69 | AG168: 35759770.69 | AH168: 35759770.69 | AI168: 35759770.69 | AJ168: 35759770.69 | AK168: 35759770.69 | AL168: 35759770.69 | AM168: 35759770.69
D170: Total Passif Circulant | E170: =E83 -> 110152.5268 | F170: =F83 -> 1104912.845 | G170: =G83 -> 7748627.532 | H170: =H83 -> 15256927.68 | I170: =H170+I83 -> 15375349.35 | J170: 15479739.48 | K170: 15523612.13 | L170: 15566717.16 | M170: 15603012.1 | N170: 15641688.44 | O170: 15681118.66 | P170: 15722775.05 | Q170: 15765248.75 | R170: 15808559.92 | S170: 15852729.35 | T170: 15897778.54 | U170: 15943729.66 | V170: 15990605.64 | W170: 16038430.15 | X170: 16087227.66 | Y170: 16137023.46 | Z170: 16187843.68 | AA170: 16239715.38 | AB170: 16292666.5 | AC170: 16346725.98 | AD170: 16401923.75 | AE170: 16458290.8 | AF170: 16515859.19 | AG170: 16574662.14 | AH170: 16634734.03 | AI170: 16696110.51 | AJ170: 16758828.47 | AK170: 16822926.19 | AL170: 16888443.3 | AM170: 16955420.93
D172: Banques, découverts | E172: =E129 -> 7783.812049 | F172: =F129 -> 0 | G172: =G129 -> 194.0904663 | H172: =+H129 -> 145548.3393 | I172: =I129 -> 0 | J172: =J129 -> 0 | K172: =K129 -> 0 | L172: =K172+L129 -> 0 | M172: 0 | N172: 0 | O172: 0 | P172: 0 | Q172: 0 | R172: 0 | S172: 0 | T172: 0 | U172: 0 | V172: 0 | W172: 0 | X172: 0 | Y172: 0 | Z172: 0 | AA172: 0 | AB172: 0 | AC172: 0 | AD172: 0 | AE172: 0 | AF172: 0 | AG172: 0 | AH172: 0 | AI172: 0 | AJ172: 0 | AK172: 0 | AL172: 0 | AM172: 0
D173: Total Trésorerie-Passif | E173: =SUM(E172) -> 7783.812049 | F173: 0 | G173: 194.0904663 | H173: 145548.3393 | I173: 0 | J173: 0 | K173: 0 | L173: 0 | M173: 0 | N173: =SUM(N172) -> 0 | O173: 0 | P173: 0 | Q173: 0 | R173: 0 | S173: 0 | T173: 0 | U173: 0 | V173: 0 | W173: 0 | X173: 0 | Y173: 0 | Z173: 0 | AA173: 0 | AB173: 0 | AC173: 0 | AD173: 0 | AE173: 0 | AF173: 0 | AG173: 0 | AH173: 0 | AI173: 0 | AJ173: 0 | AK173: 0 | AL173: 0 | AM173: 0
D175: TOTAL PASSIF | E175: =E165+E168+E170+E173 -> 765844.6621 | F175: 145534644.8 | G175: 160368973.1 | H175: 244660899.5 | I175: 307616114.2 | J175: 540874974 | K175: 702030537.5 | L175: 728196382.4 | M175: 751855390.3 | N175: 784238541.6 | O175: 771601656.4 | P175: 789051477.1 | Q175: 803552476.2 | R175: 823658872.2 | S175: 838061459.7 | T175: 857668141.4 | U175: 870911078.6 | V175: 889648287 | W175: 901427073.4 | X175: 918971372.8 | Y175: 928954831.8 | Z175: 944904319.2 | AA175: 952753301.9 | AB175: 966916532.7 | AC175: 972315187.2 | AD175: 1019469500 | AE175: 1065071636 | AF175: 1120418641 | AG175: 1168692592 | AH175: 1229383058 | AI175: 1281917804 | AJ175: 1346292647 | AK175: 1401957279 | AL175: 1470256068 | AM175: 1529250593
D176: Fcfa | E176: =E175*655.957 -> 502361167 | F176: 9.546446899e+10 | G176: 1.051951505e+11 | H176: 1.604870296e+11 | I176: 2.017829434e+11 | J176: 3.547907253e+11 | K176: 4.605018453e+11 | L176: 4.776655144e+11 | M176: 4.931848062e+11 | N176: =N175*655.957 -> 5.14426761e+11 | O176: 5.061375078e+11 | P176: 5.175838398e+11 | Q176: 5.270958717e+11 | R176: 5.402848028e+11 | S176: 5.497322809e+11 | T176: 5.62593421e+11 | U176: 5.712802184e+11 | V176: 5.835710214e+11 | W176: 5.912973988e+11 | X176: 6.028057048e+11 | Y176: 6.093544246e+11 | Z176: 6.198166025e+11 | AA176: 6.249651977e+11 | AB176: 6.342556681e+11 | AC176: 6.377969533e+11 | AD176: 6.687281551e+11 | AE176: 6.986411949e+11 | AF176: 7.349464506e+11 | AG176: 7.666120863e+11 | AH176: 8.064224225e+11 | AI176: 8.408829571e+11 | AJ176: 8.83110086e+11 | AK176: 9.196236907e+11 | AL176: 9.644247598e+11 | AM176: 1.003122631e+12
D178: Balance check | E178: =E159-E175 -> 0.3243230883 | F178: =F159-F175 -> 0 | G178: -0.3243230879 | H178: 0 | I178: 0 | J178: 0 | K178: 0 | L178: 0 | M178: 0 | N178: 0 | O178: 0 | P178: 0 | Q178: 0 | R178: 0 | S178: 0 | T178: 0 | U178: 0 | V178: 0 | W178: 0 | X178: 0 | Y178: 0 | Z178: 0 | AA178: 0 | AB178: 0 | AC178: 0 | AD178: 0 | AE178: 0 | AF178: 0 | AG178: 0 | AH178: 0 | AI178: 0 | AJ178: 0 | AK178: 0 | AL178: 0 | AM178: 0
E179: =E178 -> 0.3243230883 | F179: =F178+E179 -> 0.3243230883 | G179: =G178+F179 -> 3.492459655e-10 | H179: 3.492459655e-10 | I179: 3.492459655e-10 | J179: 3.492459655e-10 | K179: 3.492459655e-10 | L179: 3.492459655e-10 | M179: 3.492459655e-10 | N179: 3.492459655e-10 | O179: 3.492459655e-10 | P179: 3.492459655e-10 | Q179: 3.492459655e-10 | R179: 3.492459655e-10 | S179: 3.492459655e-10 | T179: 3.492459655e-10 | U179: 3.492459655e-10 | V179: 3.492459655e-10 | W179: 3.492459655e-10 | X179: 3.492459655e-10 | Y179: 3.492459655e-10 | Z179: 3.492459655e-10 | AA179: 3.492459655e-10 | AB179: 3.492459655e-10 | AC179: 3.492459655e-10 | AD179: 3.492459655e-10 | AE179: 3.492459655e-10 | AF179: 3.492459655e-10 | AG179: 3.492459655e-10 | AH179: 3.492459655e-10 | AI179: 3.492459655e-10 | AJ179: 3.492459655e-10 | AK179: 3.492459655e-10 | AL179: 3.492459655e-10 | AM179: 3.492459655e-10

Sheet Depreciation AIBD
Z3: 2012
E4: =+Assumptions!E254 -> 2006-12-31 | F4: =+Assumptions!F254 -> 2007-06-30 | G4: =+Assumptions!G254 -> 2007-12-31 | H4: =+Assumptions!H254 -> 2008-06-30 | I4: =+Assumptions!I254 -> 2008-12-31 | J4: =+Assumptions!J254 -> 2009-06-30 | K4: =+Assumptions!K254 -> 2009-12-31 | L4: =+Assumptions!L254 -> 2010-06-30 | M4: =+Assumptions!M254 -> 2010-12-31 | N4: =+Assumptions!N254 -> 2011-06-30 | O4: =+Assumptions!O254 -> 2011-12-31 | P4: =+Assumptions!P254 -> 2012-06-30 | Q4: =+Assumptions!Q254 -> 2012-12-31 | R4: =+Assumptions!R254 -> 2013-06-30 | S4: =+Assumptions!S254 -> 2013-12-31 | T4: =+Assumptions!T254 -> 2014-06-30 | U4: =+Assumptions!U254 -> 2014-12-31 | V4: =+Assumptions!V254 -> 2015-06-30 | W4: =+Assumptions!W254 -> 2015-12-31 | X4: =+Assumptions!X254 -> 2016-06-30 | Y4: =+Assumptions!Y254 -> 2016-12-31 | Z4: =+Assumptions!Z254 -> 2017-06-30 | AA4: =+Assumptions!AA254 -> 2017-12-31 | AB4: =+Assumptions!AB254 -> 2018-06-30 | AC4: =+Assumptions!AC254 -> 2018-12-31 | AD4: =+Assumptions!AD254 -> 2019-06-30 | AE4: =+Assumptions!AE254 -> 2019-12-31 | AF4: =+Assumptions!AF254 -> 2020-06-30 | AG4: =+Assumptions!AG254 -> 2020-12-31 | AH4: =+Assumptions!AH254 -> 2021-06-30 | AI4: =+Assumptions!AI254 -> 2021-12-31 | AJ4: =+Assumptions!AJ254 -> 2022-06-30 | AK4: =+Assumptions!AK254 -> 2022-12-31 | AL4: =+Assumptions!AL254 -> 2023-06-30 | AM4: =+Assumptions!AM254 -> 2023-12-31 | AN4: =+Assumptions!AN254 -> 2024-06-30 | AO4: =+Assumptions!AO254 -> 2024-12-31 | AP4: =+Assumptions!AP254 -> 2025-06-30 | AQ4: =+Assumptions!AQ254 -> 2025-12-31
D5: Equipement IT Hardware | E5: =+Assumptions!E255 -> 22692.78169 | F5: =+Assumptions!F255 -> 30085.62452 | G5: =+Assumptions!G255 -> 0 | H5: =+Assumptions!H255 -> 16833.88088 | I5: =+Assumptions!I255 -> 0 | J5: =+Assumptions!J255 -> 0 | K5: =+Assumptions!K255 -> 0 | L5: =+Assumptions!L255 -> 24086.94472 | M5: =+Assumptions!M255 -> 0 | N5: =+Assumptions!N255 -> 27745.72114 | O5: =+Assumptions!O255 -> 0 | P5: =+Assumptions!P255 -> 16616.94288 | Q5: =+Assumptions!Q255 -> 0 | R5: =+Assumptions!R255 -> 14177.7586 | S5: =+Assumptions!S255 -> 0 | T5: =+Assumptions!T255 -> 26739.55762 | U5: =+Assumptions!U255 -> 0 | V5: =+Assumptions!V255 -> 0 | W5: =+Assumptions!W255 -> 0 | X5: =+Assumptions!X255 -> 30489.80345 | Y5: =+Assumptions!Y255 -> 0 | Z5: =+Assumptions!Z255 -> 0 | AA5: =+Assumptions!AA255 -> 0 | AB5: =+Assumptions!AB255 -> 30489.80345 | AC5: =+Assumptions!AC255 -> 0 | AD5: =+Assumptions!AD255 -> 0 | AE5: =+Assumptions!AE255 -> 0 | AF5: =+Assumptions!AF255 -> 30489.80345 | AG5: =+Assumptions!AG255 -> 0 | AH5: =+Assumptions!AH255 -> 0 | AI5: =+Assumptions!AI255 -> 0 | AJ5: =+Assumptions!AJ255 -> 30489.80345 | AK5: =+Assumptions!AK255 -> 0 | AL5: =+Assumptions!AL255 -> 0 | AM5: =+Assumptions!AM255 -> 0 | AN5: =+Assumptions!AN255 -> 30489.80345 | AO5: =+Assumptions!AO255 -> 0 | AP5: =+Assumptions!AP255 -> 0 | AQ5: =+Assumptions!AQ255 -> 0
D6: Vehicles | E6: =+Assumptions!E256 -> 71406.88033 | F6: =+Assumptions!F256 -> 51794.90729 | G6: =+Assumptions!G256 -> 0 | H6: =+Assumptions!H256 -> 56375.64657 | I6: =+Assumptions!I256 -> 0 | J6: =+Assumptions!J256 -> 43231.71488 | K6: =+Assumptions!K256 -> 0 | L6: =+Assumptions!L256 -> 60979.60689 | M6: =+Assumptions!M256 -> 0 | N6: =+Assumptions!N256 -> 91820.04308 | O6: =+Assumptions!O256 -> 0 | P6: =+Assumptions!P256 -> 0 | Q6: =+Assumptions!Q256 -> 0 | R6: =+Assumptions!R256 -> 134764.9312 | S6: =+Assumptions!S256 -> 0 | T6: =+Assumptions!T256 -> 0 | U6: =+Assumptions!U256 -> 0 | V6: =+Assumptions!V256 -> 91820.04308 | W6: =+Assumptions!W256 -> 0 | X6: =+Assumptions!X256 -> 0 | Y6: =+Assumptions!Y256 -> 0 | Z6: =+Assumptions!Z256 -> 91820.04308 | AA6: =+Assumptions!AA256 -> 0 | AB6: =+Assumptions!AB256 -> 67992.26169 | AC6: =+Assumptions!AC256 -> 0 | AD6: =+Assumptions!AD256 -> 0 | AE6: =+Assumptions!AE256 -> 0 | AF6: =+Assumptions!AF256 -> 67992.26169 | AG6: =+Assumptions!AG256 -> 0 | AH6: =+Assumptions!AH256 -> 0 | AI6: =+Assumptions!AI256 -> 0 | AJ6: =+Assumptions!AJ256 -> 67992.26169 | AK6: =+Assumptions!AK256 -> 0 | AL6: =+Assumptions!AL256 -> 0 | AM6: =+Assumptions!AM256 -> 0 | AN6: =+Assumptions!AN256 -> 67992.26169 | AO6: =+Assumptions!AO256 -> 0 | AP6: =+Assumptions!AP256 -> 0 | AQ6: =+Assumptions!AQ256 -> 0
D7: Equipement IT Software | E7: =+Assumptions!E257 -> 3743.882602 | F7: =+Assumptions!F257 -> 10695.86116 | G7: =+Assumptions!G257 -> 0 | H7: =+Assumptions!H257 -> 12092.81096 | I7: =+Assumptions!I257 -> 0 | J7: =+Assumptions!J257 -> 4923.116912 | K7: =+Assumptions!K257 -> 0 | L7: =+Assumptions!L257 -> 48021.44043 | M7: =+Assumptions!M257 -> 0 | N7: =+Assumptions!N257 -> 14482.65664 | O7: =+Assumptions!O257 -> 0 | P7: =+Assumptions!P257 -> 48021.44043 | Q7: =+Assumptions!Q257 -> 0 | R7: =+Assumptions!R257 -> 7470.001845 | S7: =+Assumptions!S257 -> 0 | T7: =+Assumptions!T257 -> 44972.46009 | U7: =+Assumptions!U257 -> 0 | V7: =+Assumptions!V257 -> 16144.35093 | W7: =+Assumptions!W257 -> 0 | X7: =+Assumptions!X257 -> 16144.35093 | Y7: =+Assumptions!Y257 -> 0 | Z7: =+Assumptions!Z257 -> 16144.35093 | AA7: =+Assumptions!AA257 -> 0 | AB7: =+Assumptions!AB257 -> 16144.35093 | AC7: =+Assumptions!AC257 -> 0 | AD7: =+Assumptions!AD257 -> 16144.35093 | AE7: =+Assumptions!AE257 -> 0 | AF7: =+Assumptions!AF257 -> 16144.35093 | AG7: =+Assumptions!AG257 -> 0 | AH7: =+Assumptions!AH257 -> 16144.35093 | AI7: =+Assumptions!AI257 -> 0 | AJ7: =+Assumptions!AJ257 -> 16144.35093 | AK7: =+Assumptions!AK257 -> 0 | AL7: =+Assumptions!AL257 -> 16144.35093 | AM7: =+Assumptions!AM257 -> 0 | AN7: =+Assumptions!AN257 -> 16144.35093 | AO7: =+Assumptions!AO257 -> 0 | AP7: =+Assumptions!AP257 -> 16144.35093 | AQ7: =+Assumptions!AQ257 -> 0
D8: Office Material | E8: =+Assumptions!E258 -> 26616.67914 | F8: =+Assumptions!F258 -> 29598.20537 | G8: =+Assumptions!G258 -> 0 | H8: =+Assumptions!H258 -> 2478.516122 | I8: =+Assumptions!I258 -> 0 | J8: =+Assumptions!J258 -> 107002.4259 | K8: =+Assumptions!K258 -> 0 | L8: =+Assumptions!L258 -> 22105.1075 | M8: =+Assumptions!M258 -> 0 | N8: =+Assumptions!N258 -> 5488.164621 | O8: =+Assumptions!O258 -> 0 | P8: =+Assumptions!P258 -> 762.2450862 | Q8: =+Assumptions!Q258 -> 0 | R8: =+Assumptions!R258 -> 1372.041155 | S8: =+Assumptions!S258 -> 0 | T8: =+Assumptions!T258 -> 24544.29178 | U8: =+Assumptions!U258 -> 0 | V8: =+Assumptions!V258 -> 6097.960689 | W8: =+Assumptions!W258 -> 0 | X8: =+Assumptions!X258 -> 6097.960689 | Y8: =+Assumptions!Y258 -> 0 | Z8: =+Assumptions!Z258 -> 6097.960689 | AA8: =+Assumptions!AA258 -> 0 | AB8: =+Assumptions!AB258 -> 6097.960689 | AC8: =+Assumptions!AC258 -> 0 | AD8: =+Assumptions!AD258 -> 6097.960689 | AE8: =+Assumptions!AE258 -> 0 | AF8: =+Assumptions!AF258 -> 6097.960689 | AG8: =+Assumptions!AG258 -> 0 | AH8: =+Assumptions!AH258 -> 6097.960689 | AI8: =+Assumptions!AI258 -> 0 | AJ8: =+Assumptions!AJ258 -> 6097.960689 | AK8: =+Assumptions!AK258 -> 0 | AL8: =+Assumptions!AL258 -> 6097.960689 | AM8: =+Assumptions!AM258 -> 0 | AN8: =+Assumptions!AN258 -> 6097.960689 | AO8: =+Assumptions!AO258 -> 0 | AP8: =+Assumptions!AP258 -> 6097.960689 | AQ8: =+Assumptions!AQ258 -> 0
D9: Office Furniture | E9: =+Assumptions!E259 -> 32038.4263 | F9: =+Assumptions!F259 -> 36082.33467 | G9: =+Assumptions!G259 -> 0 | H9: =+Assumptions!H259 -> 5623.386899 | I9: =+Assumptions!I259 -> 0 | J9: =+Assumptions!J259 -> 11889.15844 | K9: =+Assumptions!K259 -> 0 | L9: =+Assumptions!L259 -> 10366.53317 | M9: =+Assumptions!M259 -> 0 | N9: =+Assumptions!N259 -> 15244.90172 | O9: =+Assumptions!O259 -> 0 | P9: =+Assumptions!P259 -> 0 | Q9: =+Assumptions!Q259 -> 0 | R9: =+Assumptions!R259 -> 0 | S9: =+Assumptions!S259 -> 0 | T9: =+Assumptions!T259 -> 0 | U9: =+Assumptions!U259 -> 0 | V9: =+Assumptions!V259 -> 0 | W9: =+Assumptions!W259 -> 0 | X9: =+Assumptions!X259 -> 15244.90172 | Y9: =+Assumptions!Y259 -> 0 | Z9: =+Assumptions!Z259 -> 0 | AA9: =+Assumptions!AA259 -> 0 | AB9: =+Assumptions!AB259 -> 0 | AC9: =+Assumptions!AC259 -> 0 | AD9: =+Assumptions!AD259 -> 0 | AE9: =+Assumptions!AE259 -> 0 | AF9: =+Assumptions!AF259 -> 0 | AG9: =+Assumptions!AG259 -> 0 | AH9: =+Assumptions!AH259 -> 15244.90172 | AI9: =+Assumptions!AI259 -> 0 | AJ9: =+Assumptions!AJ259 -> 0 | AK9: =+Assumptions!AK259 -> 0 | AL9: =+Assumptions!AL259 -> 0 | AM9: =+Assumptions!AM259 -> 0 | AN9: =+Assumptions!AN259 -> 0 | AO9: =+Assumptions!AO259 -> 0 | AP9: =+Assumptions!AP259 -> 0 | AQ9: =+Assumptions!AQ259 -> 0
D10: Material and Staff Housing | E10: =+Assumptions!E260 -> 15665.42929 | F10: =+Assumptions!F260 -> 74654.46516 | G10: =+Assumptions!G260 -> 0 | H10: =+Assumptions!H260 -> 1564.732139 | I10: =+Assumptions!I260 -> 0 | J10: =+Assumptions!J260 -> 0 | K10: =+Assumptions!K260 -> 0 | L10: =+Assumptions!L260 -> 1692.184091 | M10: =+Assumptions!M260 -> 0 | N10: =+Assumptions!N260 -> 1859.87801 | O10: =+Assumptions!O260 -> 0 | P10: =+Assumptions!P260 -> 3719.756021 | Q10: =+Assumptions!Q260 -> 0 | R10: =+Assumptions!R260 -> 19071.37206 | S10: =+Assumptions!S260 -> 0 | T10: =+Assumptions!T260 -> 5503.409522 | U10: =+Assumptions!U260 -> 0 | V10: =+Assumptions!V260 -> 3048.980345 | W10: =+Assumptions!W260 -> 0 | X10: =+Assumptions!X260 -> 3048.980345 | Y10: =+Assumptions!Y260 -> 0 | Z10: =+Assumptions!Z260 -> 3048.980345 | AA10: =+Assumptions!AA260 -> 0 | AB10: =+Assumptions!AB260 -> 3048.980345 | AC10: =+Assumptions!AC260 -> 0 | AD10: =+Assumptions!AD260 -> 3048.980345 | AE10: =+Assumptions!AE260 -> 0 | AF10: =+Assumptions!AF260 -> 3048.980345 | AG10: =+Assumptions!AG260 -> 0 | AH10: =+Assumptions!AH260 -> 3048.980345 | AI10: =+Assumptions!AI260 -> 0 | AJ10: =+Assumptions!AJ260 -> 3048.980345 | AK10: =+Assumptions!AK260 -> 0 | AL10: =+Assumptions!AL260 -> 3048.980345 | AM10: =+Assumptions!AM260 -> 0 | AN10: =+Assumptions!AN260 -> 3048.980345 | AO10: =+Assumptions!AO260 -> 0 | AP10: =+Assumptions!AP260 -> 3048.980345 | AQ10: =+Assumptions!AQ260 -> 0
D11: Moving and Installations | E11: =+Assumptions!E261 -> 15352.72129 | F11: =+Assumptions!F261 -> 70116.1692 | G11: =+Assumptions!G261 -> 0 | H11: =+Assumptions!H261 -> -80.79797914 | I11: =+Assumptions!I261 -> 0 | J11: =+Assumptions!J261 -> 2149.531143 | K11: =+Assumptions!K261 -> 0 | L11: =+Assumptions!L261 -> 0 | M11: =+Assumptions!M261 -> 0 | N11: =+Assumptions!N261 -> 0 | O11: =+Assumptions!O261 -> 0 | P11: =+Assumptions!P261 -> 0 | Q11: =+Assumptions!Q261 -> 0 | R11: =+Assumptions!R261 -> 0 | S11: =+Assumptions!S261 -> 0 | T11: =+Assumptions!T261 -> 0 | U11: =+Assumptions!U261 -> 0 | V11: =+Assumptions!V261 -> 0 | W11: =+Assumptions!W261 -> 0 | X11: =+Assumptions!X261 -> 0 | Y11: =+Assumptions!Y261 -> 0 | Z11: =+Assumptions!Z261 -> 0 | AA11: =+Assumptions!AA261 -> 0 | AB11: =+Assumptions!AB261 -> 0 | AC11: =+Assumptions!AC261 -> 0 | AD11: =+Assumptions!AD261 -> 0 | AE11: =+Assumptions!AE261 -> 0 | AF11: =+Assumptions!AF261 -> 0 | AG11: =+Assumptions!AG261 -> 0 | AH11: =+Assumptions!AH261 -> 0 | AI11: =+Assumptions!AI261 -> 0 | AJ11: =+Assumptions!AJ261 -> 0 | AK11: =+Assumptions!AK261 -> 0 | AL11: =+Assumptions!AL261 -> 0 | AM11: =+Assumptions!AM261 -> 0 | AN11: =+Assumptions!AN261 -> 0 | AO11: =+Assumptions!AO261 -> 0 | AP11: =+Assumptions!AP261 -> 0 | AQ11: =+Assumptions!AQ261 -> 0
D12: =Assumptions!D262 -> Others including establishment fees | E12: =Assumptions!E262 -> 97862.87973 | F12: =Assumptions!F262 -> 1435.740452 | G12: =Assumptions!G262 -> 0 | H12: =Assumptions!H262 -> 19056.12715 | I12: =Assumptions!I262 -> 0 | J12: =Assumptions!J262 -> 228864.0871 | K12: =Assumptions!K262 -> 0 | L12: =Assumptions!L262 -> 0 | M12: =Assumptions!M262 -> 0 | N12: =Assumptions!N262 -> 0 | O12: =Assumptions!O262 -> 0 | P12: =Assumptions!P262 -> 0 | Q12: =Assumptions!Q262 -> 0 | R12: =Assumptions!R262 -> 0 | S12: =Assumptions!S262 -> 0 | T12: =Assumptions!T262 -> 0 | U12: =Assumptions!U262 -> 0 | V12: =Assumptions!V262 -> 0 | W12: =Assumptions!W262 -> 0 | X12: =Assumptions!X262 -> 0 | Y12: =Assumptions!Y262 -> 0 | Z12: =Assumptions!Z262 -> 0 | AA12: =Assumptions!AA262 -> 0 | AB12: =Assumptions!AB262 -> 0 | AC12: =Assumptions!AC262 -> 0 | AD12: =Assumptions!AD262 -> 0 | AE12: =Assumptions!AE262 -> 0 | AF12: =Assumptions!AF262 -> 0 | AG12: =Assumptions!AG262 -> 0 | AH12: =Assumptions!AH262 -> 0 | AI12: =Assumptions!AI262 -> 0 | AJ12: =Assumptions!AJ262 -> 0 | AK12: =Assumptions!AK262 -> 0 | AL12: =Assumptions!AL262 -> 0 | AM12: =Assumptions!AM262 -> 0 | AN12: =Assumptions!AN262 -> 0 | AO12: =Assumptions!AO262 -> 0 | AP12: =Assumptions!AP262 -> 0 | AQ12: =Assumptions!AQ262 -> 0
D13: Sub Total | E13: =SUM(E5:E12) -> 285379.6804 | F13: 304463.3078 | G13: 0 | H13: 113944.3028 | I13: 0 | J13: 398060.0344 | K13: 0 | L13: 167251.8168 | M13: 0 | N13: 156641.3652 | O13: 0 | P13: 69120.38442 | Q13: 0 | R13: 176856.1049 | S13: 0 | T13: 101759.719 | U13: 0 | V13: 117111.335 | W13: 0 | X13: 71025.99713 | Y13: 0 | Z13: 117111.335 | AA13: 0 | AB13: 123773.3571 | AC13: 0 | AD13: 25291.29196 | AE13: 0 | AF13: 123773.3571 | AG13: 0 | AH13: 40536.19368 | AI13: 0 | AJ13: 123773.3571 | AK13: 0 | AL13: 25291.29196 | AM13: 0 | AN13: 123773.3571 | AO13: 0 | AP13: 25291.29196 | AQ13: 0
D15: % inflation index | E15: =+Assumptions!E265 -> 0 | F15: =+Assumptions!F265 -> 0 | G15: =+Assumptions!G265 -> 0 | H15: =+Assumptions!H265 -> 0 | I15: =+Assumptions!I265 -> 0 | J15: =+Assumptions!J265 -> 0 | K15: =+Assumptions!K265 -> 0 | L15: =+Assumptions!L265 -> 0 | M15: =+Assumptions!M265 -> 1 | N15: =+Assumptions!N265 -> 1.007444578 | O15: =+Assumptions!O265 -> 1.022444578 | P15: =+Assumptions!P265 -> 1.037667916 | Q15: =+Assumptions!Q265 -> 1.053117916 | R15: =+Assumptions!R265 -> 1.068797953 | S15: =+Assumptions!S265 -> 1.084711453 | T15: =+Assumptions!T265 -> 1.100861892 | U15: =+Assumptions!U265 -> 1.117252797 | V15: =+Assumptions!V265 -> 1.133887748 | W15: =+Assumptions!W265 -> 1.150770381 | X15: =+Assumptions!X265 -> 1.167904381 | Y15: =+Assumptions!Y265 -> 1.185293492 | Z15: =+Assumptions!Z265 -> 1.202941512 | AA15: =+Assumptions!AA265 -> 1.220852297 | AB15: =+Assumptions!AB265 -> 1.239029758 | AC15: =+Assumptions!AC265 -> 1.257477866 | AD15: =+Assumptions!AD265 -> 1.27620065 | AE15: =+Assumptions!AE265 -> 1.295202202 | AF15: =+Assumptions!AF265 -> 1.31448667 | AG15: =+Assumptions!AG265 -> 1.334058268 | AH15: =+Assumptions!AH265 -> 1.35392127 | AI15: =+Assumptions!AI265 -> 1.374080016 | AJ15: =+Assumptions!AJ265 -> 1.394538908 | AK15: =+Assumptions!AK265 -> 1.415302416 | AL15: =+Assumptions!AL265 -> 1.436375075 | AM15: =+Assumptions!AM265 -> 1.457761489 | AN15: =+Assumptions!AN265 -> 1.479466328 | AO15: =+Assumptions!AO265 -> 1.501494333 | AP15: =+Assumptions!AP265 -> 1.523850317 | AQ15: =+Assumptions!AQ265 -> 1.546539163
D16: AIBD Operational CAPEX | E16: =+E13 -> 285379.6804 | F16: =+F13-F11 -> 234347.1386 | G16: =+G13-G11 -> 0 | H16: 114025.1007 | I16: 0 | J16: 395910.5033 | K16: 0 | L16: 167251.8168 | M16: 0 | N16: 156641.3652 | O16: 0 | P16: 69120.38442 | Q16: 0 | R16: 176856.1049 | S16: 0 | T16: 101759.719 | U16: 0 | V16: 117111.335 | W16: 0 | X16: 71025.99713 | Y16: 0 | Z16: 117111.335 | AA16: 0 | AB16: 123773.3571 | AC16: 0 | AD16: 25291.29196 | AE16: 0 | AF16: 123773.3571 | AG16: 0 | AH16: 40536.19368 | AI16: 0 | AJ16: 123773.3571 | AK16: 0 | AL16: 25291.29196 | AM16: 0 | AN16: 123773.3571 | AO16: 0 | AP16: 25291.29196 | AQ16: 0
D18: Service Life (years) | E18: =Assumptions!E268 -> 6
D20: Depreciation Table Operational Capex
D22: 2006-12-31 | E22: =+$E$16/$E$18*0.5 -> 23781.64003 | F22: 23781.64003 | G22: 23781.64003 | H22: 23781.64003 | I22: 23781.64003 | J22: 23781.64003 | K22: 23781.64003 | L22: 23781.64003 | M22: 23781.64003 | N22: 23781.64003 | O22: 23781.64003 | P22: 23781.64003
D23: 2007-06-30 | F23: =+$F$16/$E$18*0.5 -> 19528.92822 | G23: 19528.92822 | H23: 19528.92822 | I23: 19528.92822 | J23: 19528.92822 | K23: 19528.92822 | L23: 19528.92822 | M23: 19528.92822 | N23: 19528.92822 | O23: 19528.92822 | P23: 19528.92822 | Q23: 19528.92822
D24: 2007-12-31 | G24: =+$G$16/$E$18*0.5 -> 0 | H24: 0 | I24: 0 | J24: 0 | K24: 0 | L24: 0 | M24: 0 | N24: 0 | O24: 0 | P24: 0 | Q24: 0 | R24: 0 | S24: 0
D25: 2008-06-30 | H25: =+$H$16/$E$18*0.5 -> 9502.091728 | I25: 9502.091728 | J25: 9502.091728 | K25: 9502.091728 | L25: 9502.091728 | M25: 9502.091728 | N25: 9502.091728 | O25: 9502.091728 | P25: 9502.091728 | Q25: 9502.091728 | R25: 9502.091728 | S25: 9502.091728
D26: 2008-12-31 | I26: =+$I$16/$E$18*0.5 -> 0 | J26: 0 | K26: 0 | L26: 0 | M26: 0 | N26: 0 | O26: 0 | P26: 0 | Q26: 0 | R26: 0 | S26: 0 | T26: 0
D27: 2009-06-30 | J27: =+$J$16/$E$18*0.5 -> 32992.54194 | K27: 32992.54194 | L27: 32992.54194 | M27: 32992.54194 | N27: 32992.54194 | O27: 32992.54194 | P27: 32992.54194 | Q27: 32992.54194 | R27: 32992.54194 | S27: 32992.54194 | T27: 32992.54194 | U27: 32992.54194
D28: 2009-12-31 | K28: =+$K$16/$E$18*0.5 -> 0 | L28: 0 | M28: 0 | N28: 0 | O28: 0 | P28: 0 | Q28: 0 | R28: 0 | S28: 0 | T28: 0 | U28: 0 | V28: 0
D29: 2010-06-30 | L29: =+$L$16/$E$18*0.5 -> 13937.6514 | M29: 13937.6514 | N29: 13937.6514 | O29: 13937.6514 | P29: 13937.6514 | Q29: 13937.6514 | R29: 13937.6514 | S29: 13937.6514 | T29: 13937.6514 | U29: 13937.6514 | V29: 13937.6514 | W29: 13937.6514
D30: 2010-12-31 | M30: =+$M$16/$E$18*0.5 -> 0 | N30: 0 | O30: 0 | P30: 0 | Q30: 0 | R30: 0 | S30: 0 | T30: 0 | U30: 0 | V30: 0 | W30: 0 | X30: 0
D31: 2011-06-30 | N31: =+$N$16/$E$18*0.5 -> 13053.4471 | O31: 13053.4471 | P31: 13053.4471 | Q31: 13053.4471 | R31: 13053.4471 | S31: 13053.4471 | T31: 13053.4471 | U31: 13053.4471 | V31: 13053.4471 | W31: 13053.4471 | X31: 13053.4471 | Y31: 13053.4471
D32: 2011-12-31 | O32: =+$O$16/$E$18*0.5 -> 0 | P32: 0 | Q32: 0 | R32: 0 | S32: 0 | T32: 0 | U32: 0 | V32: 0 | W32: 0 | X32: 0 | Y32: 0
D33: 2012-06-30 | P33: =+$P$16/$E$18*0.5 -> 5760.032035 | Q33: 5760.032035 | R33: 5760.032035 | S33: 5760.032035 | T33: 5760.032035 | U33: 5760.032035 | V33: 5760.032035 | W33: 5760.032035 | X33: 5760.032035 | Y33: 5760.032035 | Z33: 5760.032035 | AA33: 5760.032035
D34: 2012-12-31 | Q34: =+$Q$16/$E$18*0.5 -> 0 | R34: 0 | S34: 0 | T34: 0 | U34: 0 | V34: 0 | W34: 0 | X34: 0 | Y34: 0 | Z34: 0 | AA34: 0 | AB34: 0 | AC34: 0
D35: 2013-06-30 | R35: =+$R$16/$E$18*0.5 -> 14738.00874 | S35: 14738.00874 | T35: 14738.00874 | U35: 14738.00874 | V35: 14738.00874 | W35: 14738.00874 | X35: 14738.00874 | Y35: 14738.00874 | Z35: 14738.00874 | AA35: 14738.00874 | AB35: 14738.00874 | AC35: 14738.00874
D36: 2013-12-31 | S36: =+$S$16/$E$18*0.5 -> 0 | T36: 0 | U36: 0 | V36: 0 | W36: 0 | X36: 0 | Y36: 0 | Z36: 0 | AA36: 0 | AB36: 0 | AC36: 0 | AD36: 0 | AE36: 0
D37: 2014-06-30 | T37: =+$T$16/$E$18*0.5 -> 8479.976584 | U37: 8479.976584 | V37: 8479.976584 | W37: 8479.976584 | X37: 8479.976584 | Y37: 8479.976584 | Z37: 8479.976584 | AA37: 8479.976584 | AB37: 8479.976584 | AC37: 8479.976584 | AD37: 8479.976584 | AE37: 8479.976584
D38: 2014-12-31 | U38: =+$U$16/$E$18*0.5 -> 0 | V38: 0 | W38: 0 | X38: 0 | Y38: 0 | Z38: 0 | AA38: 0 | AB38: 0 | AC38: 0 | AD38: 0 | AE38: 0 | AF38: 0 | AG38: 0
D39: 2015-06-30 | V39: =+$V$16/$E$18*0.5 -> 9759.27792 | W39: 9759.27792 | X39: 9759.27792 | Y39: 9759.27792 | Z39: 9759.27792 | AA39: 9759.27792 | AB39: 9759.27792 | AC39: 9759.27792 | AD39: 9759.27792 | AE39: 9759.27792 | AF39: 9759.27792 | AG39: 9759.27792
D40: 2015-12-31 | W40: =+$W$16/$E$18*0.5 -> 0 | X40: 0 | Y40: 0 | Z40: 0 | AA40: 0 | AB40: 0 | AC40: 0 | AD40: 0 | AE40: 0 | AF40: 0 | AG40: 0 | AH40: 0 | AI40: 0
D41: 2016-06-30 | X41: =+$X$16/$E$18*0.5 -> 5918.833094 | Y41: 5918.833094 | Z41: 5918.833094 | AA41: 5918.833094 | AB41: 5918.833094 | AC41: 5918.833094 | AD41: 5918.833094 | AE41: 5918.833094 | AF41: 5918.833094 | AG41: 5918.833094 | AH41: 5918.833094 | AI41: 5918.833094
D42: 2016-12-31 | Y42: =+$Y$16/$E$18*0.5 -> 0 | Z42: 0 | AA42: 0 | AB42: 0 | AC42: 0 | AD42: 0 | AE42: 0 | AF42: 0 | AG42: 0 | AH42: 0 | AI42: 0 | AJ42: 0
D43: 2017-06-30 | Z43: =+$Z$16/$E$18*0.5 -> 9759.27792 | AA43: 9759.27792 | AB43: 9759.27792 | AC43: 9759.27792 | AD43: 9759.27792 | AE43: 9759.27792 | AF43: 9759.27792 | AG43: 9759.27792 | AH43: 9759.27792 | AI43: 9759.27792 | AJ43: 9759.27792 | AK43: 9759.27792
D44: 2017-12-31 | AA44: =+$AA$16/$E$18*0.5 -> 0 | AB44: 0 | AC44: 0 | AD44: 0 | AE44: 0 | AF44: 0 | AG44: 0 | AH44: 0 | AI44: 0 | AJ44: 0 | AK44: 0 | AL44: 0 | AM44: 0
D45: 2018-06-30 | AB45: =+$AB$16/$E$18*0.5 -> 10314.44642 | AC45: 10314.44642 | AD45: 10314.44642 | AE45: 10314.44642 | AF45: 10314.44642 | AG45: 10314.44642 | AH45: 10314.44642 | AI45: 10314.44642 | AJ45: 10314.44642 | AK45: 10314.44642 | AL45: 10314.44642 | AM45: 10314.44642
D46: 2018-12-31 | AC46: =+$AC$16/$E$18*0.5 -> 0 | AD46: 0 | AE46: 0 | AF46: 0 | AG46: 0 | AH46: 0 | AI46: 0 | AJ46: 0 | AK46: 0 | AL46: 0 | AM46: 0 | AN46: 0
D47: 2019-06-30 | AD47: =+$AD$16/$E$18*0.5 -> 2107.607663 | AE47: 2107.607663 | AF47: 2107.607663 | AG47: 2107.607663 | AH47: 2107.607663 | AI47: 2107.607663 | AJ47: 2107.607663 | AK47: 2107.607663 | AL47: 2107.607663 | AM47: 2107.607663 | AN47: 2107.607663 | AO47: 2107.607663
D48: 2019-12-31 | AE48: =+$AE$16/$E$18*0.5 -> 0 | AF48: 0 | AG48: 0 | AH48: 0 | AI48: 0 | AJ48: 0 | AK48: 0 | AL48: 0 | AM48: 0 | AN48: 0 | AO48: 0 | AP48: 0 | AQ48: 0
D49: 2020-06-30 | AF49: =+$AF$16/$E$18*0.5 -> 10314.44642 | AG49: 10314.44642 | AH49: 10314.44642 | AI49: 10314.44642 | AJ49: 10314.44642 | AK49: 10314.44642 | AL49: 10314.44642 | AM49: 10314.44642 | AN49: 10314.44642 | AO49: 10314.44642 | AP49: 10314.44642 | AQ49: 10314.44642
D50: 2020-12-31 | AG50: =+$AG$16/$E$18*0.5 -> 0 | AH50: 0 | AI50: 0 | AJ50: 0 | AK50: 0 | AL50: 0 | AM50: 0 | AN50: 0 | AO50: 0 | AP50: 0 | AQ50: 0
D51: 2021-06-30 | AH51: =+$AH$16/$E$18*0.5 -> 3378.01614 | AI51: 3378.01614 | AJ51: 3378.01614 | AK51: 3378.01614 | AL51: 3378.01614 | AM51: 3378.01614 | AN51: 3378.01614 | AO51: 3378.01614 | AP51: 3378.01614 | AQ51: 3378.01614
D52: 2021-12-31 | AI52: =+$AI$16/$E$18*0.5 -> 0 | AJ52: 0 | AK52: 0 | AL52: 0 | AM52: 0 | AN52: 0 | AO52: 0 | AP52: 0 | AQ52: 0
D53: 2022-06-30 | AJ53: =+$AJ$16/$E$18*0.5 -> 10314.44642 | AK53: 10314.44642 | AL53: 10314.44642 | AM53: 10314.44642 | AN53: 10314.44642 | AO53: 10314.44642 | AP53: 10314.44642 | AQ53: 10314.44642
D54: 2022-12-31 | AK54: =+$AK$16/$E$18*0.5 -> 0 | AL54: 0 | AM54: 0 | AN54: 0 | AO54: 0 | AP54: 0 | AQ54: 0
D55: 2023-06-30 | AL55: =+$AL$16/$E$18*0.5 -> 2107.607663 | AM55: 2107.607663 | AN55: 2107.607663 | AO55: 2107.607663 | AP55: 2107.607663 | AQ55: 2107.607663
D56: 2023-12-31 | AM56: =+$AM$16/$E$18*0.5 -> 0 | AN56: =+$AM$16/$E$18*0.5 -> 0 | AO56: =+$AM$16/$E$18*0.5 -> 0 | AP56: =+$AM$16/$E$18*0.5 -> 0 | AQ56: =+$AM$16/$E$18*0.5 -> 0
D57: 2024-06-30 | AN57: =+$AN$16/$E$18*0.5 -> 10314.44642 | AO57: =+$AN$16/$E$18*0.5 -> 10314.44642 | AP57: =+$AN$16/$E$18*0.5 -> 10314.44642 | AQ57: =+$AN$16/$E$18*0.5 -> 10314.44642
D58: 2024-12-31 | AO58: =+$AO$16/$E$18*0.5 -> 0 | AP58: =+$AO$16/$E$18*0.5 -> 0 | AQ58: =+$AO$16/$E$18*0.5 -> 0
D59: 2025-06-30 | AP59: =+$AP$16/$E$18*0.5 -> 2107.607663 | AQ59: =+$AP$16/$E$18*0.5 -> 2107.607663
D60: 2025-12-31 | AQ60: =+$AQ$16/$E$18*0.5 -> 0
D61: A. Depreciation of Operational Capex before Start of operation in 2012 | E61: =SUM(E22:E32) -> 23781.64003 | F61: 43310.56825 | G61: 43310.56825 | H61: 52812.65998 | I61: 52812.65998 | J61: 85805.20192 | K61: 85805.20192 | L61: 99742.85332 | M61: 99742.85332 | N61: 112796.3004 | O61: 112796.3004 | P61: 112796.3004 | Q61: 89014.66039 | R61: 69485.73217 | S61: 69485.73217 | T61: 59983.64044 | U61: 59983.64044 | V61: 26991.0985 | W61: 26991.0985 | X61: 13053.4471 | Y61: 13053.4471 | Z61: 0 | AA61: 0 | AB61: 0 | AC61: 0 | AD61: 0 | AE61: 0 | AF61: 0 | AG61: 0 | AH61: 0 | AI61: 0 | AJ61: 0 | AK61: 0 | AL61: 0 | AM61: 0 | AN61: 0 | AO61: 0 | AP61: =SUM(AP22:AP32) -> 0 | AQ61: =SUM(AQ22:AQ32) -> 0
D63: B. Depreciation of Operational Capex from Start of operation in 2012 | P63: =+SUM(P33:P60) -> 5760.032035 | Q63: 5760.032035 | R63: 20498.04078 | S63: 20498.04078 | T63: 28978.01736 | U63: 28978.01736 | V63: 38737.29528 | W63: 38737.29528 | X63: 44656.12837 | Y63: 44656.12837 | Z63: 54415.40629 | AA63: 54415.40629 | AB63: 58969.82068 | AC63: 58969.82068 | AD63: 46339.41961 | AE63: 46339.41961 | AF63: 48173.88945 | AG63: 48173.88945 | AH63: 41792.62767 | AI63: 41792.62767 | AJ63: 46188.241 | AK63: 46188.241 | AL63: 38536.57074 | AM63: 38536.57074 | AN63: 38536.57074 | AO63: 38536.57074 | AP63: 38536.57074 | AQ63: 38536.57074
D69: Capex used for depreciation purpose
F70: Service Life (years)
D71: =Assumptions!E429 -> 1. Superstructures (building & Installations) | E71: =Assumptions!H429 -> 151392440.3 | F71: =Assumptions!D429 -> 30 | P71: =+$E$71/$F$71*0.5 -> 2523207.338 | Q71: 2523207.338 | R71: 2523207.338 | S71: 2523207.338 | T71: 2523207.338 | U71: 2523207.338 | V71: 2523207.338 | W71: 2523207.338 | X71: 2523207.338 | Y71: 2523207.338 | Z71: 2523207.338 | AA71: 2523207.338 | AB71: 2523207.338 | AC71: 2523207.338 | AD71: 2523207.338 | AE71: 2523207.338 | AF71: 2523207.338 | AG71: 2523207.338 | AH71: 2523207.338 | AI71: 2523207.338 | AJ71: 2523207.338 | AK71: 2523207.338 | AL71: 2523207.338 | AM71: 2523207.338 | AN71: 2523207.338 | AO71: 2523207.338 | AP71: 2523207.338 | AQ71: 2523207.338
D72: =Assumptions!E430 -> 2. Infrastructures | E72: =Assumptions!H430 -> 182720041.9 | F72: =Assumptions!D430 -> 0
D73: =Assumptions!E431 -> 2. 1 Preparatories Studies | E73: =Assumptions!H431 -> 3985250 | F73: =Assumptions!D431 -> 6 | P73: =+$E$73/$F$73*0.5 -> 332104.1667 | Q73: 332104.1667 | R73: 332104.1667 | S73: 332104.1667 | T73: 332104.1667 | U73: 332104.1667 | V73: 332104.1667 | W73: 332104.1667 | X73: 332104.1667 | Y73: 332104.1667 | Z73: 332104.1667 | AA73: 332104.1667
D74: =Assumptions!E432 -> 2. 2 Groundworks | E74: =Assumptions!H432 -> 159583432 | F74: =Assumptions!D432 -> 30 | P74: =+$E$74/$F$74*0.5 -> 2659723.867 | Q74: 2659723.867 | R74: 2659723.867 | S74: 2659723.867 | T74: 2659723.867 | U74: 2659723.867 | V74: 2659723.867 | W74: 2659723.867 | X74: 2659723.867 | Y74: 2659723.867 | Z74: 2659723.867 | AA74: 2659723.867 | AB74: 2659723.867 | AC74: 2659723.867 | AD74: 2659723.867 | AE74: 2659723.867 | AF74: 2659723.867 | AG74: 2659723.867 | AH74: 2659723.867 | AI74: 2659723.867 | AJ74: 2659723.867 | AK74: 2659723.867 | AL74: 2659723.867 | AM74: 2659723.867 | AN74: 2659723.867 | AO74: 2659723.867 | AP74: 2659723.867 | AQ74: 2659723.867
D75: =Assumptions!E433 -> 2. 3 Equipements | E75: =Assumptions!H433 -> 6403450 | F75: =Assumptions!D433 -> 20 | P75: =+$E$75/$F$75*0.5 -> 160086.25 | Q75: 160086.25 | R75: 160086.25 | S75: 160086.25 | T75: 160086.25 | U75: 160086.25 | V75: 160086.25 | W75: 160086.25 | X75: 160086.25 | Y75: 160086.25 | Z75: 160086.25 | AA75: 160086.25 | AB75: 160086.25 | AC75: 160086.25 | AD75: 160086.25 | AE75: 160086.25 | AF75: 160086.25 | AG75: 160086.25 | AH75: 160086.25 | AI75: 160086.25 | AJ75: 160086.25 | AK75: 160086.25 | AL75: 160086.25 | AM75: 160086.25 | AN75: 160086.25 | AO75: 160086.25 | AP75: 160086.25 | AQ75: 160086.25
D76: =Assumptions!E434 -> 3. Equipments | E76: =Assumptions!H434 -> 56189611.45 | F76: =Assumptions!D434 -> 20 | P76: =+$E$76/$F$76*0.5 -> 1404740.286 | Q76: 1404740.286 | R76: 1404740.286 | S76: 1404740.286 | T76: 1404740.286 | U76: 1404740.286 | V76: 1404740.286 | W76: 1404740.286 | X76: 1404740.286 | Y76: 1404740.286 | Z76: 1404740.286 | AA76: 1404740.286 | AB76: 1404740.286 | AC76: 1404740.286 | AD76: 1404740.286 | AE76: 1404740.286 | AF76: 1404740.286 | AG76: 1404740.286 | AH76: 1404740.286 | AI76: 1404740.286 | AJ76: 1404740.286 | AK76: 1404740.286 | AL76: 1404740.286 | AM76: 1404740.286 | AN76: 1404740.286 | AO76: 1404740.286 | AP76: 1404740.286 | AQ76: 1404740.286
D77: =Assumptions!E435 -> 4. Studies, assistance & work monitoring | E77: =Assumptions!H435 -> 51658678.1 | F77: =Assumptions!D435 -> 6 | P77: =+$E$77/$F$77*0.5 -> 4304889.841 | Q77: 4304889.841 | R77: 4304889.841 | S77: 4304889.841 | T77: 4304889.841 | U77: 4304889.841 | V77: 4304889.841 | W77: 4304889.841 | X77: 4304889.841 | Y77: 4304889.841 | Z77: 4304889.841 | AA77: 4304889.841
D78: =Assumptions!E436 -> 5. Financing Costs | E78: =Assumptions!H436 -> 15980659.66 | F78: =Assumptions!D436 -> 6 | P78: =+$E$78/$F$78*0.5 -> 1331721.638 | Q78: 1331721.638 | R78: 1331721.638 | S78: 1331721.638 | T78: 1331721.638 | U78: 1331721.638 | V78: 1331721.638 | W78: 1331721.638 | X78: 1331721.638 | Y78: 1331721.638 | Z78: 1331721.638 | AA78: 1331721.638
D79: =Assumptions!E437 -> Contingencies | E79: =Assumptions!H437 -> 0 | F79: =Assumptions!D437 -> 0
D80: =Assumptions!E438 -> Total Capex and contingencies | E80: =Assumptions!H438 -> 457941431.4
D81: C. Depreciation of Airport CAPEX from Start of operation in 2012 | P81: =SUM(P71:P80) -> 12716473.39 | Q81: 12716473.39 | R81: 12716473.39 | S81: 12716473.39 | T81: 12716473.39 | U81: 12716473.39 | V81: 12716473.39 | W81: 12716473.39 | X81: 12716473.39 | Y81: 12716473.39 | Z81: 12716473.39 | AA81: 12716473.39 | AB81: 6747757.741 | AC81: 6747757.741 | AD81: 6747757.741 | AE81: 6747757.741 | AF81: 6747757.741 | AG81: 6747757.741 | AH81: 6747757.741 | AI81: 6747757.741 | AJ81: 6747757.741 | AK81: 6747757.741 | AL81: 6747757.741 | AM81: 6747757.741 | AN81: 6747757.741 | AO81: 6747757.741 | AP81: 6747757.741 | AQ81: 6747757.741
D85: =Assumptions!D461 -> Credit to the Annual Maintenance and Renewal Reserve Account | P85: =Assumptions!P465 -> 0 | Q85: =Assumptions!Q465 -> 0 | R85: =Assumptions!R465 -> 0 | S85: =Assumptions!S465 -> 0 | T85: =Assumptions!T465 -> 0 | U85: =Assumptions!U465 -> 0 | V85: =Assumptions!V465 -> 0 | W85: =Assumptions!W465 -> 0 | X85: =Assumptions!X465 -> 0 | Y85: =Assumptions!Y465 -> 0 | Z85: =Assumptions!Z465 -> 3924100.47 | AA85: =Assumptions!AA465 -> 3982527.017 | AB85: =Assumptions!AB465 -> 0 | AC85: =Assumptions!AC465 -> 0 | AD85: =Assumptions!AD465 -> 0 | AE85: =Assumptions!AE465 -> 0 | AF85: =Assumptions!AF465 -> 0 | AG85: =Assumptions!AG465 -> 0 | AH85: =Assumptions!AH465 -> 0 | AI85: =Assumptions!AI465 -> 0 | AJ85: =Assumptions!AJ465 -> 17278215.05 | AK85: =Assumptions!AK465 -> 17535473.1 | AL85: =Assumptions!AL465 -> 0 | AM85: =Assumptions!AM465 -> 0 | AN85: =Assumptions!AN465 -> 0 | AO85: =Assumptions!AO465 -> 0 | AP85: =Assumptions!AP465 -> 0 | AQ85: =Assumptions!AQ465 -> 0
F86: Service Life (years)
D87: Depreciation Table | F87: =Assumptions!E467 -> 15
D89: =D31 -> 2011-06-30
D90: 2011-12-31
D91: 2012-06-30
D92: 2012-12-31
D93: 2013-06-30
D94: 2013-12-31 | S94: =+$S$85/$F$87*0.5 -> 0 | T94: 0 | U94: 0 | V94: 0 | W94: 0 | X94: 0 | Y94: 0 | Z94: 0 | AA94: 0 | AB94: 0 | AC94: 0 | AD94: 0 | AE94: 0 | AF94: 0 | AG94: 0 | AH94: 0 | AI94: 0 | AJ94: 0 | AK94: 0 | AL94: 0 | AM94: 0 | AN94: 0 | AO94: 0 | AP94: 0 | AQ94: 0
D95: 2014-06-30 | T95: =+$T$85/$F$87*0.5 -> 0 | U95: 0 | V95: 0 | W95: 0 | X95: 0 | Y95: 0 | Z95: 0 | AA95: 0 | AB95: 0 | AC95: 0 | AD95: 0 | AE95: 0 | AF95: 0 | AG95: 0 | AH95: 0 | AI95: 0 | AJ95: 0 | AK95: 0 | AL95: 0 | AM95: 0 | AN95: 0 | AO95: 0 | AP95: 0 | AQ95: 0
D96: 2014-12-31 | U96: =+$U$85/$F$87*0.5 -> 0 | V96: 0 | W96: 0 | X96: 0 | Y96: 0 | Z96: 0 | AA96: 0 | AB96: 0 | AC96: 0 | AD96: 0 | AE96: 0 | AF96: 0 | AG96: 0 | AH96: 0 | AI96: 0 | AJ96: 0 | AK96: 0 | AL96: 0 | AM96: 0 | AN96: 0 | AO96: 0 | AP96: 0 | AQ96: 0
D97: 2015-06-30 | V97: =+$V$85/$F$87*0.5 -> 0 | W97: 0 | X97: 0 | Y97: 0 | Z97: 0 | AA97: 0 | AB97: 0 | AC97: 0 | AD97: 0 | AE97: 0 | AF97: 0 | AG97: 0 | AH97: 0 | AI97: 0 | AJ97: 0 | AK97: 0 | AL97: 0 | AM97: 0 | AN97: 0 | AO97: 0 | AP97: 0 | AQ97: 0
D98: 2015-12-31 | W98: =+$W$85/$F$87*0.5 -> 0 | X98: 0 | Y98: 0 | Z98: 0 | AA98: 0 | AB98: 0 | AC98: 0 | AD98: 0 | AE98: 0 | AF98: 0 | AG98: 0 | AH98: 0 | AI98: 0 | AJ98: 0 | AK98: 0 | AL98: 0 | AM98: 0 | AN98: 0 | AO98: 0 | AP98: 0 | AQ98: 0
D99: 2016-06-30 | X99: =+$X$85/$F$87*0.5 -> 0 | Y99: 0 | Z99: 0 | AA99: 0 | AB99: 0 | AC99: 0 | AD99: 0 | AE99: 0 | AF99: 0 | AG99: 0 | AH99: 0 | AI99: 0 | AJ99: 0 | AK99: 0 | AL99: 0 | AM99: 0 | AN99: 0 | AO99: 0 | AP99: 0 | AQ99: 0
D100: 2016-12-31 | Y100: =+$Y$85/$F$87*0.5 -> 0 | Z100: 0 | AA100: 0 | AB100: 0 | AC100: 0 | AD100: 0 | AE100: 0 | AF100: 0 | AG100: 0 | AH100: 0 | AI100: 0 | AJ100: 0 | AK100: 0 | AL100: 0 | AM100: 0 | AN100: 0 | AO100: 0 | AP100: 0 | AQ100: 0
D101: 2017-06-30 | Z101: =+$Z$85/$F$87*0.5 -> 130803.349 | AA101: 130803.349 | AB101: 130803.349 | AC101: 130803.349 | AD101: 130803.349 | AE101: 130803.349 | AF101: 130803.349 | AG101: 130803.349 | AH101: 130803.349 | AI101: 130803.349 | AJ101: 130803.349 | AK101: 130803.349 | AL101: 130803.349 | AM101: 130803.349 | AN101: 130803.349 | AO101: 130803.349 | AP101: 130803.349 | AQ101: 130803.349
D102: 2017-12-31 | AA102: =+$AA$85/$F$87*0.5 -> 132750.9006 | AB102: 132750.9006 | AC102: 132750.9006 | AD102: 132750.9006 | AE102: 132750.9006 | AF102: 132750.9006 | AG102: 132750.9006 | AH102: 132750.9006 | AI102: 132750.9006 | AJ102: 132750.9006 | AK102: 132750.9006 | AL102: 132750.9006 | AM102: 132750.9006 | AN102: 132750.9006 | AO102: 132750.9006 | AP102: 132750.9006 | AQ102: 132750.9006
D103: 2018-06-30 | AB103: =+$AB$85/$F$87*0.5 -> 0 | AC103: 0 | AD103: 0 | AE103: 0 | AF103: 0 | AG103: 0 | AH103: 0 | AI103: 0 | AJ103: 0 | AK103: 0 | AL103: 0 | AM103: 0 | AN103: 0 | AO103: 0 | AP103: 0 | AQ103: 0
D104: 2018-12-31 | AC104: =+$AC$85/$F$87*0.5 -> 0 | AD104: 0 | AE104: 0 | AF104: 0 | AG104: 0 | AH104: 0 | AI104: 0 | AJ104: 0 | AK104: 0 | AL104: 0 | AM104: 0 | AN104: 0 | AO104: 0 | AP104: 0 | AQ104: 0
D105: 2019-06-30 | AD105: =+$AD$85/$F$87*0.5 -> 0 | AE105: 0 | AF105: 0 | AG105: 0 | AH105: 0 | AI105: 0 | AJ105: 0 | AK105: 0 | AL105: 0 | AM105: 0 | AN105: 0 | AO105: 0 | AP105: 0 | AQ105: 0
D106: 2019-12-31 | AE106: =+$AE$85/$F$87*0.5 -> 0 | AF106: 0 | AG106: 0 | AH106: 0 | AI106: 0 | AJ106: 0 | AK106: 0 | AL106: 0 | AM106: 0 | AN106: 0 | AO106: 0 | AP106: 0 | AQ106: 0
D107: 2020-06-30 | AF107: =+$AF$85/$F$87*0.5 -> 0 | AG107: 0 | AH107: 0 | AI107: 0 | AJ107: 0 | AK107: 0 | AL107: 0 | AM107: 0 | AN107: 0 | AO107: 0 | AP107: 0 | AQ107: 0
D108: 2020-12-31 | AG108: =+$AG$85/$F$87*0.5 -> 0 | AH108: 0 | AI108: 0 | AJ108: 0 | AK108: 0 | AL108: 0 | AM108: 0 | AN108: 0 | AO108: 0 | AP108: 0 | AQ108: 0
D109: 2021-06-30 | AH109: =+$AH$85/$F$87*0.5 -> 0 | AI109: 0 | AJ109: 0 | AK109: 0 | AL109: 0 | AM109: 0 | AN109: 0 | AO109: 0 | AP109: 0 | AQ109: 0
D110: 2021-12-31 | AI110: =+$AI$85/$F$87*0.5 -> 0 | AJ110: 0 | AK110: 0 | AL110: 0 | AM110: 0 | AN110: 0 | AO110: 0 | AP110: 0 | AQ110: 0
D111: 2022-06-30 | AJ111: =+$AJ$85/$F$87*0.5 -> 575940.5016 | AK111: 575940.5016 | AL111: 575940.5016 | AM111: 575940.5016 | AN111: 575940.5016 | AO111: 575940.5016 | AP111: 575940.5016 | AQ111: 575940.5016
D112: 2022-12-31 | AK112: =+$AK$85/$F$87*0.5 -> 584515.7699 | AL112: 584515.7699 | AM112: 584515.7699 | AN112: 584515.7699 | AO112: 584515.7699 | AP112: 584515.7699 | AQ112: 584515.7699
D113: 2023-06-30 | AL113: =+$AL$85/$F$87*0.5 -> 0 | AM113: 0 | AN113: 0 | AO113: 0 | AP113: 0 | AQ113: 0
D114: 2023-12-31 | AM114: =+$AM$85/$F$87*0.5 -> 0 | AN114: =+$AM$85/$F$87*0.5 -> 0 | AO114: =+$AM$85/$F$87*0.5 -> 0 | AP114: =+$AM$85/$F$87*0.5 -> 0 | AQ114: =+$AM$85/$F$87*0.5 -> 0
D115: 2024-06-30 | AN115: =+$AN$85/$F$87*0.5 -> 0 | AO115: =+$AN$85/$F$87*0.5 -> 0 | AP115: =+$AN$85/$F$87*0.5 -> 0 | AQ115: =+$AN$85/$F$87*0.5 -> 0
D116: 2024-12-31 | AO116: =+$AO$85/$F$87*0.5 -> 0 | AP116: =+$AO$85/$F$87*0.5 -> 0 | AQ116: =+$AO$85/$F$87*0.5 -> 0
D117: 2025-06-30 | AP117: =+$AP$85/$F$87*0.5 -> 0 | AQ117: =+$AP$85/$F$87*0.5 -> 0
D118: 2025-12-31 | AQ118: =+$AQ$85/$F$87*0.5 -> 0
D119: D. Maintenance and Renewal Depreciation | S119: =SUM(S94:S118) -> 0 | T119: 0 | U119: 0 | V119: 0 | W119: 0 | X119: 0 | Y119: 0 | Z119: 130803.349 | AA119: 263554.2496 | AB119: 263554.2496 | AC119: 263554.2496 | AD119: 263554.2496 | AE119: 263554.2496 | AF119: 263554.2496 | AG119: 263554.2496 | AH119: 263554.2496 | AI119: 263554.2496 | AJ119: 839494.7512 | AK119: 1424010.521 | AL119: 1424010.521 | AM119: 1424010.521 | AN119: 1424010.521 | AO119: 1424010.521 | AP119: 1424010.521 | AQ119: 1424010.521
D122: E =C+D Depreciation of Airport Capex and Renewal & Maintenance | P122: =P81+P119 -> 12716473.39 | Q122: 12716473.39 | R122: 12716473.39 | S122: 12716473.39 | T122: 12716473.39 | U122: 12716473.39 | V122: 12716473.39 | W122: 12716473.39 | X122: 12716473.39 | Y122: 12716473.39 | Z122: 12847276.74 | AA122: 12980027.64 | AB122: 7011311.99 | AC122: 7011311.99 | AD122: 7011311.99 | AE122: 7011311.99 | AF122: 7011311.99 | AG122: 7011311.99 | AH122: 7011311.99 | AI122: 7011311.99 | AJ122: 7587252.492 | AK122: 8171768.262 | AL122: 8171768.262 | AM122: 8171768.262 | AN122: 8171768.262 | AO122: 8171768.262 | AP122: 8171768.262 | AQ122: 8171768.262
D125: F =B+E Depreciation to be reported in Profit to "neuralize" the impact of depreciation on P&L from 2012 | E125: =+E63+E122 -> 0 | F125: 0 | G125: 0 | H125: 0 | I125: 0 | J125: 0 | K125: 0 | L125: 0 | M125: 0 | N125: 0 | O125: 0 | P125: 12722233.42 | Q125: 12722233.42 | R125: 12736971.43 | S125: 12736971.43 | T125: 12745451.4 | U125: 12745451.4 | V125: 12755210.68 | W125: 12755210.68 | X125: 12761129.52 | Y125: 12761129.52 | Z125: 12901692.14 | AA125: 13034443.04 | AB125: 7070281.811 | AC125: 7070281.811 | AD125: 7057651.41 | AE125: 7057651.41 | AF125: 7059485.88 | AG125: 7059485.88 | AH125: 7053104.618 | AI125: 7053104.618 | AJ125: 7633440.733 | AK125: 8217956.503 | AL125: 8210304.833 | AM125: 8210304.833 | AN125: 8210304.833 | AO125: 8210304.833 | AP125: 8210304.833 | AQ125: 8210304.833
H130: 256
E131: =SUM(E125:AQ125)+SUM(E61:AQ61) -> 276325957.4

Sheet General Assumptions
B2: PARAMETERS FOR THE FINANCIAL MODEL
B6: 1. | C6: MISCELLANEOUS REVENUES PARAMETERS
E8: Exchange rate
E9: Exchange rate of 1 EUR/FCFA | F9: =655.957 -> 655.957
E10: Exchange rate of 1 FCFA/EUR | F10: =1/$F$9 -> 0.001524490172
E12: Taxes
E13: Income tax | F13: 0.15
E14: Tax on management fee | F14: 0.2
E16: Variable Concession Fee rates
E17: From 2009-2012 | F17: 0.17 | G17: 0.17
E18: From 2013-2020 | F18: 0.2 | G18: 0.2
E19: From 2021-2025 | F19: 0.23 | G19: 0.23
B21: 2. | C21: TRAFFIC ASSUMPTIONS
E23: Traffic breakdown
E24: Departures | F24: 0.472
E25: International flights/Total | F25: 0.98
E26: Domestic flights | F26: 0.02
E27: Source: SDG traffic model
G29: =2004 -> 2004 | H29: =G29+1 -> 2005 | I29: =H29+1 -> 2006 | J29: 2007 | K29: 2008 | L29: 2009 | M29: 2010 | N29: 2011 | O29: 2012 | P29: 2013 | Q29: 2014 | R29: =Q29+1 -> 2015 | S29: 2016 | T29: 2017 | U29: 2018 | V29: 2019 | W29: 2020 | X29: 2021 | Y29: 2022 | Z29: =Y29+1 -> 2023 | AA29: 2024 | AB29: 2025
E30: International departing pax | G30: 741220.6247 | H30: 728117.7657 | I30: 761757.9042 | J30: 834935.8751 | K30: 815094.8347 | L30: 774731.0095 | M30: 807967.9411 | N30: 866710.4263 | O30: 967568.0932 | P30: 1058671.066 | Q30: 1152485.598 | R30: 1231961.633 | S30: 1311323.806 | T30: 1396490.307 | U30: 1487909.659 | V30: 1567804.186 | W30: 1652491.185 | X30: 1742272.785 | Y30: 1837470.677 | Z30: 1938427.395 | AA30: 2045507.683 | AB30: 2159099.952
E31: Total international pax | G31: =G30/$F$24 -> 1570382.679 | H31: 1542622.385 | I31: 1613893.865 | J31: 1768931.939 | K31: 1726895.836 | L31: 1641379.257 | M31: 1711796.485 | N31: 1836250.903 | O31: 2049932.401 | P31: 2242947.175 | Q31: 2441706.774 | R31: 2610088.205 | S31: 2778228.403 | T31: 2958665.904 | U31: 3152350.971 | V31: 3321619.038 | W31: 3501040.646 | X31: 3691255.9 | Y31: 3892946.349 | Z31: 4106837.7 | AA31: 4333702.718 | AB31: 4574364.306
E32: Total Pax | G32: =G31/$F$25 -> 1602431.306 | H32: 1574104.474 | I32: 1646830.474 | J32: 1805032.591 | K32: 1762138.609 | L32: 1674876.793 | M32: 1746731.107 | N32: 1873725.411 | O32: 2091767.756 | P32: 2288721.607 | Q32: 2491537.525 | R32: 2663355.311 | S32: 2834926.942 | T32: 3019046.841 | U32: 3216684.665 | V32: 3389407.182 | W32: 3572490.455 | X32: 3766587.653 | Y32: 3972394.233 | Z32: 4190650.715 | AA32: 4422145.63 | AB32: 4667718.679
E33: Domestic pax | G33: =G32*2% -> 32048.62611 | H33: =H32*2% -> 31482.08949 | I33: 32936.60949 | J33: 36100.65181 | K33: 35242.77217 | L33: 33497.53586 | M33: 34934.62215 | N33: 37474.50823 | O33: 41835.35512 | P33: 45774.43213 | Q33: 49830.7505 | R33: 53267.10623 | S33: 56698.53884 | T33: 60380.93681 | U33: 64333.69329 | V33: 67788.14363 | W33: 71449.80909 | X33: 75331.75305 | Y33: 79447.88466 | Z33: 83813.01429 | AA33: 88442.91261 | AB33: 93354.37359
E34: Source: SDG
E36: Regional/intl pax split
E37: Regional | F37: =23% -> 0.23
E38: International | F38: 0.77
E40: Air traffic movements split
E41: National-commercial | F41: 0.08
E42: International-commercial | F42: 0.92
B44: TRAFFIC PROJECTIONS FOR AIBD
E46: Commercial Passengers Traffic
G47: 2004 | H47: 2005 | I47: 2006 | J47: 2007 | K47: 2008 | L47: 2009 | M47: 2010 | N47: 2011 | O47: 2012 | P47: 2013 | Q47: 2014 | R47: 2015 | S47: 2016 | T47: 2017 | U47: 2018 | V47: 2019 | W47: 2020 | X47: 2021 | Y47: 2022 | Z47: 2023 | AA47: 2024 | AB47: 2025
E49: National | G49: 32048.62611 | H49: 31482.08949 | I49: 32936.60949 | J49: 36100.65181 | K49: 35242.77217 | L49: 33497.53586 | M49: 34934.62215 | N49: 37474.50823 | O49: 41835.35512 | P49: 45774.43213 | Q49: 49830.7505 | R49: 53267.10623 | S49: 56698.53884 | T49: 60380.93681 | U49: 64333.69329 | V49: 67788.14363 | W49: 71449.80909 | X49: 75331.75305 | Y49: 79447.88466 | Z49: 83813.01429 | AA49: 88442.91261 | AB49: 93354.37359
E50: International | G50: 1570382.679 | H50: 1542622.385 | I50: 1613893.865 | J50: 1768931.939 | K50: 1726895.836 | L50: 1641379.257 | M50: 1711796.485 | N50: 1836250.903 | O50: 2049932.401 | P50: 2242947.175 | Q50: 2441706.774 | R50: 2610088.205 | S50: 2778228.403 | T50: 2958665.904 | U50: 3152350.971 | V50: 3321619.038 | W50: 3501040.646 | X50: 3691255.9 | Y50: 3892946.349 | Z50: 4106837.7 | AA50: 4333702.718 | AB50: 4574364.306
E51: Total passengers | G51: 1602431.306 | H51: 1574104.474 | I51: 1646830.474 | J51: 1805032.591 | K51: 1762138.609 | L51: 1674876.793 | M51: 1746731.107 | N51: 1873725.411 | O51: 2091767.756 | P51: 2288721.607 | Q51: 2491537.525 | R51: 2663355.311 | S51: 2834926.942 | T51: 3019046.841 | U51: 3216684.665 | V51: 3389407.182 | W51: 3572490.455 | X51: 3766587.653 | Y51: 3972394.233 | Z51: 4190650.715 | AA51: 4422145.63 | AB51: 4667718.679
E52: Growth in % | H52: -0.01767740751 | I52: 0.04620150767 | J52: 0.09606460333 | K52: -0.02376354995 | L52: -0.04952040372 | M52: 0.04290125374 | N52: 0.07270398023 | O52: 0.1163683554 | P52: 0.09415665299 | Q52: 0.08861537274 | R52: 0.06896054537 | S52: 0.06441935476 | T52: 0.06494696413 | U52: 0.06546364949 | V52: 0.05369581879 | W52: 0.05401631119 | X52: 0.05433106135 | Y52: 0.05464006138 | Z52: 0.05494330836 | AA52: 0.05524080427 | AB52: 0.0555325558
E54: Landings
E56: Non- Commercial (military etc.) | G56: 13383.24 | H56: 14672 | I56: 14707.01581 | J56: 15001.15612 | K56: 15301.17924 | L56: 15607.20283 | M56: 15511.1585 | N56: 15821.38167 | O56: 16137.80931 | P56: 16460.56549 | Q56: 16347.94057 | R56: 16838.37879 | S56: 17343.53015 | T56: 17863.83606 | U56: 18399.75114 | V56: 18439.53438 | W56: 19177.11576 | X56: 19752.42923 | Y56: 20345.00211 | Z56: 20373.25906 | AA56: 20984.45683 | AB56: 21823.8351
E57: % of non-commercial flights | I57: 0.39 | J57: 0.39 | K57: 0.39 | L57: 0.39 | M57: 0.38 | N57: 0.38 | O57: 0.38 | P57: 0.38 | Q57: 0.37 | R57: 0.37 | S57: 0.37 | T57: 0.37 | U57: 0.37 | V57: 0.36 | W57: 0.36 | X57: 0.36 | Y57: 0.36 | Z57: 0.35 | AA57: 0.35 | AB57: 0.35
E58: National (Pax) | G58: 19705.81188 | H58: 20967 | I58: 21973.416 | J58: 22456.83115 | K58: 22950.88144 | L58: 23455.80083 | M58: 24089.10745 | N58: 24980.40443 | O58: 25904.67939 | P58: 26863.15253 | Q58: 27857.08917 | R58: 28887.80147 | S58: 30101.08913 | T58: 31395.43597 | U58: 32745.43971 | V58: 34153.49362 | W58: 35929.47529 | X58: 37690.01958 | Y58: 39574.52056 | Z58: 41553.24658 | AA58: 43672.46216 | AB58: 45943.43019
E59: Growth in % | I59: 0.048 | J59: 0.022 | K59: 0.022 | L59: 0.022 | M59: 0.027 | N59: 0.037 | O59: 0.037 | P59: 0.037 | Q59: 0.037 | R59: 0.037 | S59: 0.042 | T59: 0.043 | U59: 0.043 | V59: 0.043 | W59: 0.052 | X59: 0.049 | Y59: 0.05 | Z59: 0.05 | AA59: 0.051 | AB59: 0.052
E61: International (Pax) | G61: 19705.81188 | H61: 20967 | I61: 21973.416 | J61: 22456.83115 | K61: 22950.88144 | L61: 23455.80083 | M61: 24089.10745 | N61: 24980.40443 | O61: 25904.67939 | P61: 26863.15253 | Q61: 27857.08917 | R61: 28887.80147 | S61: 30101.08913 | T61: 31395.43597 | U61: 32745.43971 | V61: 34153.49362 | W61: 35929.47529 | X61: 37690.01958 | Y61: 39574.52056 | Z61: 41553.24658 | AA61: 43672.46216 | AB61: 45943.43019
E62: International (Cargo) | G62: 1227 | H62: 1331.879351 | I62: 1355.853179 | J62: 1400.596334 | K62: 1661.107252 | L62: 1769.079224 | M62: 1884.069373 | N62: 2010.302021 | O62: 2151.023163 | P62: 2305.89683 | Q62: 2455.780124 | R62: 2595.759591 | S62: 2746.313648 | T62: 2908.346153 | U62: 3079.938576 | V62: 3264.734891 | W62: 3463.883719 | X62: 3671.716742 | Y62: 3895.691463 | Z62: 4137.224334 | AA62: 4397.869467 | AB62: 4679.333113
E63: Growth in % | I63: 0.018 | J63: 0.033 | K63: 0.186 | L63: 0.065 | M63: 0.065 | N63: 0.067 | O63: 0.07 | P63: 0.072 | Q63: 0.065 | R63: 0.057 | S63: 0.058 | T63: 0.059 | U63: 0.059 | V63: 0.06 | W63: 0.061 | X63: 0.06 | Y63: 0.061 | Z63: 0.062 | AA63: 0.063 | AB63: 0.064
E64: Total International Landings | G64: 34316.05188 | H64: 36970.87935 | I64: 37710.29694 | J64: 38464.50288 | K64: 39233.79293 | L64: 40018.46879 | M64: 40818.83817 | N64: 41635.21493 | O64: 42467.91923 | P64: 43317.27762 | Q64: 44183.62317 | R64: 45509.13186 | S64: 46874.40582 | T64: 48280.63799 | U64: 49729.05713 | V64: 51220.92885 | W64: 53269.766 | X64: 54867.85898 | Y64: 56513.89475 | Z64: 58209.31159 | AA64: 59955.59094 | AB64: 62353.81458
E65: Growth in % | I65: 0.02 | J65: 0.02 | K65: 0.02 | L65: 0.02 | M65: 0.02 | N65: 0.02 | O65: 0.02 | P65: 0.02 | Q65: 0.02 | R65: 0.03 | S65: 0.03 | T65: 0.03 | U65: 0.03 | V65: 0.03 | W65: 0.04 | X65: 0.03 | Y65: 0.03 | Z65: 0.03 | AA65: 0.03 | AB65: 0.04
E67: Freight
E69: Freight | G69: 18518.745 | H69: 24878.47235 | I69: 26250.88697 | J69: 27274.73766 | K69: 28341.8297 | L69: 29454.15733 | M69: 30613.8146 | N69: 31749.32288 | O69: 32928.56555 | P69: 34153.29899 | Q69: 35382.97205 | R69: 36702.8552 | S69: 38073.90675 | T69: 39498.19587 | U69: 40977.87904 | V69: 42515.20389 | W69: 44112.5132 | X69: 45772.2491 | Y69: 47370.94325 | Z69: 49025.9227 | AA69: 50739.18601 | AB69: 52512.80332
E70: Growth in % | H70: 0.3434210769 | I70: 0.0551647465 | J70: 0.03900251782 | K70: 0.03912382432 | L70: 0.039246853 | M70: 0.03937159897 | N70: 0.03709136863 | O70: 0.03714229371 | P70: 0.03719364674 | Q70: 0.03600451774 | R70: 0.03730277806 | S70: 0.0373554467 | T70: 0.03740853619 | U70: 0.03746204445 | V70: 0.03751596924 | W70: 0.03757030816 | X70: 0.03762505868 | Y70: 0.03492714864 | Z70: 0.03493659485 | AA70: 0.0349460696 | AB70: 0.0349555728
E74: PASSENGERS
G75: 2004 | H75: 2005 | I75: 2006 | J75: 2007 | K75: 2008 | L75: 2009 | M75: 2010 | N75: 2011 | O75: 2012 | P75: 2013 | Q75: 2014 | R75: 2015 | S75: 2016 | T75: 2017 | U75: 2018 | V75: 2019 | W75: 2020 | X75: 2021 | Y75: 2022 | Z75: 2023 | AA75: 2024 | AB75: 2025
E77: PAX (international tourist) | G77: 480729.3917 | H77: 487972.3871 | I77: 526985.7518 | J77: 577610.429 | K77: 546262.9686 | L77: 519211.8059 | M77: 541486.6433 | N77: 580854.8775 | O77: 648448.0043 | P77: 709503.6981 | Q77: 772376.6327 | R77: 825640.1466 | S77: 878827.3521 | T77: 966094.989 | U77: 1029339.093 | V77: 1118504.37 | W77: 1214646.755 | X77: 1280639.802 | Y77: 1390337.982 | Z77: 1508634.257 | AA77: 1591972.427 | AB77: 1680378.725
E78: % of total | G78: 0.3 | H78: 0.31 | I78: 0.32 | J78: 0.32 | K78: 0.31 | L78: 0.31 | M78: 0.31 | N78: 0.31 | O78: 0.31 | P78: 0.31 | Q78: 0.31 | R78: 0.31 | S78: 0.31 | T78: 0.32 | U78: 0.32 | V78: 0.33 | W78: 0.34 | X78: 0.34 | Y78: 0.35 | Z78: 0.36 | AA78: 0.36 | AB78: 0.36
E80: PAX (international business ) | G80: 480729.3917 | H80: 472231.3423 | I80: 510517.4471 | J80: 559560.1031 | K80: 563884.3547 | L80: 535960.5738 | M80: 558953.9544 | N80: 599592.1316 | O80: 669365.6819 | P80: 709503.6981 | Q80: 797292.008 | R80: 852273.6997 | S80: 907176.6215 | T80: 966094.989 | U80: 1029339.093 | V80: 1050716.226 | W80: 1107472.041 | X80: 1167642.172 | Y80: 1231442.212 | Z80: 1299101.721 | AA80: 1370865.145 | AB80: 1446992.791
E81: % of total | G81: 0.3 | H81: 0.3 | I81: 0.31 | J81: 0.31 | K81: 0.32 | L81: 0.32 | M81: 0.32 | N81: 0.32 | O81: 0.32 | P81: 0.31 | Q81: 0.32 | R81: 0.32 | S81: 0.32 | T81: 0.32 | U81: 0.32 | V81: 0.31 | W81: 0.31 | X81: 0.31 | Y81: 0.31 | Z81: 0.31 | AA81: 0.31 | AB81: 0.31
E83: PAX (international private) | G83: 448680.7656 | H83: 440749.2528 | I83: 428175.9233 | J83: 451258.1477 | K83: 440534.6521 | L83: 418719.1983 | M83: 436682.7769 | N83: 468431.3528 | O83: 543859.6165 | P83: 595067.6177 | Q83: 622884.3812 | R83: 665838.8279 | S83: 708731.7355 | T83: 724571.2417 | U83: 772004.3195 | V83: 813457.7236 | W83: 821672.8046 | X83: 866315.1601 | Y83: 873926.7313 | Z83: 880036.65 | AA83: 928650.5824 | AB83: 980220.9227
E84: % of total | G84: 0.28 | H84: 0.28 | I84: 0.26 | J84: 0.25 | K84: 0.25 | L84: 0.25 | M84: 0.25 | N84: 0.25 | O84: 0.26 | P84: 0.26 | Q84: 0.25 | R84: 0.25 | S84: 0.25 | T84: 0.24 | U84: 0.24 | V84: 0.24 | W84: 0.23 | X84: 0.23 | Y84: 0.22 | Z84: 0.21 | AA84: 0.21 | AB84: 0.21
E86: PAX (transit) | G86: 160243.1306 | H86: 141669.4027 | I86: 148214.7427 | J86: 180503.2591 | K86: 176213.8609 | L86: 167487.6793 | M86: 174673.1107 | N86: 187372.5411 | O86: 188259.098 | P86: 228872.1607 | Q86: 249153.7525 | R86: 266335.5311 | S86: 283492.6942 | T86: 301904.6841 | U86: 321668.4665 | V86: 338940.7182 | W86: 357249.0455 | X86: 376658.7653 | Y86: 397239.4233 | Z86: 419065.0715 | AA86: 442214.563 | AB86: 466771.8679
E87: % of total | G87: 0.1 | H87: 0.09 | I87: 0.09 | J87: 0.1 | K87: 0.1 | L87: 0.1 | M87: 0.1 | N87: 0.1 | O87: 0.09 | P87: 0.1 | Q87: 0.1 | R87: 0.1 | S87: 0.1 | T87: 0.1 | U87: 0.1 | V87: 0.1 | W87: 0.1 | X87: 0.1 | Y87: 0.1 | Z87: 0.1 | AA87: 0.1 | AB87: 0.1
E89: PAX (national) | G89: 32048.62611 | H89: 31482.08949 | I89: 32936.60949 | J89: 36100.65181 | K89: 35242.77217 | L89: 33497.53586 | M89: 34934.62215 | N89: 37474.50823 | O89: 41835.35512 | P89: 45774.43213 | Q89: 49830.7505 | R89: 53267.10623 | S89: 56698.53884 | T89: 60380.93681 | U89: 64333.69329 | V89: 67788.14363 | W89: 71449.80909 | X89: 75331.75305 | Y89: 79447.88466 | Z89: 83813.01429 | AA89: 88442.91261 | AB89: 93354.37359
E90: % of total | G90: 0.02 | H90: 0.02 | I90: 0.02 | J90: 0.02 | K90: 0.02 | L90: 0.02 | M90: 0.02 | N90: 0.02 | O90: 0.02 | P90: 0.02 | Q90: 0.02 | R90: 0.02 | S90: 0.02 | T90: 0.02 | U90: 0.02 | V90: 0.02 | W90: 0.02 | X90: 0.02 | Y90: 0.02 | Z90: 0.02 | AA90: 0.02 | AB90: 0.02
E92: Total Pax | G92: 1602431.306 | H92: 1574104.474 | I92: 1646830.474 | J92: 1805032.591 | K92: 1762138.609 | L92: 1674876.793 | M92: 1746731.107 | N92: 1873725.411 | O92: 2091767.756 | P92: 2288721.607 | Q92: 2491537.525 | R92: 2663355.311 | S92: 2834926.942 | T92: 3019046.841 | U92: 3216684.665 | V92: 3389407.182 | W92: 3572490.455 | X92: 3766587.653 | Y92: 3972394.233 | Z92: 4190650.715 | AA92: 4422145.63 | AB92: 4667718.679
E94: check pax shares | G94: 1 | H94: 1 | I94: 1 | J94: 1 | K94: 1 | L94: 1 | M94: 1 | N94: 1 | O94: 1 | P94: 1 | Q94: 1 | R94: 1 | S94: 1 | T94: 1 | U94: 1 | V94: 1 | W94: 1 | X94: 1 | Y94: 1 | Z94: 1 | AA94: 1 | AB94: 1
E95: check pax number | G95: 0 | H95: 0 | I95: 0 | J95: 0 | K95: 0 | L95: 0 | M95: 0 | N95: 0 | O95: 0 | P95: 0 | Q95: 0 | R95: 0 | S95: 0 | T95: 0 | U95: 0 | V95: 0 | W95: 0 | X95: 0 | Y95: 0 | Z95: 0 | AA95: 0 | AB95: 0
B97: 3. | C97: AERONAUTICAL REVENUES
D99: A. Assumptions on Inflation
E101: 2007 | F101: 2008 | G101: 2009 | H101: =G101+1 -> 2010 | I101: =H101+1 -> 2011 | J101: 2012 | K101: 2013 | L101: 2014 | M101: 2015 | N101: 2016 | O101: 2017 | P101: 2018 | Q101: 2019 | R101: 2020 | S101: 2021 | T101: 2022 | U101: 2023 | V101: 2024 | W101: 2025
D103: Real increase in fees | G103: 0 | H103: 0.1 | I103: 0.02 | J103: 0.02 | K103: 0.02 | L103: 0.02 | M103: 0.02 | N103: 0.02 | O103: 0.02 | P103: 0.02 | Q103: 0.02 | R103: 0.02 | S103: 0.02 | T103: 0.02 | U103: 0.02 | V103: 0.02 | W103: 0.02
D104: Real Multiplier | G104: 1 | H104: =G104+H103 -> 1.1 | I104: =H104+I103 -> 1.12 | J104: 1.14 | K104: 1.16 | L104: 1.18 | M104: 1.2 | N104: 1.22 | O104: 1.24 | P104: 1.26 | Q104: 1.28 | R104: 1.3 | S104: 1.32 | T104: 1.34 | U104: 1.36 | V104: 1.38 | W104: 1.4
D106: Senegalese Inflation | G106: 0 | H106: 0.02 | I106: 0.02 | J106: 0.02 | K106: 0.02 | L106: 0.02 | M106: 0.02 | N106: 0.02 | O106: 0.02 | P106: 0.02 | Q106: 0.02 | R106: 0.02 | S106: 0.02 | T106: 0.02 | U106: 0.02 | V106: 0.02 | W106: 0.02
D107: Increase multiplier | E107: =F107-2% -> 0.96 | F107: =G107-2% -> 0.98 | G107: =100% -> 1 | H107: =G107+H106 -> 1.02 | I107: =H107+I106 -> 1.04 | J107: 1.06 | K107: 1.08 | L107: 1.1 | M107: 1.12 | N107: 1.14 | O107: 1.16 | P107: 1.18 | Q107: 1.2 | R107: 1.22 | S107: 1.24 | T107: 1.26 | U107: 1.28 | V107: 1.3 | W107: 1.32
D109: Nominal multiplier for fees | G109: =100% -> 1 | H109: =G109+H103+H106 -> 1.12 | I109: =H109+I103+I106 -> 1.16 | J109: 1.2 | K109: 1.24 | L109: 1.28 | M109: 1.32 | N109: 1.36 | O109: 1.4 | P109: 1.44 | Q109: 1.48 | R109: 1.52 | S109: 1.56 | T109: 1.6 | U109: 1.64 | V109: 1.68 | W109: 1.72
D111: Utility increase rate (refered to oil price) | G111: 0.05 | H111: 0.05 | I111: 0.05 | J111: 0.05 | K111: 0.05 | L111: 0.05 | M111: 0.05 | N111: 0.05 | O111: 0.05 | P111: 0.05 | Q111: 0.05 | R111: 0.05 | S111: 0.05 | T111: 0.05 | U111: 0.05 | V111: 0.05 | W111: 0.05
D112: Inflation rate (multiplier) | G112: 1 | H112: =G112+H111 -> 1.05 | I112: =H112+I111 -> 1.1 | J112: 1.15 | K112: 1.2 | L112: 1.25 | M112: 1.3 | N112: 1.35 | O112: 1.4 | P112: 1.45 | Q112: 1.5 | R112: 1.55 | S112: 1.6 | T112: 1.65 | U112: 1.7 | V112: 1.75 | W112: 1.8
D114: Wage and salary increase | G114: 1 | H114: 1 | I114: 1 | J114: 1 | K114: 1 | L114: 1 | M114: 1 | N114: 1 | O114: 1 | P114: 1 | Q114: 1 | R114: 1 | S114: 1 | T114: 1 | U114: 1 | V114: 1 | W114: 1
D115: Multiplier | H115: =1 + (H106*H114) -> 1.02 | I115: 1.02 | J115: 1.02 | K115: 1.02 | L115: 1.02 | M115: 1.02 | N115: 1.02 | O115: 1.02 | P115: 1.02 | Q115: 1.02 | R115: 1.02 | S115: 1.02 | T115: 1.02 | U115: 1.02 | V115: 1.02 | W115: 1.02
B118: B. Aeronautical fee structure
E120: Fee | F120: Traffic type | G120: Invoicing basis | H120: 2005 Price (in FCFA) | I120: 2005 Price (in EUR) | J120: 2009 Price (in EUR) | K120: Eligibility of the Concession company
E122: Landing Fee | G122: Per ton | H122: Per ton | I122: Per ton | J122: Per ton | K122: 0.45
F124: Private traffic
G125: <2t | H125: =767 -> 767 | I125: =H125*$F$10 -> 1.169283962 | J125: =I125*108% -> 1.262826679
F127: National traffic
G128: <14t | H128: 301 | I128: =H128*$F$10 -> 0.4588715419 | J128: =I128*108% -> 0.4955812652
G129: 15t-25t | H129: 1130 | I129: =H129*$F$10 -> 1.722673895 | J129: 1.860487806
G130: 26t-75t | H130: 2265 | I130: =H130*$F$10 -> 3.45297024 | J130: 3.72920786
G131: 76t-150t | H131: 2866 | I131: =H131*$F$10 -> 4.369188834 | J131: 4.718723941
G132: >150t | H132: 2698 | I132: =H132*$F$10 -> 4.113074485 | J132: 4.442120444
F134: Intl. Traffic | G134: 15t-25t | H134: 1822 | I134: =H134*$F$10 -> 2.777621094 | J134: 2.999830782
G135: 26t-75t | H135: 3421 | I135: =H135*$F$10 -> 5.21528088 | J135: 5.63250335
G136: 76t-150t | H136: 4777 | I136: =H136*$F$10 -> 7.282489553 | J136: 7.865088718
G137: >150t | H137: 4666 | I137: =H137*$F$10 -> 7.113271144 | J137: 7.682332836
E139: Passenger Fee | G139: Per Pax | H139: Per Pax | I139: Per Pax | J139: Per Pax | K139: 1
F141: National Pax | H141: 2500 | I141: =H141*$F$10 -> 3.811225431 | J141: =I141*108% -> 4.116123465
F142: Regional Pax | H142: 12000 | I142: =H142*$F$10 -> 18.29388207 | J142: =I142*108% -> 19.75739263
F143: Intl Pax | H143: 18000 | I143: =H143*$F$10 -> 27.4408231 | J143: =I143*108% -> 29.63608895
E145: Freight Fee | G145: Per kg | H145: Per kg | I145: Per kg | J145: Per kg | K145: 1
F147: Arrival/Dep. freight | H147: 15 | I147: =H147*$F$10 -> 0.02286735259 | J147: =I147*108% -> 0.02469674079
E149: Safety/Security Fee | G149: Per Pax | H149: Per Pax | I149: Per Pax | J149: Per Pax | K149: 0.15
F151: Regional and intl pax | H151: 3000 | I151: =H151*$F$10 -> 4.573470517 | J151: =I151*108% -> 4.939348158
E153: Fuel Fee | G153: Per liter | H153: Per liter | I153: Per liter | J153: Per liter | K153: 1
F155: Commercial flights | H155: 2 | I155: =H155*$F$10 -> 0.003048980345 | J155: =I155*108% -> 0.003292898772
F156: Private flights | H156: 2 | I156: =H156*$F$10 -> 0.003048980345 | J156: =I156*108% -> 0.003292898772
E158: Fee for lighting systems | G158: Per landing/dep. | H158: Per landing/dep. | I158: Per landing/dep. | J158: Per landing/dep. | K158: 0
F160: Lighting high intensity | G160: >75t | H160: =106079 -> 106079 | I160: =H160*$F$10 -> 161.716393 | J160: =I160*108% -> 174.6537044
G161: <75t | H161: 83746 | I161: =H161*$F$10 -> 127.669954 | J161: =I161*108% -> 137.8835503
F162: Lighting low density | H162: 41875 | I162: =H162*$F$10 -> 63.83802597 | J162: =I162*108% -> 68.94506805
E164: Parking Fee | G164: Avg fee p. flight | H164: Avg fee p. flight | I164: Avg fee p. flight | J164: Avg fee p. flight | K164: 1
F166: Traffic Area | I166: 12 | J166: =I166*108% -> 12.96
F168: Garage area | I168: 12 | J168: =I168*108% -> 12.96
E170: Shelter Fee | G170: per ton per hour | H170: per ton per hour | I170: per ton per hour | J170: per ton per hour | K170: 1
F172: Commercial Aircraft | H172: 25 | I172: =H172*$F$10 -> 0.03811225431 | J172: =I172*108% -> 0.04116123465
F174: Tourist aircraft | H174: 15 | I174: =H174*$F$10 -> 0.02286735259 | J174: =I174*108% -> 0.02469674079
E176: Passenger Bridge Fee | G176: per arrival | H176: per arrival | I176: per arrival | J176: per arrival | K176: 1
H178: 98394 | I178: =H178*$F$10 -> 150.000686 | J178: =I178*108% -> 162.0007409
B180: C. Assumptions on aeronautical fees
E182: Fuel fee
E183: Fuel usage per dep. (liters) | F183: =12900*108% -> 13932
E185: Lighting fee
E186: Night flights/ Total flights | F186: 0.51
E187: Lighting high intensity > 75 MTOW | F187: 0.25
E188: Lighting high intensity <75 MTOW | F188: 0.25
E190: Shelter fee/Parking fee
E191: Shelter fee/Parking fee | F191: 0.2
E193: Bridging fee
E194: Share of flights using bridge | F194: 0.7
D197: D. Fleet structure and MTOW per air traffic segment
E199: Aircraft type | F199: % of traffic | G199: Average MTOW per category
E200: National Aircraft Fleet
E201: Category 1 | F201: 0 | G201: 0
E202: Category 2 | F202: 1 | G202: 30
E203: Category 3 | F203: 0 | G203: 0
E204: Category 4 | F204: 0 | G204: 0
E206: International & Regional Fleet
E207: Category 1 | F207: 0.04897959184 | G207: 20
E208: Category 2 | F208: 0.6489795918 | G208: 66.6918239
E209: Category 3 | F209: 0.1142857143 | G209: 130.0357143
E210: Category 4 | F210: 0.187755102 | G210: 278.0434783
B213: 4. | D213: EXTRA-AERONAUTICAL REVENUES
D215: Development of revenue per passenger
D216: Assumption:
D218: Since the current level of commercial revenue seems low, we assume that the non-aeronautical business concepts at the existing airport are improvable.
D219: The new airport/terminals should provide for sufficient space for commercial business on the land and especially the airside eg. retail business.
D220: Since the new airport will provide a capacity of 3m pax (double of current pax volume), it is assumed that commercial space will enlarge accordingly.
D221: The assumptions for the different buisnesses are as follows:
D222: Duty Free Shop & Retail | F222: Through the new duty free shop the quality is high standard and customers are attracted. We still believe that in the new airport/terminal we can improve the duty free & retail business by implementing an intellegent product mix of attractive shops in line with customer demand and with sufficient space on landside and especially airside. We assume that the current concession fee is at 20%, which gives an average spend per pax rate of around 1 EUR, which is at the low side considering the attractive passenger mix at Dakar airport. We therefore assume that we can drastically increase this spend rate by implementing new concepts. Further we expect that due to increased interest of professional retailers we will be able to increase the concession rate from 20% to 30% during the concession period of the airport.
D223: Inflight Catering-Commissariat | F223: The service level at the current airport is already at an acceptable level. This is why we do not assume an increase of the ratio. It remains at the current level.
D224: Rental income (offices, warehouses etc.) | F224: It is assumed that 70% of the rental income is generated thru office rental and 30% thru warehouse rental. We assume that the new airport/terminal will provide 50% more space for offices ant thus tenant income. We assume that the current average sqm price per month is quite low at 4,20 EUR. We believe that such rate should be increased as it is quite low for attractive rental space as offered in terminals. This is why we intend to increase the price per sqm during the period of concession up to a price level of around 18 EUR.
D225: Reinvoicing for utilities (electricity, water, phone, waste etc.) | F225: We assume that of the total utilitiy costs we will only be able to invoice 20% to the users on the airport, 80% will remain with the concession company. We expect that the electricity cost for e.g. running air conditioning to be the highest portion of the utilitiies. We assume that the new terminal will be approx double the size of the current one, that this will have an impact on the utilities in terms of doubling the consumption.
D226: Rental income of check-in counters | F226: We believe that the new airport facility will not have an effect on increasing rental payments per counter. The current level remains.
D227: Parking | F227: We do not believe that a change in parking facilities will have a great impact on the parking ratio. It is not expected that the behaviour of the passengers in terms of airport access will change a lot (business people will be "chauffeured" to the airport and tourists will come by bus). It is assumed that the no. of long/medium term parking is very limited. For this reason the parking ratio will only increase by inflation or 0,02 EUR.
D228: Others e.g. VIP lounges, call center | F228: We assume to have a slight price increase, due to nicer lounge facilities etc.. Additional price increase will be based on inflation or 0,01 EUR.
G233: =2009 -> 2009 | H233: =G233+1 -> 2010 | I233: =H233+1 -> 2011 | J233: 2012 | K233: 2013 | L233: 2014 | M233: 2015 | N233: 2016 | O233: 2017 | P233: 2018 | Q233: 2019 | R233: 2020 | S233: 2021 | T233: 2022 | U233: 2023 | V233: 2024 | W233: 2025
D235: A. Retail income (duty free and other shops)
E237: Calculated spend rate per pax | G237: 1.7 | H237: 6 | I237: 6.5 | J237: 7 | K237: 7.5 | L237: 8 | M237: 8.16 | N237: 8.3232 | O237: 8.489664 | P237: 8.65945728 | Q237: 8.832646426 | R237: 9.009299354 | S237: 9.189485341 | T237: 9.373275048 | U237: 9.560740549 | V237: 9.75195536 | W237: 9.946994467
E238: Assumed concession fee | G238: 0.2 | H238: 0.225 | I238: 0.225 | J238: 0.225 | K238: 0.225 | L238: 0.225 | M238: 0.225 | N238: 0.225 | O238: 0.225 | P238: 0.225 | Q238: 0.225 | R238: 0.225 | S238: 0.225 | T238: 0.225 | U238: 0.225 | V238: 0.225 | W238: 0.225
E239: Concession income per pax from duty free (inflated) | G239: =G237*G238 -> 0.34 | H239: =H237*H238 -> 1.35 | I239: 1.4625 | J239: 1.575 | K239: 1.6875 | L239: 1.8 | M239: 1.836 | N239: 1.87272 | O239: 1.9101744 | P239: 1.948377888 | Q239: 1.987345446 | R239: 2.027092355 | S239: 2.067634202 | T239: 2.108986886 | U239: 2.151166624 | V239: 2.194189956 | W239: 2.238073755
D242: B. Rental income (offices, warehouses etc), EUR, Nominal
E244: Increase of office rent per month | H244: 1 | I244: 0.05 | J244: 0.05 | K244: 0.05 | L244: 0.05 | M244: 0.05 | N244: 0.05 | O244: 0.05 | P244: 0.05 | Q244: 0.05 | R244: 0.05 | S244: 0.05 | T244: 0.05 | U244: 0.05 | V244: 0.05 | W244: 0.05
E245: Office rent per month | G245: 4.546215072 | H245: =G245*(1+H244) -> 9.092430144 | I245: =H245*(1+I244) -> 9.547051651 | J245: 10.02440423 | K245: 10.52562445 | L245: 11.05190567 | M245: 11.60450095 | N245: 12.184726 | O245: 12.7939623 | P245: 13.43366041 | Q245: 14.10534343 | R245: 14.81061061 | S245: 15.55114114 | T245: 16.32869819 | U245: 17.1451331 | V245: 18.00238976 | W245: 18.90250925
E246: Office rent per year | G246: =G245*12 -> 54.55458086 | H246: =H245*12 -> 109.1091617 | I246: 114.5646198 | J246: 120.2928508 | K246: 126.3074933 | L246: 132.622868 | M246: 139.2540114 | N246: 146.216712 | O246: 153.5275476 | P246: 161.203925 | Q246: 169.2641212 | R246: 177.7273273 | S246: 186.6136936 | T246: 195.9443783 | U246: 205.7415972 | V246: 216.0286771 | W246: 226.8301109
E247: Rented square meters | G247: 15113 | H247: =G247*(1+$H$248) -> 22669.5 | I247: =H247 -> 22669.5 | J247: =I247 -> 22669.5 | K247: 22669.5 | L247: 22669.5 | M247: 22669.5 | N247: 22669.5 | O247: 22669.5 | P247: 22669.5 | Q247: 22669.5 | R247: 22669.5 | S247: 22669.5 | T247: 22669.5 | U247: 22669.5 | V247: 22669.5 | W247: 22669.5
E248: Office space increase | H248: 0.5
E249: Rental income from office rental | G249: =G246*G247 -> 824483.3806 | H249: =H246*H247 -> 2473450.142 | I249: 2597122.649 | J249: 2726978.781 | K249: 2863327.72 | L249: 3006494.106 | M249: 3156818.812 | N249: 3314659.752 | O249: 3480392.74 | P249: 3654412.377 | Q249: 3837132.996 | R249: 4028989.646 | S249: 4230439.128 | T249: 4441961.084 | U249: 4664059.138 | V249: 4897262.095 | W249: 5142125.2
E251: Rental income from warehouse rental (freight) | G251: 418340.0267 | H251: =G251*(1+M70)*(1+H106) -> 443506.9573 | I251: =H251*(1+N70)*(1+I106) -> 469156.3821 | J251: =I251*(1+O70)*(1+J106) -> 496313.5648 | K251: =J251*(1+P70)*(1+K106) -> 525068.7417 | L251: =K251*(1+Q70)*(1+L106) -> 554853.0603 | M251: =L251*(1+R70)*(1+M106) -> 587061.6333 | N251: =M251*(1+S70)*(1+N106) -> 621171.4145 | O251: =N251*(1+T70)*(1+O106) -> 657296.6984 | P251: =O251*(1+U70)*(1+P106) -> 695558.784 | Q251: =P251*(1+V70)*(1+Q106) -> 736086.4129 | R251: =Q251*(1+W70)*(1+R106) -> 779016.2344 | S251: =R251*(1+X70)*(1+S106) -> 824493.3012 | T251: =S251*(1+Y70)*(1+T106) -> 870356.3113 | U251: =T251*(1+Z70)*(1+U106) -> 918778.8691 | V251: =U251*(1+AA70)*(1+V106) -> 969904.311 | W251: =V251*(1+AB70)*(1+W106) -> 1023884.029
E253: Total rental income (office, warehouse) | G253: =G249+G251 -> 1242823.407 | H253: =H249+H251 -> 2916957.099 | I253: 3066279.031 | J253: 3223292.346 | K253: 3388396.462 | L253: 3561347.167 | M253: 3743880.445 | N253: 3935831.167 | O253: 4137689.438 | P253: 4349971.161 | Q253: 4573219.409 | R253: 4808005.88 | S253: 5054932.429 | T253: 5312317.396 | U253: 5582838.008 | V253: 5867166.406 | W253: 6166009.229
D256: C. Utilities
E258: Total utility cost (inflated) | G258: 5788125 | H258: =G258*(1+H111) -> 6077531.25 | I258: =H258*(1+I111) -> 6381407.812 | J258: =I258*(1+J111) -> 6700478.203 | K258: =J258*(1+K111) -> 7035502.113 | L258: =K258*(1+L111) -> 7387277.219 | M258: =L258*(1+M111) -> 7756641.08 | N258: =M258*(1+N111) -> 8144473.134 | O258: =N258*(1+O111) -> 8551696.791 | P258: =O258*(1+P111) -> 8979281.63 | Q258: =P258*(1+Q111) -> 9428245.712 | R258: =Q258*(1+R111) -> 9899657.997 | S258: =R258*(1+S111) -> 10394640.9 | T258: =S258*(1+T111) -> 10914372.94 | U258: =T258*(1+U111) -> 11460091.59 | V258: =U258*(1+V111) -> 12033096.17 | W258: =V258*(1+W111) -> 12634750.98
E259: Total utility cost increase factor (due to capacity increase) | H259: 0.5 | I259: 0 | J259: 0 | K259: 0 | L259: 0 | M259: 0 | N259: 0 | O259: 0 | P259: 0 | Q259: 0 | R259: 0 | S259: 0 | T259: 0 | U259: 0 | V259: 0 | W259: 0
E260: Total utility cost increase (due to capacity increase) | G260: =G258*(1+G259) -> 5788125 | H260: =H258*(1+H259) -> 9116296.875 | I260: =H260*(1+N52)*(1+I259) -> 9779087.943 | J260: =I260*(1+O52)*(1+J259) -> 10917064.32 | K260: =J260*(1+P52)*(1+K259) -> 11944978.56 | L260: =K260*(1+Q52)*(1+L259) -> 13003487.29 | M260: =L260*(1+R52)*(1+M259) -> 13900214.86 | N260: =M260*(1+S52)*(1+N259) -> 14795657.74 | O260: =N260*(1+T52)*(1+O259) -> 15756590.79 | P260: =O260*(1+U52)*(1+P259) -> 16788074.72 | Q260: =P260*(1+V52)*(1+Q259) -> 17689524.14 | R260: =Q260*(1+W52)*(1+R259) -> 18645046.98 | S260: =R260*(1+X52)*(1+S259) -> 19658052.18 | T260: =S260*(1+Y52)*(1+T259) -> 20732169.35 | U260: =T260*(1+Z52)*(1+U259) -> 21871263.33 | V260: =U260*(1+AA52)*(1+V259) -> 23079449.5 | W260: =V260*(1+AB52)*(1+W259) -> 24361110.32
E261: External consumer share of total utilities | G261: 0.2 | H261: =G261 -> 0.2 | I261: =H261 -> 0.2 | J261: 0.2 | K261: 0.2 | L261: 0.2 | M261: 0.2 | N261: 0.2 | O261: 0.2 | P261: 0.2 | Q261: 0.2 | R261: 0.2 | S261: 0.2 | T261: 0.2 | U261: 0.2 | V261: 0.2 | W261: 0.2
E262: Total reinvoicing of utilities | G262: =G258*G261 -> 1157625 | H262: =H258*H261 -> 1215506.25 | I262: 1276281.562 | J262: 1340095.641 | K262: 1407100.423 | L262: 1477455.444 | M262: 1551328.216 | N262: 1628894.627 | O262: 1710339.358 | P262: 1795856.326 | Q262: 1885649.142 | R262: 1979931.599 | S262: 2078928.179 | T262: 2182874.588 | U262: 2292018.318 | V262: 2406619.234 | W262: 2526950.195
D265: D. Inflight catering commissariat
E267: Revenues per pax (EUR/ pax) | G267: 0.14 | H267: =G267 -> 0.14 | I267: =H267 -> 0.14 | J267: 0.14 | K267: 0.14 | L267: 0.14 | M267: 0.14 | N267: 0.14 | O267: 0.14 | P267: 0.14 | Q267: 0.14 | R267: 0.14 | S267: 0.14 | T267: 0.14 | U267: 0.14 | V267: 0.14 | W267: 0.14
D270: E. Rental income of check-in counters
E272: Revenue per pax | G272: 0.5 | H272: =G272 -> 0.5 | I272: =H272 -> 0.5 | J272: 0.5 | K272: 0.5 | L272: 0.5 | M272: 0.5 | N272: 0.5 | O272: 0.5 | P272: 0.5 | Q272: 0.5 | R272: 0.5 | S272: 0.5 | T272: 0.5 | U272: 0.5 | V272: 0.5 | W272: 0.5
D275: F. Parking
E277: Revenue per pax | G277: 0.26 | H277: 0.26 | I277: 0.26 | J277: 0.26 | K277: 0.26 | L277: 0.26 | M277: 0.26 | N277: 0.26 | O277: 0.26 | P277: 0.26 | Q277: 0.26 | R277: 0.26 | S277: 0.26 | T277: 0.26 | U277: 0.26 | V277: 0.26 | W277: 0.26
D280: G. Others (VIP lounges, call center)
E282: Additional price increase p.a | G282: 0.01 | H282: =G282 -> 0.01 | I282: =H282 -> 0.01 | J282: 0.01 | K282: 0.01 | L282: 0.01 | M282: 0.01 | N282: 0.01 | O282: 0.01 | P282: 0.01 | Q282: 0.01 | R282: 0.01 | S282: 0.01 | T282: 0.01 | U282: 0.01 | V282: 0.01 | W282: 0.01
E283: Revenue per pax | G283: =0.21 -> 0.21 | H283: =G283+H282 -> 0.22 | I283: =H283+I282 -> 0.23 | J283: 0.24 | K283: 0.25 | L283: 0.26 | M283: 0.27 | N283: 0.28 | O283: 0.29 | P283: 0.3 | Q283: 0.31 | R283: 0.32 | S283: 0.33 | T283: 0.34 | U283: 0.35 | V283: 0.36 | W283: 0.37
B286: 5. | D286: OPERATING EXPENSES
D288: A. Personnel expenses
G289: =G233 -> 2009 | H289: =H233 -> 2010 | I289: 2011 | J289: 2012 | K289: 2013 | L289: 2014 | M289: 2015 | N289: 2016 | O289: 2017 | P289: 2018 | Q289: 2019 | R289: 2020 | S289: 2021 | T289: 2022 | U289: 2023 | V289: 2024 | W289: 2025
E290: Local staff
E291: Total management | G291: 103.3679628 | H291: 107.9509593 | I291: 113.8284831 | J291: 120.0358574 | K291: 126.5921545 | L291: 133.5175833 | M291: 140.8335592 | N291: 149.3174763 | O291: 158.3445606 | P291: 167.9514594 | Q291: 178.1773975 | R291: 189.064364 | S291: 200.1049547 | T291: 211.8662905 | U291: 224.3994333 | V291: 237.7592581 | W291: 252.0047475
E292: Total operational staff | G292: 344.5598759 | H292: 359.8365312 | I292: 379.4282771 | J292: 400.1195247 | K292: 421.9738483 | L292: 445.0586108 | M292: 469.4451972 | N292: 497.724921 | O292: 527.8152019 | P292: 559.838198 | Q292: 593.9246584 | R292: 630.2145468 | S292: 667.0165157 | T292: 706.2209685 | U292: 747.998111 | V292: 792.5308604 | W292: 840.0158251
E293: Total local staff | G293: =G291+G292 -> 447.9278387 | H293: =H291+H292 -> 467.7874905 | I293: 493.2567602 | J293: 520.1553821 | K293: 548.5660028 | L293: 578.5761941 | M293: 610.2787564 | N293: 647.0423973 | O293: 686.1597625 | P293: 727.7896574 | Q293: 772.1020559 | R293: 819.2789108 | S293: 867.1214704 | T293: 918.087259 | U293: 972.3975443 | V293: 1030.290119 | W293: 1092.020573
E295: Expatriates
E296: Total planned expatriates | G296: 3 | H296: =G296 -> 3 | I296: =H296 -> 3 | J296: 3 | K296: 3 | L296: 3 | M296: 3 | N296: 3 | O296: 3 | P296: 3 | Q296: 3 | R296: 3 | S296: 3 | T296: 3 | U296: 3 | V296: 3 | W296: 3
E298: Average cost per local staff
E299: Salary cost ASECNA 2004 (in FCFA) | G299: 3092403053
E300: Salary cost ASECNA 2004 (in EUR) | G300: =G299*$F$10 -> 4714338.063
E301: Number of staff | G301: 540
E302: Salary cost per capita 2004 (in EUR) | G302: =G300/G301 -> 8730.255673
E303: Salary cost per capita 2009 (in EUR) | G303: =G302*(1+2%)^5 -> 9638.907695
E304: Source: Annual Report, 2004
E306: Average salary cost of expatriate
E307: Average salary cost of expatriate, (in EUR), 2004 | G307: 225000
G310: =G289 -> 2009 | H310: =H289 -> 2010 | I310: 2011 | J310: 2012 | K310: 2013 | L310: 2014 | M310: 2015 | N310: 2016 | O310: 2017 | P310: 2018 | Q310: 2019 | R310: 2020 | S310: 2021 | T310: 2022 | U310: 2023 | V310: 2024 | W310: 2025
... 371 more rows

Sheet Assumptions RDIA
B2: ASSUMPTIONS
B4: Traffic and RDIA parameters
E5: RDIA Amount before September 2007 (in euro) | G5: 30
E6: RDIA Amount from September 2007 to January 2011 (in euro) | G6: 45
E7: RDIA Amount after 1 January 2011 (in euro) | G7: 54
E8: Date of future increase of RDIA | G8: 2011-01-01
E9: Traffic forecast Scenario chosen | G9: Low case
E10: Stress Case n°1 ( X % vs. Low Case growth rate) | G10: -0.3
E11: Stress Case n°2 - Annual Growth rate from September 2010 onward | G11: 0.03
E12: Stress Case n°3 - Manual y-o-y growth rate input | G12: NA
E13: IATA Fees | G13: 0.015
E14: ADS Fees | G14: 0.00951
E15: >> Recovery Rate
F16: IATA | G16: 0.93
F17: ADS | G17: 1
E20: Financing Parameters
E21: Beginning of Construction | G21: 2007-12-04 | H21: 2007-12-01
E22: LT Financing Financial Close | G22: 2010-12-01
E23: DURATION OF CONSTRUCTION (in number of months) | G23: =34+13 -> 47
E24: End of Construction | G24: =EDATE(H21,G23) -> 2011-11-01
E25: Cash Sweep (DSRA) | G25: On (12-m)
E26: Escrow Account Interests | G26: 0.01
E27: OTHER FINANCING PARAMETERS TO BE INPUT IN "FINANCING PROFILES" SHEET | H27: =IF(AND('Financing Profiles'!K25=Tranche1Amnt,'Financing Profiles'!M25=Tranche2Amnt),"","Warning! Update profiles") -> 
E29: Project Costs and Facility Amount
E30: Total Project Costs excl. Contingencies (RDIA financing) | G30: ='Project Costs'!E67+'Project Costs'!E100+'Project Costs'!E94+'Project Costs'!E72 -> 491786556
E31: Total Project Costs (RDIA financing) | G31: ='Project Costs'!E4 -> 524813512.6
E32: (Bridge Loan Repayments before 1st LTD DD) | G32: ='Project Costs'!E5 -> 145906266.5
E33: Maximum Long Term Debt Amount (incl. Contingencies) | G33: =G31-G32 -> 378907246.1
E34: (Contingencies Drawn ) | F34: (True / False option) | G34: =ContingenciesAmnt -> 33026956.57 | H34: TRUE | I34: =IF(MIN(Output!V5:V261)<0,"EVENT OF DEFAULT",0) -> 0 | AE34: =AB34 -> 0
E35: =Long Term Debt Amount | G35: =LTDAmnt -> 378907246.1
B38: OUTPUT
E40: Passenger Traffic CAGR 2008 - 2025 | F40: ='Traffic Scenarios'!M1 -> 0.0520451708
E41: Passenger Traffic CAGR 2012 - 2025 | F41: ='Traffic Scenarios'!M2 -> 0.06163479375
F42: Min. | G42: Average
E43: LLCR (w/o CS) | F43: ='Output SemiAnnual'!AD2 -> 1.794454185 | G43: ='Output SemiAnnual'!AD3 -> 4.82397231
E44: Date of above | F44: =VLOOKUP(F43,'Output SemiAnnual'!$AD$5:$AE$41,2,FALSE) -> 2011-11-30
E45: ADSCR (historical) | F45: ='Output SemiAnnual'!Y3 -> 1.512545346 | G45: ='Output SemiAnnual'!Y4 -> 2.366225126
E46: Date of above | F46: =VLOOKUP(F45,'Output SemiAnnual'!$Y$5:$AA$41,3,FALSE) -> 2012-11-30
E47: ADSCR (forward) | F47: ='Output SemiAnnual'!Z3 -> 1.449556481 | G47: ='Output SemiAnnual'!Z4 -> 3.037969157
E48: Date of above | F48: =VLOOKUP(F47,'Output SemiAnnual'!$Z$5:$AA$41,2,FALSE) -> 2011-11-30
E49: Collection Account Amount < Target Cash Co | F49: =IF(F50="","OK","Event of Default") -> OK
E50: Date of above | F50: ='Cash sweep'!T2 -> 
E52: Date of Full Repayment
F53: =ActualRepayDate -> 2021-05-31
E62: Lists
E63: Cash Sweep parameter | F63: Traffic Scenarios | G63: ref
E64: On (6-m) | F64: Base case | G64: 2
E65: On (12-m) | F65: Low case | G65: 1
E66: Off | F66: High case | G66: 3
F67: Stress Case n°1 | G67: 4
F68: Stress Case n°2 | G68: 5
F69: Stress Case n°3 | G69: 6
F73: Flag data:
F74: =IF(E74<>"OK",1,0) -> 1
F75: =IF(E75<>"OK",F74+1,0) -> 2
F76: =IF(E76<>"OK",F75+1,0) -> 3 | G76: ="Negative Escrow A/C" -> Negative Escrow A/C
F77: =IF(E77<>"OK",F76+1,0) -> 4 | G77: ="DSCR w/o CashCo" -> DSCR w/o CashCo

Sheet Financing Profiles
H1: inputs | I1: Calculated by "goal seek"
H2: "DebtProfiles" range
E3: Synthetic Facility | K3: 1 | M3: 2 | O3: 3 | Q3: 4 | S3: 5 | U3: 6 | W3: 7
K4: BOAD | M4: IDC | O4: AfDB | Q4: AFC | S4: IsDB | U4: SFD | W4: OPEC Fund
D5: Amount €: | E5: =SUM(K5:W5) -> 378907246.1 | K5: =K6/K7 -> 19056127.15 | M5: =M6/M7 -> 50000000 | O5: 70000000 | Q5: 70000000 | S5: 70000000 | U5: 71792662.79 | W5: 28058456.11
D6: Amount Check | E6: =LTDAmnt-E5 -> 0 | K6: 12500000000 | M6: 50000000 | O6: 70000000 | Q6: 70000000 | S6: 70000000 | U6: 100000000 | W6: =LTDAmnt-Tranche1Amnt-Tranche2Amnt-Tranche3Amnt-Tranche4Amnt-Tranche5Amnt-Tranche6Amnt -> 28058456.11
D7: Exchange rate: | E7: n/a | K7: 655.957 | M7: 1 | O7: 1 | Q7: 1 | S7: 1 | U7: 1.3929 | W7: 1
D8: Ratio to total debt: | E8: =SUM(K8:W8) -> 1 | K8: =K5/LTDAmnt -> 0.05029232709 | M8: 0.131958416 | O8: 0.1847417824 | Q8: 0.1847417824 | S8: 0.1847417824 | U8: 0.1894729212 | W8: 0.07405098847 | Y8: fixed
K9: fixed | M9: fixed | O9: fixed | Q9: fixed | S9: fixed | U9: fixed | W9: fixed | Y9: floating
D10: Tenor all-in (years): | E10: =MAX(K10:W10) -> 18 | K10: 14 | M10: 15 | O10: 18 | Q10: 18 | S10: 18 | U10: 18 | W10: 18
D11: Tenor all-in (months): | E11: =E10*12 -> 216 | K11: =K10*12 -> 168 | M11: =M10*12 -> 180 | O11: 216 | Q11: 216 | S11: 216 | U11: 216 | W11: 216
K12: =RANK(K$16,$K$16:$W$16,1) -> 1 | M12: =RANK(M$16,$K$16:$W$16,1) -> 2 | O12: 3 | Q12: 3 | S12: 3 | U12: 3 | W12: 3
D13: Availability start: | E13: =MIN(K13:W13) -> 2011-02-01 | K13: 2011-02-01 | M13: 2011-02-01 | O13: 2011-02-01 | Q13: 2011-02-01 | S13: 2011-02-01 | U13: 2011-02-01 | W13: 2011-02-01
D14: Grace period (months): | E14: =MIN(K14:W14) -> 24 | K14: 24 | M14: 24 | O14: 24 | Q14: 24 | S14: 24 | U14: 24 | W14: 24
D15: Repayment start date: | E15: =MIN(K15:W15) -> 2013-11-01 | K15: =EDATE(EndEPC,K14) -> 2013-11-01 | M15: =EDATE(EndEPC,M14) -> 2013-11-01 | O15: =EDATE(EndEPC,O14) -> 2013-11-01 | Q15: =EDATE(EndEPC,Q14) -> 2013-11-01 | S15: =EDATE(EndEPC,S14) -> 2013-11-01 | U15: =EDATE(EndEPC,U14) -> 2013-11-01 | W15: =EDATE(EndEPC,W14) -> 2013-11-01
D16: Repayment end date: | E16: =MAX(K16:W16) -> 2029-11-01 | K16: =EDATE(K15,K11-K14) -> 2025-11-01 | M16: =EDATE(M15,M11-M14) -> 2026-11-01 | O16: =EDATE(O15,O11-O14) -> 2029-11-01 | Q16: =EDATE(Q15,Q11-Q14) -> 2029-11-01 | S16: =EDATE(S15,S11-S14) -> 2029-11-01 | U16: =EDATE(U15,U11-U14) -> 2029-11-01 | W16: =EDATE(W15,W11-W14) -> 2029-11-01
D17: Nbr Annuities: | E17: =(E11-E14)/6 -> 32 | K17: =(K11-K14)/6 -> 24 | M17: =(M11-M14)/6 -> 26 | O17: 32 | Q17: 32 | S17: 32 | U17: 32 | W17: 32
D18: Base rate: | E18: =K18*$K$8+M18*$M$8+O18*$O$8+Q18*$Q$8+S18*$S$8+U18*$U$8+W18*$W$8 -> 0.035 | F18: proxi | K18: 0.035 | M18: 0.035 | O18: 0.035 | Q18: 0.035 | S18: 0.035 | U18: 0.035 | W18: 0.035
D19: Interest margin: | E19: =K19*$K$8+M19*$M$8+O19*$O$8+Q19*$Q$8+S19*$S$8+U19*$U$8+W19*$W$8 -> 0.045 | F19: proxi | H19: =IF(AND(K25=Tranche1Amnt,M25=Tranche2Amnt),"","Warning! Update profiles") ->  | I19: 1. Set 1st annuity in cell B28 | K19: 0.045 | M19: 0.045 | O19: 0.045 | Q19: 0.045 | S19: 0.045 | U19: 0.045 | W19: 0.045
D20: Commitment fees: | E20: =K20*$K$8+M20*$M$8+O20*$O$8+Q20*$Q$8+S20*$S$8+U20*$U$8+W20*$W$8 -> 0.01 | F20: proxi | I20: 2. Set profiles by pressing below: | K20: 0.01 | M20: 0.01 | O20: 0.01 | Q20: 0.01 | S20: 0.01 | U20: 0.01 | W20: 0.01
D21: Arrangement fees: | E21: =K21*$K$8+M21*$M$8+O21*$O$8+Q21*$Q$8+S21*$S$8+U21*$U$8+W21*$W$8 -> 0.01 | F21: proxi | K21: 0.01 | M21: 0.01 | O21: 0.01 | Q21: 0.01 | S21: 0.01 | U21: 0.01 | W21: 0.01
D22: Agency fees: | E22: 100000 | F22: est. flat per year | K22: 0 | M22: 0 | O22: 0 | Q22: 0 | S22: 0 | U22: 0 | W22: 0
E24: Synthetic Profile | K24: Repayment profiles
E25: Repayment Profile | F25: Synthetic interest rate | G25: Outstanding | H25: Sculpting rate: | I25: 0.02093223286 | K25: =SUM(K28:K51) -> 19056127.15 | M25: =SUM(M28:M53) -> 50000000 | O25: =SUM(O28:O59) -> 70000000 | Q25: =SUM(Q28:Q59) -> 70000000 | S25: 70000000 | U25: 71792662.79 | W25: 28058456.11 | Y25: =SUM(Y28:Y59) -> 309851118.9
D26: Payment # | E26: principal | G26: =LTDAmnt -> 378907246.1 | H26: int. + fees | I26: debt service | J26: annuities increm. | K26: =K4 -> BOAD | M26: =M4 -> IDC | O26: AfDB | Q26: AFC | S26: IsDB | U26: SFD | W26: OPEC Fund | Y26: Others
D27: 0 | E27: 0 | G27: 0 | H27: 0 | I27: 0 | O27: =O5/SUM($O$5:$W$5) -> 0.2259149499 | Q27: =Q5/SUM($O$5:$W$5) -> 0.2259149499 | S27: =S5/SUM($O$5:$W$5) -> 0.2259149499 | U27: =U5/SUM($O$5:$W$5) -> 0.2317005117 | W27: =W5/SUM($O$5:$W$5) -> 0.09055463866
D28: 1 | E28: 1000000 | F28: =VLOOKUP(D28,Rates!$M$15:$AC$46,17,FALSE) -> 0.08 | G28: =G26-E28 -> 377907246.1 | H28: =E5*F28/2+$E$22/2 -> 15206289.84 | I28: =E28+H28 -> 16206289.84 | K28: 101922.8823 | L28: =K28/$E28 -> 0.1019228823 | M28: 221126.9071 | N28: =M28/$E28 -> 0.2211269071 | O28: =$Y28*O$27 -> 152933.1729 | P28: =O28/$E28 -> 0.1529331729 | Q28: =$Y28*Q$27 -> 152933.1729 | R28: 0.1529331729 | S28: =$Y28*S$27 -> 152933.1729 | T28: =S28/$E28 -> 0.1529331729 | U28: 156849.7102 | V28: =U28/$E28 -> 0.1568497102 | W28: 61300.9817 | X28: =W28/$E28 -> 0.0613009817 | Y28: =E28-K28-M28 -> 676950.2105
D29: 2 | E29: =I29-H29 -> 1379233.833 | F29: =VLOOKUP(D29,Rates!$M$15:$AC$46,17,FALSE) -> 0.08 | G29: =G28-E29 -> 376528012.2 | H29: =G28*(F28)/2+$E$22/2 -> 15166289.84 | I29: =I28*($I$25+1) -> 16545523.67 | J29: =E29/E28 -> 1.379233833 | K29: =K28*J29 -> 140575.4876 | L29: =K29/$E29 -> 0.1019228823 | M29: =M28*J29 -> 304985.7116 | N29: 0.2211269071 | O29: =$Y29*O$27 -> 210930.6062 | P29: 0.1529331729 | Q29: 210930.6062 | R29: 0.1529331729 | S29: 210930.6062 | T29: 0.1529331729 | U29: 216332.4269 | V29: 0.1568497102 | W29: 84548.38794 | X29: 0.0613009817 | Y29: =E29-K29-M29 -> 933672.6334
D30: 3 | E30: =I30-H30 -> 1780737.94 | F30: =VLOOKUP(D30,Rates!$M$15:$AC$46,17,FALSE) -> 0.08 | G30: =G29-E30 -> 374747274.3 | H30: =G29*(F29)/2+$E$22/2 -> 15111120.49 | I30: =I29*($I$25+1) -> 16891858.43 | J30: 1.291106626 | K30: 181497.9436 | L30: 0.1019228823 | M30: 393769.0732 | N30: 0.2211269071 | O30: 272333.9033 | P30: 0.1529331729 | Q30: 272333.9033 | R30: 0.1529331729 | S30: 272333.9033 | T30: 0.1529331729 | U30: 279308.2298 | V30: 0.1568497102 | W30: 109160.9839 | X30: 0.0613009817 | Y30: 1205470.924
